Workbook

Sheet Budget FCFA
A1: TAUX DE CHANGE | D1: 655.957 | I1: 655.957 | N1: 655.957 | S1: 655.957 | X1: 655.957 | AB1: 655.957 | AG1: 655.957 | AL1: 655.957
A2: Nb de mags | B2: 6 | C2: AFRIQUE 2021 | D2: JANVIER | I2: FEVRIER | N2: MARS | S2: AVRIL | X2: MAI | AB2: JUIN | AG2: JUILLET | AL2: AOUT
A4: Catégorie | B4: Pays | C4: Num OP + saison | D4: PMA 10H20 | E4: PMA6H20 | F4: PMA7H20 | G4: x | H4: JANVIER | I4: PMA NEW CO FEVRIER | J4: x | K4: x | L4: x | M4: FEVRIER | N4: PMA1 E21 | O4: PMA8 E20 | P4: SOLDES | Q4: x | R4: MARS | S4: PMA34E21 | T4: PMA33 E21 / PMA RAMADAN | U4: x | V4: x | W4: AVRIL | X4: PMA5 E21 | Y4: PMA 31E21 | Z4: x | AA4: MAI | AB4: PMA32 E21 | AC4: x | AD4: x | AE4: x | AF4: JUIN | AG4: PMA8 E21 | AH4: x | AI4: x | AJ4: x | AK4: JUILLET | AL4: RDC | AM4: SOLDES | AN4: x | AO4: x | AP4: AOUT
A5: PUBHAART | B5: ABIDJAN | C5: Achats d'art standard (photos) interne KIABI | H5: =H10*48% -> 366014.5602 | M5: =M10*48% -> 259082.0244 | R5: =R10*48% -> 274081.9243 | W5: =W10*48% -> 2060549.304 | AA5: =AA10*48% -> 471816.751 | AF5: =AF10*48% -> 17317.2648 | AK5: =AK10*#REF! ->  | AP5: =AP10*#REF! -> 
A6: PUBHAART | B6: BRAZZA | C6: Achats d'art standard (photos) interne KIABI | H6: =H10*9.3% -> 70915.32104 | M6: =M10*9.3% -> 50197.14222 | R6: =R10*9.3% -> 53103.37283 | W6: =W10*9.3% -> 399231.4277 | AA6: =AA10*9.3% -> 91414.4955 | AF6: =AF10*9.3% -> 3355.220055 | AK6: =AK10*#REF! ->  | AP6: =AP10*#REF! -> 
A7: PUBHAART | B7: DAKAR | C7: Achats d'art standard (photos) interne KIABI | H7: =H10*12.5% -> 95316.29172 | M7: =M10*12.5% -> 67469.27718 | R7: =R10*12.5% -> 71375.50112 | W7: =W10*12.5% -> 536601.3812 | AA7: =AA10*12.5% -> 122868.9456 | AF7: =AF10*12.5% -> 4509.704375 | AK7: =AK10*#REF! ->  | AP7: =AP10*#REF! -> 
A8: PUBHAART | B8: LIBREVILLE | C8: Achats d'art standard (photos) interne KIABI | H8: =H10*17.7% -> 134967.8691 | M8: =M10*17.7% -> 95536.49649 | R8: =R10*17.7% -> 101067.7096 | W8: =W10*17.7% -> 759827.5558 | AA8: =AA10*17.7% -> 173982.4269 | AF8: =AF10*17.7% -> 6385.741395 | AK8: =AK10*#REF! ->  | AP8: =AP10*#REF! -> 
A9: PUBHAART | B9: DOUALA | C9: Achats d'art standard (photos) interne KIABI | H9: =H10*12.5% -> 95316.29172 | M9: =M10*12.5% -> 67469.27718 | R9: =R10*12.5% -> 71375.50112 | W9: =W10*12.5% -> 536601.3812 | AA9: =AA10*12.5% -> 122868.9456 | AF9: =AF10*12.5% -> 4509.704375 | AK9: =AK10*#REF! ->  | AP9: =AP10*#REF! -> 
A10: PUBHAART | B10: TOTAL | C10: Total Achats Art (all) | H10: =1162.47*D1 -> 762530.3338 | M10: =822.85*I1 -> 539754.2174 | R10: =870.49*N1 -> 571004.0089 | W10: =6553.91*655 -> 4292811.05 | AA10: =1498.5*X1 -> 982951.5645 | AF10: =55*AB1 -> 36077.635 | AK10: =338.45*AG1 -> 222008.6466 | AP10: =927.03*AG1 -> 608091.8177
A11: PUBLIANT | B11: ABIDJAN | C11: Exercices précédents
A12: PUBLIANT | B12: BRAZZA | C12: Exercices précédents
A13: PUBLIANT | B13: DAKAR | C13: Exercices précédents
A14: PUBLIANT | B14: LIBREVILLE | C14: Exercices précédents
A15: PUBLIANT | B15: DOUALA | C15: Exercices précédents
A16: PUBLIANT | B16: TOTAL | C16: Total exercices précédents | D16: =SUM(D11:D15) -> 0 | E16: =SUM(E11:E15) -> 0 | F16: 0 | G16: 0 | H16: =0.16*D1 -> 104.95312 | I16: 0 | J16: 0 | K16: 0 | L16: 0 | M16: =23.44*I1 -> 15375.63208 | N16: 0 | O16: 0 | P16: 0 | Q16: 0 | R16: =-56.76*I1 -> -37232.11932 | S16: 0 | T16: 0 | U16: 0 | V16: 0 | W16: =29.65*S1 -> 19449.12505 | X16: =SUM(X11:X15) -> 0 | Y16: 0 | Z16: 0 | AA16: 0 | AB16: 0 | AC16: 0 | AD16: 0 | AE16: 0 | AF16: =5*AB1 -> 3279.785 | AG16: 0 | AH16: 0 | AI16: =SUM(AI11:AI15) -> 0 | AJ16: 0 | AK16: 0 | AL16: 0 | AM16: 0 | AN16: 0 | AO16: 0 | AP16: 0
A17: PUBCATAL | B17: ABIDJAN | C17: EVE / Gravure tract | R17: =(R22*48%) -> 245590.3008
A18: PUBCATAL | B18: BRAZZA | C18: EVE / Gravure tract | R18: =R22*9.3% -> 47583.12078
A19: PUBCATAL | B19: DAKAR | C19: EVE / Gravure tract | R19: =R22*12.5% -> 63955.8075
A20: PUBCATAL | B20: LIBREVILLE | C20: EVE / Gravure tract | R20: =R22*17.7% -> 90561.42342
A21: PUBCATAL | B21: DOUALA | C21: EVE / Gravure tract | R21: =R22*12.5% -> 63955.8075
A22: PUBCATAL | B22: TOTAL | C22: Total Eve / gravure tract | D22: =+SUM(D17:D21) -> 0 | E22: 0 | F22: 0 | G22: 0 | H22: 0 | I22: 0 | J22: 0 | K22: 0 | L22: 0 | M22: 0 | N22: 0 | O22: 0 | P22: 0 | Q22: 0 | R22: =780*X1 -> 511646.46 | S22: 0 | T22: 0 | U22: 0 | V22: 0 | W22: 0 | X22: 0 | Y22: 0 | Z22: 0 | AA22: 0 | AB22: 0 | AC22: 0 | AD22: 0 | AE22: 0 | AF22: 0 | AG22: 0 | AH22: 0 | AI22: 0 | AJ22: 0 | AK22: 0 | AL22: 0 | AM22: 0 | AN22: 0 | AO22: 0 | AP22: 0
A23: PUBCATAL | B23: ABIDJAN | C23: Gravure KIABI GROUPE
A24: PUBCATAL | B24: BRAZZA | C24: Gravure KIABI GROUPE
A25: PUBCATAL | B25: DAKAR | C25: Gravure KIABI GROUPE
A26: PUBCATAL | B26: LIBREVILLE | C26: Gravure KIABI GROUPE
A27: PUBCATAL | B27: DOUALA | C27: Gravure KIABI GROUPE
A28: PUBCATAL | B28: TOTAL | C28: Total Gravure Kiabi Groupe | AE28: =(500*AA1)/12 -> 0 | AH28: =(500*AD1)/12 -> 0 | AI28: =(500*AE1)/12 -> 0 | AJ28: =(500*AF1)/12 -> 0 | AN28: =(500*AJ1)/12 -> 0 | AO28: =(500*AK1)/12 -> 0
A29: PUBCATAL | B29: ABIDJAN | C29: Impression catalogue | E29: 75000 | I29: 2250000 | O29: 75000 | P29: =1050000 -> 1050000 | T29: =2550000+375000 -> 2925000 | X29: 75000 | AB29: =75000+1150000 -> 1225000 | AG29: 75000 | AL29: =75000+1805000+300000+2250000 -> 4430000 | AM29: 75000
A30: PUBCATAL | B30: BRAZZA | C30: Impression catalogue | AA30: =885000+680000 -> 1565000 | AL30: =70000+500000+500000 -> 1070000
A31: PUBCATAL | B31: DAKAR | C31: Impression catalogue | I31: =190000+410000 -> 600000 | AL31: =150000+410000+210000 -> 770000
A32: PUBCATAL | B32: LIBREVILLE | C32: Impression catalogue | I32: 1186000 | AL32: =1400000+500000+300000 -> 2200000
A33: PUBCATAL | B33: DOUALA | C33: Impression catalogue | I33: 920000 | W33: 992000 | AL33: =825000+250000+(2500*3)+30000+60000+360000 -> 1532500
A34: PUBCATAL | B34: TOTAL | C34: Total impression catalogue | D34: =SUM(D29:D33) -> 0 | E34: =SUM(E29:E33) -> 75000 | F34: 0 | G34: 0 | H34: 0 | I34: 4956000 | J34: 0 | K34: 0 | L34: 0 | M34: 0 | N34: 0 | O34: 75000 | P34: 1050000 | Q34: 0 | R34: 0 | S34: 0 | T34: =SUM(T29:T33) -> 2925000 | U34: 0 | V34: 0 | W34: 992000 | X34: 75000 | Y34: 0 | Z34: 0 | AA34: 1565000 | AB34: 1225000 | AC34: 0 | AD34: 0 | AE34: 0 | AF34: 0 | AG34: 75000 | AH34: 0 | AI34: =SUM(AI29:AI33) -> 0 | AJ34: 0 | AK34: 0 | AL34: 10002500 | AM34: 75000 | AN34: 0 | AO34: 0 | AP34: 0
A35: PUBCATAL | B35: TOTAL | C35: Total catalogue | D35: =D22+D28+D34 -> 0 | E35: =E22+E28+E34 -> 75000 | F35: 0 | G35: 0 | H35: 0 | I35: 4956000 | J35: 0 | K35: 0 | L35: 0 | M35: 0 | N35: 0 | O35: 75000 | P35: 1050000 | Q35: 0 | R35: 511646.46 | S35: 0 | T35: 2925000 | U35: 0 | V35: 0 | W35: 992000 | X35: 75000 | Y35: 0 | Z35: 0 | AA35: 1565000 | AB35: 1225000 | AC35: 0 | AD35: 0 | AE35: 0 | AF35: 0 | AG35: 75000 | AH35: 0 | AI35: 0 | AJ35: 0 | AK35: 0 | AL35: 10002500 | AM35: 75000 | AN35: 0 | AO35: 0 | AP35: 0
A36: PUBDISTR | B36: ABIDJAN | C36: Coût distribution | I36: 322000 | P36: =990000+45000 -> 1035000 | T36: =70000+1680000+362000 -> 2112000 | AB36: 402000 | AL36: =554000+2500000 -> 3054000
A37: PUBDISTR | B37: BRAZZA | C37: Coût distribution | AL37: =225000+50000+20000+150000+198000+40000+60000 -> 743000
A38: PUBDISTR | B38: DAKAR | C38: Coût distribution | I38: =95000+1665000 -> 1760000 | AL38: =889200+475000 -> 1364200
A39: PUBDISTR | B39: LIBREVILLE | C39: Coût distribution | I39: 960000 | AL39: =884000+487491+100000 -> 1471491
A40: PUBDISTR | B40: DOUALA | C40: Coût distribution | I40: 1879755 | AL40: =250000+175000+50000+1000000 -> 1475000
A41: PUBDISTR | B41: TOTAL | C41: Total distribution | D41: =SUM(D36:D40) -> 0 | E41: 0 | F41: 0 | G41: 0 | H41: 0 | I41: 4921755 | J41: 0 | K41: 0 | L41: 0 | M41: 0 | N41: 0 | O41: 0 | P41: 1035000 | Q41: 0 | R41: 0 | S41: 0 | T41: =SUM(T36:T40) -> 2112000 | U41: 0 | V41: 0 | W41: 0 | X41: 0 | Y41: 0 | Z41: 0 | AA41: 0 | AB41: 402000 | AC41: 0 | AD41: 0 | AE41: 0 | AF41: 0 | AG41: 0 | AH41: 0 | AI41: =SUM(AI36:AI40) -> 0 | AJ41: 0 | AK41: 0 | AL41: 8107691 | AM41: 0 | AN41: 0 | AO41: 0 | AP41: 0
A42: PUBAFFIC | B42: ABIDJAN | C42: Réseau affichage | D42: 122500 | E42: =233640+60000 -> 293640 | H42: 180000 | I42: =90000+193093 -> 283093 | M42: 180000 | O42: =90000+217200 -> 307200 | P42: 1994200 | R42: 180000 | T42: =3666917+90000+217200 -> 3974117 | W42: 180000 | AA42: =180000 -> 180000 | AB42: =217200+2451278+60000 -> 2728478 | AF42: 180000 | AK42: 180000 | AL42: =2000000+700000+300000+342000+55000+122500+3000000 -> 6519500 | AP42: 180000
A43: PUBAFFIC | B43: BRAZZA | C43: Réseau affichage | F43: 480500 | M43: =165000 -> 165000 | R43: =165000 -> 165000 | W43: =165000 -> 165000 | AA43: =165000 -> 165000 | AF43: =165000 -> 165000 | AK43: =165000 -> 165000 | AL43: =165000+351000+270000+90000+1300000+430000+100000 -> 2706000 | AP43: =165000 -> 165000
A44: PUBAFFIC | B44: DAKAR | C44: Réseau affichage | M44: 504000 | P44: =358750 -> 358750 | AM44: 240000
A45: PUBAFFIC | B45: LIBREVILLE | C45: Réseau affichage | AL45: 519403
A46: PUBAFFIC | B46: DOUALA | C46: Réseau affichage | H46: 329600 | I46: =700400+346080 -> 1046480 | R46: 456290 | AL46: =(6*110000)+(5*150000) -> 1410000
A47: PUBAFFIC | B47: ABIDJAN | C47: Frais de création affichage | H47: 37400 | M47: 37400 | R47: 37400 | W47: 37400 | AA47: 37400 | AF47: 37400 | AK47: 37400 | AL47: =22500*30 -> 675000 | AP47: 37400
A48: PUBAFFIC | B48: BRAZZA | C48: Frais de création affichage | H48: 37400 | M48: 37400 | R48: 37400 | W48: 37400 | AA48: 37400 | AF48: 37400 | AK48: 37400 | AP48: 37400
A49: PUBAFFIC | B49: DAKAR | C49: Frais de création affichage | H49: 37400 | M49: 37400 | R49: 37400 | W49: 37400 | AA49: 37400 | AF49: 37400 | AK49: 37400 | AP49: 37400
A50: PUBAFFIC | B50: LIBREVILLE | C50: Frais de création affichage | H50: 37400 | M50: 37400 | R50: 37400 | W50: 37400 | AA50: 37400 | AF50: 37400 | AK50: 37400 | AP50: 37400
A51: PUBAFFIC | B51: DOUALA | C51: Frais de création affichage | H51: 37400 | M51: 37400 | R51: 37400 | W51: 37400 | AA51: 37400 | AF51: 37400 | AK51: 37400 | AP51: 37400
A52: PUBAFFIC | B52: TOTAL | C52: Total reseau affichage | D52: =SUM(D42:D51) -> 122500 | E52: 293640 | F52: 480500 | G52: 0 | H52: 696600 | I52: 1329573 | J52: 0 | K52: 0 | L52: 0 | M52: 1036000 | N52: 0 | O52: 307200 | P52: 2352950 | Q52: 0 | R52: 988290 | S52: 0 | T52: 3974117 | U52: 0 | V52: 0 | W52: 532000 | X52: 0 | Y52: 0 | Z52: 0 | AA52: 532000 | AB52: 2728478 | AC52: 0 | AD52: 0 | AE52: 0 | AF52: 532000 | AG52: 0 | AH52: 0 | AI52: =SUM(AI42:AI51) -> 0 | AJ52: 0 | AK52: 532000 | AL52: 11829903 | AM52: 240000 | AN52: 0 | AO52: 0 | AP52: 532000
A53: PUBPRESS | B53: ABIDJAN | C53: Achat d'espace presse | AL53: 660000
A54: PUBPRESS | B54: BRAZZA | C54: Achat d'espace presse
A55: PUBPRESS | B55: DAKAR | C55: Achat d'espace presse | P55: =33333+300000+216666 -> 549999 | AM55: 450000
A56: PUBPRESS | B56: LIBREVILLE | C56: Achat d'espace presse | AL56: 1883549 | AM56: 0
A57: PUBPRESS | B57: DOUALA | C57: Achat d'espace presse
A58: PUBPRESS | B58: ABIDJAN | C58: Créa presse | AL58: 957421
A59: PUBPRESS | B59: BRAZZA | C59: Créa presse | AL59: 183664
A60: PUBPRESS | B60: DAKAR | C60: Créa presse | AL60: 246132
A61: PUBPRESS | B61: LIBREVILLE | C61: Créa presse | AL61: 356263
A62: PUBPRESS | B62: DOUALA | C62: Créa presse | AL62: 256521
A63: PUBPRESS | B63: TOTAL | C63: Total presse | D63: =SUM(D53:D62) -> 0 | E63: 0 | F63: 0 | G63: 0 | H63: 0 | I63: 0 | J63: 0 | K63: 0 | L63: 0 | M63: 0 | N63: 0 | O63: 0 | P63: 549999 | Q63: 0 | R63: 0 | S63: 0 | T63: 0 | U63: 0 | V63: 0 | W63: 0 | X63: 0 | Y63: 0 | Z63: 0 | AA63: 0 | AB63: 0 | AC63: 0 | AD63: 0 | AE63: 0 | AF63: 0 | AG63: 0 | AH63: 0 | AI63: =SUM(AI53:AI62) -> 0 | AJ63: 0 | AK63: 0 | AL63: 4543550 | AM63: =SUM(AM53:AM62) -> 450000 | AN63: 0 | AO63: 0 | AP63: 0
A64: PUBRADIO | B64: ABIDJAN | C64: Achat d'espace radio | P64: 246859
A65: PUBRADIO | B65: BRAZZA | C65: Achat d'espace radio
A66: PUBRADIO | B66: DAKAR | C66: Achat d'espace radio | P66: 322000 | AM66: =368000+322575 -> 690575
A67: PUBRADIO | B67: LIBREVILLE | C67: Achat d'espace radio | P67: 800000
A68: PUBRADIO | B68: DOUALA | C68: Achat d'espace radio | AG68: 480000 | AL68: =(15000*30*2)+480000 -> 1380000 | AM68: =15000*30*2 -> 900000
A69: PUBRADIO | B69: ABIDJAN | C69: Création spot radio + Validation CSP
A70: PUBRADIO | B70: BRAZZA | C70: Création spot radio + Validation CSP
A71: PUBRADIO | B71: DAKAR | C71: Création spot radio + Validation CSP | P71: =575000 -> 575000 | AM71: =287000 -> 287000
A72: PUBRADIO | B72: LIBREVILLE | C72: Création spot radio + Validation CSP
A73: PUBRADIO | B73: DOUALA | C73: Création spot radio + Validation CSP | AL73: 300000 | AM73: 300000
A74: PUBRADIO | B74: TOTAL | C74: Total radio | D74: =SUM(D64:D73) -> 0 | E74: 0 | F74: 0 | G74: 0 | H74: 0 | I74: 0 | J74: 0 | K74: 0 | L74: 0 | M74: 0 | N74: 0 | O74: 0 | P74: 1943859 | Q74: 0 | R74: 0 | S74: 0 | T74: 0 | U74: 0 | V74: 0 | W74: 0 | X74: 0 | Y74: 0 | Z74: 0 | AA74: 0 | AB74: 0 | AC74: 0 | AD74: 0 | AE74: 0 | AF74: 0 | AG74: 480000 | AH74: 0 | AI74: =SUM(AI64:AI73) -> 0 | AJ74: 0 | AK74: 0 | AL74: 1680000 | AM74: 2177575 | AN74: 0 | AO74: 0 | AP74: 0
A75: PUBTELEV | B75: ABIDJAN | C75: Achat d'espace TV / PARTENARIAT | AL75: 20000000
A76: PUBTELEV | B76: BRAZZA | C76: Achat d'espace TV / PARTENARIAT | AL76: 1200000
A77: PUBTELEV | B77: DAKAR | C77: Achat d'espace TV / PARTENARIAT | AL77: 2500000
A78: PUBTELEV | B78: LIBREVILLE | C78: Achat d'espace TV / PARTENARIAT | P78: 95833 | AL78: 2100000
A79: PUBTELEV | B79: DOUALA | C79: Achat d'espace TV / PARTENARIAT
A80: PUBTELEV | B80: ABIDJAN | C80: Vidéos TV / WEB | AL80: 2154197
A81: PUBTELEV | B81: BRAZZA | C81: Vidéos TV / WEB | AL81: 413244
A82: PUBTELEV | B82: DAKAR | C82: Vidéos TV / WEB | AL82: 553796
A83: PUBTELEV | B83: LIBREVILLE | C83: Vidéos TV / WEB | AL83: 801591
A84: PUBTELEV | B84: DOUALA | C84: Vidéos TV / WEB | AL84: 577172
A85: PUBTELEV | B85: TOTAL | C85: Total TV | D85: =SUM(D75:D84) -> 0 | E85: 0 | F85: 0 | G85: 0 | H85: 0 | I85: 0 | J85: 0 | K85: 0 | L85: 0 | M85: 0 | N85: 0 | O85: 0 | P85: 95833 | Q85: 0 | R85: 0 | S85: 0 | T85: 0 | U85: 0 | V85: 0 | W85: 0 | X85: 0 | Y85: 0 | Z85: 0 | AA85: 0 | AB85: 0 | AC85: 0 | AD85: 0 | AE85: 0 | AF85: 0 | AG85: 0 | AH85: 0 | AI85: =SUM(AI75:AI84) -> 0 | AJ85: 0 | AK85: 0 | AL85: 30300000 | AM85: 0 | AN85: 0 | AO85: 0 | AP85: 0
A86: PUBBRAND | B86: ABIDJAN
A87: PUBBRAND | B87: BRAZZA
A88: PUBBRAND | B88: DAKAR
A89: PUBBRAND | B89: LIBREVILLE
A90: PUBBRAND | B90: DOUALA
A91: PUBBRAND | B91: TOTAL | D91: =SUM(D86:D90) -> 0 | E91: 0 | F91: 0 | G91: 0 | H91: 0 | I91: 0 | J91: 0 | K91: 0 | L91: 0 | M91: 0 | N91: 0 | O91: 0 | P91: 0 | Q91: 0 | R91: 0 | S91: 0 | T91: 0 | U91: 0 | V91: 0 | W91: 0 | X91: 0 | Y91: 0 | Z91: 0 | AA91: 0 | AB91: 0 | AC91: 0 | AD91: 0 | AE91: 0 | AF91: 0 | AG91: 0 | AH91: 0 | AI91: =SUM(AI86:AI90) -> 0 | AJ91: 0 | AK91: 0 | AL91: 0 | AM91: 0 | AN91: 0 | AO91: 0 | AP91: 0
A92: PUBVIDEO | B92: ABIDJAN | C92: PUB VIDEO (video magasin) | R92: =R97*48% -> 46473.24154 | AK92: =AK97*#REF! ->  | AP92: =AP97*#REF! -> 
A93: PUBVIDEO | B93: BRAZZA | C93: PUB VIDEO (video magasin) | R93: =R97*9.3% -> 9004.190548 | AK93: =AK97*#REF! ->  | AP93: =AP97*#REF! -> 
A94: PUBVIDEO | B94: DAKAR | C94: PUB VIDEO (video magasin) | R94: =R97*12.5% -> 12102.40665 | AK94: =AK97*#REF! ->  | AP94: =AP97*#REF! -> 
A95: PUBVIDEO | B95: LIBREVILLE | C95: PUB VIDEO (video magasin) | R95: =R97*17.7% -> 17137.00782 | AK95: =AK97*#REF! ->  | AP95: =AP97*#REF! -> 
A96: PUBVIDEO | B96: DOUALA | C96: PUB VIDEO (video magasin) | R96: =R97*12.5% -> 12102.40665 | AK96: =AK97*#REF! ->  | AP96: =AP97*#REF! -> 
A97: PUBVIDEO | B97: TOTAL | C97: TOTAL PUB VIDEO (video magasin) | D97: =SUM(D92:D96) -> 0 | E97: =SUM(E92:E96) -> 0 | F97: =SUM(F92:F96) -> 0 | G97: 0 | H97: 0 | I97: 0 | J97: 0 | K97: 0 | L97: 0 | M97: 0 | N97: 0 | O97: 0 | P97: 0 | Q97: =SUM(Q92:Q96) -> 0 | R97: =147.6*N1 -> 96819.2532 | S97: =SUM(S92:S96) -> 0 | T97: =SUM(T92:T96) -> 0 | U97: 0 | V97: 0 | W97: 0 | X97: 0 | Y97: 0 | Z97: 0 | AA97: 0 | AB97: 0 | AC97: 0 | AD97: 0 | AE97: 0 | AF97: 0 | AG97: =SUM(AG92:AG96) -> 0 | AH97: =SUM(AH92:AH96) -> 0 | AI97: =SUM(AI92:AI96) -> 0 | AJ97: =SUM(AJ92:AJ96) -> 0 | AK97: =415.2*AG1 -> 272353.3464 | AL97: =SUM(AL92:AL96) -> 0 | AM97: =SUM(AM92:AM96) -> 0 | AN97: =SUM(AN92:AN96) -> 0 | AO97: =SUM(AO92:AO96) -> 0
A98: WEBRESEA | B98: ABIDJAN | C98: Facebook adds BAPEE | H98: =342.47*D1 -> 224645.5938 | M98: =1029.24*I1 -> 675137.1827 | R98: =751.93*N1 -> 493233.747 | W98: =440.69*S1 -> 289073.6903 | AA98: =354*X1 -> 232208.778 | AF98: =881.97*AB1 -> 578534.3953 | AK98: =325.96*AG1 -> 213815.7437 | AP98: =1038.15*AL1 -> 680981.7596
A99: WEBRESEA | B99: BRAZZA | C99: Facebook adds BAPEE | H99: =113.53*D1 -> 74470.79821 | M99: =114.96*I1 -> 75408.81672 | R99: =205.56*N1 -> 134838.5209 | W99: =(160.8+0.04)*S1 -> 105504.1239 | AA99: =141.54*X1 -> 92844.15378 | AF99: =467.32*AB1 -> 306541.8252 | AK99: =363.11*AG1 -> 238184.5463 | AP99: =203.93*AL1 -> 133769.311
A100: WEBRESEA | B100: DAKAR | C100: Facebook adds BAPEE | H100: =367.04*D1 -> 240762.4573 | M100: =610.15*I1 -> 400232.1635 | R100: =728.35*N1 -> 477766.2809 | W100: =582.13*S1 -> 381852.2484 | AA100: =490.09*X1 -> 321477.9661 | AF100: =630.79*AB1 -> 413771.116 | AK100: =300.5*AG1 -> 197115.0785 | AP100: =746.36 *AL1 -> 489580.0665
A101: WEBRESEA | B101: LIBREVILLE | C101: Facebook adds BAPEE | H101: =105.07*D1 -> 68921.40199 | M101: =125.07*I1 -> 82040.54199 | R101: =311.15*N1 -> 204101.0205 | W101: =248.85*S1 -> 163234.8994 | AA101: =107.91*X1 -> 70784.31987 | AF101: =129.54*AB1 -> 84972.66978 | AK101: =106.28*AG1 -> 69715.10996 | AP101: =410.99*AL1 -> 269591.7674
A102: WEBRESEA | B102: DOUALA | C102: Facebook adds BAPEE | H102: =187.81*D1 -> 123195.2842 | M102: =188.84*I1 -> 123870.9199 | R102: =259.96*N1 -> 170522.5817 | W102: =435.45*S1 -> 285636.4756 | AA102: =499.6*X1 -> 327716.1172 | AF102: =187*AB1 -> 122663.959 | AK102: =100.46*AG1 -> 65897.44022 | AP102: =375.31*AL1 -> 246187.2217
A103: WEBRESEA | B103: TOTAL | C103: Total Facebook | D103: =SUM(D98:D101) -> 0 | E103: =SUM(E98:E101) -> 0 | F103: =SUM(F98:F101) -> 0 | G103: =SUM(G98:G101) -> 0 | H103: =SUM(H98:H102) -> 731995.5354 | I103: 0 | J103: 0 | K103: 0 | L103: 0 | M103: 1356689.625 | N103: 0 | O103: 0 | P103: 0 | Q103: 0 | R103: 1480462.151 | S103: 0 | T103: 0 | U103: 0 | V103: 0 | W103: 1225301.438 | X103: 0 | Y103: 0 | Z103: 0 | AA103: =SUM(AA98:AA102) -> 1045031.335 | AB103: =SUM(AB98:AB102) -> 0 | AC103: 0 | AD103: 0 | AE103: 0 | AF103: 1506483.965 | AG103: 0 | AH103: 0 | AI103: 0 | AJ103: 0 | AK103: 784727.9187 | AL103: 0 | AM103: =SUM(AM98:AM102) -> 0 | AN103: 0 | AO103: 0 | AP103: 1820110.126
A104: WEBPUSEA | B104: ABIDJAN | C104: Jeu concours
A105: WEBPUSEA | B105: BRAZZA | C105: Jeu concours
A106: WEBPUSEA | B106: DAKAR | C106: Jeu concours
A107: WEBPUSEA | B107: LIBREVILLE | C107: Jeu concours
A108: WEBPUSEA | B108: DOUALA | C108: Jeu concours
A109: WEBPUSEA | B109: TOTAL | C109: Total Jeu concours | D109: =SUM(D104:D108) -> 0 | E109: 0 | F109: 0 | G109: 0 | H109: 0 | I109: 0 | J109: 0 | K109: 0 | L109: 0 | M109: 0 | N109: 0 | O109: 0 | P109: 0 | Q109: 0 | R109: 0 | S109: 0 | T109: 0 | U109: 0 | V109: 0 | W109: 0 | X109: 0 | Y109: 0 | Z109: 0 | AA109: 0 | AB109: 0 | AC109: 0 | AD109: 0 | AE109: 0 | AF109: 0 | AG109: 0 | AH109: 0 | AI109: =SUM(AI104:AI108) -> 0 | AJ109: 0 | AK109: 0 | AL109: 0 | AM109: 0 | AN109: 0 | AO109: 0 | AP109: 0
A110: WEBPUSEA | B110: ABIDJAN | C110: HA mots clés
A111: WEBPUSEA | B111: BRAZZA | C111: HA mots clés
A112: WEBPUSEA | B112: DAKAR | C112: HA mots clés
A113: WEBPUSEA | B113: LIBREVILLE | C113: HA mots clés
A114: WEBPUSEA | B114: DOUALA | C114: HA mots clés
A115: WEBPUSEA | B115: TOTAL | C115: Total HA mots clés | D115: =SUM(D110:D114) -> 0 | E115: =SUM(E110:E114) -> 0 | F115: 0 | G115: 0 | H115: 0 | I115: 0 | J115: 0 | K115: 0 | L115: 0 | M115: 0 | N115: 0 | O115: 0 | P115: 0 | Q115: 0 | R115: 0 | S115: 0 | T115: 0 | U115: 0 | V115: 0 | W115: 0 | X115: 0 | Y115: 0 | Z115: 0 | AA115: 0 | AB115: 0 | AC115: 0 | AD115: 0 | AE115: 0 | AF115: 0 | AG115: 0 | AH115: 0 | AI115: 0 | AJ115: 0 | AK115: 0 | AL115: 0 | AM115: 0 | AN115: 0 | AO115: 0 | AP115: 0
A116: WEBPUSEA | B116: ABIDJAN | C116: Création Bannières web
A117: WEBPUSEA | B117: BRAZZA | C117: Création Bannières web
A118: WEBPUSEA | B118: DAKAR | C118: Création Bannières web
A119: WEBPUSEA | B119: LIBREVILLE | C119: Création Bannières web
A120: WEBPUSEA | B120: DOUALA | C120: Création Bannières web
A121: WEBPUSEA | B121: TOTAL | C121: Achats d'espace bannières web | D121: =SUM(D116:D120) -> 0 | E121: =SUM(E116:E120) -> 0 | F121: 0 | G121: 0 | H121: 0 | I121: 0 | J121: 0 | K121: 0 | L121: 0 | M121: 0 | N121: 0 | O121: 0 | P121: 0 | Q121: 0 | R121: 0 | S121: 0 | T121: 0 | U121: 0 | V121: 0 | W121: 0 | X121: 0 | Y121: 0 | Z121: 0 | AA121: 0 | AB121: 0 | AC121: 0 | AD121: 0 | AE121: 0 | AF121: 0 | AG121: 0 | AH121: 0 | AI121: 0 | AJ121: 0 | AK121: 0 | AL121: 0 | AM121: 0 | AN121: 0 | AO121: 0 | AP121: 0
A122: PUBWEB00 | B122: ABIDJAN | C122: Envoi SMS | D122: 783449 | I122: 783436 | P122: =311916+381290 -> 693206 | T122: 425510 | X122: 426127 | Y122: 426121 | AB122: 426127 | AG122: 1452000 | AL122: 1452000 | AM122: =1452000*2 -> 2904000
A123: PUBWEB00 | B123: BRAZZA | C123: Envoi SMS | O123: 59175 | P123: =59175+59175 -> 118350 | T123: 61380 | X123: 61395 | Y123: 61395 | AB123: 61380 | AF123: 61380 | AG123: 105000 | AL123: 105000 | AM123: =105000*2 -> 210000
A124: PUBWEB00 | B124: DAKAR | C124: Envoi SMS | F124: 135000 | I124: 135000 | M124: 135000 | P124: =135000+135000 -> 270000 | T124: 135000 | X124: 135000 | Y124: 135000 | AG124: 225000 | AL124: 225000 | AM124: =225000*2 -> 450000
A125: PUBWEB00 | B125: LIBREVILLE | C125: Envoi SMS | I125: 336362 | P125: =482837+350334 -> 833171 | T125: 482837 | X125: 482837 | Y125: 482837 | AB125: 482837 | AF125: 482837 | AG125: =875000 -> 875000 | AL125: =875000 -> 875000 | AM125: =875000 -> 875000
A126: PUBWEB00 | B126: DOUALA | C126: Envoi SMS | O126: 114811 | P126: =114818+114818 -> 229636 | T126: 114825 | X126: 114825 | Y126: 114825 | AB126: 114818 | AF126: 114825 | AG126: =13*40000 -> 520000 | AL126: =13*40000 -> 520000 | AM126: =(13*40000)*2 -> 1040000
A127: PUBWEB00 | B127: TOTAL | C127: Total SMS | D127: =SUM(D122:D126) -> 783449 | E127: 0 | F127: 135000 | G127: 0 | H127: 0 | I127: 1254798 | J127: 0 | K127: 0 | L127: 0 | M127: 135000 | N127: 0 | O127: 173986 | P127: 2144363 | Q127: 0 | R127: 0 | S127: 0 | T127: 1219552 | U127: 0 | V127: 0 | W127: 0 | X127: 1220184 | Y127: 1220178 | Z127: 0 | AA127: 0 | AB127: 1085162 | AC127: 0 | AD127: 0 | AE127: 0 | AF127: 659042 | AG127: 3177000 | AH127: 0 | AI127: =SUM(AI122:AI126) -> 0 | AJ127: 0 | AK127: 0 | AL127: 3177000 | AM127: 5479000 | AN127: 0 | AO127: 0 | AP127: 0
A128: WEBPUSEA | B128: ABIDJAN | C128: Location + envoi SMS
A129: WEBPUSEA | B129: BRAZZA | C129: Location + envoi SMS
A130: WEBPUSEA | B130: DAKAR | C130: Location + envoi SMS
A131: WEBPUSEA | B131: LIBREVILLE | C131: Location + envoi SMS
A132: WEBPUSEA | B132: DOUALA | C132: Location + envoi SMS
A133: WEBPUSEA | B133: TOTAL | C133: Total envoi SMS | D133: =SUM(D128:D132) -> 0 | E133: =SUM(E128:E132) -> 0 | F133: 0 | G133: 0 | H133: 0 | I133: 0 | J133: 0 | K133: 0 | L133: 0 | M133: 0 | N133: 0 | O133: 0 | P133: 0 | Q133: 0 | R133: 0 | S133: 0 | T133: 0 | U133: 0 | V133: 0 | W133: 0 | X133: 0 | Y133: 0 | Z133: 0 | AA133: 0 | AB133: 0 | AC133: 0 | AD133: 0 | AE133: 0 | AF133: 0 | AG133: 0 | AH133: 0 | AI133: 0 | AJ133: 0 | AK133: 0 | AL133: 0 | AM133: 0 | AN133: 0 | AO133: 0 | AP133: 0
A134: WEBINFLU | B134: ABIDJAN | C134: Influenceurs | I134: =540000+174000 -> 714000 | M134: =(200000+90700)*48% -> 139536 | R134: =(200000+51800)*48% -> 120864 | T134: =420000+158000 -> 578000 | W134: =(190000+65300)*48% -> 122544 | AA134: 212500 | AF134: =(250000+49200)*48% -> 143616 | AK134: 119978 | AL134: 500000 | AP134: 119978
A135: WEBINFLU | B135: BRAZZA | C135: Influenceurs | M135: =(200000+90700)*9.3% -> 27035.1 | R135: =(200000+51800)*9.3% -> 23417.4 | W135: =(190000+65300)*9.3% -> 23742.9 | AF135: =(250000+49200)*9.3% -> 27825.6 | AK135: 22958 | AP135: 22958
A136: WEBINFLU | B136: DAKAR | C136: Influenceurs | M136: =(200000+90700)*12.5% -> 36337.5 | R136: =(200000+51800)*12.5% -> 31475 | W136: =(190000+65300)*12.5% -> 31912.5 | AF136: =(250000+49200)*12.5% -> 37400 | AK136: 30766 | AL136: 1000000 | AP136: 30766
A137: WEBINFLU | B137: LIBREVILLE | C137: Influenceurs | M137: =((200000+90700)*17.7%)+400000 -> 451453.9 | R137: =((200000+51800)*17.7%) -> 44568.6 | W137: =((190000+65300)*17.7%) -> 45188.1 | AF137: =((250000+49200)*17.7%) -> 52958.4 | AK137: 44533 | AL137: 600000 | AP137: 44533
A138: WEBINFLU | B138: DOUALA | C138: Influenceurs | M138: =(200000+90700)*12.5% -> 36337.5 | R138: =(200000+51800)*12.5% -> 31475 | W138: =(190000+65300)*12.5% -> 31912.5 | AF138: =(250000+49200)*12.5% -> 37400 | AK138: 32065 | AL138: 600000 | AP138: 32065
A139: WEBINFLU | B139: TOTAL | C139: Total influenceurs | D139: =SUM(D134:D138) -> 0 | E139: 0 | F139: 0 | G139: 0 | H139: 0 | I139: 714000 | J139: 0 | K139: 0 | L139: 0 | M139: 690700 | N139: 0 | O139: 0 | P139: 0 | Q139: 0 | R139: 251800 | S139: 0 | T139: 578000 | U139: 0 | V139: 0 | W139: 255300 | X139: 0 | Y139: 0 | Z139: 0 | AA139: 212500 | AB139: 0 | AC139: 0 | AD139: 0 | AE139: 0 | AF139: 299200 | AG139: 0 | AH139: 0 | AI139: =SUM(AI134:AI138) -> 0 | AJ139: 0 | AK139: 250300 | AL139: 2700000 | AM139: 0 | AN139: 0 | AO139: 0 | AP139: 250300
A140: WEBRESEA | B140: TOTAL | C140: Total web | D140: =D103+D109+D115+D121+D127+D133+D139 -> 783449 | E140: 0 | F140: =F103+F109+F115+F121+F127+F133+F139 -> 135000 | G140: 0 | H140: =H103+H109+H115+H121+H127+H133+H139 -> 731995.5354 | I140: 1968798 | J140: 0 | K140: 0 | L140: 0 | M140: 2182389.625 | N140: 0 | O140: 173986 | P140: 2144363 | Q140: 0 | R140: 1732262.151 | S140: 0 | T140: 1797552 | U140: 0 | V140: 0 | W140: 1480601.438 | X140: 1220184 | Y140: 1220178 | Z140: 0 | AA140: 1257531.335 | AB140: 1085162 | AC140: 0 | AD140: 0 | AE140: 0 | AF140: 2464725.965 | AG140: 3177000 | AH140: 0 | AI140: =AI103+AI109+AI115+AI121+AI127+AI133+AI139 -> 0 | AJ140: 0 | AK140: 1035027.919 | AL140: 5877000 | AM140: 5479000 | AN140: 0 | AO140: 0 | AP140: 2070410.126
A141: PUBTECHN | B141: ABIDJAN | C141: Exé Gravure PLV
A142: PUBTECHN | B142: BRAZZA | C142: Exé Gravure PLV
A143: PUBTECHN | B143: DAKAR | C143: Exé Gravure PLV
A144: PUBTECHN | B144: LIBREVILLE | C144: Exé Gravure PLV
A145: PUBTECHN | B145: DOUALA | C145: Exé Gravure PLV
A146: PUBTECHN | B146: TOTAL | C146: Total éxé gravure local | D146: =SUM(D141:D144) -> 0 | E146: =SUM(E141:E145) -> 0 | F146: =SUM(F141:F145) -> 0 | G146: 0 | H146: 0 | I146: 0 | J146: 0 | K146: 0 | L146: 0 | M146: 0 | N146: 0 | O146: 0 | P146: 0 | Q146: 0 | R146: 0 | S146: 0 | T146: 0 | U146: 0 | V146: 0 | W146: 0 | X146: 0 | Y146: 0 | Z146: 0 | AA146: 0 | AB146: 0 | AC146: 0 | AD146: 0 | AE146: 0 | AF146: 0 | AG146: 0 | AH146: 0 | AI146: 0 | AJ146: 0 | AK146: 0 | AL146: 0 | AM146: 0 | AN146: 0 | AO146: 0 | AP146: 0
A147: PUBTECHN | B147: ABIDJAN | C147: Exé Gravure PLV fabriquée par la France | R147: =72.33*N1 -> 47445.36981 | AA147: =AA152*#REF! ->  | AF147: =AF152*#REF! ->  | AK147: =AK152*#REF! ->  | AP147: =AP152*#REF! -> 
A148: PUBTECHN | B148: BRAZZA | C148: Exé Gravure PLV fabriquée par la France | R148: =72.33*N1 -> 47445.36981 | AA148: =AA152*#REF! ->  | AF148: =AF152*#REF! ->  | AK148: =AK152*#REF! ->  | AP148: =AP152*#REF! -> 
A149: PUBTECHN | B149: DAKAR | C149: Exé Gravure PLV fabriquée par la France | AA149: =AA152*#REF! ->  | AF149: =AF152*#REF! ->  | AK149: =AK152*#REF! ->  | AP149: =AP152*#REF! -> 
A150: PUBTECHN | B150: LIBREVILLE | C150: Exé Gravure PLV fabriquée par la France | AA150: =AA152*#REF! ->  | AF150: =AF152*#REF! ->  | AK150: =AK152*#REF! ->  | AP150: =AP152*#REF! -> 
A151: PUBTECHN | B151: DOUALA | C151: Exé Gravure PLV fabriquée par la France | W151: =403.57*S1 -> 264724.5665 | AA151: =AA152*#REF! ->  | AF151: =AF152*#REF! ->  | AK151: =AK152*#REF! ->  | AP151: =AP152*#REF! -> 
A152: PUBTECHN | C152: TOTAL FRAIS TECHNIQUES | R152: =SUM(R147:R151) -> 94890.73962 | S152: =SUM(S147:S151) -> 0 | T152: 0 | U152: 0 | V152: 0 | W152: 264724.5665 | AD152: =(1380/12)*Z1 -> 0 | AE152: =(1380/12)*AA1 -> 0 | AP152: =377.06*AL1 -> 247335.1464
A153: PUBTECHN | B153: ABIDJAN | C153: Vitrines
A154: PUBTECHN | B154: BRAZZA | C154: Vitrines
A155: PUBTECHN | B155: DAKAR | C155: Vitrines
A156: PUBTECHN | B156: LIBREVILLE | C156: Vitrines
A157: PUBTECHN | B157: DOUALA | C157: Vitrines
A158: PUBTECHN | C158: TOTAL VITRINES | D158: =SUM(D153:D157) -> 0 | E158: =SUM(E153:E157) -> 0 | F158: 0 | G158: 0 | H158: 0 | I158: 0 | J158: 0 | K158: 0 | L158: 0 | M158: 0 | N158: 0 | O158: 0 | P158: 0 | Q158: 0 | R158: 0 | S158: 0 | T158: 0 | U158: 0 | V158: 0 | W158: 0 | X158: 0 | Y158: 0 | Z158: 0 | AA158: 0 | AB158: 0 | AC158: 0 | AD158: 0 | AE158: 0 | AF158: 0 | AG158: 0 | AH158: 0 | AI158: 0 | AJ158: 0 | AK158: 0 | AL158: 0 | AM158: 0 | AN158: 0 | AO158: 0 | AP158: 0
A159: PUBTECHN | B159: ABIDJAN | C159: Théatralisation & PLV fabriquées par la France (nodhos)
A160: PUBTECHN | B160: BRAZZA | C160: Théatralisation & PLV fabriquées par la France (nodhos)
A161: PUBTECHN | B161: DAKAR | C161: Théatralisation & PLV fabriquées par la France (nodhos)
A162: PUBTECHN | B162: LIBREVILLE | C162: Théatralisation & PLV fabriquées par la France (nodhos)
A163: PUBTECHN | B163: DOUALA | C163: Théatralisation & PLV fabriquées par la France (nodhos)
A164: PUBTECHN | B164: TOTAL | C164: Total théâtralisation | D164: =SUM(D159:D163) -> 0 | E164: =SUM(E159:E163) -> 0 | F164: 0 | G164: 0 | H164: =9.07*D1 -> 5949.52999 | I164: 0 | J164: 0 | K164: 0 | L164: 0 | M164: =10*I1 -> 6559.57 | N164: 0 | O164: 0 | P164: 0 | Q164: 0 | R164: =10*N1 -> 6559.57 | S164: 0 | T164: 0 | U164: 0 | V164: 0 | W164: =499*S1 -> 327322.543 | X164: 0 | Y164: 0 | Z164: 0 | AA164: =537.44*X1 -> 352537.5301 | AB164: =SUM(AB159:AB163) -> 0 | AC164: 0 | AD164: 0 | AE164: 0 | AF164: =(555+57)*AB1 -> 401445.684 | AG164: 0 | AH164: 0 | AI164: 0 | AJ164: 0 | AK164: 0 | AL164: 0 | AM164: 0 | AN164: 0 | AO164: 0 | AP164: =377.06*AL1 -> 247335.1464
A165: PUBTECHN | B165: ABIDJAN | C165: PROD Local | E165: 280000 | I165: 280000 | M165: =400000+575000 -> 975000 | O165: 280000 | P165: 1220000 | T165: 280000 | Y165: 280000 | AA165: 160000 | AB165: =280000 -> 280000 | AF165: 160000 | AG165: 280000 | AL165: 280000 | AM165: 280000
A166: PUBTECHN | B166: BRAZZA | C166: PROD Local | E166: 23600 | F166: 23600 | I166: 28674 | M166: 11800 | O166: 23600 | P166: 7000 | T166: 23600 | X166: 23500 | Y166: 23500 | AA166: 11800 | AB166: 23600 | AG166: 10000 | AL166: 10000 | AM166: 10000
A167: PUBTECHN | B167: DAKAR | C167: PROD Local | F167: 20000 | I167: 20000 | O167: 20000 | P167: =96000+20000+3333 -> 119333 | T167: 20000 | X167: 20000 | Y167: 20000 | AA167: 40000 | AB167: 20000 | AF167: 20000 | AL167: 28500 | AM167: =(28500*2)+96000 -> 153000
A168: PUBTECHN | B168: LIBREVILLE | C168: PROD Local | D168: 77720 | I168: 167760 | M168: 45000 | O168: 77760 | T168: =77760 -> 77760 | Y168: 77760 | AA168: 101808 | AB168: 77760 | AF168: =101808 -> 101808 | AG168: 78538 | AL168: =78538*3 -> 235614 | AM168: 78538
A169: PUBTECHN | B169: DOUALA | C169: PROD Local | H169: 143000 | P169: 3409300 | T169: 97850 | X169: 97850 | Y169: 97850 | AA169: 53560 | AG169: 25000 | AL169: 25000 | AM169: 25000
A170: PUBTECHN | B170: TOTAL | C170: Total prod locale | D170: =SUM(D165:D169) -> 77720 | E170: =SUM(E165:E169) -> 303600 | F170: =SUM(F165:F169) -> 43600 | G170: 0 | H170: 143000 | I170: 496434 | J170: 0 | K170: 0 | L170: 0 | M170: 1031800 | N170: 0 | O170: 401360 | P170: 4755633 | Q170: 0 | R170: 0 | S170: 0 | T170: 499210 | U170: 0 | V170: 0 | W170: 0 | X170: 141350 | Y170: 499110 | Z170: 0 | AA170: 367168 | AB170: 401360 | AC170: 0 | AD170: 0 | AE170: 0 | AF170: 281808 | AG170: 393538 | AH170: 0 | AI170: 0 | AJ170: 0 | AK170: 0 | AL170: 579114 | AM170: 546538 | AN170: 0 | AO170: 0 | AP170: 0
A171: PUBTECHN | B171: ABIDJAN | C171: Exceptionnel | I171: =(180000+648300+700000+90000)*48% -> 776784 | M171: =51000+864000+700000 -> 1615000 | R171: =363000+1500000+250000+121500+76500 -> 2311000 | T171: =(200000+587800+700000+100000)*48% -> 762144 | W171: =135000+408920 -> 543920 | AA171: 121500 | AF171: 288000 | AL171: 1129757
A172: PUBTECHN | B172: BRAZZA | C172: Exceptionnel | I172: =(180000+648300+700000+90000)*9.3% -> 150501.9 | T172: =(200000+587800+700000+100000)*9.3% -> 147665.4 | W172: 530286 | AL172: 216724
A173: PUBTECHN | B173: DAKAR | C173: Exceptionnel | I173: =(180000+648300+700000+90000)*12.5% -> 202287.5 | T173: =(200000+587800+700000+100000)*12.5% -> 198475 | AL173: 290435
A174: PUBTECHN | B174: LIBREVILLE | C174: Exceptionnel | I174: =(180000+648300+700000+90000)*17.7% -> 286439.1 | T174: =(200000+587800+700000+100000)*17.7% -> 281040.6 | W174: =133000+311000 -> 444000 | AL174: 420390
A175: PUBTECHN | B175: DOUALA | C175: Exceptionnel | I175: =(180000+648300+700000+90000)*12.5% -> 202287.5 | T175: =(200000+587800+700000+100000)*12.5% -> 198475 | AA175: =705000+113000 -> 818000 | AL175: 302695
A176: PUBTECHN | B176: TOTAL | C176: Total exceptionnel | D176: =SUM(D171:D175) -> 0 | E176: =SUM(E171:E175) -> 0 | F176: 0 | G176: 0 | H176: =SUM(H171:H175) -> 0 | I176: =SUM(I171:I175) -> 1618300 | J176: 0 | K176: 0 | L176: 0 | M176: 1615000 | N176: 0 | O176: 0 | P176: 0 | Q176: 0 | R176: 2311000 | S176: 0 | T176: =SUM(T171:T175) -> 1587800 | U176: 0 | V176: 0 | W176: 1518206 | X176: =SUM(T171:T175) -> 1587800 | Y176: 0 | Z176: 0 | AA176: =SUM(AA171:AA175) -> 939500 | AB176: 0 | AC176: 0 | AD176: 0 | AE176: 0 | AF176: 288000 | AG176: 0 | AH176: 0 | AI176: 0 | AJ176: 0 | AK176: 0 | AL176: 2360001 | AM176: 0 | AN176: 0 | AO176: 0 | AP176: 0
A177: PUBTECHN | B177: TOTAL | C177: Total frais techniques | D177: =(D176+D170+D164+D158+D152+D146) -> 77720 | E177: =(E176+E170+E164+E158+E152+E146) -> 303600 | F177: 43600 | G177: 0 | H177: 148949.53 | I177: 2114734 | J177: 0 | K177: 0 | L177: 0 | M177: 2653359.57 | N177: 0 | O177: 401360 | P177: 4755633 | Q177: 0 | R177: 2412450.31 | S177: 0 | T177: 2087010 | U177: 0 | V177: 0 | W177: 2110253.109 | X177: 1729150 | Y177: 499110 | Z177: 0 | AA177: 1659205.53 | AB177: 401360 | AC177: 0 | AD177: 0 | AE177: 0 | AF177: 971253.684 | AG177: 393538 | AH177: 0 | AI177: =(AI176+AI170+AI164+AI158+AI152+AI146) -> 0 | AJ177: 0 | AK177: 0 | AL177: 2939115 | AM177: 546538 | AN177: 0 | AO177: 0 | AP177: 494670.2928
A178: PUBHONOR | B178: ABIDJAN | C178: Honoraires | H178: =H183*48% -> 56419.64872 | AF178: =AF183*48% -> 117272.5172 | AK178: =AK183*#REF! ->  | AP178: =AP183*#REF! -> 
A179: PUBHONOR | B179: BRAZZA | C179: Honoraires | H179: =H183*9.3% -> 10931.30694 | AF179: =AF183*9.3% -> 22721.55021 | AK179: =AK183*#REF! ->  | AP179: =AP183*#REF! -> 
A180: PUBHONOR | B180: DAKAR | C180: Honoraires | H180: =H183*12.5% -> 14692.61685 | AF180: =AF183*12.5% -> 30539.71803 | AK180: =AK183*#REF! ->  | AP180: =AP183*#REF! -> 
A181: PUBHONOR | B181: LIBREVILLE | C181: Honoraires | H181: =H183*17.7% -> 20804.74546 | AF181: =AF183*17.7% -> 43244.24073 | AK181: =AK183*#REF! ->  | AP181: =AP183*#REF! -> 
A182: PUBHONOR | B182: DOUALA | C182: Honoraires | H182: =H183*12.5% -> 14692.61685 | AF182: =AF183*12.5% -> 30539.71803 | AK182: =AK183*#REF! ->  | AP182: =AP183*#REF! -> 
A183: PUBHONOR | B183: TOTAL | C183: Honoraires | H183: =179.19*D1 -> 117540.9348 | AF183: =372.46*X1 -> 244317.7442 | AK183: =1019.53*AG1 -> 668767.8402 | AP183: =358.86*AL1 -> 235396.729
A184: PUBLONCO | B184: ABIDJAN | C184: Longue conservation
A185: PUBLONCO | B185: BRAZZA | C185: Longue conservation
A186: PUBLONCO | B186: DAKAR | C186: Longue conservation
A187: PUBLONCO | B187: LIBREVILLE | C187: Longue conservation
A188: PUBLONCO | B188: DOUALA | C188: Longue conservation
A189: PUBLONCO | B189: TOTAL | C189: Longue conservation | D189: =SUM(D184:D188) -> 0 | E189: =SUM(E184:E188) -> 0 | F189: 0 | G189: 0 | H189: 0 | I189: 0 | J189: 0 | K189: 0 | L189: 0 | M189: 0 | N189: 0 | O189: 0 | P189: 0 | Q189: 0 | R189: 0 | S189: 0 | T189: 0 | U189: 0 | V189: 0 | W189: 0 | X189: 0 | Y189: 0 | Z189: 0 | AA189: 0 | AB189: 0 | AC189: 0 | AD189: 0 | AE189: 0 | AF189: 0 | AG189: 0 | AH189: 0 | AI189: 0 | AJ189: 0 | AK189: 0 | AL189: 0 | AM189: 0 | AN189: 0 | AO189: 0 | AP189: 0
A190: PUBETUDE | B190: ABIDJAN | C190: Etudes | H190: =20*1*D1 -> 13119.14 | M190: =20*1*I1 -> 13119.14 | R190: =20*1*N1 -> 13119.14 | W190: =(20*2)*S1 -> 26238.28 | AA190: =(20*2)*X1 -> 26238.28 | AF190: =(40+330)*AB1 -> 242704.09 | AK190: =325.96*AG1 -> 213815.7437 | AP190: =20*2*AL1 -> 26238.28
A191: PUBETUDE | B191: BRAZZA | C191: Etudes | H191: =20*D1 -> 13119.14 | M191: =20*I1 -> 13119.14 | R191: =20*N1 -> 13119.14 | W191: =20*S1 -> 13119.14 | AA191: =20*X1 -> 13119.14 | AF191: =(20+165)*AB1 -> 121352.045 | AK191: =(185.21+177.9)*AG1 -> 238184.5463 | AP191: =20*AL1 -> 13119.14
A192: PUBETUDE | B192: DAKAR | C192: Etudes | H192: =20*D1 -> 13119.14 | M192: =20*I1 -> 13119.14 | R192: =20*N1 -> 13119.14 | W192: =20*S1 -> 13119.14 | AA192: =20*X1 -> 13119.14 | AF192: =(20+165)*AB1 -> 121352.045 | AK192: =300.5*AG1 -> 197115.0785 | AP192: =20*AL1 -> 13119.14
A193: PUBETUDE | B193: LIBREVILLE | C193: Etudes | H193: =20*D1 -> 13119.14 | M193: =20*I1 -> 13119.14 | R193: =20*N1 -> 13119.14 | W193: =20*S1 -> 13119.14 | AA193: =20*X1 -> 13119.14 | AF193: =(20+165)*AB1 -> 121352.045 | AK193: =106.28*AG1 -> 69715.10996 | AP193: =20*AL1 -> 13119.14
A194: PUBETUDE | B194: DOUALA | C194: Etudes | H194: =20*D1 -> 13119.14 | M194: =20*I1 -> 13119.14 | R194: =20*N1 -> 13119.14 | W194: =20*S1 -> 13119.14 | AA194: =20*X1 -> 13119.14 | AF194: =(20+165)*AB1 -> 121352.045 | AK194: =100.46*AG1 -> 65897.44022 | AP194: =20*AL1 -> 13119.14
A195: PUBETUDE | B195: TOTAL | C195: Etudes | D195: =SUM(D190:D194) -> 0 | E195: 0 | F195: 0 | G195: 0 | H195: 65595.7 | I195: 0 | J195: 0 | K195: 0 | L195: 0 | M195: 65595.7 | N195: 0 | O195: 0 | P195: 0 | Q195: 0 | R195: 65595.7 | S195: 0 | T195: 0 | U195: 0 | V195: 0 | W195: 78714.84 | X195: 0 | Y195: 0 | Z195: 0 | AA195: 78714.84 | AC195: =SUM(AC190:AC194) -> 0 | AD195: 0 | AE195: 0 | AF195: 728112.27 | AG195: 0 | AH195: 0 | AI195: =SUM(AI190:AI194) -> 0 | AJ195: 0 | AK195: 784727.9187 | AL195: 0 | AM195: 0 | AN195: 0 | AO195: 0 | AP195: 78714.84
A196: PUBAMBIA | B196: ABIDJAN | C196: Evénement | M196: =23539146+650000+5000000+100000+6125000 -> 35414146 | R196: =162000+175000+50000+250000+1500000+425000+80000+75000+60800+32800+420000+375000+2030000 -> 5635600 | AF196: =1500000+900000+120000+270600+100000+100000+250000 -> 3240600
A197: PUBAMBIA | B197: BRAZZA | C197: Evénement | AA197: =10080000+82500+59000 -> 10221500 | AL197: 1637500
A198: PUBAMBIA | B198: DAKAR | C198: Evénement | AA198: =9884872+250000+410000+1600000+120000+260000 -> 12524872
A199: PUBAMBIA | B199: LIBREVILLE | C199: Evénement | AK199: 10000000
A200: PUBAMBIA | B200: DOUALA | C200: Evénement | W200: 12748494
A201: PUBFIDEL | B201: ABIDJAN | C201: Production carte de fid
... 40 more rows

Sheet Budget EURO
A1: NE PAS TOUCHER CET ONGLET
A2: Nb de mags | B2: 6 | C2: AFRIQUE 2021 | D2: JANVIER | E2: JANVIER | F2: JANVIER | G2: JANVIER | H2: JANVIER | I2: FEVRIER | J2: FEVRIER | K2: FEVRIER | L2: FEVRIER | M2: MARS | N2: MARS | O2: MARS | P2: MARS | Q2: MARS | R2: AVRIL | S2: AVRIL | T2: AVRIL | U2: AVRIL | V2: AVRIL | W2: MAI | X2: MAI | Y2: MAI | Z2: MAI | AA2: MAI | AB2: JUIN | AC2: JUIN | AD2: JUIN | AE2: JUIN | AF2: JUIN | AG2: JUILLET | AH2: JUILLET | AI2: JUILLET | AJ2: JUILLET | AK2: JUILLET | AL2: AOUT | AM2: AOUT | AN2: AOUT | AO2: AOUT | AP2: AOUT | AQ2: SEPTEMBRE | AR2: SEPTEMBRE | AS2: SEPTEMBRE | AT2: SEPTEMBRE | AU2: SEPTEMBRE | AV2: OCTOBRE | AW2: OCTOBRE | AX2: OCTOBRE | AY2: OCTOBRE | AZ2: OCTOBRE | BA2: NOVEMBRE | BB2: NOVEMBRE | BC2: NOVEMBRE | BD2: NOVEMBRE | BE2: NOVEMBRE | BF2: DECEMBRE | BG2: DECEMBRE | BH2: DECEMBRE | BI2: DECEMBRE | BJ2: DECEMBRE
A4: Catégorie | B4: Pays | C4: Num OP + saison | D4: ='Budget FCFA'!D4 -> PMA 10H20 | E4: ='Budget FCFA'!E4 -> PMA6H20 | F4: ='Budget FCFA'!F4 -> PMA7H20 | G4: ='Budget FCFA'!G4 -> x | H4: ='Budget FCFA'!H4 -> JANVIER | I4: PMA NEW CO FEVRIER | J4: ='Budget FCFA'!J4 -> x | K4: ='Budget FCFA'!K4 -> x | L4: ='Budget FCFA'!M4 -> FEVRIER | M4: ='Budget FCFA'!N4 -> PMA1 E21 | N4: ='Budget FCFA'!O4 -> PMA8 E20 | O4: ='Budget FCFA'!P4 -> SOLDES | P4: ='Budget FCFA'!Q4 -> x | Q4: ='Budget FCFA'!R4 -> MARS | R4: ='Budget FCFA'!S4 -> PMA34E21 | S4: ='Budget FCFA'!T4 -> PMA33 E21 / PMA RAMADAN | T4: ='Budget FCFA'!U4 -> x | U4: ='Budget FCFA'!V4 -> x | V4: ='Budget FCFA'!W4 -> AVRIL | W4: ='Budget FCFA'!X4 -> PMA5 E21 | X4: ='Budget FCFA'!Y4 -> PMA 31E21 | Y4: ='Budget FCFA'!Z4 -> x | Z4: ='Budget FCFA'!Z4 -> x | AA4: ='Budget FCFA'!AA4 -> MAI | AB4: ='Budget FCFA'!AB4 -> PMA32 E21 | AC4: ='Budget FCFA'!AC4 -> x | AD4: ='Budget FCFA'!AD4 -> x | AE4: ='Budget FCFA'!AE4 -> x | AF4: ='Budget FCFA'!AF4 -> JUIN | AG4: ='Budget FCFA'!AG4 -> PMA8 E21 | AH4: ='Budget FCFA'!AH4 -> x | AI4: ='Budget FCFA'!AI4 -> x | AJ4: ='Budget FCFA'!AJ4 -> x | AK4: ='Budget FCFA'!AK4 -> JUILLET | AL4: ='Budget FCFA'!AL4 -> RDC | AM4: ='Budget FCFA'!AM4 -> SOLDES | AN4: ='Budget FCFA'!AN4 -> x | AO4: ='Budget FCFA'!AO4 -> x | AP4: ='Budget FCFA'!AP4 -> AOUT | AQ4: ='Budget FCFA'!#REF! ->  | AR4: ='Budget FCFA'!#REF! ->  | AS4: ='Budget FCFA'!#REF! ->  | AT4: ='Budget FCFA'!#REF! ->  | AU4: ='Budget FCFA'!#REF! ->  | AV4: ='Budget FCFA'!#REF! ->  | AW4: ='Budget FCFA'!#REF! ->  | AX4: ='Budget FCFA'!#REF! ->  | AY4: ='Budget FCFA'!#REF! ->  | AZ4: ='Budget FCFA'!#REF! ->  | BA4: ='Budget FCFA'!#REF! ->  | BB4: ='Budget FCFA'!#REF! ->  | BC4: ='Budget FCFA'!#REF! ->  | BD4: ='Budget FCFA'!#REF! ->  | BE4: ='Budget FCFA'!#REF! ->  | BF4: ='Budget FCFA'!#REF! ->  | BG4: ='Budget FCFA'!#REF! ->  | BH4: ='Budget FCFA'!#REF! ->  | BI4: ='Budget FCFA'!#REF! ->  | BJ4: ='Budget FCFA'!#REF! ->  | BK4: Total €
A5: PUBHAART | B5: ABIDJAN | C5: Achats d'art standard (photos) interne KIABI | D5: ='Budget FCFA'!D5/VLOOKUP(D$2,$BO$127:$BP$138,2,FALSE) -> 0 | E5: ='Budget FCFA'!E5/VLOOKUP(E$2,$BO$127:$BP$138,2,FALSE) -> 0 | F5: ='Budget FCFA'!F5/VLOOKUP(F$2,$BO$127:$BP$138,2,FALSE) -> 0 | G5: ='Budget FCFA'!G5/VLOOKUP(G$2,$BO$127:$BP$138,2,FALSE) -> 0 | H5: ='Budget FCFA'!H5/VLOOKUP(H$2,$BO$127:$BP$138,2,FALSE) -> 557.9856 | I5: ='Budget FCFA'!I5/VLOOKUP(I$2,$BO$127:$BP$138,2,FALSE) -> 0 | J5: ='Budget FCFA'!J5/VLOOKUP(J$2,$BO$127:$BP$138,2,FALSE) -> 0 | K5: ='Budget FCFA'!K5/VLOOKUP(K$2,$BO$127:$BP$138,2,FALSE) -> 0 | L5: ='Budget FCFA'!L5/VLOOKUP(L$2,$BO$127:$BP$138,2,FALSE) -> 0 | M5: ='Budget FCFA'!M5/VLOOKUP(M$2,$BO$127:$BP$138,2,FALSE) -> 394.968 | N5: ='Budget FCFA'!N5/VLOOKUP(N$2,$BO$127:$BP$138,2,FALSE) -> 0 | O5: ='Budget FCFA'!O5/VLOOKUP(O$2,$BO$127:$BP$138,2,FALSE) -> 0 | P5: ='Budget FCFA'!P5/VLOOKUP(P$2,$BO$127:$BP$138,2,FALSE) -> 0 | Q5: ='Budget FCFA'!Q5/VLOOKUP(Q$2,$BO$127:$BP$138,2,FALSE) -> 0 | R5: ='Budget FCFA'!R5/VLOOKUP(R$2,$BO$127:$BP$138,2,FALSE) -> 417.8352 | S5: ='Budget FCFA'!S5/VLOOKUP(S$2,$BO$127:$BP$138,2,FALSE) -> 0 | T5: ='Budget FCFA'!T5/VLOOKUP(T$2,$BO$127:$BP$138,2,FALSE) -> 0 | U5: ='Budget FCFA'!U5/VLOOKUP(U$2,$BO$127:$BP$138,2,FALSE) -> 0 | V5: ='Budget FCFA'!V5/VLOOKUP(V$2,$BO$127:$BP$138,2,FALSE) -> 0 | W5: ='Budget FCFA'!W5/VLOOKUP(W$2,$BO$127:$BP$138,2,FALSE) -> 3141.287164 | X5: ='Budget FCFA'!X5/VLOOKUP(X$2,$BO$127:$BP$138,2,FALSE) -> 0 | Y5: ='Budget FCFA'!Y5/VLOOKUP(Y$2,$BO$127:$BP$138,2,FALSE) -> 0 | Z5: ='Budget FCFA'!Z5/VLOOKUP(Z$2,$BO$127:$BP$138,2,FALSE) -> 0 | AA5: ='Budget FCFA'!AA5/VLOOKUP(AA$2,$BO$127:$BP$138,2,FALSE) -> 719.28 | AB5: ='Budget FCFA'!AB5/VLOOKUP(AB$2,$BO$127:$BP$138,2,FALSE) -> 0 | AC5: ='Budget FCFA'!AC5/VLOOKUP(AC$2,$BO$127:$BP$138,2,FALSE) -> 0 | AD5: ='Budget FCFA'!AD5/VLOOKUP(AD$2,$BO$127:$BP$138,2,FALSE) -> 0 | AE5: ='Budget FCFA'!AE5/VLOOKUP(AE$2,$BO$127:$BP$138,2,FALSE) -> 0 | AF5: ='Budget FCFA'!AF5/VLOOKUP(AF$2,$BO$127:$BP$138,2,FALSE) -> 26.35981472 | AG5: ='Budget FCFA'!AG5/VLOOKUP(AG$2,$BO$127:$BP$138,2,FALSE) -> 0 | AH5: ='Budget FCFA'!AH5/VLOOKUP(AH$2,$BO$127:$BP$138,2,FALSE) -> 0 | AI5: ='Budget FCFA'!AI5/VLOOKUP(AI$2,$BO$127:$BP$138,2,FALSE) -> 0 | AJ5: ='Budget FCFA'!AJ5/VLOOKUP(AJ$2,$BO$127:$BP$138,2,FALSE) -> 0 | AK5: ='Budget FCFA'!AK5/VLOOKUP(AK$2,$BO$127:$BP$138,2,FALSE) ->  | AL5: ='Budget FCFA'!AL5/VLOOKUP(AL$2,$BO$127:$BP$138,2,FALSE) -> 0 | AM5: ='Budget FCFA'!AM5/VLOOKUP(AM$2,$BO$127:$BP$138,2,FALSE) -> 0 | AN5: ='Budget FCFA'!AN5/VLOOKUP(AN$2,$BO$127:$BP$138,2,FALSE) -> 0 | AO5: ='Budget FCFA'!AO5/VLOOKUP(AO$2,$BO$127:$BP$138,2,FALSE) -> 0 | AP5: ='Budget FCFA'!AP5/VLOOKUP(AP$2,$BO$127:$BP$138,2,FALSE) ->  | AQ5: ='Budget FCFA'!#REF!/VLOOKUP(AQ$2,$BO$127:$BP$138,2,FALSE) ->  | AR5: ='Budget FCFA'!#REF!/VLOOKUP(AR$2,$BO$127:$BP$138,2,FALSE) ->  | AS5: ='Budget FCFA'!#REF!/VLOOKUP(AS$2,$BO$127:$BP$138,2,FALSE) ->  | AT5: ='Budget FCFA'!#REF!/VLOOKUP(AT$2,$BO$127:$BP$138,2,FALSE) ->  | AU5: ='Budget FCFA'!#REF!/VLOOKUP(AU$2,$BO$127:$BP$138,2,FALSE) ->  | AV5: ='Budget FCFA'!#REF!/VLOOKUP(AV$2,$BO$127:$BP$138,2,FALSE) ->  | AW5: ='Budget FCFA'!#REF!/VLOOKUP(AW$2,$BO$127:$BP$138,2,FALSE) ->  | AX5: ='Budget FCFA'!#REF!/VLOOKUP(AX$2,$BO$127:$BP$138,2,FALSE) ->  | AY5: ='Budget FCFA'!#REF!/VLOOKUP(AY$2,$BO$127:$BP$138,2,FALSE) ->  | AZ5: ='Budget FCFA'!#REF!/VLOOKUP(AZ$2,$BO$127:$BP$138,2,FALSE) ->  | BA5: ='Budget FCFA'!#REF!/VLOOKUP(BA$2,$BO$127:$BP$138,2,FALSE) ->  | BB5: ='Budget FCFA'!#REF!/VLOOKUP(BB$2,$BO$127:$BP$138,2,FALSE) ->  | BC5: ='Budget FCFA'!#REF!/VLOOKUP(BC$2,$BO$127:$BP$138,2,FALSE) ->  | BD5: ='Budget FCFA'!#REF!/VLOOKUP(BD$2,$BO$127:$BP$138,2,FALSE) ->  | BE5: ='Budget FCFA'!#REF!/VLOOKUP(BE$2,$BO$127:$BP$138,2,FALSE) ->  | BF5: ='Budget FCFA'!#REF!/VLOOKUP(BF$2,$BO$127:$BP$138,2,FALSE) ->  | BG5: ='Budget FCFA'!#REF!/VLOOKUP(BG$2,$BO$127:$BP$138,2,FALSE) ->  | BH5: ='Budget FCFA'!#REF!/VLOOKUP(BH$2,$BO$127:$BP$138,2,FALSE) ->  | BI5: ='Budget FCFA'!#REF!/VLOOKUP(BI$2,$BO$127:$BP$138,2,FALSE) ->  | BJ5: ='Budget FCFA'!#REF!/VLOOKUP(BJ$2,$BO$127:$BP$138,2,FALSE) ->  | BK5: =SUM(D5:BJ5) ->  | BL5: =BK5-'Budget FCFA'!#REF! -> 
A6: PUBHAART | B6: BRAZZA | C6: Achats d'art standard (photos) interne KIABI | D6: ='Budget FCFA'!D6/VLOOKUP(D$2,$BO$127:$BP$138,2,FALSE) -> 0 | E6: ='Budget FCFA'!E6/VLOOKUP(E$2,$BO$127:$BP$138,2,FALSE) -> 0 | F6: ='Budget FCFA'!F6/VLOOKUP(F$2,$BO$127:$BP$138,2,FALSE) -> 0 | G6: ='Budget FCFA'!G6/VLOOKUP(G$2,$BO$127:$BP$138,2,FALSE) -> 0 | H6: ='Budget FCFA'!H6/VLOOKUP(H$2,$BO$127:$BP$138,2,FALSE) -> 108.10971 | I6: ='Budget FCFA'!I6/VLOOKUP(I$2,$BO$127:$BP$138,2,FALSE) -> 0 | J6: ='Budget FCFA'!J6/VLOOKUP(J$2,$BO$127:$BP$138,2,FALSE) -> 0 | K6: ='Budget FCFA'!K6/VLOOKUP(K$2,$BO$127:$BP$138,2,FALSE) -> 0 | L6: ='Budget FCFA'!L6/VLOOKUP(L$2,$BO$127:$BP$138,2,FALSE) -> 0 | M6: ='Budget FCFA'!M6/VLOOKUP(M$2,$BO$127:$BP$138,2,FALSE) -> 76.52505 | N6: ='Budget FCFA'!N6/VLOOKUP(N$2,$BO$127:$BP$138,2,FALSE) -> 0 | O6: ='Budget FCFA'!O6/VLOOKUP(O$2,$BO$127:$BP$138,2,FALSE) -> 0 | P6: ='Budget FCFA'!P6/VLOOKUP(P$2,$BO$127:$BP$138,2,FALSE) -> 0 | Q6: ='Budget FCFA'!Q6/VLOOKUP(Q$2,$BO$127:$BP$138,2,FALSE) -> 0 | R6: ='Budget FCFA'!R6/VLOOKUP(R$2,$BO$127:$BP$138,2,FALSE) -> 80.95557 | S6: ='Budget FCFA'!S6/VLOOKUP(S$2,$BO$127:$BP$138,2,FALSE) -> 0 | T6: ='Budget FCFA'!T6/VLOOKUP(T$2,$BO$127:$BP$138,2,FALSE) -> 0 | U6: ='Budget FCFA'!U6/VLOOKUP(U$2,$BO$127:$BP$138,2,FALSE) -> 0 | V6: ='Budget FCFA'!V6/VLOOKUP(V$2,$BO$127:$BP$138,2,FALSE) -> 0 | W6: ='Budget FCFA'!W6/VLOOKUP(W$2,$BO$127:$BP$138,2,FALSE) -> 608.624388 | X6: ='Budget FCFA'!X6/VLOOKUP(X$2,$BO$127:$BP$138,2,FALSE) -> 0 | Y6: ='Budget FCFA'!Y6/VLOOKUP(Y$2,$BO$127:$BP$138,2,FALSE) -> 0 | Z6: ='Budget FCFA'!Z6/VLOOKUP(Z$2,$BO$127:$BP$138,2,FALSE) -> 0 | AA6: ='Budget FCFA'!AA6/VLOOKUP(AA$2,$BO$127:$BP$138,2,FALSE) -> 139.3605 | AB6: ='Budget FCFA'!AB6/VLOOKUP(AB$2,$BO$127:$BP$138,2,FALSE) -> 0 | AC6: ='Budget FCFA'!AC6/VLOOKUP(AC$2,$BO$127:$BP$138,2,FALSE) -> 0 | AD6: ='Budget FCFA'!AD6/VLOOKUP(AD$2,$BO$127:$BP$138,2,FALSE) -> 0 | AE6: ='Budget FCFA'!AE6/VLOOKUP(AE$2,$BO$127:$BP$138,2,FALSE) -> 0 | AF6: ='Budget FCFA'!AF6/VLOOKUP(AF$2,$BO$127:$BP$138,2,FALSE) -> 5.107214102 | AG6: ='Budget FCFA'!AG6/VLOOKUP(AG$2,$BO$127:$BP$138,2,FALSE) -> 0 | AH6: ='Budget FCFA'!AH6/VLOOKUP(AH$2,$BO$127:$BP$138,2,FALSE) -> 0 | AI6: ='Budget FCFA'!AI6/VLOOKUP(AI$2,$BO$127:$BP$138,2,FALSE) -> 0 | AJ6: ='Budget FCFA'!AJ6/VLOOKUP(AJ$2,$BO$127:$BP$138,2,FALSE) -> 0 | AK6: ='Budget FCFA'!AK6/VLOOKUP(AK$2,$BO$127:$BP$138,2,FALSE) ->  | AL6: ='Budget FCFA'!AL6/VLOOKUP(AL$2,$BO$127:$BP$138,2,FALSE) -> 0 | AM6: ='Budget FCFA'!AM6/VLOOKUP(AM$2,$BO$127:$BP$138,2,FALSE) -> 0 | AN6: ='Budget FCFA'!AN6/VLOOKUP(AN$2,$BO$127:$BP$138,2,FALSE) -> 0 | AO6: ='Budget FCFA'!AO6/VLOOKUP(AO$2,$BO$127:$BP$138,2,FALSE) -> 0 | AP6: ='Budget FCFA'!AP6/VLOOKUP(AP$2,$BO$127:$BP$138,2,FALSE) ->  | AQ6: ='Budget FCFA'!#REF!/VLOOKUP(AQ$2,$BO$127:$BP$138,2,FALSE) ->  | AR6: ='Budget FCFA'!#REF!/VLOOKUP(AR$2,$BO$127:$BP$138,2,FALSE) ->  | AS6: ='Budget FCFA'!#REF!/VLOOKUP(AS$2,$BO$127:$BP$138,2,FALSE) ->  | AT6: ='Budget FCFA'!#REF!/VLOOKUP(AT$2,$BO$127:$BP$138,2,FALSE) ->  | AU6: ='Budget FCFA'!#REF!/VLOOKUP(AU$2,$BO$127:$BP$138,2,FALSE) ->  | AV6: ='Budget FCFA'!#REF!/VLOOKUP(AV$2,$BO$127:$BP$138,2,FALSE) ->  | AW6: ='Budget FCFA'!#REF!/VLOOKUP(AW$2,$BO$127:$BP$138,2,FALSE) ->  | AX6: ='Budget FCFA'!#REF!/VLOOKUP(AX$2,$BO$127:$BP$138,2,FALSE) ->  | AY6: ='Budget FCFA'!#REF!/VLOOKUP(AY$2,$BO$127:$BP$138,2,FALSE) ->  | AZ6: ='Budget FCFA'!#REF!/VLOOKUP(AZ$2,$BO$127:$BP$138,2,FALSE) ->  | BA6: ='Budget FCFA'!#REF!/VLOOKUP(BA$2,$BO$127:$BP$138,2,FALSE) ->  | BB6: ='Budget FCFA'!#REF!/VLOOKUP(BB$2,$BO$127:$BP$138,2,FALSE) ->  | BC6: ='Budget FCFA'!#REF!/VLOOKUP(BC$2,$BO$127:$BP$138,2,FALSE) ->  | BD6: ='Budget FCFA'!#REF!/VLOOKUP(BD$2,$BO$127:$BP$138,2,FALSE) ->  | BE6: ='Budget FCFA'!#REF!/VLOOKUP(BE$2,$BO$127:$BP$138,2,FALSE) ->  | BF6: ='Budget FCFA'!#REF!/VLOOKUP(BF$2,$BO$127:$BP$138,2,FALSE) ->  | BG6: ='Budget FCFA'!#REF!/VLOOKUP(BG$2,$BO$127:$BP$138,2,FALSE) ->  | BH6: ='Budget FCFA'!#REF!/VLOOKUP(BH$2,$BO$127:$BP$138,2,FALSE) ->  | BI6: ='Budget FCFA'!#REF!/VLOOKUP(BI$2,$BO$127:$BP$138,2,FALSE) ->  | BJ6: ='Budget FCFA'!#REF!/VLOOKUP(BJ$2,$BO$127:$BP$138,2,FALSE) ->  | BK6: =SUM(D6:BJ6) ->  | BL6: =BK6-'Budget FCFA'!#REF! -> 
A7: PUBHAART | B7: DAKAR | C7: Achats d'art standard (photos) interne KIABI | D7: ='Budget FCFA'!D7/VLOOKUP(D$2,$BO$127:$BP$138,2,FALSE) -> 0 | E7: ='Budget FCFA'!E7/VLOOKUP(E$2,$BO$127:$BP$138,2,FALSE) -> 0 | F7: ='Budget FCFA'!F7/VLOOKUP(F$2,$BO$127:$BP$138,2,FALSE) -> 0 | G7: ='Budget FCFA'!G7/VLOOKUP(G$2,$BO$127:$BP$138,2,FALSE) -> 0 | H7: ='Budget FCFA'!H7/VLOOKUP(H$2,$BO$127:$BP$138,2,FALSE) -> 145.30875 | I7: ='Budget FCFA'!I7/VLOOKUP(I$2,$BO$127:$BP$138,2,FALSE) -> 0 | J7: ='Budget FCFA'!J7/VLOOKUP(J$2,$BO$127:$BP$138,2,FALSE) -> 0 | K7: ='Budget FCFA'!K7/VLOOKUP(K$2,$BO$127:$BP$138,2,FALSE) -> 0 | L7: ='Budget FCFA'!L7/VLOOKUP(L$2,$BO$127:$BP$138,2,FALSE) -> 0 | M7: ='Budget FCFA'!M7/VLOOKUP(M$2,$BO$127:$BP$138,2,FALSE) -> 102.85625 | N7: ='Budget FCFA'!N7/VLOOKUP(N$2,$BO$127:$BP$138,2,FALSE) -> 0 | O7: ='Budget FCFA'!O7/VLOOKUP(O$2,$BO$127:$BP$138,2,FALSE) -> 0 | P7: ='Budget FCFA'!P7/VLOOKUP(P$2,$BO$127:$BP$138,2,FALSE) -> 0 | Q7: ='Budget FCFA'!Q7/VLOOKUP(Q$2,$BO$127:$BP$138,2,FALSE) -> 0 | R7: ='Budget FCFA'!R7/VLOOKUP(R$2,$BO$127:$BP$138,2,FALSE) -> 108.81125 | S7: ='Budget FCFA'!S7/VLOOKUP(S$2,$BO$127:$BP$138,2,FALSE) -> 0 | T7: ='Budget FCFA'!T7/VLOOKUP(T$2,$BO$127:$BP$138,2,FALSE) -> 0 | U7: ='Budget FCFA'!U7/VLOOKUP(U$2,$BO$127:$BP$138,2,FALSE) -> 0 | V7: ='Budget FCFA'!V7/VLOOKUP(V$2,$BO$127:$BP$138,2,FALSE) -> 0 | W7: ='Budget FCFA'!W7/VLOOKUP(W$2,$BO$127:$BP$138,2,FALSE) -> 818.0435322 | X7: ='Budget FCFA'!X7/VLOOKUP(X$2,$BO$127:$BP$138,2,FALSE) -> 0 | Y7: ='Budget FCFA'!Y7/VLOOKUP(Y$2,$BO$127:$BP$138,2,FALSE) -> 0 | Z7: ='Budget FCFA'!Z7/VLOOKUP(Z$2,$BO$127:$BP$138,2,FALSE) -> 0 | AA7: ='Budget FCFA'!AA7/VLOOKUP(AA$2,$BO$127:$BP$138,2,FALSE) -> 187.3125 | AB7: ='Budget FCFA'!AB7/VLOOKUP(AB$2,$BO$127:$BP$138,2,FALSE) -> 0 | AC7: ='Budget FCFA'!AC7/VLOOKUP(AC$2,$BO$127:$BP$138,2,FALSE) -> 0 | AD7: ='Budget FCFA'!AD7/VLOOKUP(AD$2,$BO$127:$BP$138,2,FALSE) -> 0 | AE7: ='Budget FCFA'!AE7/VLOOKUP(AE$2,$BO$127:$BP$138,2,FALSE) -> 0 | AF7: ='Budget FCFA'!AF7/VLOOKUP(AF$2,$BO$127:$BP$138,2,FALSE) -> 6.864535084 | AG7: ='Budget FCFA'!AG7/VLOOKUP(AG$2,$BO$127:$BP$138,2,FALSE) -> 0 | AH7: ='Budget FCFA'!AH7/VLOOKUP(AH$2,$BO$127:$BP$138,2,FALSE) -> 0 | AI7: ='Budget FCFA'!AI7/VLOOKUP(AI$2,$BO$127:$BP$138,2,FALSE) -> 0 | AJ7: ='Budget FCFA'!AJ7/VLOOKUP(AJ$2,$BO$127:$BP$138,2,FALSE) -> 0 | AK7: ='Budget FCFA'!AK7/VLOOKUP(AK$2,$BO$127:$BP$138,2,FALSE) ->  | AL7: ='Budget FCFA'!AL7/VLOOKUP(AL$2,$BO$127:$BP$138,2,FALSE) -> 0 | AM7: ='Budget FCFA'!AM7/VLOOKUP(AM$2,$BO$127:$BP$138,2,FALSE) -> 0 | AN7: ='Budget FCFA'!AN7/VLOOKUP(AN$2,$BO$127:$BP$138,2,FALSE) -> 0 | AO7: ='Budget FCFA'!AO7/VLOOKUP(AO$2,$BO$127:$BP$138,2,FALSE) -> 0 | AP7: ='Budget FCFA'!AP7/VLOOKUP(AP$2,$BO$127:$BP$138,2,FALSE) ->  | AQ7: ='Budget FCFA'!#REF!/VLOOKUP(AQ$2,$BO$127:$BP$138,2,FALSE) ->  | AR7: ='Budget FCFA'!#REF!/VLOOKUP(AR$2,$BO$127:$BP$138,2,FALSE) ->  | AS7: ='Budget FCFA'!#REF!/VLOOKUP(AS$2,$BO$127:$BP$138,2,FALSE) ->  | AT7: ='Budget FCFA'!#REF!/VLOOKUP(AT$2,$BO$127:$BP$138,2,FALSE) ->  | AU7: ='Budget FCFA'!#REF!/VLOOKUP(AU$2,$BO$127:$BP$138,2,FALSE) ->  | AV7: ='Budget FCFA'!#REF!/VLOOKUP(AV$2,$BO$127:$BP$138,2,FALSE) ->  | AW7: ='Budget FCFA'!#REF!/VLOOKUP(AW$2,$BO$127:$BP$138,2,FALSE) ->  | AX7: ='Budget FCFA'!#REF!/VLOOKUP(AX$2,$BO$127:$BP$138,2,FALSE) ->  | AY7: ='Budget FCFA'!#REF!/VLOOKUP(AY$2,$BO$127:$BP$138,2,FALSE) ->  | AZ7: ='Budget FCFA'!#REF!/VLOOKUP(AZ$2,$BO$127:$BP$138,2,FALSE) ->  | BA7: ='Budget FCFA'!#REF!/VLOOKUP(BA$2,$BO$127:$BP$138,2,FALSE) ->  | BB7: ='Budget FCFA'!#REF!/VLOOKUP(BB$2,$BO$127:$BP$138,2,FALSE) ->  | BC7: ='Budget FCFA'!#REF!/VLOOKUP(BC$2,$BO$127:$BP$138,2,FALSE) ->  | BD7: ='Budget FCFA'!#REF!/VLOOKUP(BD$2,$BO$127:$BP$138,2,FALSE) ->  | BE7: ='Budget FCFA'!#REF!/VLOOKUP(BE$2,$BO$127:$BP$138,2,FALSE) ->  | BF7: ='Budget FCFA'!#REF!/VLOOKUP(BF$2,$BO$127:$BP$138,2,FALSE) ->  | BG7: ='Budget FCFA'!#REF!/VLOOKUP(BG$2,$BO$127:$BP$138,2,FALSE) ->  | BH7: ='Budget FCFA'!#REF!/VLOOKUP(BH$2,$BO$127:$BP$138,2,FALSE) ->  | BI7: ='Budget FCFA'!#REF!/VLOOKUP(BI$2,$BO$127:$BP$138,2,FALSE) ->  | BJ7: ='Budget FCFA'!#REF!/VLOOKUP(BJ$2,$BO$127:$BP$138,2,FALSE) ->  | BL7: =BK7-'Budget FCFA'!#REF! -> 
A8: PUBHAART | B8: LIBREVILLE | C8: Achats d'art standard (photos) interne KIABI | D8: ='Budget FCFA'!D8/VLOOKUP(D$2,$BO$127:$BP$138,2,FALSE) -> 0 | E8: ='Budget FCFA'!E8/VLOOKUP(E$2,$BO$127:$BP$138,2,FALSE) -> 0 | F8: ='Budget FCFA'!F8/VLOOKUP(F$2,$BO$127:$BP$138,2,FALSE) -> 0 | G8: ='Budget FCFA'!G8/VLOOKUP(G$2,$BO$127:$BP$138,2,FALSE) -> 0 | H8: ='Budget FCFA'!H8/VLOOKUP(H$2,$BO$127:$BP$138,2,FALSE) -> 205.75719 | I8: ='Budget FCFA'!I8/VLOOKUP(I$2,$BO$127:$BP$138,2,FALSE) -> 0 | J8: ='Budget FCFA'!J8/VLOOKUP(J$2,$BO$127:$BP$138,2,FALSE) -> 0 | K8: ='Budget FCFA'!K8/VLOOKUP(K$2,$BO$127:$BP$138,2,FALSE) -> 0 | L8: ='Budget FCFA'!L8/VLOOKUP(L$2,$BO$127:$BP$138,2,FALSE) -> 0 | M8: ='Budget FCFA'!M8/VLOOKUP(M$2,$BO$127:$BP$138,2,FALSE) -> 145.64445 | N8: ='Budget FCFA'!N8/VLOOKUP(N$2,$BO$127:$BP$138,2,FALSE) -> 0 | O8: ='Budget FCFA'!O8/VLOOKUP(O$2,$BO$127:$BP$138,2,FALSE) -> 0 | P8: ='Budget FCFA'!P8/VLOOKUP(P$2,$BO$127:$BP$138,2,FALSE) -> 0 | Q8: ='Budget FCFA'!Q8/VLOOKUP(Q$2,$BO$127:$BP$138,2,FALSE) -> 0 | R8: ='Budget FCFA'!R8/VLOOKUP(R$2,$BO$127:$BP$138,2,FALSE) -> 154.07673 | S8: ='Budget FCFA'!S8/VLOOKUP(S$2,$BO$127:$BP$138,2,FALSE) -> 0 | T8: ='Budget FCFA'!T8/VLOOKUP(T$2,$BO$127:$BP$138,2,FALSE) -> 0 | U8: ='Budget FCFA'!U8/VLOOKUP(U$2,$BO$127:$BP$138,2,FALSE) -> 0 | V8: ='Budget FCFA'!V8/VLOOKUP(V$2,$BO$127:$BP$138,2,FALSE) -> 0 | W8: ='Budget FCFA'!W8/VLOOKUP(W$2,$BO$127:$BP$138,2,FALSE) -> 1158.349642 | X8: ='Budget FCFA'!X8/VLOOKUP(X$2,$BO$127:$BP$138,2,FALSE) -> 0 | Y8: ='Budget FCFA'!Y8/VLOOKUP(Y$2,$BO$127:$BP$138,2,FALSE) -> 0 | Z8: ='Budget FCFA'!Z8/VLOOKUP(Z$2,$BO$127:$BP$138,2,FALSE) -> 0 | AA8: ='Budget FCFA'!AA8/VLOOKUP(AA$2,$BO$127:$BP$138,2,FALSE) -> 265.2345 | AB8: ='Budget FCFA'!AB8/VLOOKUP(AB$2,$BO$127:$BP$138,2,FALSE) -> 0 | AC8: ='Budget FCFA'!AC8/VLOOKUP(AC$2,$BO$127:$BP$138,2,FALSE) -> 0 | AD8: ='Budget FCFA'!AD8/VLOOKUP(AD$2,$BO$127:$BP$138,2,FALSE) -> 0 | AE8: ='Budget FCFA'!AE8/VLOOKUP(AE$2,$BO$127:$BP$138,2,FALSE) -> 0 | AF8: ='Budget FCFA'!AF8/VLOOKUP(AF$2,$BO$127:$BP$138,2,FALSE) -> 9.720181679 | AG8: ='Budget FCFA'!AG8/VLOOKUP(AG$2,$BO$127:$BP$138,2,FALSE) -> 0 | AH8: ='Budget FCFA'!AH8/VLOOKUP(AH$2,$BO$127:$BP$138,2,FALSE) -> 0 | AI8: ='Budget FCFA'!AI8/VLOOKUP(AI$2,$BO$127:$BP$138,2,FALSE) -> 0 | AJ8: ='Budget FCFA'!AJ8/VLOOKUP(AJ$2,$BO$127:$BP$138,2,FALSE) -> 0 | AK8: ='Budget FCFA'!AK8/VLOOKUP(AK$2,$BO$127:$BP$138,2,FALSE) ->  | AL8: ='Budget FCFA'!AL8/VLOOKUP(AL$2,$BO$127:$BP$138,2,FALSE) -> 0 | AM8: ='Budget FCFA'!AM8/VLOOKUP(AM$2,$BO$127:$BP$138,2,FALSE) -> 0 | AN8: ='Budget FCFA'!AN8/VLOOKUP(AN$2,$BO$127:$BP$138,2,FALSE) -> 0 | AO8: ='Budget FCFA'!AO8/VLOOKUP(AO$2,$BO$127:$BP$138,2,FALSE) -> 0 | AP8: ='Budget FCFA'!AP8/VLOOKUP(AP$2,$BO$127:$BP$138,2,FALSE) ->  | AQ8: ='Budget FCFA'!#REF!/VLOOKUP(AQ$2,$BO$127:$BP$138,2,FALSE) ->  | AR8: ='Budget FCFA'!#REF!/VLOOKUP(AR$2,$BO$127:$BP$138,2,FALSE) ->  | AS8: ='Budget FCFA'!#REF!/VLOOKUP(AS$2,$BO$127:$BP$138,2,FALSE) ->  | AT8: ='Budget FCFA'!#REF!/VLOOKUP(AT$2,$BO$127:$BP$138,2,FALSE) ->  | AU8: ='Budget FCFA'!#REF!/VLOOKUP(AU$2,$BO$127:$BP$138,2,FALSE) ->  | AV8: ='Budget FCFA'!#REF!/VLOOKUP(AV$2,$BO$127:$BP$138,2,FALSE) ->  | AW8: ='Budget FCFA'!#REF!/VLOOKUP(AW$2,$BO$127:$BP$138,2,FALSE) ->  | AX8: ='Budget FCFA'!#REF!/VLOOKUP(AX$2,$BO$127:$BP$138,2,FALSE) ->  | AY8: ='Budget FCFA'!#REF!/VLOOKUP(AY$2,$BO$127:$BP$138,2,FALSE) ->  | AZ8: ='Budget FCFA'!#REF!/VLOOKUP(AZ$2,$BO$127:$BP$138,2,FALSE) ->  | BA8: ='Budget FCFA'!#REF!/VLOOKUP(BA$2,$BO$127:$BP$138,2,FALSE) ->  | BB8: ='Budget FCFA'!#REF!/VLOOKUP(BB$2,$BO$127:$BP$138,2,FALSE) ->  | BC8: ='Budget FCFA'!#REF!/VLOOKUP(BC$2,$BO$127:$BP$138,2,FALSE) ->  | BD8: ='Budget FCFA'!#REF!/VLOOKUP(BD$2,$BO$127:$BP$138,2,FALSE) ->  | BE8: ='Budget FCFA'!#REF!/VLOOKUP(BE$2,$BO$127:$BP$138,2,FALSE) ->  | BF8: ='Budget FCFA'!#REF!/VLOOKUP(BF$2,$BO$127:$BP$138,2,FALSE) ->  | BG8: ='Budget FCFA'!#REF!/VLOOKUP(BG$2,$BO$127:$BP$138,2,FALSE) ->  | BH8: ='Budget FCFA'!#REF!/VLOOKUP(BH$2,$BO$127:$BP$138,2,FALSE) ->  | BI8: ='Budget FCFA'!#REF!/VLOOKUP(BI$2,$BO$127:$BP$138,2,FALSE) ->  | BJ8: ='Budget FCFA'!#REF!/VLOOKUP(BJ$2,$BO$127:$BP$138,2,FALSE) ->  | BL8: =BK8-'Budget FCFA'!#REF! -> 
A9: PUBHAART | B9: DOUALA | C9: Achats d'art standard (photos) interne KIABI | D9: ='Budget FCFA'!D9/VLOOKUP(D$2,$BO$127:$BP$138,2,FALSE) -> 0 | E9: ='Budget FCFA'!E9/VLOOKUP(E$2,$BO$127:$BP$138,2,FALSE) -> 0 | F9: ='Budget FCFA'!F9/VLOOKUP(F$2,$BO$127:$BP$138,2,FALSE) -> 0 | G9: ='Budget FCFA'!G9/VLOOKUP(G$2,$BO$127:$BP$138,2,FALSE) -> 0 | H9: ='Budget FCFA'!H9/VLOOKUP(H$2,$BO$127:$BP$138,2,FALSE) -> 145.30875 | I9: ='Budget FCFA'!I9/VLOOKUP(I$2,$BO$127:$BP$138,2,FALSE) -> 0 | J9: ='Budget FCFA'!J9/VLOOKUP(J$2,$BO$127:$BP$138,2,FALSE) -> 0 | K9: ='Budget FCFA'!K9/VLOOKUP(K$2,$BO$127:$BP$138,2,FALSE) -> 0 | L9: ='Budget FCFA'!L9/VLOOKUP(L$2,$BO$127:$BP$138,2,FALSE) -> 0 | M9: ='Budget FCFA'!M9/VLOOKUP(M$2,$BO$127:$BP$138,2,FALSE) -> 102.85625 | N9: ='Budget FCFA'!N9/VLOOKUP(N$2,$BO$127:$BP$138,2,FALSE) -> 0 | O9: ='Budget FCFA'!O9/VLOOKUP(O$2,$BO$127:$BP$138,2,FALSE) -> 0 | P9: ='Budget FCFA'!P9/VLOOKUP(P$2,$BO$127:$BP$138,2,FALSE) -> 0 | Q9: ='Budget FCFA'!Q9/VLOOKUP(Q$2,$BO$127:$BP$138,2,FALSE) -> 0 | R9: ='Budget FCFA'!R9/VLOOKUP(R$2,$BO$127:$BP$138,2,FALSE) -> 108.81125 | S9: ='Budget FCFA'!S9/VLOOKUP(S$2,$BO$127:$BP$138,2,FALSE) -> 0 | T9: ='Budget FCFA'!T9/VLOOKUP(T$2,$BO$127:$BP$138,2,FALSE) -> 0 | U9: ='Budget FCFA'!U9/VLOOKUP(U$2,$BO$127:$BP$138,2,FALSE) -> 0 | V9: ='Budget FCFA'!V9/VLOOKUP(V$2,$BO$127:$BP$138,2,FALSE) -> 0 | W9: ='Budget FCFA'!W9/VLOOKUP(W$2,$BO$127:$BP$138,2,FALSE) -> 818.0435322 | X9: ='Budget FCFA'!X9/VLOOKUP(X$2,$BO$127:$BP$138,2,FALSE) -> 0 | Y9: ='Budget FCFA'!Y9/VLOOKUP(Y$2,$BO$127:$BP$138,2,FALSE) -> 0 | Z9: ='Budget FCFA'!Z9/VLOOKUP(Z$2,$BO$127:$BP$138,2,FALSE) -> 0 | AA9: ='Budget FCFA'!AA9/VLOOKUP(AA$2,$BO$127:$BP$138,2,FALSE) -> 187.3125 | AB9: ='Budget FCFA'!AB9/VLOOKUP(AB$2,$BO$127:$BP$138,2,FALSE) -> 0 | AC9: ='Budget FCFA'!AC9/VLOOKUP(AC$2,$BO$127:$BP$138,2,FALSE) -> 0 | AD9: ='Budget FCFA'!AD9/VLOOKUP(AD$2,$BO$127:$BP$138,2,FALSE) -> 0 | AE9: ='Budget FCFA'!AE9/VLOOKUP(AE$2,$BO$127:$BP$138,2,FALSE) -> 0 | AF9: ='Budget FCFA'!AF9/VLOOKUP(AF$2,$BO$127:$BP$138,2,FALSE) -> 6.864535084 | AG9: ='Budget FCFA'!AG9/VLOOKUP(AG$2,$BO$127:$BP$138,2,FALSE) -> 0 | AH9: ='Budget FCFA'!AH9/VLOOKUP(AH$2,$BO$127:$BP$138,2,FALSE) -> 0 | AI9: ='Budget FCFA'!AI9/VLOOKUP(AI$2,$BO$127:$BP$138,2,FALSE) -> 0 | AJ9: ='Budget FCFA'!AJ9/VLOOKUP(AJ$2,$BO$127:$BP$138,2,FALSE) -> 0 | AK9: ='Budget FCFA'!AK9/VLOOKUP(AK$2,$BO$127:$BP$138,2,FALSE) ->  | AL9: ='Budget FCFA'!AL9/VLOOKUP(AL$2,$BO$127:$BP$138,2,FALSE) -> 0 | AM9: ='Budget FCFA'!AM9/VLOOKUP(AM$2,$BO$127:$BP$138,2,FALSE) -> 0 | AN9: ='Budget FCFA'!AN9/VLOOKUP(AN$2,$BO$127:$BP$138,2,FALSE) -> 0 | AO9: ='Budget FCFA'!AO9/VLOOKUP(AO$2,$BO$127:$BP$138,2,FALSE) -> 0 | AP9: ='Budget FCFA'!AP9/VLOOKUP(AP$2,$BO$127:$BP$138,2,FALSE) ->  | AQ9: ='Budget FCFA'!#REF!/VLOOKUP(AQ$2,$BO$127:$BP$138,2,FALSE) ->  | AR9: ='Budget FCFA'!#REF!/VLOOKUP(AR$2,$BO$127:$BP$138,2,FALSE) ->  | AS9: ='Budget FCFA'!#REF!/VLOOKUP(AS$2,$BO$127:$BP$138,2,FALSE) ->  | AT9: ='Budget FCFA'!#REF!/VLOOKUP(AT$2,$BO$127:$BP$138,2,FALSE) ->  | AU9: ='Budget FCFA'!#REF!/VLOOKUP(AU$2,$BO$127:$BP$138,2,FALSE) ->  | AV9: ='Budget FCFA'!#REF!/VLOOKUP(AV$2,$BO$127:$BP$138,2,FALSE) ->  | AW9: ='Budget FCFA'!#REF!/VLOOKUP(AW$2,$BO$127:$BP$138,2,FALSE) ->  | AX9: ='Budget FCFA'!#REF!/VLOOKUP(AX$2,$BO$127:$BP$138,2,FALSE) ->  | AY9: ='Budget FCFA'!#REF!/VLOOKUP(AY$2,$BO$127:$BP$138,2,FALSE) ->  | AZ9: ='Budget FCFA'!#REF!/VLOOKUP(AZ$2,$BO$127:$BP$138,2,FALSE) ->  | BA9: ='Budget FCFA'!#REF!/VLOOKUP(BA$2,$BO$127:$BP$138,2,FALSE) ->  | BB9: ='Budget FCFA'!#REF!/VLOOKUP(BB$2,$BO$127:$BP$138,2,FALSE) ->  | BC9: ='Budget FCFA'!#REF!/VLOOKUP(BC$2,$BO$127:$BP$138,2,FALSE) ->  | BD9: ='Budget FCFA'!#REF!/VLOOKUP(BD$2,$BO$127:$BP$138,2,FALSE) ->  | BE9: ='Budget FCFA'!#REF!/VLOOKUP(BE$2,$BO$127:$BP$138,2,FALSE) ->  | BF9: ='Budget FCFA'!#REF!/VLOOKUP(BF$2,$BO$127:$BP$138,2,FALSE) ->  | BG9: ='Budget FCFA'!#REF!/VLOOKUP(BG$2,$BO$127:$BP$138,2,FALSE) ->  | BH9: ='Budget FCFA'!#REF!/VLOOKUP(BH$2,$BO$127:$BP$138,2,FALSE) ->  | BI9: ='Budget FCFA'!#REF!/VLOOKUP(BI$2,$BO$127:$BP$138,2,FALSE) ->  | BJ9: ='Budget FCFA'!#REF!/VLOOKUP(BJ$2,$BO$127:$BP$138,2,FALSE) ->  | BL9: =BK9-'Budget FCFA'!#REF! -> 
A10: PUBHAART | B10: TOTAL | C10: Total Achats Art (all) | D10: ='Budget FCFA'!D10/VLOOKUP(D$2,$BO$127:$BP$138,2,FALSE) -> 0 | E10: ='Budget FCFA'!E10/VLOOKUP(E$2,$BO$127:$BP$138,2,FALSE) -> 0 | F10: ='Budget FCFA'!F10/VLOOKUP(F$2,$BO$127:$BP$138,2,FALSE) -> 0 | G10: ='Budget FCFA'!G10/VLOOKUP(G$2,$BO$127:$BP$138,2,FALSE) -> 0 | H10: ='Budget FCFA'!H10/VLOOKUP(H$2,$BO$127:$BP$138,2,FALSE) -> 1162.47 | I10: ='Budget FCFA'!I10/VLOOKUP(I$2,$BO$127:$BP$138,2,FALSE) -> 0 | J10: ='Budget FCFA'!J10/VLOOKUP(J$2,$BO$127:$BP$138,2,FALSE) -> 0 | K10: ='Budget FCFA'!K10/VLOOKUP(K$2,$BO$127:$BP$138,2,FALSE) -> 0 | L10: ='Budget FCFA'!L10/VLOOKUP(L$2,$BO$127:$BP$138,2,FALSE) -> 0 | M10: ='Budget FCFA'!M10/VLOOKUP(M$2,$BO$127:$BP$138,2,FALSE) -> 822.85 | N10: ='Budget FCFA'!N10/VLOOKUP(N$2,$BO$127:$BP$138,2,FALSE) -> 0 | O10: ='Budget FCFA'!O10/VLOOKUP(O$2,$BO$127:$BP$138,2,FALSE) -> 0 | P10: ='Budget FCFA'!P10/VLOOKUP(P$2,$BO$127:$BP$138,2,FALSE) -> 0 | Q10: ='Budget FCFA'!Q10/VLOOKUP(Q$2,$BO$127:$BP$138,2,FALSE) -> 0 | R10: ='Budget FCFA'!R10/VLOOKUP(R$2,$BO$127:$BP$138,2,FALSE) -> 870.49 | S10: ='Budget FCFA'!S10/VLOOKUP(S$2,$BO$127:$BP$138,2,FALSE) -> 0 | T10: ='Budget FCFA'!T10/VLOOKUP(T$2,$BO$127:$BP$138,2,FALSE) -> 0 | U10: ='Budget FCFA'!U10/VLOOKUP(U$2,$BO$127:$BP$138,2,FALSE) -> 0 | V10: ='Budget FCFA'!V10/VLOOKUP(V$2,$BO$127:$BP$138,2,FALSE) -> 0 | W10: ='Budget FCFA'!W10/VLOOKUP(W$2,$BO$127:$BP$138,2,FALSE) -> 6544.348258 | X10: ='Budget FCFA'!X10/VLOOKUP(X$2,$BO$127:$BP$138,2,FALSE) -> 0 | Y10: ='Budget FCFA'!Y10/VLOOKUP(Y$2,$BO$127:$BP$138,2,FALSE) -> 0 | Z10: ='Budget FCFA'!Z10/VLOOKUP(Z$2,$BO$127:$BP$138,2,FALSE) -> 0 | AA10: ='Budget FCFA'!AA10/VLOOKUP(AA$2,$BO$127:$BP$138,2,FALSE) -> 1498.5 | AB10: ='Budget FCFA'!AB10/VLOOKUP(AB$2,$BO$127:$BP$138,2,FALSE) -> 0 | AC10: ='Budget FCFA'!AC10/VLOOKUP(AC$2,$BO$127:$BP$138,2,FALSE) -> 0 | AD10: ='Budget FCFA'!AD10/VLOOKUP(AD$2,$BO$127:$BP$138,2,FALSE) -> 0 | AE10: ='Budget FCFA'!AE10/VLOOKUP(AE$2,$BO$127:$BP$138,2,FALSE) -> 0 | AF10: ='Budget FCFA'!AF10/VLOOKUP(AF$2,$BO$127:$BP$138,2,FALSE) -> 54.91628067 | AG10: ='Budget FCFA'!AG10/VLOOKUP(AG$2,$BO$127:$BP$138,2,FALSE) -> 0 | AH10: ='Budget FCFA'!AH10/VLOOKUP(AH$2,$BO$127:$BP$138,2,FALSE) -> 0 | AI10: ='Budget FCFA'!AI10/VLOOKUP(AI$2,$BO$127:$BP$138,2,FALSE) -> 0 | AJ10: ='Budget FCFA'!AJ10/VLOOKUP(AJ$2,$BO$127:$BP$138,2,FALSE) -> 0 | AK10: ='Budget FCFA'!AK10/VLOOKUP(AK$2,$BO$127:$BP$138,2,FALSE) -> 338.45 | AL10: ='Budget FCFA'!AL10/VLOOKUP(AL$2,$BO$127:$BP$138,2,FALSE) -> 0 | AM10: ='Budget FCFA'!AM10/VLOOKUP(AM$2,$BO$127:$BP$138,2,FALSE) -> 0 | AN10: ='Budget FCFA'!AN10/VLOOKUP(AN$2,$BO$127:$BP$138,2,FALSE) -> 0 | AO10: ='Budget FCFA'!AO10/VLOOKUP(AO$2,$BO$127:$BP$138,2,FALSE) -> 0 | AP10: ='Budget FCFA'!AP10/VLOOKUP(AP$2,$BO$127:$BP$138,2,FALSE) -> 927.03 | AQ10: ='Budget FCFA'!#REF!/VLOOKUP(AQ$2,$BO$127:$BP$138,2,FALSE) ->  | AR10: ='Budget FCFA'!#REF!/VLOOKUP(AR$2,$BO$127:$BP$138,2,FALSE) ->  | AS10: ='Budget FCFA'!#REF!/VLOOKUP(AS$2,$BO$127:$BP$138,2,FALSE) ->  | AT10: ='Budget FCFA'!#REF!/VLOOKUP(AT$2,$BO$127:$BP$138,2,FALSE) ->  | AU10: ='Budget FCFA'!#REF!/VLOOKUP(AU$2,$BO$127:$BP$138,2,FALSE) ->  | AV10: ='Budget FCFA'!#REF!/VLOOKUP(AV$2,$BO$127:$BP$138,2,FALSE) ->  | AW10: ='Budget FCFA'!#REF!/VLOOKUP(AW$2,$BO$127:$BP$138,2,FALSE) ->  | AX10: ='Budget FCFA'!#REF!/VLOOKUP(AX$2,$BO$127:$BP$138,2,FALSE) ->  | AY10: ='Budget FCFA'!#REF!/VLOOKUP(AY$2,$BO$127:$BP$138,2,FALSE) ->  | AZ10: ='Budget FCFA'!#REF!/VLOOKUP(AZ$2,$BO$127:$BP$138,2,FALSE) ->  | BA10: ='Budget FCFA'!#REF!/VLOOKUP(BA$2,$BO$127:$BP$138,2,FALSE) ->  | BB10: ='Budget FCFA'!#REF!/VLOOKUP(BB$2,$BO$127:$BP$138,2,FALSE) ->  | BC10: ='Budget FCFA'!#REF!/VLOOKUP(BC$2,$BO$127:$BP$138,2,FALSE) ->  | BD10: ='Budget FCFA'!#REF!/VLOOKUP(BD$2,$BO$127:$BP$138,2,FALSE) ->  | BE10: ='Budget FCFA'!#REF!/VLOOKUP(BE$2,$BO$127:$BP$138,2,FALSE) ->  | BF10: ='Budget FCFA'!#REF!/VLOOKUP(BF$2,$BO$127:$BP$138,2,FALSE) ->  | BG10: ='Budget FCFA'!#REF!/VLOOKUP(BG$2,$BO$127:$BP$138,2,FALSE) ->  | BH10: ='Budget FCFA'!#REF!/VLOOKUP(BH$2,$BO$127:$BP$138,2,FALSE) ->  | BI10: ='Budget FCFA'!#REF!/VLOOKUP(BI$2,$BO$127:$BP$138,2,FALSE) ->  | BJ10: ='Budget FCFA'!#REF!/VLOOKUP(BJ$2,$BO$127:$BP$138,2,FALSE) ->  | BL10: =BK10-'Budget FCFA'!#REF! -> 
A11: PUBLIANT | B11: ABIDJAN | C11: Exercices précédents | D11: ='Budget FCFA'!D11/VLOOKUP(D$2,$BO$127:$BP$138,2,FALSE) -> 0 | E11: ='Budget FCFA'!E11/VLOOKUP(E$2,$BO$127:$BP$138,2,FALSE) -> 0 | F11: ='Budget FCFA'!F11/VLOOKUP(F$2,$BO$127:$BP$138,2,FALSE) -> 0 | G11: ='Budget FCFA'!G11/VLOOKUP(G$2,$BO$127:$BP$138,2,FALSE) -> 0 | H11: ='Budget FCFA'!H11/VLOOKUP(H$2,$BO$127:$BP$138,2,FALSE) -> 0 | I11: ='Budget FCFA'!I11/VLOOKUP(I$2,$BO$127:$BP$138,2,FALSE) -> 0 | J11: ='Budget FCFA'!J11/VLOOKUP(J$2,$BO$127:$BP$138,2,FALSE) -> 0 | K11: ='Budget FCFA'!K11/VLOOKUP(K$2,$BO$127:$BP$138,2,FALSE) -> 0 | L11: ='Budget FCFA'!L11/VLOOKUP(L$2,$BO$127:$BP$138,2,FALSE) -> 0 | M11: ='Budget FCFA'!M11/VLOOKUP(M$2,$BO$127:$BP$138,2,FALSE) -> 0 | N11: ='Budget FCFA'!N11/VLOOKUP(N$2,$BO$127:$BP$138,2,FALSE) -> 0 | O11: ='Budget FCFA'!O11/VLOOKUP(O$2,$BO$127:$BP$138,2,FALSE) -> 0 | P11: ='Budget FCFA'!P11/VLOOKUP(P$2,$BO$127:$BP$138,2,FALSE) -> 0 | Q11: ='Budget FCFA'!Q11/VLOOKUP(Q$2,$BO$127:$BP$138,2,FALSE) -> 0 | R11: ='Budget FCFA'!R11/VLOOKUP(R$2,$BO$127:$BP$138,2,FALSE) -> 0 | S11: ='Budget FCFA'!S11/VLOOKUP(S$2,$BO$127:$BP$138,2,FALSE) -> 0 | T11: ='Budget FCFA'!T11/VLOOKUP(T$2,$BO$127:$BP$138,2,FALSE) -> 0 | U11: ='Budget FCFA'!U11/VLOOKUP(U$2,$BO$127:$BP$138,2,FALSE) -> 0 | V11: ='Budget FCFA'!V11/VLOOKUP(V$2,$BO$127:$BP$138,2,FALSE) -> 0 | W11: ='Budget FCFA'!W11/VLOOKUP(W$2,$BO$127:$BP$138,2,FALSE) -> 0 | X11: ='Budget FCFA'!X11/VLOOKUP(X$2,$BO$127:$BP$138,2,FALSE) -> 0 | Y11: ='Budget FCFA'!Y11/VLOOKUP(Y$2,$BO$127:$BP$138,2,FALSE) -> 0 | Z11: ='Budget FCFA'!Z11/VLOOKUP(Z$2,$BO$127:$BP$138,2,FALSE) -> 0 | AA11: ='Budget FCFA'!AA11/VLOOKUP(AA$2,$BO$127:$BP$138,2,FALSE) -> 0 | AB11: ='Budget FCFA'!AB11/VLOOKUP(AB$2,$BO$127:$BP$138,2,FALSE) -> 0 | AC11: ='Budget FCFA'!AC11/VLOOKUP(AC$2,$BO$127:$BP$138,2,FALSE) -> 0 | AD11: ='Budget FCFA'!AD11/VLOOKUP(AD$2,$BO$127:$BP$138,2,FALSE) -> 0 | AE11: ='Budget FCFA'!AE11/VLOOKUP(AE$2,$BO$127:$BP$138,2,FALSE) -> 0 | AF11: ='Budget FCFA'!AF11/VLOOKUP(AF$2,$BO$127:$BP$138,2,FALSE) -> 0 | AG11: ='Budget FCFA'!AG11/VLOOKUP(AG$2,$BO$127:$BP$138,2,FALSE) -> 0 | AH11: ='Budget FCFA'!AH11/VLOOKUP(AH$2,$BO$127:$BP$138,2,FALSE) -> 0 | AI11: ='Budget FCFA'!AI11/VLOOKUP(AI$2,$BO$127:$BP$138,2,FALSE) -> 0 | AJ11: ='Budget FCFA'!AJ11/VLOOKUP(AJ$2,$BO$127:$BP$138,2,FALSE) -> 0 | AK11: ='Budget FCFA'!AK11/VLOOKUP(AK$2,$BO$127:$BP$138,2,FALSE) -> 0 | AL11: ='Budget FCFA'!AL11/VLOOKUP(AL$2,$BO$127:$BP$138,2,FALSE) -> 0 | AM11: ='Budget FCFA'!AM11/VLOOKUP(AM$2,$BO$127:$BP$138,2,FALSE) -> 0 | AN11: ='Budget FCFA'!AN11/VLOOKUP(AN$2,$BO$127:$BP$138,2,FALSE) -> 0 | AO11: ='Budget FCFA'!AO11/VLOOKUP(AO$2,$BO$127:$BP$138,2,FALSE) -> 0 | AP11: ='Budget FCFA'!AP11/VLOOKUP(AP$2,$BO$127:$BP$138,2,FALSE) -> 0 | AQ11: ='Budget FCFA'!#REF!/VLOOKUP(AQ$2,$BO$127:$BP$138,2,FALSE) ->  | AR11: ='Budget FCFA'!#REF!/VLOOKUP(AR$2,$BO$127:$BP$138,2,FALSE) ->  | AS11: ='Budget FCFA'!#REF!/VLOOKUP(AS$2,$BO$127:$BP$138,2,FALSE) ->  | AT11: ='Budget FCFA'!#REF!/VLOOKUP(AT$2,$BO$127:$BP$138,2,FALSE) ->  | AU11: ='Budget FCFA'!#REF!/VLOOKUP(AU$2,$BO$127:$BP$138,2,FALSE) ->  | AV11: ='Budget FCFA'!#REF!/VLOOKUP(AV$2,$BO$127:$BP$138,2,FALSE) ->  | AW11: ='Budget FCFA'!#REF!/VLOOKUP(AW$2,$BO$127:$BP$138,2,FALSE) ->  | AX11: ='Budget FCFA'!#REF!/VLOOKUP(AX$2,$BO$127:$BP$138,2,FALSE) ->  | AY11: ='Budget FCFA'!#REF!/VLOOKUP(AY$2,$BO$127:$BP$138,2,FALSE) ->  | AZ11: ='Budget FCFA'!#REF!/VLOOKUP(AZ$2,$BO$127:$BP$138,2,FALSE) ->  | BA11: ='Budget FCFA'!#REF!/VLOOKUP(BA$2,$BO$127:$BP$138,2,FALSE) ->  | BB11: ='Budget FCFA'!#REF!/VLOOKUP(BB$2,$BO$127:$BP$138,2,FALSE) ->  | BC11: ='Budget FCFA'!#REF!/VLOOKUP(BC$2,$BO$127:$BP$138,2,FALSE) ->  | BD11: ='Budget FCFA'!#REF!/VLOOKUP(BD$2,$BO$127:$BP$138,2,FALSE) ->  | BE11: ='Budget FCFA'!#REF!/VLOOKUP(BE$2,$BO$127:$BP$138,2,FALSE) ->  | BF11: ='Budget FCFA'!#REF!/VLOOKUP(BF$2,$BO$127:$BP$138,2,FALSE) ->  | BG11: ='Budget FCFA'!#REF!/VLOOKUP(BG$2,$BO$127:$BP$138,2,FALSE) ->  | BH11: ='Budget FCFA'!#REF!/VLOOKUP(BH$2,$BO$127:$BP$138,2,FALSE) ->  | BI11: ='Budget FCFA'!#REF!/VLOOKUP(BI$2,$BO$127:$BP$138,2,FALSE) ->  | BJ11: ='Budget FCFA'!#REF!/VLOOKUP(BJ$2,$BO$127:$BP$138,2,FALSE) ->  | BL11: =BK11-'Budget FCFA'!#REF! -> 
A12: PUBLIANT | B12: BRAZZA | C12: Exercices précédents | D12: ='Budget FCFA'!D12/VLOOKUP(D$2,$BO$127:$BP$138,2,FALSE) -> 0 | E12: ='Budget FCFA'!E12/VLOOKUP(E$2,$BO$127:$BP$138,2,FALSE) -> 0 | F12: ='Budget FCFA'!F12/VLOOKUP(F$2,$BO$127:$BP$138,2,FALSE) -> 0 | G12: ='Budget FCFA'!G12/VLOOKUP(G$2,$BO$127:$BP$138,2,FALSE) -> 0 | H12: ='Budget FCFA'!H12/VLOOKUP(H$2,$BO$127:$BP$138,2,FALSE) -> 0 | I12: ='Budget FCFA'!I12/VLOOKUP(I$2,$BO$127:$BP$138,2,FALSE) -> 0 | J12: ='Budget FCFA'!J12/VLOOKUP(J$2,$BO$127:$BP$138,2,FALSE) -> 0 | K12: ='Budget FCFA'!K12/VLOOKUP(K$2,$BO$127:$BP$138,2,FALSE) -> 0 | L12: ='Budget FCFA'!L12/VLOOKUP(L$2,$BO$127:$BP$138,2,FALSE) -> 0 | M12: ='Budget FCFA'!M12/VLOOKUP(M$2,$BO$127:$BP$138,2,FALSE) -> 0 | N12: ='Budget FCFA'!N12/VLOOKUP(N$2,$BO$127:$BP$138,2,FALSE) -> 0 | O12: ='Budget FCFA'!O12/VLOOKUP(O$2,$BO$127:$BP$138,2,FALSE) -> 0 | P12: ='Budget FCFA'!P12/VLOOKUP(P$2,$BO$127:$BP$138,2,FALSE) -> 0 | Q12: ='Budget FCFA'!Q12/VLOOKUP(Q$2,$BO$127:$BP$138,2,FALSE) -> 0 | R12: ='Budget FCFA'!R12/VLOOKUP(R$2,$BO$127:$BP$138,2,FALSE) -> 0 | S12: ='Budget FCFA'!S12/VLOOKUP(S$2,$BO$127:$BP$138,2,FALSE) -> 0 | T12: ='Budget FCFA'!T12/VLOOKUP(T$2,$BO$127:$BP$138,2,FALSE) -> 0 | U12: ='Budget FCFA'!U12/VLOOKUP(U$2,$BO$127:$BP$138,2,FALSE) -> 0 | V12: ='Budget FCFA'!V12/VLOOKUP(V$2,$BO$127:$BP$138,2,FALSE) -> 0 | W12: ='Budget FCFA'!W12/VLOOKUP(W$2,$BO$127:$BP$138,2,FALSE) -> 0 | X12: ='Budget FCFA'!X12/VLOOKUP(X$2,$BO$127:$BP$138,2,FALSE) -> 0 | Y12: ='Budget FCFA'!Y12/VLOOKUP(Y$2,$BO$127:$BP$138,2,FALSE) -> 0 | Z12: ='Budget FCFA'!Z12/VLOOKUP(Z$2,$BO$127:$BP$138,2,FALSE) -> 0 | AA12: ='Budget FCFA'!AA12/VLOOKUP(AA$2,$BO$127:$BP$138,2,FALSE) -> 0 | AB12: ='Budget FCFA'!AB12/VLOOKUP(AB$2,$BO$127:$BP$138,2,FALSE) -> 0 | AC12: ='Budget FCFA'!AC12/VLOOKUP(AC$2,$BO$127:$BP$138,2,FALSE) -> 0 | AD12: ='Budget FCFA'!AD12/VLOOKUP(AD$2,$BO$127:$BP$138,2,FALSE) -> 0 | AE12: ='Budget FCFA'!AE12/VLOOKUP(AE$2,$BO$127:$BP$138,2,FALSE) -> 0 | AF12: ='Budget FCFA'!AF12/VLOOKUP(AF$2,$BO$127:$BP$138,2,FALSE) -> 0 | AG12: ='Budget FCFA'!AG12/VLOOKUP(AG$2,$BO$127:$BP$138,2,FALSE) -> 0 | AH12: ='Budget FCFA'!AH12/VLOOKUP(AH$2,$BO$127:$BP$138,2,FALSE) -> 0 | AI12: ='Budget FCFA'!AI12/VLOOKUP(AI$2,$BO$127:$BP$138,2,FALSE) -> 0 | AJ12: ='Budget FCFA'!AJ12/VLOOKUP(AJ$2,$BO$127:$BP$138,2,FALSE) -> 0 | AK12: ='Budget FCFA'!AK12/VLOOKUP(AK$2,$BO$127:$BP$138,2,FALSE) -> 0 | AL12: ='Budget FCFA'!AL12/VLOOKUP(AL$2,$BO$127:$BP$138,2,FALSE) -> 0 | AM12: ='Budget FCFA'!AM12/VLOOKUP(AM$2,$BO$127:$BP$138,2,FALSE) -> 0 | AN12: ='Budget FCFA'!AN12/VLOOKUP(AN$2,$BO$127:$BP$138,2,FALSE) -> 0 | AO12: ='Budget FCFA'!AO12/VLOOKUP(AO$2,$BO$127:$BP$138,2,FALSE) -> 0 | AP12: ='Budget FCFA'!AP12/VLOOKUP(AP$2,$BO$127:$BP$138,2,FALSE) -> 0 | AQ12: ='Budget FCFA'!#REF!/VLOOKUP(AQ$2,$BO$127:$BP$138,2,FALSE) ->  | AR12: ='Budget FCFA'!#REF!/VLOOKUP(AR$2,$BO$127:$BP$138,2,FALSE) ->  | AS12: ='Budget FCFA'!#REF!/VLOOKUP(AS$2,$BO$127:$BP$138,2,FALSE) ->  | AT12: ='Budget FCFA'!#REF!/VLOOKUP(AT$2,$BO$127:$BP$138,2,FALSE) ->  | AU12: ='Budget FCFA'!#REF!/VLOOKUP(AU$2,$BO$127:$BP$138,2,FALSE) ->  | AV12: ='Budget FCFA'!#REF!/VLOOKUP(AV$2,$BO$127:$BP$138,2,FALSE) ->  | AW12: ='Budget FCFA'!#REF!/VLOOKUP(AW$2,$BO$127:$BP$138,2,FALSE) ->  | AX12: ='Budget FCFA'!#REF!/VLOOKUP(AX$2,$BO$127:$BP$138,2,FALSE) ->  | AY12: ='Budget FCFA'!#REF!/VLOOKUP(AY$2,$BO$127:$BP$138,2,FALSE) ->  | AZ12: ='Budget FCFA'!#REF!/VLOOKUP(AZ$2,$BO$127:$BP$138,2,FALSE) ->  | BA12: ='Budget FCFA'!#REF!/VLOOKUP(BA$2,$BO$127:$BP$138,2,FALSE) ->  | BB12: ='Budget FCFA'!#REF!/VLOOKUP(BB$2,$BO$127:$BP$138,2,FALSE) ->  | BC12: ='Budget FCFA'!#REF!/VLOOKUP(BC$2,$BO$127:$BP$138,2,FALSE) ->  | BD12: ='Budget FCFA'!#REF!/VLOOKUP(BD$2,$BO$127:$BP$138,2,FALSE) ->  | BE12: ='Budget FCFA'!#REF!/VLOOKUP(BE$2,$BO$127:$BP$138,2,FALSE) ->  | BF12: ='Budget FCFA'!#REF!/VLOOKUP(BF$2,$BO$127:$BP$138,2,FALSE) ->  | BG12: ='Budget FCFA'!#REF!/VLOOKUP(BG$2,$BO$127:$BP$138,2,FALSE) ->  | BH12: ='Budget FCFA'!#REF!/VLOOKUP(BH$2,$BO$127:$BP$138,2,FALSE) ->  | BI12: ='Budget FCFA'!#REF!/VLOOKUP(BI$2,$BO$127:$BP$138,2,FALSE) ->  | BJ12: ='Budget FCFA'!#REF!/VLOOKUP(BJ$2,$BO$127:$BP$138,2,FALSE) ->  | BL12: =BK12-'Budget FCFA'!#REF! -> 
A13: PUBLIANT | B13: DAKAR | C13: Exercices précédents | D13: ='Budget FCFA'!D13/VLOOKUP(D$2,$BO$127:$BP$138,2,FALSE) -> 0 | E13: ='Budget FCFA'!E13/VLOOKUP(E$2,$BO$127:$BP$138,2,FALSE) -> 0 | F13: ='Budget FCFA'!F13/VLOOKUP(F$2,$BO$127:$BP$138,2,FALSE) -> 0 | G13: ='Budget FCFA'!G13/VLOOKUP(G$2,$BO$127:$BP$138,2,FALSE) -> 0 | H13: ='Budget FCFA'!H13/VLOOKUP(H$2,$BO$127:$BP$138,2,FALSE) -> 0 | I13: ='Budget FCFA'!I13/VLOOKUP(I$2,$BO$127:$BP$138,2,FALSE) -> 0 | J13: ='Budget FCFA'!J13/VLOOKUP(J$2,$BO$127:$BP$138,2,FALSE) -> 0 | K13: ='Budget FCFA'!K13/VLOOKUP(K$2,$BO$127:$BP$138,2,FALSE) -> 0 | L13: ='Budget FCFA'!L13/VLOOKUP(L$2,$BO$127:$BP$138,2,FALSE) -> 0 | M13: ='Budget FCFA'!M13/VLOOKUP(M$2,$BO$127:$BP$138,2,FALSE) -> 0 | N13: ='Budget FCFA'!N13/VLOOKUP(N$2,$BO$127:$BP$138,2,FALSE) -> 0 | O13: ='Budget FCFA'!O13/VLOOKUP(O$2,$BO$127:$BP$138,2,FALSE) -> 0 | P13: ='Budget FCFA'!P13/VLOOKUP(P$2,$BO$127:$BP$138,2,FALSE) -> 0 | Q13: ='Budget FCFA'!Q13/VLOOKUP(Q$2,$BO$127:$BP$138,2,FALSE) -> 0 | R13: ='Budget FCFA'!R13/VLOOKUP(R$2,$BO$127:$BP$138,2,FALSE) -> 0 | S13: ='Budget FCFA'!S13/VLOOKUP(S$2,$BO$127:$BP$138,2,FALSE) -> 0 | T13: ='Budget FCFA'!T13/VLOOKUP(T$2,$BO$127:$BP$138,2,FALSE) -> 0 | U13: ='Budget FCFA'!U13/VLOOKUP(U$2,$BO$127:$BP$138,2,FALSE) -> 0 | V13: ='Budget FCFA'!V13/VLOOKUP(V$2,$BO$127:$BP$138,2,FALSE) -> 0 | W13: ='Budget FCFA'!W13/VLOOKUP(W$2,$BO$127:$BP$138,2,FALSE) -> 0 | X13: ='Budget FCFA'!X13/VLOOKUP(X$2,$BO$127:$BP$138,2,FALSE) -> 0 | Y13: ='Budget FCFA'!Y13/VLOOKUP(Y$2,$BO$127:$BP$138,2,FALSE) -> 0 | Z13: ='Budget FCFA'!Z13/VLOOKUP(Z$2,$BO$127:$BP$138,2,FALSE) -> 0 | AA13: ='Budget FCFA'!AA13/VLOOKUP(AA$2,$BO$127:$BP$138,2,FALSE) -> 0 | AB13: ='Budget FCFA'!AB13/VLOOKUP(AB$2,$BO$127:$BP$138,2,FALSE) -> 0 | AC13: ='Budget FCFA'!AC13/VLOOKUP(AC$2,$BO$127:$BP$138,2,FALSE) -> 0 | AD13: ='Budget FCFA'!AD13/VLOOKUP(AD$2,$BO$127:$BP$138,2,FALSE) -> 0 | AE13: ='Budget FCFA'!AE13/VLOOKUP(AE$2,$BO$127:$BP$138,2,FALSE) -> 0 | AF13: ='Budget FCFA'!AF13/VLOOKUP(AF$2,$BO$127:$BP$138,2,FALSE) -> 0 | AG13: ='Budget FCFA'!AG13/VLOOKUP(AG$2,$BO$127:$BP$138,2,FALSE) -> 0 | AH13: ='Budget FCFA'!AH13/VLOOKUP(AH$2,$BO$127:$BP$138,2,FALSE) -> 0 | AI13: ='Budget FCFA'!AI13/VLOOKUP(AI$2,$BO$127:$BP$138,2,FALSE) -> 0 | AJ13: ='Budget FCFA'!AJ13/VLOOKUP(AJ$2,$BO$127:$BP$138,2,FALSE) -> 0 | AK13: ='Budget FCFA'!AK13/VLOOKUP(AK$2,$BO$127:$BP$138,2,FALSE) -> 0 | AL13: ='Budget FCFA'!AL13/VLOOKUP(AL$2,$BO$127:$BP$138,2,FALSE) -> 0 | AM13: ='Budget FCFA'!AM13/VLOOKUP(AM$2,$BO$127:$BP$138,2,FALSE) -> 0 | AN13: ='Budget FCFA'!AN13/VLOOKUP(AN$2,$BO$127:$BP$138,2,FALSE) -> 0 | AO13: ='Budget FCFA'!AO13/VLOOKUP(AO$2,$BO$127:$BP$138,2,FALSE) -> 0 | AP13: ='Budget FCFA'!AP13/VLOOKUP(AP$2,$BO$127:$BP$138,2,FALSE) -> 0 | AQ13: ='Budget FCFA'!#REF!/VLOOKUP(AQ$2,$BO$127:$BP$138,2,FALSE) ->  | AR13: ='Budget FCFA'!#REF!/VLOOKUP(AR$2,$BO$127:$BP$138,2,FALSE) ->  | AS13: ='Budget FCFA'!#REF!/VLOOKUP(AS$2,$BO$127:$BP$138,2,FALSE) ->  | AT13: ='Budget FCFA'!#REF!/VLOOKUP(AT$2,$BO$127:$BP$138,2,FALSE) ->  | AU13: ='Budget FCFA'!#REF!/VLOOKUP(AU$2,$BO$127:$BP$138,2,FALSE) ->  | AV13: ='Budget FCFA'!#REF!/VLOOKUP(AV$2,$BO$127:$BP$138,2,FALSE) ->  | AW13: ='Budget FCFA'!#REF!/VLOOKUP(AW$2,$BO$127:$BP$138,2,FALSE) ->  | AX13: ='Budget FCFA'!#REF!/VLOOKUP(AX$2,$BO$127:$BP$138,2,FALSE) ->  | AY13: ='Budget FCFA'!#REF!/VLOOKUP(AY$2,$BO$127:$BP$138,2,FALSE) ->  | AZ13: ='Budget FCFA'!#REF!/VLOOKUP(AZ$2,$BO$127:$BP$138,2,FALSE) ->  | BA13: ='Budget FCFA'!#REF!/VLOOKUP(BA$2,$BO$127:$BP$138,2,FALSE) ->  | BB13: ='Budget FCFA'!#REF!/VLOOKUP(BB$2,$BO$127:$BP$138,2,FALSE) ->  | BC13: ='Budget FCFA'!#REF!/VLOOKUP(BC$2,$BO$127:$BP$138,2,FALSE) ->  | BD13: ='Budget FCFA'!#REF!/VLOOKUP(BD$2,$BO$127:$BP$138,2,FALSE) ->  | BE13: ='Budget FCFA'!#REF!/VLOOKUP(BE$2,$BO$127:$BP$138,2,FALSE) ->  | BF13: ='Budget FCFA'!#REF!/VLOOKUP(BF$2,$BO$127:$BP$138,2,FALSE) ->  | BG13: ='Budget FCFA'!#REF!/VLOOKUP(BG$2,$BO$127:$BP$138,2,FALSE) ->  | BH13: ='Budget FCFA'!#REF!/VLOOKUP(BH$2,$BO$127:$BP$138,2,FALSE) ->  | BI13: ='Budget FCFA'!#REF!/VLOOKUP(BI$2,$BO$127:$BP$138,2,FALSE) ->  | BJ13: ='Budget FCFA'!#REF!/VLOOKUP(BJ$2,$BO$127:$BP$138,2,FALSE) ->  | BL13: =BK13-'Budget FCFA'!#REF! -> 
A14: PUBLIANT | B14: LIBREVILLE | C14: Exercices précédents | D14: ='Budget FCFA'!D14/VLOOKUP(D$2,$BO$127:$BP$138,2,FALSE) -> 0 | E14: ='Budget FCFA'!E14/VLOOKUP(E$2,$BO$127:$BP$138,2,FALSE) -> 0 | F14: ='Budget FCFA'!F14/VLOOKUP(F$2,$BO$127:$BP$138,2,FALSE) -> 0 | G14: ='Budget FCFA'!G14/VLOOKUP(G$2,$BO$127:$BP$138,2,FALSE) -> 0 | H14: ='Budget FCFA'!H14/VLOOKUP(H$2,$BO$127:$BP$138,2,FALSE) -> 0 | I14: ='Budget FCFA'!I14/VLOOKUP(I$2,$BO$127:$BP$138,2,FALSE) -> 0 | J14: ='Budget FCFA'!J14/VLOOKUP(J$2,$BO$127:$BP$138,2,FALSE) -> 0 | K14: ='Budget FCFA'!K14/VLOOKUP(K$2,$BO$127:$BP$138,2,FALSE) -> 0 | L14: ='Budget FCFA'!L14/VLOOKUP(L$2,$BO$127:$BP$138,2,FALSE) -> 0 | M14: ='Budget FCFA'!M14/VLOOKUP(M$2,$BO$127:$BP$138,2,FALSE) -> 0 | N14: ='Budget FCFA'!N14/VLOOKUP(N$2,$BO$127:$BP$138,2,FALSE) -> 0 | O14: ='Budget FCFA'!O14/VLOOKUP(O$2,$BO$127:$BP$138,2,FALSE) -> 0 | P14: ='Budget FCFA'!P14/VLOOKUP(P$2,$BO$127:$BP$138,2,FALSE) -> 0 | Q14: ='Budget FCFA'!Q14/VLOOKUP(Q$2,$BO$127:$BP$138,2,FALSE) -> 0 | R14: ='Budget FCFA'!R14/VLOOKUP(R$2,$BO$127:$BP$138,2,FALSE) -> 0 | S14: ='Budget FCFA'!S14/VLOOKUP(S$2,$BO$127:$BP$138,2,FALSE) -> 0 | T14: ='Budget FCFA'!T14/VLOOKUP(T$2,$BO$127:$BP$138,2,FALSE) -> 0 | U14: ='Budget FCFA'!U14/VLOOKUP(U$2,$BO$127:$BP$138,2,FALSE) -> 0 | V14: ='Budget FCFA'!V14/VLOOKUP(V$2,$BO$127:$BP$138,2,FALSE) -> 0 | W14: ='Budget FCFA'!W14/VLOOKUP(W$2,$BO$127:$BP$138,2,FALSE) -> 0 | X14: ='Budget FCFA'!X14/VLOOKUP(X$2,$BO$127:$BP$138,2,FALSE) -> 0 | Y14: ='Budget FCFA'!Y14/VLOOKUP(Y$2,$BO$127:$BP$138,2,FALSE) -> 0 | Z14: ='Budget FCFA'!Z14/VLOOKUP(Z$2,$BO$127:$BP$138,2,FALSE) -> 0 | AA14: ='Budget FCFA'!AA14/VLOOKUP(AA$2,$BO$127:$BP$138,2,FALSE) -> 0 | AB14: ='Budget FCFA'!AB14/VLOOKUP(AB$2,$BO$127:$BP$138,2,FALSE) -> 0 | AC14: ='Budget FCFA'!AC14/VLOOKUP(AC$2,$BO$127:$BP$138,2,FALSE) -> 0 | AD14: ='Budget FCFA'!AD14/VLOOKUP(AD$2,$BO$127:$BP$138,2,FALSE) -> 0 | AE14: ='Budget FCFA'!AE14/VLOOKUP(AE$2,$BO$127:$BP$138,2,FALSE) -> 0 | AF14: ='Budget FCFA'!AF14/VLOOKUP(AF$2,$BO$127:$BP$138,2,FALSE) -> 0 | AG14: ='Budget FCFA'!AG14/VLOOKUP(AG$2,$BO$127:$BP$138,2,FALSE) -> 0 | AH14: ='Budget FCFA'!AH14/VLOOKUP(AH$2,$BO$127:$BP$138,2,FALSE) -> 0 | AI14: ='Budget FCFA'!AI14/VLOOKUP(AI$2,$BO$127:$BP$138,2,FALSE) -> 0 | AJ14: ='Budget FCFA'!AJ14/VLOOKUP(AJ$2,$BO$127:$BP$138,2,FALSE) -> 0 | AK14: ='Budget FCFA'!AK14/VLOOKUP(AK$2,$BO$127:$BP$138,2,FALSE) -> 0 | AL14: ='Budget FCFA'!AL14/VLOOKUP(AL$2,$BO$127:$BP$138,2,FALSE) -> 0 | AM14: ='Budget FCFA'!AM14/VLOOKUP(AM$2,$BO$127:$BP$138,2,FALSE) -> 0 | AN14: ='Budget FCFA'!AN14/VLOOKUP(AN$2,$BO$127:$BP$138,2,FALSE) -> 0 | AO14: ='Budget FCFA'!AO14/VLOOKUP(AO$2,$BO$127:$BP$138,2,FALSE) -> 0 | AP14: ='Budget FCFA'!AP14/VLOOKUP(AP$2,$BO$127:$BP$138,2,FALSE) -> 0 | AQ14: ='Budget FCFA'!#REF!/VLOOKUP(AQ$2,$BO$127:$BP$138,2,FALSE) ->  | AR14: ='Budget FCFA'!#REF!/VLOOKUP(AR$2,$BO$127:$BP$138,2,FALSE) ->  | AS14: ='Budget FCFA'!#REF!/VLOOKUP(AS$2,$BO$127:$BP$138,2,FALSE) ->  | AT14: ='Budget FCFA'!#REF!/VLOOKUP(AT$2,$BO$127:$BP$138,2,FALSE) ->  | AU14: ='Budget FCFA'!#REF!/VLOOKUP(AU$2,$BO$127:$BP$138,2,FALSE) ->  | AV14: ='Budget FCFA'!#REF!/VLOOKUP(AV$2,$BO$127:$BP$138,2,FALSE) ->  | AW14: ='Budget FCFA'!#REF!/VLOOKUP(AW$2,$BO$127:$BP$138,2,FALSE) ->  | AX14: ='Budget FCFA'!#REF!/VLOOKUP(AX$2,$BO$127:$BP$138,2,FALSE) ->  | AY14: ='Budget FCFA'!#REF!/VLOOKUP(AY$2,$BO$127:$BP$138,2,FALSE) ->  | AZ14: ='Budget FCFA'!#REF!/VLOOKUP(AZ$2,$BO$127:$BP$138,2,FALSE) ->  | BA14: ='Budget FCFA'!#REF!/VLOOKUP(BA$2,$BO$127:$BP$138,2,FALSE) ->  | BB14: ='Budget FCFA'!#REF!/VLOOKUP(BB$2,$BO$127:$BP$138,2,FALSE) ->  | BC14: ='Budget FCFA'!#REF!/VLOOKUP(BC$2,$BO$127:$BP$138,2,FALSE) ->  | BD14: ='Budget FCFA'!#REF!/VLOOKUP(BD$2,$BO$127:$BP$138,2,FALSE) ->  | BE14: ='Budget FCFA'!#REF!/VLOOKUP(BE$2,$BO$127:$BP$138,2,FALSE) ->  | BF14: ='Budget FCFA'!#REF!/VLOOKUP(BF$2,$BO$127:$BP$138,2,FALSE) ->  | BG14: ='Budget FCFA'!#REF!/VLOOKUP(BG$2,$BO$127:$BP$138,2,FALSE) ->  | BH14: ='Budget FCFA'!#REF!/VLOOKUP(BH$2,$BO$127:$BP$138,2,FALSE) ->  | BI14: ='Budget FCFA'!#REF!/VLOOKUP(BI$2,$BO$127:$BP$138,2,FALSE) ->  | BJ14: ='Budget FCFA'!#REF!/VLOOKUP(BJ$2,$BO$127:$BP$138,2,FALSE) ->  | BL14: =BK14-'Budget FCFA'!#REF! -> 
A15: PUBLIANT | B15: DOUALA | C15: Exercices précédents | D15: ='Budget FCFA'!D15/VLOOKUP(D$2,$BO$127:$BP$138,2,FALSE) -> 0 | E15: ='Budget FCFA'!E15/VLOOKUP(E$2,$BO$127:$BP$138,2,FALSE) -> 0 | F15: ='Budget FCFA'!F15/VLOOKUP(F$2,$BO$127:$BP$138,2,FALSE) -> 0 | G15: ='Budget FCFA'!G15/VLOOKUP(G$2,$BO$127:$BP$138,2,FALSE) -> 0 | H15: ='Budget FCFA'!H15/VLOOKUP(H$2,$BO$127:$BP$138,2,FALSE) -> 0 | I15: ='Budget FCFA'!I15/VLOOKUP(I$2,$BO$127:$BP$138,2,FALSE) -> 0 | J15: ='Budget FCFA'!J15/VLOOKUP(J$2,$BO$127:$BP$138,2,FALSE) -> 0 | K15: ='Budget FCFA'!K15/VLOOKUP(K$2,$BO$127:$BP$138,2,FALSE) -> 0 | L15: ='Budget FCFA'!L15/VLOOKUP(L$2,$BO$127:$BP$138,2,FALSE) -> 0 | M15: ='Budget FCFA'!M15/VLOOKUP(M$2,$BO$127:$BP$138,2,FALSE) -> 0 | N15: ='Budget FCFA'!N15/VLOOKUP(N$2,$BO$127:$BP$138,2,FALSE) -> 0 | O15: ='Budget FCFA'!O15/VLOOKUP(O$2,$BO$127:$BP$138,2,FALSE) -> 0 | P15: ='Budget FCFA'!P15/VLOOKUP(P$2,$BO$127:$BP$138,2,FALSE) -> 0 | Q15: ='Budget FCFA'!Q15/VLOOKUP(Q$2,$BO$127:$BP$138,2,FALSE) -> 0 | R15: ='Budget FCFA'!R15/VLOOKUP(R$2,$BO$127:$BP$138,2,FALSE) -> 0 | S15: ='Budget FCFA'!S15/VLOOKUP(S$2,$BO$127:$BP$138,2,FALSE) -> 0 | T15: ='Budget FCFA'!T15/VLOOKUP(T$2,$BO$127:$BP$138,2,FALSE) -> 0 | U15: ='Budget FCFA'!U15/VLOOKUP(U$2,$BO$127:$BP$138,2,FALSE) -> 0 | V15: ='Budget FCFA'!V15/VLOOKUP(V$2,$BO$127:$BP$138,2,FALSE) -> 0 | W15: ='Budget FCFA'!W15/VLOOKUP(W$2,$BO$127:$BP$138,2,FALSE) -> 0 | X15: ='Budget FCFA'!X15/VLOOKUP(X$2,$BO$127:$BP$138,2,FALSE) -> 0 | Y15: ='Budget FCFA'!Y15/VLOOKUP(Y$2,$BO$127:$BP$138,2,FALSE) -> 0 | Z15: ='Budget FCFA'!Z15/VLOOKUP(Z$2,$BO$127:$BP$138,2,FALSE) -> 0 | AA15: ='Budget FCFA'!AA15/VLOOKUP(AA$2,$BO$127:$BP$138,2,FALSE) -> 0 | AB15: ='Budget FCFA'!AB15/VLOOKUP(AB$2,$BO$127:$BP$138,2,FALSE) -> 0 | AC15: ='Budget FCFA'!AC15/VLOOKUP(AC$2,$BO$127:$BP$138,2,FALSE) -> 0 | AD15: ='Budget FCFA'!AD15/VLOOKUP(AD$2,$BO$127:$BP$138,2,FALSE) -> 0 | AE15: ='Budget FCFA'!AE15/VLOOKUP(AE$2,$BO$127:$BP$138,2,FALSE) -> 0 | AF15: ='Budget FCFA'!AF15/VLOOKUP(AF$2,$BO$127:$BP$138,2,FALSE) -> 0 | AG15: ='Budget FCFA'!AG15/VLOOKUP(AG$2,$BO$127:$BP$138,2,FALSE) -> 0 | AH15: ='Budget FCFA'!AH15/VLOOKUP(AH$2,$BO$127:$BP$138,2,FALSE) -> 0 | AI15: ='Budget FCFA'!AI15/VLOOKUP(AI$2,$BO$127:$BP$138,2,FALSE) -> 0 | AJ15: ='Budget FCFA'!AJ15/VLOOKUP(AJ$2,$BO$127:$BP$138,2,FALSE) -> 0 | AK15: ='Budget FCFA'!AK15/VLOOKUP(AK$2,$BO$127:$BP$138,2,FALSE) -> 0 | AL15: ='Budget FCFA'!AL15/VLOOKUP(AL$2,$BO$127:$BP$138,2,FALSE) -> 0 | AM15: ='Budget FCFA'!AM15/VLOOKUP(AM$2,$BO$127:$BP$138,2,FALSE) -> 0 | AN15: ='Budget FCFA'!AN15/VLOOKUP(AN$2,$BO$127:$BP$138,2,FALSE) -> 0 | AO15: ='Budget FCFA'!AO15/VLOOKUP(AO$2,$BO$127:$BP$138,2,FALSE) -> 0 | AP15: ='Budget FCFA'!AP15/VLOOKUP(AP$2,$BO$127:$BP$138,2,FALSE) -> 0 | AQ15: ='Budget FCFA'!#REF!/VLOOKUP(AQ$2,$BO$127:$BP$138,2,FALSE) ->  | AR15: ='Budget FCFA'!#REF!/VLOOKUP(AR$2,$BO$127:$BP$138,2,FALSE) ->  | AS15: ='Budget FCFA'!#REF!/VLOOKUP(AS$2,$BO$127:$BP$138,2,FALSE) ->  | AT15: ='Budget FCFA'!#REF!/VLOOKUP(AT$2,$BO$127:$BP$138,2,FALSE) ->  | AU15: ='Budget FCFA'!#REF!/VLOOKUP(AU$2,$BO$127:$BP$138,2,FALSE) ->  | AV15: ='Budget FCFA'!#REF!/VLOOKUP(AV$2,$BO$127:$BP$138,2,FALSE) ->  | AW15: ='Budget FCFA'!#REF!/VLOOKUP(AW$2,$BO$127:$BP$138,2,FALSE) ->  | AX15: ='Budget FCFA'!#REF!/VLOOKUP(AX$2,$BO$127:$BP$138,2,FALSE) ->  | AY15: ='Budget FCFA'!#REF!/VLOOKUP(AY$2,$BO$127:$BP$138,2,FALSE) ->  | AZ15: ='Budget FCFA'!#REF!/VLOOKUP(AZ$2,$BO$127:$BP$138,2,FALSE) ->  | BA15: ='Budget FCFA'!#REF!/VLOOKUP(BA$2,$BO$127:$BP$138,2,FALSE) ->  | BB15: ='Budget FCFA'!#REF!/VLOOKUP(BB$2,$BO$127:$BP$138,2,FALSE) ->  | BC15: ='Budget FCFA'!#REF!/VLOOKUP(BC$2,$BO$127:$BP$138,2,FALSE) ->  | BD15: ='Budget FCFA'!#REF!/VLOOKUP(BD$2,$BO$127:$BP$138,2,FALSE) ->  | BE15: ='Budget FCFA'!#REF!/VLOOKUP(BE$2,$BO$127:$BP$138,2,FALSE) ->  | BF15: ='Budget FCFA'!#REF!/VLOOKUP(BF$2,$BO$127:$BP$138,2,FALSE) ->  | BG15: ='Budget FCFA'!#REF!/VLOOKUP(BG$2,$BO$127:$BP$138,2,FALSE) ->  | BH15: ='Budget FCFA'!#REF!/VLOOKUP(BH$2,$BO$127:$BP$138,2,FALSE) ->  | BI15: ='Budget FCFA'!#REF!/VLOOKUP(BI$2,$BO$127:$BP$138,2,FALSE) ->  | BJ15: ='Budget FCFA'!#REF!/VLOOKUP(BJ$2,$BO$127:$BP$138,2,FALSE) ->  | BL15: =BK15-'Budget FCFA'!#REF! -> 
A16: PUBLIANT | B16: TOTAL | C16: Total exercices précédents | D16: ='Budget FCFA'!D16/VLOOKUP(D$2,$BO$127:$BP$138,2,FALSE) -> 0 | E16: ='Budget FCFA'!E16/VLOOKUP(E$2,$BO$127:$BP$138,2,FALSE) -> 0 | F16: ='Budget FCFA'!F16/VLOOKUP(F$2,$BO$127:$BP$138,2,FALSE) -> 0 | G16: ='Budget FCFA'!G16/VLOOKUP(G$2,$BO$127:$BP$138,2,FALSE) -> 0 | H16: ='Budget FCFA'!H16/VLOOKUP(H$2,$BO$127:$BP$138,2,FALSE) -> 0.16 | I16: ='Budget FCFA'!I16/VLOOKUP(I$2,$BO$127:$BP$138,2,FALSE) -> 0 | J16: ='Budget FCFA'!J16/VLOOKUP(J$2,$BO$127:$BP$138,2,FALSE) -> 0 | K16: ='Budget FCFA'!K16/VLOOKUP(K$2,$BO$127:$BP$138,2,FALSE) -> 0 | L16: ='Budget FCFA'!L16/VLOOKUP(L$2,$BO$127:$BP$138,2,FALSE) -> 0 | M16: ='Budget FCFA'!M16/VLOOKUP(M$2,$BO$127:$BP$138,2,FALSE) -> 23.44 | N16: ='Budget FCFA'!N16/VLOOKUP(N$2,$BO$127:$BP$138,2,FALSE) -> 0 | O16: ='Budget FCFA'!O16/VLOOKUP(O$2,$BO$127:$BP$138,2,FALSE) -> 0 | P16: ='Budget FCFA'!P16/VLOOKUP(P$2,$BO$127:$BP$138,2,FALSE) -> 0 | Q16: ='Budget FCFA'!Q16/VLOOKUP(Q$2,$BO$127:$BP$138,2,FALSE) -> 0 | R16: ='Budget FCFA'!R16/VLOOKUP(R$2,$BO$127:$BP$138,2,FALSE) -> -56.76 | S16: ='Budget FCFA'!S16/VLOOKUP(S$2,$BO$127:$BP$138,2,FALSE) -> 0 | T16: ='Budget FCFA'!T16/VLOOKUP(T$2,$BO$127:$BP$138,2,FALSE) -> 0 | U16: ='Budget FCFA'!U16/VLOOKUP(U$2,$BO$127:$BP$138,2,FALSE) -> 0 | V16: ='Budget FCFA'!V16/VLOOKUP(V$2,$BO$127:$BP$138,2,FALSE) -> 0 | W16: ='Budget FCFA'!W16/VLOOKUP(W$2,$BO$127:$BP$138,2,FALSE) -> 29.65 | X16: ='Budget FCFA'!X16/VLOOKUP(X$2,$BO$127:$BP$138,2,FALSE) -> 0 | Y16: ='Budget FCFA'!Y16/VLOOKUP(Y$2,$BO$127:$BP$138,2,FALSE) -> 0 | Z16: ='Budget FCFA'!Z16/VLOOKUP(Z$2,$BO$127:$BP$138,2,FALSE) -> 0 | AA16: ='Budget FCFA'!AA16/VLOOKUP(AA$2,$BO$127:$BP$138,2,FALSE) -> 0 | AB16: ='Budget FCFA'!AB16/VLOOKUP(AB$2,$BO$127:$BP$138,2,FALSE) -> 0 | AC16: ='Budget FCFA'!AC16/VLOOKUP(AC$2,$BO$127:$BP$138,2,FALSE) -> 0 | AD16: ='Budget FCFA'!AD16/VLOOKUP(AD$2,$BO$127:$BP$138,2,FALSE) -> 0 | AE16: ='Budget FCFA'!AE16/VLOOKUP(AE$2,$BO$127:$BP$138,2,FALSE) -> 0 | AF16: ='Budget FCFA'!AF16/VLOOKUP(AF$2,$BO$127:$BP$138,2,FALSE) -> 4.992389152 | AG16: ='Budget FCFA'!AG16/VLOOKUP(AG$2,$BO$127:$BP$138,2,FALSE) -> 0 | AH16: ='Budget FCFA'!AH16/VLOOKUP(AH$2,$BO$127:$BP$138,2,FALSE) -> 0 | AI16: ='Budget FCFA'!AI16/VLOOKUP(AI$2,$BO$127:$BP$138,2,FALSE) -> 0 | AJ16: ='Budget FCFA'!AJ16/VLOOKUP(AJ$2,$BO$127:$BP$138,2,FALSE) -> 0 | AK16: ='Budget FCFA'!AK16/VLOOKUP(AK$2,$BO$127:$BP$138,2,FALSE) -> 0 | AL16: ='Budget FCFA'!AL16/VLOOKUP(AL$2,$BO$127:$BP$138,2,FALSE) -> 0 | AM16: ='Budget FCFA'!AM16/VLOOKUP(AM$2,$BO$127:$BP$138,2,FALSE) -> 0 | AN16: ='Budget FCFA'!AN16/VLOOKUP(AN$2,$BO$127:$BP$138,2,FALSE) -> 0 | AO16: ='Budget FCFA'!AO16/VLOOKUP(AO$2,$BO$127:$BP$138,2,FALSE) -> 0 | AP16: ='Budget FCFA'!AP16/VLOOKUP(AP$2,$BO$127:$BP$138,2,FALSE) -> 0 | AQ16: ='Budget FCFA'!#REF!/VLOOKUP(AQ$2,$BO$127:$BP$138,2,FALSE) ->  | AR16: ='Budget FCFA'!#REF!/VLOOKUP(AR$2,$BO$127:$BP$138,2,FALSE) ->  | AS16: ='Budget FCFA'!#REF!/VLOOKUP(AS$2,$BO$127:$BP$138,2,FALSE) ->  | AT16: ='Budget FCFA'!#REF!/VLOOKUP(AT$2,$BO$127:$BP$138,2,FALSE) ->  | AU16: ='Budget FCFA'!#REF!/VLOOKUP(AU$2,$BO$127:$BP$138,2,FALSE) ->  | AV16: ='Budget FCFA'!#REF!/VLOOKUP(AV$2,$BO$127:$BP$138,2,FALSE) ->  | AW16: ='Budget FCFA'!#REF!/VLOOKUP(AW$2,$BO$127:$BP$138,2,FALSE) ->  | AX16: ='Budget FCFA'!#REF!/VLOOKUP(AX$2,$BO$127:$BP$138,2,FALSE) ->  | AY16: ='Budget FCFA'!#REF!/VLOOKUP(AY$2,$BO$127:$BP$138,2,FALSE) ->  | AZ16: ='Budget FCFA'!#REF!/VLOOKUP(AZ$2,$BO$127:$BP$138,2,FALSE) ->  | BA16: ='Budget FCFA'!#REF!/VLOOKUP(BA$2,$BO$127:$BP$138,2,FALSE) ->  | BB16: ='Budget FCFA'!#REF!/VLOOKUP(BB$2,$BO$127:$BP$138,2,FALSE) ->  | BC16: ='Budget FCFA'!#REF!/VLOOKUP(BC$2,$BO$127:$BP$138,2,FALSE) ->  | BD16: ='Budget FCFA'!#REF!/VLOOKUP(BD$2,$BO$127:$BP$138,2,FALSE) ->  | BE16: ='Budget FCFA'!#REF!/VLOOKUP(BE$2,$BO$127:$BP$138,2,FALSE) ->  | BF16: ='Budget FCFA'!#REF!/VLOOKUP(BF$2,$BO$127:$BP$138,2,FALSE) ->  | BG16: ='Budget FCFA'!#REF!/VLOOKUP(BG$2,$BO$127:$BP$138,2,FALSE) ->  | BH16: ='Budget FCFA'!#REF!/VLOOKUP(BH$2,$BO$127:$BP$138,2,FALSE) ->  | BI16: ='Budget FCFA'!#REF!/VLOOKUP(BI$2,$BO$127:$BP$138,2,FALSE) ->  | BJ16: ='Budget FCFA'!#REF!/VLOOKUP(BJ$2,$BO$127:$BP$138,2,FALSE) ->  | BL16: =BK16-'Budget FCFA'!#REF! -> 
A17: PUBCATAL | B17: ABIDJAN | C17: EVE / Gravure tract | D17: ='Budget FCFA'!D17/VLOOKUP(D$2,$BO$127:$BP$138,2,FALSE) -> 0 | E17: ='Budget FCFA'!E17/VLOOKUP(E$2,$BO$127:$BP$138,2,FALSE) -> 0 | F17: ='Budget FCFA'!F17/VLOOKUP(F$2,$BO$127:$BP$138,2,FALSE) -> 0 | G17: ='Budget FCFA'!G17/VLOOKUP(G$2,$BO$127:$BP$138,2,FALSE) -> 0 | H17: ='Budget FCFA'!H17/VLOOKUP(H$2,$BO$127:$BP$138,2,FALSE) -> 0 | I17: ='Budget FCFA'!I17/VLOOKUP(I$2,$BO$127:$BP$138,2,FALSE) -> 0 | J17: ='Budget FCFA'!J17/VLOOKUP(J$2,$BO$127:$BP$138,2,FALSE) -> 0 | K17: ='Budget FCFA'!K17/VLOOKUP(K$2,$BO$127:$BP$138,2,FALSE) -> 0 | L17: ='Budget FCFA'!L17/VLOOKUP(L$2,$BO$127:$BP$138,2,FALSE) -> 0 | M17: ='Budget FCFA'!M17/VLOOKUP(M$2,$BO$127:$BP$138,2,FALSE) -> 0 | N17: ='Budget FCFA'!N17/VLOOKUP(N$2,$BO$127:$BP$138,2,FALSE) -> 0 | O17: ='Budget FCFA'!O17/VLOOKUP(O$2,$BO$127:$BP$138,2,FALSE) -> 0 | P17: ='Budget FCFA'!P17/VLOOKUP(P$2,$BO$127:$BP$138,2,FALSE) -> 0 | Q17: ='Budget FCFA'!Q17/VLOOKUP(Q$2,$BO$127:$BP$138,2,FALSE) -> 0 | R17: ='Budget FCFA'!R17/VLOOKUP(R$2,$BO$127:$BP$138,2,FALSE) -> 374.4 | S17: ='Budget FCFA'!S17/VLOOKUP(S$2,$BO$127:$BP$138,2,FALSE) -> 0 | T17: ='Budget FCFA'!T17/VLOOKUP(T$2,$BO$127:$BP$138,2,FALSE) -> 0 | U17: ='Budget FCFA'!U17/VLOOKUP(U$2,$BO$127:$BP$138,2,FALSE) -> 0 | V17: ='Budget FCFA'!V17/VLOOKUP(V$2,$BO$127:$BP$138,2,FALSE) -> 0 | W17: ='Budget FCFA'!W17/VLOOKUP(W$2,$BO$127:$BP$138,2,FALSE) -> 0 | X17: ='Budget FCFA'!X17/VLOOKUP(X$2,$BO$127:$BP$138,2,FALSE) -> 0 | Y17: ='Budget FCFA'!Y17/VLOOKUP(Y$2,$BO$127:$BP$138,2,FALSE) -> 0 | Z17: ='Budget FCFA'!Z17/VLOOKUP(Z$2,$BO$127:$BP$138,2,FALSE) -> 0 | AA17: ='Budget FCFA'!AA17/VLOOKUP(AA$2,$BO$127:$BP$138,2,FALSE) -> 0 | AB17: ='Budget FCFA'!AB17/VLOOKUP(AB$2,$BO$127:$BP$138,2,FALSE) -> 0 | AC17: ='Budget FCFA'!AC17/VLOOKUP(AC$2,$BO$127:$BP$138,2,FALSE) -> 0 | AD17: ='Budget FCFA'!AD17/VLOOKUP(AD$2,$BO$127:$BP$138,2,FALSE) -> 0 | AE17: ='Budget FCFA'!AE17/VLOOKUP(AE$2,$BO$127:$BP$138,2,FALSE) -> 0 | AF17: ='Budget FCFA'!AF17/VLOOKUP(AF$2,$BO$127:$BP$138,2,FALSE) -> 0 | AG17: ='Budget FCFA'!AG17/VLOOKUP(AG$2,$BO$127:$BP$138,2,FALSE) -> 0 | AH17: ='Budget FCFA'!AH17/VLOOKUP(AH$2,$BO$127:$BP$138,2,FALSE) -> 0 | AI17: ='Budget FCFA'!AI17/VLOOKUP(AI$2,$BO$127:$BP$138,2,FALSE) -> 0 | AJ17: ='Budget FCFA'!AJ17/VLOOKUP(AJ$2,$BO$127:$BP$138,2,FALSE) -> 0 | AK17: ='Budget FCFA'!AK17/VLOOKUP(AK$2,$BO$127:$BP$138,2,FALSE) -> 0 | AL17: ='Budget FCFA'!AL17/VLOOKUP(AL$2,$BO$127:$BP$138,2,FALSE) -> 0 | AM17: ='Budget FCFA'!AM17/VLOOKUP(AM$2,$BO$127:$BP$138,2,FALSE) -> 0 | AN17: ='Budget FCFA'!AN17/VLOOKUP(AN$2,$BO$127:$BP$138,2,FALSE) -> 0 | AO17: ='Budget FCFA'!AO17/VLOOKUP(AO$2,$BO$127:$BP$138,2,FALSE) -> 0 | AP17: ='Budget FCFA'!AP17/VLOOKUP(AP$2,$BO$127:$BP$138,2,FALSE) -> 0 | AQ17: ='Budget FCFA'!#REF!/VLOOKUP(AQ$2,$BO$127:$BP$138,2,FALSE) ->  | AR17: ='Budget FCFA'!#REF!/VLOOKUP(AR$2,$BO$127:$BP$138,2,FALSE) ->  | AS17: ='Budget FCFA'!#REF!/VLOOKUP(AS$2,$BO$127:$BP$138,2,FALSE) ->  | AT17: ='Budget FCFA'!#REF!/VLOOKUP(AT$2,$BO$127:$BP$138,2,FALSE) ->  | AU17: ='Budget FCFA'!#REF!/VLOOKUP(AU$2,$BO$127:$BP$138,2,FALSE) ->  | AV17: ='Budget FCFA'!#REF!/VLOOKUP(AV$2,$BO$127:$BP$138,2,FALSE) ->  | AW17: ='Budget FCFA'!#REF!/VLOOKUP(AW$2,$BO$127:$BP$138,2,FALSE) ->  | AX17: ='Budget FCFA'!#REF!/VLOOKUP(AX$2,$BO$127:$BP$138,2,FALSE) ->  | AY17: ='Budget FCFA'!#REF!/VLOOKUP(AY$2,$BO$127:$BP$138,2,FALSE) ->  | AZ17: ='Budget FCFA'!#REF!/VLOOKUP(AZ$2,$BO$127:$BP$138,2,FALSE) ->  | BA17: ='Budget FCFA'!#REF!/VLOOKUP(BA$2,$BO$127:$BP$138,2,FALSE) ->  | BB17: ='Budget FCFA'!#REF!/VLOOKUP(BB$2,$BO$127:$BP$138,2,FALSE) ->  | BC17: ='Budget FCFA'!#REF!/VLOOKUP(BC$2,$BO$127:$BP$138,2,FALSE) ->  | BD17: ='Budget FCFA'!#REF!/VLOOKUP(BD$2,$BO$127:$BP$138,2,FALSE) ->  | BE17: ='Budget FCFA'!#REF!/VLOOKUP(BE$2,$BO$127:$BP$138,2,FALSE) ->  | BF17: ='Budget FCFA'!#REF!/VLOOKUP(BF$2,$BO$127:$BP$138,2,FALSE) ->  | BG17: ='Budget FCFA'!#REF!/VLOOKUP(BG$2,$BO$127:$BP$138,2,FALSE) ->  | BH17: ='Budget FCFA'!#REF!/VLOOKUP(BH$2,$BO$127:$BP$138,2,FALSE) ->  | BI17: ='Budget FCFA'!#REF!/VLOOKUP(BI$2,$BO$127:$BP$138,2,FALSE) ->  | BJ17: ='Budget FCFA'!#REF!/VLOOKUP(BJ$2,$BO$127:$BP$138,2,FALSE) ->  | BL17: =BK17-'Budget FCFA'!#REF! -> 
A18: PUBCATAL | B18: BRAZZA | C18: EVE / Gravure tract | D18: ='Budget FCFA'!D18/VLOOKUP(D$2,$BO$127:$BP$138,2,FALSE) -> 0 | E18: ='Budget FCFA'!E18/VLOOKUP(E$2,$BO$127:$BP$138,2,FALSE) -> 0 | F18: ='Budget FCFA'!F18/VLOOKUP(F$2,$BO$127:$BP$138,2,FALSE) -> 0 | G18: ='Budget FCFA'!G18/VLOOKUP(G$2,$BO$127:$BP$138,2,FALSE) -> 0 | H18: ='Budget FCFA'!H18/VLOOKUP(H$2,$BO$127:$BP$138,2,FALSE) -> 0 | I18: ='Budget FCFA'!I18/VLOOKUP(I$2,$BO$127:$BP$138,2,FALSE) -> 0 | J18: ='Budget FCFA'!J18/VLOOKUP(J$2,$BO$127:$BP$138,2,FALSE) -> 0 | K18: ='Budget FCFA'!K18/VLOOKUP(K$2,$BO$127:$BP$138,2,FALSE) -> 0 | L18: ='Budget FCFA'!L18/VLOOKUP(L$2,$BO$127:$BP$138,2,FALSE) -> 0 | M18: ='Budget FCFA'!M18/VLOOKUP(M$2,$BO$127:$BP$138,2,FALSE) -> 0 | N18: ='Budget FCFA'!N18/VLOOKUP(N$2,$BO$127:$BP$138,2,FALSE) -> 0 | O18: ='Budget FCFA'!O18/VLOOKUP(O$2,$BO$127:$BP$138,2,FALSE) -> 0 | P18: ='Budget FCFA'!P18/VLOOKUP(P$2,$BO$127:$BP$138,2,FALSE) -> 0 | Q18: ='Budget FCFA'!Q18/VLOOKUP(Q$2,$BO$127:$BP$138,2,FALSE) -> 0 | R18: ='Budget FCFA'!R18/VLOOKUP(R$2,$BO$127:$BP$138,2,FALSE) -> 72.54 | S18: ='Budget FCFA'!S18/VLOOKUP(S$2,$BO$127:$BP$138,2,FALSE) -> 0 | T18: ='Budget FCFA'!T18/VLOOKUP(T$2,$BO$127:$BP$138,2,FALSE) -> 0 | U18: ='Budget FCFA'!U18/VLOOKUP(U$2,$BO$127:$BP$138,2,FALSE) -> 0 | V18: ='Budget FCFA'!V18/VLOOKUP(V$2,$BO$127:$BP$138,2,FALSE) -> 0 | W18: ='Budget FCFA'!W18/VLOOKUP(W$2,$BO$127:$BP$138,2,FALSE) -> 0 | X18: ='Budget FCFA'!X18/VLOOKUP(X$2,$BO$127:$BP$138,2,FALSE) -> 0 | Y18: ='Budget FCFA'!Y18/VLOOKUP(Y$2,$BO$127:$BP$138,2,FALSE) -> 0 | Z18: ='Budget FCFA'!Z18/VLOOKUP(Z$2,$BO$127:$BP$138,2,FALSE) -> 0 | AA18: ='Budget FCFA'!AA18/VLOOKUP(AA$2,$BO$127:$BP$138,2,FALSE) -> 0 | AB18: ='Budget FCFA'!AB18/VLOOKUP(AB$2,$BO$127:$BP$138,2,FALSE) -> 0 | AC18: ='Budget FCFA'!AC18/VLOOKUP(AC$2,$BO$127:$BP$138,2,FALSE) -> 0 | AD18: ='Budget FCFA'!AD18/VLOOKUP(AD$2,$BO$127:$BP$138,2,FALSE) -> 0 | AE18: ='Budget FCFA'!AE18/VLOOKUP(AE$2,$BO$127:$BP$138,2,FALSE) -> 0 | AF18: ='Budget FCFA'!AF18/VLOOKUP(AF$2,$BO$127:$BP$138,2,FALSE) -> 0 | AG18: ='Budget FCFA'!AG18/VLOOKUP(AG$2,$BO$127:$BP$138,2,FALSE) -> 0 | AH18: ='Budget FCFA'!AH18/VLOOKUP(AH$2,$BO$127:$BP$138,2,FALSE) -> 0 | AI18: ='Budget FCFA'!AI18/VLOOKUP(AI$2,$BO$127:$BP$138,2,FALSE) -> 0 | AJ18: ='Budget FCFA'!AJ18/VLOOKUP(AJ$2,$BO$127:$BP$138,2,FALSE) -> 0 | AK18: ='Budget FCFA'!AK18/VLOOKUP(AK$2,$BO$127:$BP$138,2,FALSE) -> 0 | AL18: ='Budget FCFA'!AL18/VLOOKUP(AL$2,$BO$127:$BP$138,2,FALSE) -> 0 | AM18: ='Budget FCFA'!AM18/VLOOKUP(AM$2,$BO$127:$BP$138,2,FALSE) -> 0 | AN18: ='Budget FCFA'!AN18/VLOOKUP(AN$2,$BO$127:$BP$138,2,FALSE) -> 0 | AO18: ='Budget FCFA'!AO18/VLOOKUP(AO$2,$BO$127:$BP$138,2,FALSE) -> 0 | AP18: ='Budget FCFA'!AP18/VLOOKUP(AP$2,$BO$127:$BP$138,2,FALSE) -> 0 | AQ18: ='Budget FCFA'!#REF!/VLOOKUP(AQ$2,$BO$127:$BP$138,2,FALSE) ->  | AR18: ='Budget FCFA'!#REF!/VLOOKUP(AR$2,$BO$127:$BP$138,2,FALSE) ->  | AS18: ='Budget FCFA'!#REF!/VLOOKUP(AS$2,$BO$127:$BP$138,2,FALSE) ->  | AT18: ='Budget FCFA'!#REF!/VLOOKUP(AT$2,$BO$127:$BP$138,2,FALSE) ->  | AU18: ='Budget FCFA'!#REF!/VLOOKUP(AU$2,$BO$127:$BP$138,2,FALSE) ->  | AV18: ='Budget FCFA'!#REF!/VLOOKUP(AV$2,$BO$127:$BP$138,2,FALSE) ->  | AW18: ='Budget FCFA'!#REF!/VLOOKUP(AW$2,$BO$127:$BP$138,2,FALSE) ->  | AX18: ='Budget FCFA'!#REF!/VLOOKUP(AX$2,$BO$127:$BP$138,2,FALSE) ->  | AY18: ='Budget FCFA'!#REF!/VLOOKUP(AY$2,$BO$127:$BP$138,2,FALSE) ->  | AZ18: ='Budget FCFA'!#REF!/VLOOKUP(AZ$2,$BO$127:$BP$138,2,FALSE) ->  | BA18: ='Budget FCFA'!#REF!/VLOOKUP(BA$2,$BO$127:$BP$138,2,FALSE) ->  | BB18: ='Budget FCFA'!#REF!/VLOOKUP(BB$2,$BO$127:$BP$138,2,FALSE) ->  | BC18: ='Budget FCFA'!#REF!/VLOOKUP(BC$2,$BO$127:$BP$138,2,FALSE) ->  | BD18: ='Budget FCFA'!#REF!/VLOOKUP(BD$2,$BO$127:$BP$138,2,FALSE) ->  | BE18: ='Budget FCFA'!#REF!/VLOOKUP(BE$2,$BO$127:$BP$138,2,FALSE) ->  | BF18: ='Budget FCFA'!#REF!/VLOOKUP(BF$2,$BO$127:$BP$138,2,FALSE) ->  | BG18: ='Budget FCFA'!#REF!/VLOOKUP(BG$2,$BO$127:$BP$138,2,FALSE) ->  | BH18: ='Budget FCFA'!#REF!/VLOOKUP(BH$2,$BO$127:$BP$138,2,FALSE) ->  | BI18: ='Budget FCFA'!#REF!/VLOOKUP(BI$2,$BO$127:$BP$138,2,FALSE) ->  | BJ18: ='Budget FCFA'!#REF!/VLOOKUP(BJ$2,$BO$127:$BP$138,2,FALSE) ->  | BL18: =BK18-'Budget FCFA'!#REF! -> 
A19: PUBCATAL | B19: DAKAR | C19: EVE / Gravure tract | D19: ='Budget FCFA'!D19/VLOOKUP(D$2,$BO$127:$BP$138,2,FALSE) -> 0 | E19: ='Budget FCFA'!E19/VLOOKUP(E$2,$BO$127:$BP$138,2,FALSE) -> 0 | F19: ='Budget FCFA'!F19/VLOOKUP(F$2,$BO$127:$BP$138,2,FALSE) -> 0 | G19: ='Budget FCFA'!G19/VLOOKUP(G$2,$BO$127:$BP$138,2,FALSE) -> 0 | H19: ='Budget FCFA'!H19/VLOOKUP(H$2,$BO$127:$BP$138,2,FALSE) -> 0 | I19: ='Budget FCFA'!I19/VLOOKUP(I$2,$BO$127:$BP$138,2,FALSE) -> 0 | J19: ='Budget FCFA'!J19/VLOOKUP(J$2,$BO$127:$BP$138,2,FALSE) -> 0 | K19: ='Budget FCFA'!K19/VLOOKUP(K$2,$BO$127:$BP$138,2,FALSE) -> 0 | L19: ='Budget FCFA'!L19/VLOOKUP(L$2,$BO$127:$BP$138,2,FALSE) -> 0 | M19: ='Budget FCFA'!M19/VLOOKUP(M$2,$BO$127:$BP$138,2,FALSE) -> 0 | N19: ='Budget FCFA'!N19/VLOOKUP(N$2,$BO$127:$BP$138,2,FALSE) -> 0 | O19: ='Budget FCFA'!O19/VLOOKUP(O$2,$BO$127:$BP$138,2,FALSE) -> 0 | P19: ='Budget FCFA'!P19/VLOOKUP(P$2,$BO$127:$BP$138,2,FALSE) -> 0 | Q19: ='Budget FCFA'!Q19/VLOOKUP(Q$2,$BO$127:$BP$138,2,FALSE) -> 0 | R19: ='Budget FCFA'!R19/VLOOKUP(R$2,$BO$127:$BP$138,2,FALSE) -> 97.5 | S19: ='Budget FCFA'!S19/VLOOKUP(S$2,$BO$127:$BP$138,2,FALSE) -> 0 | T19: ='Budget FCFA'!T19/VLOOKUP(T$2,$BO$127:$BP$138,2,FALSE) -> 0 | U19: ='Budget FCFA'!U19/VLOOKUP(U$2,$BO$127:$BP$138,2,FALSE) -> 0 | V19: ='Budget FCFA'!V19/VLOOKUP(V$2,$BO$127:$BP$138,2,FALSE) -> 0 | W19: ='Budget FCFA'!W19/VLOOKUP(W$2,$BO$127:$BP$138,2,FALSE) -> 0 | X19: ='Budget FCFA'!X19/VLOOKUP(X$2,$BO$127:$BP$138,2,FALSE) -> 0 | Y19: ='Budget FCFA'!Y19/VLOOKUP(Y$2,$BO$127:$BP$138,2,FALSE) -> 0 | Z19: ='Budget FCFA'!Z19/VLOOKUP(Z$2,$BO$127:$BP$138,2,FALSE) -> 0 | AA19: ='Budget FCFA'!AA19/VLOOKUP(AA$2,$BO$127:$BP$138,2,FALSE) -> 0 | AB19: ='Budget FCFA'!AB19/VLOOKUP(AB$2,$BO$127:$BP$138,2,FALSE) -> 0 | AC19: ='Budget FCFA'!AC19/VLOOKUP(AC$2,$BO$127:$BP$138,2,FALSE) -> 0 | AD19: ='Budget FCFA'!AD19/VLOOKUP(AD$2,$BO$127:$BP$138,2,FALSE) -> 0 | AE19: ='Budget FCFA'!AE19/VLOOKUP(AE$2,$BO$127:$BP$138,2,FALSE) -> 0 | AF19: ='Budget FCFA'!AF19/VLOOKUP(AF$2,$BO$127:$BP$138,2,FALSE) -> 0 | AG19: ='Budget FCFA'!AG19/VLOOKUP(AG$2,$BO$127:$BP$138,2,FALSE) -> 0 | AH19: ='Budget FCFA'!AH19/VLOOKUP(AH$2,$BO$127:$BP$138,2,FALSE) -> 0 | AI19: ='Budget FCFA'!AI19/VLOOKUP(AI$2,$BO$127:$BP$138,2,FALSE) -> 0 | AJ19: ='Budget FCFA'!AJ19/VLOOKUP(AJ$2,$BO$127:$BP$138,2,FALSE) -> 0 | AK19: ='Budget FCFA'!AK19/VLOOKUP(AK$2,$BO$127:$BP$138,2,FALSE) -> 0 | AL19: ='Budget FCFA'!AL19/VLOOKUP(AL$2,$BO$127:$BP$138,2,FALSE) -> 0 | AM19: ='Budget FCFA'!AM19/VLOOKUP(AM$2,$BO$127:$BP$138,2,FALSE) -> 0 | AN19: ='Budget FCFA'!AN19/VLOOKUP(AN$2,$BO$127:$BP$138,2,FALSE) -> 0 | AO19: ='Budget FCFA'!AO19/VLOOKUP(AO$2,$BO$127:$BP$138,2,FALSE) -> 0 | AP19: ='Budget FCFA'!AP19/VLOOKUP(AP$2,$BO$127:$BP$138,2,FALSE) -> 0 | AQ19: ='Budget FCFA'!#REF!/VLOOKUP(AQ$2,$BO$127:$BP$138,2,FALSE) ->  | AR19: ='Budget FCFA'!#REF!/VLOOKUP(AR$2,$BO$127:$BP$138,2,FALSE) ->  | AS19: ='Budget FCFA'!#REF!/VLOOKUP(AS$2,$BO$127:$BP$138,2,FALSE) ->  | AT19: ='Budget FCFA'!#REF!/VLOOKUP(AT$2,$BO$127:$BP$138,2,FALSE) ->  | AU19: ='Budget FCFA'!#REF!/VLOOKUP(AU$2,$BO$127:$BP$138,2,FALSE) ->  | AV19: ='Budget FCFA'!#REF!/VLOOKUP(AV$2,$BO$127:$BP$138,2,FALSE) ->  | AW19: ='Budget FCFA'!#REF!/VLOOKUP(AW$2,$BO$127:$BP$138,2,FALSE) ->  | AX19: ='Budget FCFA'!#REF!/VLOOKUP(AX$2,$BO$127:$BP$138,2,FALSE) ->  | AY19: ='Budget FCFA'!#REF!/VLOOKUP(AY$2,$BO$127:$BP$138,2,FALSE) ->  | AZ19: ='Budget FCFA'!#REF!/VLOOKUP(AZ$2,$BO$127:$BP$138,2,FALSE) ->  | BA19: ='Budget FCFA'!#REF!/VLOOKUP(BA$2,$BO$127:$BP$138,2,FALSE) ->  | BB19: ='Budget FCFA'!#REF!/VLOOKUP(BB$2,$BO$127:$BP$138,2,FALSE) ->  | BC19: ='Budget FCFA'!#REF!/VLOOKUP(BC$2,$BO$127:$BP$138,2,FALSE) ->  | BD19: ='Budget FCFA'!#REF!/VLOOKUP(BD$2,$BO$127:$BP$138,2,FALSE) ->  | BE19: ='Budget FCFA'!#REF!/VLOOKUP(BE$2,$BO$127:$BP$138,2,FALSE) ->  | BF19: ='Budget FCFA'!#REF!/VLOOKUP(BF$2,$BO$127:$BP$138,2,FALSE) ->  | BG19: ='Budget FCFA'!#REF!/VLOOKUP(BG$2,$BO$127:$BP$138,2,FALSE) ->  | BH19: ='Budget FCFA'!#REF!/VLOOKUP(BH$2,$BO$127:$BP$138,2,FALSE) ->  | BI19: ='Budget FCFA'!#REF!/VLOOKUP(BI$2,$BO$127:$BP$138,2,FALSE) ->  | BJ19: ='Budget FCFA'!#REF!/VLOOKUP(BJ$2,$BO$127:$BP$138,2,FALSE) ->  | BL19: =BK19-'Budget FCFA'!#REF! -> 
A20: PUBCATAL | B20: LIBREVILLE | C20: EVE / Gravure tract | D20: ='Budget FCFA'!D20/VLOOKUP(D$2,$BO$127:$BP$138,2,FALSE) -> 0 | E20: ='Budget FCFA'!E20/VLOOKUP(E$2,$BO$127:$BP$138,2,FALSE) -> 0 | F20: ='Budget FCFA'!F20/VLOOKUP(F$2,$BO$127:$BP$138,2,FALSE) -> 0 | G20: ='Budget FCFA'!G20/VLOOKUP(G$2,$BO$127:$BP$138,2,FALSE) -> 0 | H20: ='Budget FCFA'!H20/VLOOKUP(H$2,$BO$127:$BP$138,2,FALSE) -> 0 | I20: ='Budget FCFA'!I20/VLOOKUP(I$2,$BO$127:$BP$138,2,FALSE) -> 0 | J20: ='Budget FCFA'!J20/VLOOKUP(J$2,$BO$127:$BP$138,2,FALSE) -> 0 | K20: ='Budget FCFA'!K20/VLOOKUP(K$2,$BO$127:$BP$138,2,FALSE) -> 0 | L20: ='Budget FCFA'!L20/VLOOKUP(L$2,$BO$127:$BP$138,2,FALSE) -> 0 | M20: ='Budget FCFA'!M20/VLOOKUP(M$2,$BO$127:$BP$138,2,FALSE) -> 0 | N20: ='Budget FCFA'!N20/VLOOKUP(N$2,$BO$127:$BP$138,2,FALSE) -> 0 | O20: ='Budget FCFA'!O20/VLOOKUP(O$2,$BO$127:$BP$138,2,FALSE) -> 0 | P20: ='Budget FCFA'!P20/VLOOKUP(P$2,$BO$127:$BP$138,2,FALSE) -> 0 | Q20: ='Budget FCFA'!Q20/VLOOKUP(Q$2,$BO$127:$BP$138,2,FALSE) -> 0 | R20: ='Budget FCFA'!R20/VLOOKUP(R$2,$BO$127:$BP$138,2,FALSE) -> 138.06 | S20: ='Budget FCFA'!S20/VLOOKUP(S$2,$BO$127:$BP$138,2,FALSE) -> 0 | T20: ='Budget FCFA'!T20/VLOOKUP(T$2,$BO$127:$BP$138,2,FALSE) -> 0 | U20: ='Budget FCFA'!U20/VLOOKUP(U$2,$BO$127:$BP$138,2,FALSE) -> 0 | V20: ='Budget FCFA'!V20/VLOOKUP(V$2,$BO$127:$BP$138,2,FALSE) -> 0 | W20: ='Budget FCFA'!W20/VLOOKUP(W$2,$BO$127:$BP$138,2,FALSE) -> 0 | X20: ='Budget FCFA'!X20/VLOOKUP(X$2,$BO$127:$BP$138,2,FALSE) -> 0 | Y20: ='Budget FCFA'!Y20/VLOOKUP(Y$2,$BO$127:$BP$138,2,FALSE) -> 0 | Z20: ='Budget FCFA'!Z20/VLOOKUP(Z$2,$BO$127:$BP$138,2,FALSE) -> 0 | AA20: ='Budget FCFA'!AA20/VLOOKUP(AA$2,$BO$127:$BP$138,2,FALSE) -> 0 | AB20: ='Budget FCFA'!AB20/VLOOKUP(AB$2,$BO$127:$BP$138,2,FALSE) -> 0 | AC20: ='Budget FCFA'!AC20/VLOOKUP(AC$2,$BO$127:$BP$138,2,FALSE) -> 0 | AD20: ='Budget FCFA'!AD20/VLOOKUP(AD$2,$BO$127:$BP$138,2,FALSE) -> 0 | AE20: ='Budget FCFA'!AE20/VLOOKUP(AE$2,$BO$127:$BP$138,2,FALSE) -> 0 | AF20: ='Budget FCFA'!AF20/VLOOKUP(AF$2,$BO$127:$BP$138,2,FALSE) -> 0 | AG20: ='Budget FCFA'!AG20/VLOOKUP(AG$2,$BO$127:$BP$138,2,FALSE) -> 0 | AH20: ='Budget FCFA'!AH20/VLOOKUP(AH$2,$BO$127:$BP$138,2,FALSE) -> 0 | AI20: ='Budget FCFA'!AI20/VLOOKUP(AI$2,$BO$127:$BP$138,2,FALSE) -> 0 | AJ20: ='Budget FCFA'!AJ20/VLOOKUP(AJ$2,$BO$127:$BP$138,2,FALSE) -> 0 | AK20: ='Budget FCFA'!AK20/VLOOKUP(AK$2,$BO$127:$BP$138,2,FALSE) -> 0 | AL20: ='Budget FCFA'!AL20/VLOOKUP(AL$2,$BO$127:$BP$138,2,FALSE) -> 0 | AM20: ='Budget FCFA'!AM20/VLOOKUP(AM$2,$BO$127:$BP$138,2,FALSE) -> 0 | AN20: ='Budget FCFA'!AN20/VLOOKUP(AN$2,$BO$127:$BP$138,2,FALSE) -> 0 | AO20: ='Budget FCFA'!AO20/VLOOKUP(AO$2,$BO$127:$BP$138,2,FALSE) -> 0 | AP20: ='Budget FCFA'!AP20/VLOOKUP(AP$2,$BO$127:$BP$138,2,FALSE) -> 0 | AQ20: ='Budget FCFA'!#REF!/VLOOKUP(AQ$2,$BO$127:$BP$138,2,FALSE) ->  | AR20: ='Budget FCFA'!#REF!/VLOOKUP(AR$2,$BO$127:$BP$138,2,FALSE) ->  | AS20: ='Budget FCFA'!#REF!/VLOOKUP(AS$2,$BO$127:$BP$138,2,FALSE) ->  | AT20: ='Budget FCFA'!#REF!/VLOOKUP(AT$2,$BO$127:$BP$138,2,FALSE) ->  | AU20: ='Budget FCFA'!#REF!/VLOOKUP(AU$2,$BO$127:$BP$138,2,FALSE) ->  | AV20: ='Budget FCFA'!#REF!/VLOOKUP(AV$2,$BO$127:$BP$138,2,FALSE) ->  | AW20: ='Budget FCFA'!#REF!/VLOOKUP(AW$2,$BO$127:$BP$138,2,FALSE) ->  | AX20: ='Budget FCFA'!#REF!/VLOOKUP(AX$2,$BO$127:$BP$138,2,FALSE) ->  | AY20: ='Budget FCFA'!#REF!/VLOOKUP(AY$2,$BO$127:$BP$138,2,FALSE) ->  | AZ20: ='Budget FCFA'!#REF!/VLOOKUP(AZ$2,$BO$127:$BP$138,2,FALSE) ->  | BA20: ='Budget FCFA'!#REF!/VLOOKUP(BA$2,$BO$127:$BP$138,2,FALSE) ->  | BB20: ='Budget FCFA'!#REF!/VLOOKUP(BB$2,$BO$127:$BP$138,2,FALSE) ->  | BC20: ='Budget FCFA'!#REF!/VLOOKUP(BC$2,$BO$127:$BP$138,2,FALSE) ->  | BD20: ='Budget FCFA'!#REF!/VLOOKUP(BD$2,$BO$127:$BP$138,2,FALSE) ->  | BE20: ='Budget FCFA'!#REF!/VLOOKUP(BE$2,$BO$127:$BP$138,2,FALSE) ->  | BF20: ='Budget FCFA'!#REF!/VLOOKUP(BF$2,$BO$127:$BP$138,2,FALSE) ->  | BG20: ='Budget FCFA'!#REF!/VLOOKUP(BG$2,$BO$127:$BP$138,2,FALSE) ->  | BH20: ='Budget FCFA'!#REF!/VLOOKUP(BH$2,$BO$127:$BP$138,2,FALSE) ->  | BI20: ='Budget FCFA'!#REF!/VLOOKUP(BI$2,$BO$127:$BP$138,2,FALSE) ->  | BJ20: ='Budget FCFA'!#REF!/VLOOKUP(BJ$2,$BO$127:$BP$138,2,FALSE) ->  | BL20: =BK20-'Budget FCFA'!#REF! -> 
A21: PUBCATAL | B21: DOUALA | C21: EVE / Gravure tract | D21: ='Budget FCFA'!D21/VLOOKUP(D$2,$BO$127:$BP$138,2,FALSE) -> 0 | E21: ='Budget FCFA'!E21/VLOOKUP(E$2,$BO$127:$BP$138,2,FALSE) -> 0 | F21: ='Budget FCFA'!F21/VLOOKUP(F$2,$BO$127:$BP$138,2,FALSE) -> 0 | G21: ='Budget FCFA'!G21/VLOOKUP(G$2,$BO$127:$BP$138,2,FALSE) -> 0 | H21: ='Budget FCFA'!H21/VLOOKUP(H$2,$BO$127:$BP$138,2,FALSE) -> 0 | I21: ='Budget FCFA'!I21/VLOOKUP(I$2,$BO$127:$BP$138,2,FALSE) -> 0 | J21: ='Budget FCFA'!J21/VLOOKUP(J$2,$BO$127:$BP$138,2,FALSE) -> 0 | K21: ='Budget FCFA'!K21/VLOOKUP(K$2,$BO$127:$BP$138,2,FALSE) -> 0 | L21: ='Budget FCFA'!L21/VLOOKUP(L$2,$BO$127:$BP$138,2,FALSE) -> 0 | M21: ='Budget FCFA'!M21/VLOOKUP(M$2,$BO$127:$BP$138,2,FALSE) -> 0 | N21: ='Budget FCFA'!N21/VLOOKUP(N$2,$BO$127:$BP$138,2,FALSE) -> 0 | O21: ='Budget FCFA'!O21/VLOOKUP(O$2,$BO$127:$BP$138,2,FALSE) -> 0 | P21: ='Budget FCFA'!P21/VLOOKUP(P$2,$BO$127:$BP$138,2,FALSE) -> 0 | Q21: ='Budget FCFA'!Q21/VLOOKUP(Q$2,$BO$127:$BP$138,2,FALSE) -> 0 | R21: ='Budget FCFA'!R21/VLOOKUP(R$2,$BO$127:$BP$138,2,FALSE) -> 97.5 | S21: ='Budget FCFA'!S21/VLOOKUP(S$2,$BO$127:$BP$138,2,FALSE) -> 0 | T21: ='Budget FCFA'!T21/VLOOKUP(T$2,$BO$127:$BP$138,2,FALSE) -> 0 | U21: ='Budget FCFA'!U21/VLOOKUP(U$2,$BO$127:$BP$138,2,FALSE) -> 0 | V21: ='Budget FCFA'!V21/VLOOKUP(V$2,$BO$127:$BP$138,2,FALSE) -> 0 | W21: ='Budget FCFA'!W21/VLOOKUP(W$2,$BO$127:$BP$138,2,FALSE) -> 0 | X21: ='Budget FCFA'!X21/VLOOKUP(X$2,$BO$127:$BP$138,2,FALSE) -> 0 | Y21: ='Budget FCFA'!Y21/VLOOKUP(Y$2,$BO$127:$BP$138,2,FALSE) -> 0 | Z21: ='Budget FCFA'!Z21/VLOOKUP(Z$2,$BO$127:$BP$138,2,FALSE) -> 0 | AA21: ='Budget FCFA'!AA21/VLOOKUP(AA$2,$BO$127:$BP$138,2,FALSE) -> 0 | AB21: ='Budget FCFA'!AB21/VLOOKUP(AB$2,$BO$127:$BP$138,2,FALSE) -> 0 | AC21: ='Budget FCFA'!AC21/VLOOKUP(AC$2,$BO$127:$BP$138,2,FALSE) -> 0 | AD21: ='Budget FCFA'!AD21/VLOOKUP(AD$2,$BO$127:$BP$138,2,FALSE) -> 0 | AE21: ='Budget FCFA'!AE21/VLOOKUP(AE$2,$BO$127:$BP$138,2,FALSE) -> 0 | AF21: ='Budget FCFA'!AF21/VLOOKUP(AF$2,$BO$127:$BP$138,2,FALSE) -> 0 | AG21: ='Budget FCFA'!AG21/VLOOKUP(AG$2,$BO$127:$BP$138,2,FALSE) -> 0 | AH21: ='Budget FCFA'!AH21/VLOOKUP(AH$2,$BO$127:$BP$138,2,FALSE) -> 0 | AI21: ='Budget FCFA'!AI21/VLOOKUP(AI$2,$BO$127:$BP$138,2,FALSE) -> 0 | AJ21: ='Budget FCFA'!AJ21/VLOOKUP(AJ$2,$BO$127:$BP$138,2,FALSE) -> 0 | AK21: ='Budget FCFA'!AK21/VLOOKUP(AK$2,$BO$127:$BP$138,2,FALSE) -> 0 | AL21: ='Budget FCFA'!AL21/VLOOKUP(AL$2,$BO$127:$BP$138,2,FALSE) -> 0 | AM21: ='Budget FCFA'!AM21/VLOOKUP(AM$2,$BO$127:$BP$138,2,FALSE) -> 0 | AN21: ='Budget FCFA'!AN21/VLOOKUP(AN$2,$BO$127:$BP$138,2,FALSE) -> 0 | AO21: ='Budget FCFA'!AO21/VLOOKUP(AO$2,$BO$127:$BP$138,2,FALSE) -> 0 | AP21: ='Budget FCFA'!AP21/VLOOKUP(AP$2,$BO$127:$BP$138,2,FALSE) -> 0 | AQ21: ='Budget FCFA'!#REF!/VLOOKUP(AQ$2,$BO$127:$BP$138,2,FALSE) ->  | AR21: ='Budget FCFA'!#REF!/VLOOKUP(AR$2,$BO$127:$BP$138,2,FALSE) ->  | AS21: ='Budget FCFA'!#REF!/VLOOKUP(AS$2,$BO$127:$BP$138,2,FALSE) ->  | AT21: ='Budget FCFA'!#REF!/VLOOKUP(AT$2,$BO$127:$BP$138,2,FALSE) ->  | AU21: ='Budget FCFA'!#REF!/VLOOKUP(AU$2,$BO$127:$BP$138,2,FALSE) ->  | AV21: ='Budget FCFA'!#REF!/VLOOKUP(AV$2,$BO$127:$BP$138,2,FALSE) ->  | AW21: ='Budget FCFA'!#REF!/VLOOKUP(AW$2,$BO$127:$BP$138,2,FALSE) ->  | AX21: ='Budget FCFA'!#REF!/VLOOKUP(AX$2,$BO$127:$BP$138,2,FALSE) ->  | AY21: ='Budget FCFA'!#REF!/VLOOKUP(AY$2,$BO$127:$BP$138,2,FALSE) ->  | AZ21: ='Budget FCFA'!#REF!/VLOOKUP(AZ$2,$BO$127:$BP$138,2,FALSE) ->  | BA21: ='Budget FCFA'!#REF!/VLOOKUP(BA$2,$BO$127:$BP$138,2,FALSE) ->  | BB21: ='Budget FCFA'!#REF!/VLOOKUP(BB$2,$BO$127:$BP$138,2,FALSE) ->  | BC21: ='Budget FCFA'!#REF!/VLOOKUP(BC$2,$BO$127:$BP$138,2,FALSE) ->  | BD21: ='Budget FCFA'!#REF!/VLOOKUP(BD$2,$BO$127:$BP$138,2,FALSE) ->  | BE21: ='Budget FCFA'!#REF!/VLOOKUP(BE$2,$BO$127:$BP$138,2,FALSE) ->  | BF21: ='Budget FCFA'!#REF!/VLOOKUP(BF$2,$BO$127:$BP$138,2,FALSE) ->  | BG21: ='Budget FCFA'!#REF!/VLOOKUP(BG$2,$BO$127:$BP$138,2,FALSE) ->  | BH21: ='Budget FCFA'!#REF!/VLOOKUP(BH$2,$BO$127:$BP$138,2,FALSE) ->  | BI21: ='Budget FCFA'!#REF!/VLOOKUP(BI$2,$BO$127:$BP$138,2,FALSE) ->  | BJ21: ='Budget FCFA'!#REF!/VLOOKUP(BJ$2,$BO$127:$BP$138,2,FALSE) ->  | BL21: =BK21-'Budget FCFA'!#REF! -> 
A22: PUBCATAL | B22: TOTAL | C22: Total Eve / gravure tract | D22: ='Budget FCFA'!D22/VLOOKUP(D$2,$BO$127:$BP$138,2,FALSE) -> 0 | E22: ='Budget FCFA'!E22/VLOOKUP(E$2,$BO$127:$BP$138,2,FALSE) -> 0 | F22: ='Budget FCFA'!F22/VLOOKUP(F$2,$BO$127:$BP$138,2,FALSE) -> 0 | G22: ='Budget FCFA'!G22/VLOOKUP(G$2,$BO$127:$BP$138,2,FALSE) -> 0 | H22: ='Budget FCFA'!H22/VLOOKUP(H$2,$BO$127:$BP$138,2,FALSE) -> 0 | I22: ='Budget FCFA'!I22/VLOOKUP(I$2,$BO$127:$BP$138,2,FALSE) -> 0 | J22: ='Budget FCFA'!J22/VLOOKUP(J$2,$BO$127:$BP$138,2,FALSE) -> 0 | K22: ='Budget FCFA'!K22/VLOOKUP(K$2,$BO$127:$BP$138,2,FALSE) -> 0 | L22: ='Budget FCFA'!L22/VLOOKUP(L$2,$BO$127:$BP$138,2,FALSE) -> 0 | M22: ='Budget FCFA'!M22/VLOOKUP(M$2,$BO$127:$BP$138,2,FALSE) -> 0 | N22: ='Budget FCFA'!N22/VLOOKUP(N$2,$BO$127:$BP$138,2,FALSE) -> 0 | O22: ='Budget FCFA'!O22/VLOOKUP(O$2,$BO$127:$BP$138,2,FALSE) -> 0 | P22: ='Budget FCFA'!P22/VLOOKUP(P$2,$BO$127:$BP$138,2,FALSE) -> 0 | Q22: ='Budget FCFA'!Q22/VLOOKUP(Q$2,$BO$127:$BP$138,2,FALSE) -> 0 | R22: ='Budget FCFA'!R22/VLOOKUP(R$2,$BO$127:$BP$138,2,FALSE) -> 780 | S22: ='Budget FCFA'!S22/VLOOKUP(S$2,$BO$127:$BP$138,2,FALSE) -> 0 | T22: ='Budget FCFA'!T22/VLOOKUP(T$2,$BO$127:$BP$138,2,FALSE) -> 0 | U22: ='Budget FCFA'!U22/VLOOKUP(U$2,$BO$127:$BP$138,2,FALSE) -> 0 | V22: ='Budget FCFA'!V22/VLOOKUP(V$2,$BO$127:$BP$138,2,FALSE) -> 0 | W22: ='Budget FCFA'!W22/VLOOKUP(W$2,$BO$127:$BP$138,2,FALSE) -> 0 | X22: ='Budget FCFA'!X22/VLOOKUP(X$2,$BO$127:$BP$138,2,FALSE) -> 0 | Y22: ='Budget FCFA'!Y22/VLOOKUP(Y$2,$BO$127:$BP$138,2,FALSE) -> 0 | Z22: ='Budget FCFA'!Z22/VLOOKUP(Z$2,$BO$127:$BP$138,2,FALSE) -> 0 | AA22: ='Budget FCFA'!AA22/VLOOKUP(AA$2,$BO$127:$BP$138,2,FALSE) -> 0 | AB22: ='Budget FCFA'!AB22/VLOOKUP(AB$2,$BO$127:$BP$138,2,FALSE) -> 0 | AC22: ='Budget FCFA'!AC22/VLOOKUP(AC$2,$BO$127:$BP$138,2,FALSE) -> 0 | AD22: ='Budget FCFA'!AD22/VLOOKUP(AD$2,$BO$127:$BP$138,2,FALSE) -> 0 | AE22: ='Budget FCFA'!AE22/VLOOKUP(AE$2,$BO$127:$BP$138,2,FALSE) -> 0 | AF22: ='Budget FCFA'!AF22/VLOOKUP(AF$2,$BO$127:$BP$138,2,FALSE) -> 0 | AG22: ='Budget FCFA'!AG22/VLOOKUP(AG$2,$BO$127:$BP$138,2,FALSE) -> 0 | AH22: ='Budget FCFA'!AH22/VLOOKUP(AH$2,$BO$127:$BP$138,2,FALSE) -> 0 | AI22: ='Budget FCFA'!AI22/VLOOKUP(AI$2,$BO$127:$BP$138,2,FALSE) -> 0 | AJ22: ='Budget FCFA'!AJ22/VLOOKUP(AJ$2,$BO$127:$BP$138,2,FALSE) -> 0 | AK22: ='Budget FCFA'!AK22/VLOOKUP(AK$2,$BO$127:$BP$138,2,FALSE) -> 0 | AL22: ='Budget FCFA'!AL22/VLOOKUP(AL$2,$BO$127:$BP$138,2,FALSE) -> 0 | AM22: ='Budget FCFA'!AM22/VLOOKUP(AM$2,$BO$127:$BP$138,2,FALSE) -> 0 | AN22: ='Budget FCFA'!AN22/VLOOKUP(AN$2,$BO$127:$BP$138,2,FALSE) -> 0 | AO22: ='Budget FCFA'!AO22/VLOOKUP(AO$2,$BO$127:$BP$138,2,FALSE) -> 0 | AP22: ='Budget FCFA'!AP22/VLOOKUP(AP$2,$BO$127:$BP$138,2,FALSE) -> 0 | AQ22: ='Budget FCFA'!#REF!/VLOOKUP(AQ$2,$BO$127:$BP$138,2,FALSE) ->  | AR22: ='Budget FCFA'!#REF!/VLOOKUP(AR$2,$BO$127:$BP$138,2,FALSE) ->  | AS22: ='Budget FCFA'!#REF!/VLOOKUP(AS$2,$BO$127:$BP$138,2,FALSE) ->  | AT22: ='Budget FCFA'!#REF!/VLOOKUP(AT$2,$BO$127:$BP$138,2,FALSE) ->  | AU22: ='Budget FCFA'!#REF!/VLOOKUP(AU$2,$BO$127:$BP$138,2,FALSE) ->  | AV22: ='Budget FCFA'!#REF!/VLOOKUP(AV$2,$BO$127:$BP$138,2,FALSE) ->  | AW22: ='Budget FCFA'!#REF!/VLOOKUP(AW$2,$BO$127:$BP$138,2,FALSE) ->  | AX22: ='Budget FCFA'!#REF!/VLOOKUP(AX$2,$BO$127:$BP$138,2,FALSE) ->  | AY22: ='Budget FCFA'!#REF!/VLOOKUP(AY$2,$BO$127:$BP$138,2,FALSE) ->  | AZ22: ='Budget FCFA'!#REF!/VLOOKUP(AZ$2,$BO$127:$BP$138,2,FALSE) ->  | BA22: ='Budget FCFA'!#REF!/VLOOKUP(BA$2,$BO$127:$BP$138,2,FALSE) ->  | BB22: ='Budget FCFA'!#REF!/VLOOKUP(BB$2,$BO$127:$BP$138,2,FALSE) ->  | BC22: ='Budget FCFA'!#REF!/VLOOKUP(BC$2,$BO$127:$BP$138,2,FALSE) ->  | BD22: ='Budget FCFA'!#REF!/VLOOKUP(BD$2,$BO$127:$BP$138,2,FALSE) ->  | BE22: ='Budget FCFA'!#REF!/VLOOKUP(BE$2,$BO$127:$BP$138,2,FALSE) ->  | BF22: ='Budget FCFA'!#REF!/VLOOKUP(BF$2,$BO$127:$BP$138,2,FALSE) ->  | BG22: ='Budget FCFA'!#REF!/VLOOKUP(BG$2,$BO$127:$BP$138,2,FALSE) ->  | BH22: ='Budget FCFA'!#REF!/VLOOKUP(BH$2,$BO$127:$BP$138,2,FALSE) ->  | BI22: ='Budget FCFA'!#REF!/VLOOKUP(BI$2,$BO$127:$BP$138,2,FALSE) ->  | BJ22: ='Budget FCFA'!#REF!/VLOOKUP(BJ$2,$BO$127:$BP$138,2,FALSE) ->  | BL22: =BK22-'Budget FCFA'!#REF! -> 
A23: PUBCATAL | B23: ABIDJAN | C23: Gravure KIABI GROUPE | D23: ='Budget FCFA'!D23/VLOOKUP(D$2,$BO$127:$BP$138,2,FALSE) -> 0 | E23: ='Budget FCFA'!E23/VLOOKUP(E$2,$BO$127:$BP$138,2,FALSE) -> 0 | F23: ='Budget FCFA'!F23/VLOOKUP(F$2,$BO$127:$BP$138,2,FALSE) -> 0 | G23: ='Budget FCFA'!G23/VLOOKUP(G$2,$BO$127:$BP$138,2,FALSE) -> 0 | H23: ='Budget FCFA'!H23/VLOOKUP(H$2,$BO$127:$BP$138,2,FALSE) -> 0 | I23: ='Budget FCFA'!I23/VLOOKUP(I$2,$BO$127:$BP$138,2,FALSE) -> 0 | J23: ='Budget FCFA'!J23/VLOOKUP(J$2,$BO$127:$BP$138,2,FALSE) -> 0 | K23: ='Budget FCFA'!K23/VLOOKUP(K$2,$BO$127:$BP$138,2,FALSE) -> 0 | L23: ='Budget FCFA'!L23/VLOOKUP(L$2,$BO$127:$BP$138,2,FALSE) -> 0 | M23: ='Budget FCFA'!M23/VLOOKUP(M$2,$BO$127:$BP$138,2,FALSE) -> 0 | N23: ='Budget FCFA'!N23/VLOOKUP(N$2,$BO$127:$BP$138,2,FALSE) -> 0 | O23: ='Budget FCFA'!O23/VLOOKUP(O$2,$BO$127:$BP$138,2,FALSE) -> 0 | P23: ='Budget FCFA'!P23/VLOOKUP(P$2,$BO$127:$BP$138,2,FALSE) -> 0 | Q23: ='Budget FCFA'!Q23/VLOOKUP(Q$2,$BO$127:$BP$138,2,FALSE) -> 0 | R23: ='Budget FCFA'!R23/VLOOKUP(R$2,$BO$127:$BP$138,2,FALSE) -> 0 | S23: ='Budget FCFA'!S23/VLOOKUP(S$2,$BO$127:$BP$138,2,FALSE) -> 0 | T23: ='Budget FCFA'!T23/VLOOKUP(T$2,$BO$127:$BP$138,2,FALSE) -> 0 | U23: ='Budget FCFA'!U23/VLOOKUP(U$2,$BO$127:$BP$138,2,FALSE) -> 0 | V23: ='Budget FCFA'!V23/VLOOKUP(V$2,$BO$127:$BP$138,2,FALSE) -> 0 | W23: ='Budget FCFA'!W23/VLOOKUP(W$2,$BO$127:$BP$138,2,FALSE) -> 0 | X23: ='Budget FCFA'!X23/VLOOKUP(X$2,$BO$127:$BP$138,2,FALSE) -> 0 | Y23: ='Budget FCFA'!Y23/VLOOKUP(Y$2,$BO$127:$BP$138,2,FALSE) -> 0 | Z23: ='Budget FCFA'!Z23/VLOOKUP(Z$2,$BO$127:$BP$138,2,FALSE) -> 0 | AA23: ='Budget FCFA'!AA23/VLOOKUP(AA$2,$BO$127:$BP$138,2,FALSE) -> 0 | AB23: ='Budget FCFA'!AB23/VLOOKUP(AB$2,$BO$127:$BP$138,2,FALSE) -> 0 | AC23: ='Budget FCFA'!AC23/VLOOKUP(AC$2,$BO$127:$BP$138,2,FALSE) -> 0 | AD23: ='Budget FCFA'!AD23/VLOOKUP(AD$2,$BO$127:$BP$138,2,FALSE) -> 0 | AE23: ='Budget FCFA'!AE23/VLOOKUP(AE$2,$BO$127:$BP$138,2,FALSE) -> 0 | AF23: ='Budget FCFA'!AF23/VLOOKUP(AF$2,$BO$127:$BP$138,2,FALSE) -> 0 | AG23: ='Budget FCFA'!AG23/VLOOKUP(AG$2,$BO$127:$BP$138,2,FALSE) -> 0 | AH23: ='Budget FCFA'!AH23/VLOOKUP(AH$2,$BO$127:$BP$138,2,FALSE) -> 0 | AI23: ='Budget FCFA'!AI23/VLOOKUP(AI$2,$BO$127:$BP$138,2,FALSE) -> 0 | AJ23: ='Budget FCFA'!AJ23/VLOOKUP(AJ$2,$BO$127:$BP$138,2,FALSE) -> 0 | AK23: ='Budget FCFA'!AK23/VLOOKUP(AK$2,$BO$127:$BP$138,2,FALSE) -> 0 | AL23: ='Budget FCFA'!AL23/VLOOKUP(AL$2,$BO$127:$BP$138,2,FALSE) -> 0 | AM23: ='Budget FCFA'!AM23/VLOOKUP(AM$2,$BO$127:$BP$138,2,FALSE) -> 0 | AN23: ='Budget FCFA'!AN23/VLOOKUP(AN$2,$BO$127:$BP$138,2,FALSE) -> 0 | AO23: ='Budget FCFA'!AO23/VLOOKUP(AO$2,$BO$127:$BP$138,2,FALSE) -> 0 | AP23: ='Budget FCFA'!AP23/VLOOKUP(AP$2,$BO$127:$BP$138,2,FALSE) -> 0 | AQ23: ='Budget FCFA'!#REF!/VLOOKUP(AQ$2,$BO$127:$BP$138,2,FALSE) ->  | AR23: ='Budget FCFA'!#REF!/VLOOKUP(AR$2,$BO$127:$BP$138,2,FALSE) ->  | AS23: ='Budget FCFA'!#REF!/VLOOKUP(AS$2,$BO$127:$BP$138,2,FALSE) ->  | AT23: ='Budget FCFA'!#REF!/VLOOKUP(AT$2,$BO$127:$BP$138,2,FALSE) ->  | AU23: ='Budget FCFA'!#REF!/VLOOKUP(AU$2,$BO$127:$BP$138,2,FALSE) ->  | AV23: ='Budget FCFA'!#REF!/VLOOKUP(AV$2,$BO$127:$BP$138,2,FALSE) ->  | AW23: ='Budget FCFA'!#REF!/VLOOKUP(AW$2,$BO$127:$BP$138,2,FALSE) ->  | AX23: ='Budget FCFA'!#REF!/VLOOKUP(AX$2,$BO$127:$BP$138,2,FALSE) ->  | AY23: ='Budget FCFA'!#REF!/VLOOKUP(AY$2,$BO$127:$BP$138,2,FALSE) ->  | AZ23: ='Budget FCFA'!#REF!/VLOOKUP(AZ$2,$BO$127:$BP$138,2,FALSE) ->  | BA23: ='Budget FCFA'!#REF!/VLOOKUP(BA$2,$BO$127:$BP$138,2,FALSE) ->  | BB23: ='Budget FCFA'!#REF!/VLOOKUP(BB$2,$BO$127:$BP$138,2,FALSE) ->  | BC23: ='Budget FCFA'!#REF!/VLOOKUP(BC$2,$BO$127:$BP$138,2,FALSE) ->  | BD23: ='Budget FCFA'!#REF!/VLOOKUP(BD$2,$BO$127:$BP$138,2,FALSE) ->  | BE23: ='Budget FCFA'!#REF!/VLOOKUP(BE$2,$BO$127:$BP$138,2,FALSE) ->  | BF23: ='Budget FCFA'!#REF!/VLOOKUP(BF$2,$BO$127:$BP$138,2,FALSE) ->  | BG23: ='Budget FCFA'!#REF!/VLOOKUP(BG$2,$BO$127:$BP$138,2,FALSE) ->  | BH23: ='Budget FCFA'!#REF!/VLOOKUP(BH$2,$BO$127:$BP$138,2,FALSE) ->  | BI23: ='Budget FCFA'!#REF!/VLOOKUP(BI$2,$BO$127:$BP$138,2,FALSE) ->  | BJ23: ='Budget FCFA'!#REF!/VLOOKUP(BJ$2,$BO$127:$BP$138,2,FALSE) ->  | BL23: =BK23-'Budget FCFA'!#REF! -> 
A24: PUBCATAL | B24: BRAZZA | C24: Gravure KIABI GROUPE | D24: ='Budget FCFA'!D24/VLOOKUP(D$2,$BO$127:$BP$138,2,FALSE) -> 0 | E24: ='Budget FCFA'!E24/VLOOKUP(E$2,$BO$127:$BP$138,2,FALSE) -> 0 | F24: ='Budget FCFA'!F24/VLOOKUP(F$2,$BO$127:$BP$138,2,FALSE) -> 0 | G24: ='Budget FCFA'!G24/VLOOKUP(G$2,$BO$127:$BP$138,2,FALSE) -> 0 | H24: ='Budget FCFA'!H24/VLOOKUP(H$2,$BO$127:$BP$138,2,FALSE) -> 0 | I24: ='Budget FCFA'!I24/VLOOKUP(I$2,$BO$127:$BP$138,2,FALSE) -> 0 | J24: ='Budget FCFA'!J24/VLOOKUP(J$2,$BO$127:$BP$138,2,FALSE) -> 0 | K24: ='Budget FCFA'!K24/VLOOKUP(K$2,$BO$127:$BP$138,2,FALSE) -> 0 | L24: ='Budget FCFA'!L24/VLOOKUP(L$2,$BO$127:$BP$138,2,FALSE) -> 0 | M24: ='Budget FCFA'!M24/VLOOKUP(M$2,$BO$127:$BP$138,2,FALSE) -> 0 | N24: ='Budget FCFA'!N24/VLOOKUP(N$2,$BO$127:$BP$138,2,FALSE) -> 0 | O24: ='Budget FCFA'!O24/VLOOKUP(O$2,$BO$127:$BP$138,2,FALSE) -> 0 | P24: ='Budget FCFA'!P24/VLOOKUP(P$2,$BO$127:$BP$138,2,FALSE) -> 0 | Q24: ='Budget FCFA'!Q24/VLOOKUP(Q$2,$BO$127:$BP$138,2,FALSE) -> 0 | R24: ='Budget FCFA'!R24/VLOOKUP(R$2,$BO$127:$BP$138,2,FALSE) -> 0 | S24: ='Budget FCFA'!S24/VLOOKUP(S$2,$BO$127:$BP$138,2,FALSE) -> 0 | T24: ='Budget FCFA'!T24/VLOOKUP(T$2,$BO$127:$BP$138,2,FALSE) -> 0 | U24: ='Budget FCFA'!U24/VLOOKUP(U$2,$BO$127:$BP$138,2,FALSE) -> 0 | V24: ='Budget FCFA'!V24/VLOOKUP(V$2,$BO$127:$BP$138,2,FALSE) -> 0 | W24: ='Budget FCFA'!W24/VLOOKUP(W$2,$BO$127:$BP$138,2,FALSE) -> 0 | X24: ='Budget FCFA'!X24/VLOOKUP(X$2,$BO$127:$BP$138,2,FALSE) -> 0 | Y24: ='Budget FCFA'!Y24/VLOOKUP(Y$2,$BO$127:$BP$138,2,FALSE) -> 0 | Z24: ='Budget FCFA'!Z24/VLOOKUP(Z$2,$BO$127:$BP$138,2,FALSE) -> 0 | AA24: ='Budget FCFA'!AA24/VLOOKUP(AA$2,$BO$127:$BP$138,2,FALSE) -> 0 | AB24: ='Budget FCFA'!AB24/VLOOKUP(AB$2,$BO$127:$BP$138,2,FALSE) -> 0 | AC24: ='Budget FCFA'!AC24/VLOOKUP(AC$2,$BO$127:$BP$138,2,FALSE) -> 0 | AD24: ='Budget FCFA'!AD24/VLOOKUP(AD$2,$BO$127:$BP$138,2,FALSE) -> 0 | AE24: ='Budget FCFA'!AE24/VLOOKUP(AE$2,$BO$127:$BP$138,2,FALSE) -> 0 | AF24: ='Budget FCFA'!AF24/VLOOKUP(AF$2,$BO$127:$BP$138,2,FALSE) -> 0 | AG24: ='Budget FCFA'!AG24/VLOOKUP(AG$2,$BO$127:$BP$138,2,FALSE) -> 0 | AH24: ='Budget FCFA'!AH24/VLOOKUP(AH$2,$BO$127:$BP$138,2,FALSE) -> 0 | AI24: ='Budget FCFA'!AI24/VLOOKUP(AI$2,$BO$127:$BP$138,2,FALSE) -> 0 | AJ24: ='Budget FCFA'!AJ24/VLOOKUP(AJ$2,$BO$127:$BP$138,2,FALSE) -> 0 | AK24: ='Budget FCFA'!AK24/VLOOKUP(AK$2,$BO$127:$BP$138,2,FALSE) -> 0 | AL24: ='Budget FCFA'!AL24/VLOOKUP(AL$2,$BO$127:$BP$138,2,FALSE) -> 0 | AM24: ='Budget FCFA'!AM24/VLOOKUP(AM$2,$BO$127:$BP$138,2,FALSE) -> 0 | AN24: ='Budget FCFA'!AN24/VLOOKUP(AN$2,$BO$127:$BP$138,2,FALSE) -> 0 | AO24: ='Budget FCFA'!AO24/VLOOKUP(AO$2,$BO$127:$BP$138,2,FALSE) -> 0 | AP24: ='Budget FCFA'!AP24/VLOOKUP(AP$2,$BO$127:$BP$138,2,FALSE) -> 0 | AQ24: ='Budget FCFA'!#REF!/VLOOKUP(AQ$2,$BO$127:$BP$138,2,FALSE) ->  | AR24: ='Budget FCFA'!#REF!/VLOOKUP(AR$2,$BO$127:$BP$138,2,FALSE) ->  | AS24: ='Budget FCFA'!#REF!/VLOOKUP(AS$2,$BO$127:$BP$138,2,FALSE) ->  | AT24: ='Budget FCFA'!#REF!/VLOOKUP(AT$2,$BO$127:$BP$138,2,FALSE) ->  | AU24: ='Budget FCFA'!#REF!/VLOOKUP(AU$2,$BO$127:$BP$138,2,FALSE) ->  | AV24: ='Budget FCFA'!#REF!/VLOOKUP(AV$2,$BO$127:$BP$138,2,FALSE) ->  | AW24: ='Budget FCFA'!#REF!/VLOOKUP(AW$2,$BO$127:$BP$138,2,FALSE) ->  | AX24: ='Budget FCFA'!#REF!/VLOOKUP(AX$2,$BO$127:$BP$138,2,FALSE) ->  | AY24: ='Budget FCFA'!#REF!/VLOOKUP(AY$2,$BO$127:$BP$138,2,FALSE) ->  | AZ24: ='Budget FCFA'!#REF!/VLOOKUP(AZ$2,$BO$127:$BP$138,2,FALSE) ->  | BA24: ='Budget FCFA'!#REF!/VLOOKUP(BA$2,$BO$127:$BP$138,2,FALSE) ->  | BB24: ='Budget FCFA'!#REF!/VLOOKUP(BB$2,$BO$127:$BP$138,2,FALSE) ->  | BC24: ='Budget FCFA'!#REF!/VLOOKUP(BC$2,$BO$127:$BP$138,2,FALSE) ->  | BD24: ='Budget FCFA'!#REF!/VLOOKUP(BD$2,$BO$127:$BP$138,2,FALSE) ->  | BE24: ='Budget FCFA'!#REF!/VLOOKUP(BE$2,$BO$127:$BP$138,2,FALSE) ->  | BF24: ='Budget FCFA'!#REF!/VLOOKUP(BF$2,$BO$127:$BP$138,2,FALSE) ->  | BG24: ='Budget FCFA'!#REF!/VLOOKUP(BG$2,$BO$127:$BP$138,2,FALSE) ->  | BH24: ='Budget FCFA'!#REF!/VLOOKUP(BH$2,$BO$127:$BP$138,2,FALSE) ->  | BI24: ='Budget FCFA'!#REF!/VLOOKUP(BI$2,$BO$127:$BP$138,2,FALSE) ->  | BJ24: ='Budget FCFA'!#REF!/VLOOKUP(BJ$2,$BO$127:$BP$138,2,FALSE) ->  | BL24: =BK24-'Budget FCFA'!#REF! -> 
A25: PUBCATAL | B25: DAKAR | C25: Gravure KIABI GROUPE | D25: ='Budget FCFA'!D25/VLOOKUP(D$2,$BO$127:$BP$138,2,FALSE) -> 0 | E25: ='Budget FCFA'!E25/VLOOKUP(E$2,$BO$127:$BP$138,2,FALSE) -> 0 | F25: ='Budget FCFA'!F25/VLOOKUP(F$2,$BO$127:$BP$138,2,FALSE) -> 0 | G25: ='Budget FCFA'!G25/VLOOKUP(G$2,$BO$127:$BP$138,2,FALSE) -> 0 | H25: ='Budget FCFA'!H25/VLOOKUP(H$2,$BO$127:$BP$138,2,FALSE) -> 0 | I25: ='Budget FCFA'!I25/VLOOKUP(I$2,$BO$127:$BP$138,2,FALSE) -> 0 | J25: ='Budget FCFA'!J25/VLOOKUP(J$2,$BO$127:$BP$138,2,FALSE) -> 0 | K25: ='Budget FCFA'!K25/VLOOKUP(K$2,$BO$127:$BP$138,2,FALSE) -> 0 | L25: ='Budget FCFA'!L25/VLOOKUP(L$2,$BO$127:$BP$138,2,FALSE) -> 0 | M25: ='Budget FCFA'!M25/VLOOKUP(M$2,$BO$127:$BP$138,2,FALSE) -> 0 | N25: ='Budget FCFA'!N25/VLOOKUP(N$2,$BO$127:$BP$138,2,FALSE) -> 0 | O25: ='Budget FCFA'!O25/VLOOKUP(O$2,$BO$127:$BP$138,2,FALSE) -> 0 | P25: ='Budget FCFA'!P25/VLOOKUP(P$2,$BO$127:$BP$138,2,FALSE) -> 0 | Q25: ='Budget FCFA'!Q25/VLOOKUP(Q$2,$BO$127:$BP$138,2,FALSE) -> 0 | R25: ='Budget FCFA'!R25/VLOOKUP(R$2,$BO$127:$BP$138,2,FALSE) -> 0 | S25: ='Budget FCFA'!S25/VLOOKUP(S$2,$BO$127:$BP$138,2,FALSE) -> 0 | T25: ='Budget FCFA'!T25/VLOOKUP(T$2,$BO$127:$BP$138,2,FALSE) -> 0 | U25: ='Budget FCFA'!U25/VLOOKUP(U$2,$BO$127:$BP$138,2,FALSE) -> 0 | V25: ='Budget FCFA'!V25/VLOOKUP(V$2,$BO$127:$BP$138,2,FALSE) -> 0 | W25: ='Budget FCFA'!W25/VLOOKUP(W$2,$BO$127:$BP$138,2,FALSE) -> 0 | X25: ='Budget FCFA'!X25/VLOOKUP(X$2,$BO$127:$BP$138,2,FALSE) -> 0 | Y25: ='Budget FCFA'!Y25/VLOOKUP(Y$2,$BO$127:$BP$138,2,FALSE) -> 0 | Z25: ='Budget FCFA'!Z25/VLOOKUP(Z$2,$BO$127:$BP$138,2,FALSE) -> 0 | AA25: ='Budget FCFA'!AA25/VLOOKUP(AA$2,$BO$127:$BP$138,2,FALSE) -> 0 | AB25: ='Budget FCFA'!AB25/VLOOKUP(AB$2,$BO$127:$BP$138,2,FALSE) -> 0 | AC25: ='Budget FCFA'!AC25/VLOOKUP(AC$2,$BO$127:$BP$138,2,FALSE) -> 0 | AD25: ='Budget FCFA'!AD25/VLOOKUP(AD$2,$BO$127:$BP$138,2,FALSE) -> 0 | AE25: ='Budget FCFA'!AE25/VLOOKUP(AE$2,$BO$127:$BP$138,2,FALSE) -> 0 | AF25: ='Budget FCFA'!AF25/VLOOKUP(AF$2,$BO$127:$BP$138,2,FALSE) -> 0 | AG25: ='Budget FCFA'!AG25/VLOOKUP(AG$2,$BO$127:$BP$138,2,FALSE) -> 0 | AH25: ='Budget FCFA'!AH25/VLOOKUP(AH$2,$BO$127:$BP$138,2,FALSE) -> 0 | AI25: ='Budget FCFA'!AI25/VLOOKUP(AI$2,$BO$127:$BP$138,2,FALSE) -> 0 | AJ25: ='Budget FCFA'!AJ25/VLOOKUP(AJ$2,$BO$127:$BP$138,2,FALSE) -> 0 | AK25: ='Budget FCFA'!AK25/VLOOKUP(AK$2,$BO$127:$BP$138,2,FALSE) -> 0 | AL25: ='Budget FCFA'!AL25/VLOOKUP(AL$2,$BO$127:$BP$138,2,FALSE) -> 0 | AM25: ='Budget FCFA'!AM25/VLOOKUP(AM$2,$BO$127:$BP$138,2,FALSE) -> 0 | AN25: ='Budget FCFA'!AN25/VLOOKUP(AN$2,$BO$127:$BP$138,2,FALSE) -> 0 | AO25: ='Budget FCFA'!AO25/VLOOKUP(AO$2,$BO$127:$BP$138,2,FALSE) -> 0 | AP25: ='Budget FCFA'!AP25/VLOOKUP(AP$2,$BO$127:$BP$138,2,FALSE) -> 0 | AQ25: ='Budget FCFA'!#REF!/VLOOKUP(AQ$2,$BO$127:$BP$138,2,FALSE) ->  | AR25: ='Budget FCFA'!#REF!/VLOOKUP(AR$2,$BO$127:$BP$138,2,FALSE) ->  | AS25: ='Budget FCFA'!#REF!/VLOOKUP(AS$2,$BO$127:$BP$138,2,FALSE) ->  | AT25: ='Budget FCFA'!#REF!/VLOOKUP(AT$2,$BO$127:$BP$138,2,FALSE) ->  | AU25: ='Budget FCFA'!#REF!/VLOOKUP(AU$2,$BO$127:$BP$138,2,FALSE) ->  | AV25: ='Budget FCFA'!#REF!/VLOOKUP(AV$2,$BO$127:$BP$138,2,FALSE) ->  | AW25: ='Budget FCFA'!#REF!/VLOOKUP(AW$2,$BO$127:$BP$138,2,FALSE) ->  | AX25: ='Budget FCFA'!#REF!/VLOOKUP(AX$2,$BO$127:$BP$138,2,FALSE) ->  | AY25: ='Budget FCFA'!#REF!/VLOOKUP(AY$2,$BO$127:$BP$138,2,FALSE) ->  | AZ25: ='Budget FCFA'!#REF!/VLOOKUP(AZ$2,$BO$127:$BP$138,2,FALSE) ->  | BA25: ='Budget FCFA'!#REF!/VLOOKUP(BA$2,$BO$127:$BP$138,2,FALSE) ->  | BB25: ='Budget FCFA'!#REF!/VLOOKUP(BB$2,$BO$127:$BP$138,2,FALSE) ->  | BC25: ='Budget FCFA'!#REF!/VLOOKUP(BC$2,$BO$127:$BP$138,2,FALSE) ->  | BD25: ='Budget FCFA'!#REF!/VLOOKUP(BD$2,$BO$127:$BP$138,2,FALSE) ->  | BE25: ='Budget FCFA'!#REF!/VLOOKUP(BE$2,$BO$127:$BP$138,2,FALSE) ->  | BF25: ='Budget FCFA'!#REF!/VLOOKUP(BF$2,$BO$127:$BP$138,2,FALSE) ->  | BG25: ='Budget FCFA'!#REF!/VLOOKUP(BG$2,$BO$127:$BP$138,2,FALSE) ->  | BH25: ='Budget FCFA'!#REF!/VLOOKUP(BH$2,$BO$127:$BP$138,2,FALSE) ->  | BI25: ='Budget FCFA'!#REF!/VLOOKUP(BI$2,$BO$127:$BP$138,2,FALSE) ->  | BJ25: ='Budget FCFA'!#REF!/VLOOKUP(BJ$2,$BO$127:$BP$138,2,FALSE) ->  | BL25: =BK25-'Budget FCFA'!#REF! -> 
A26: PUBCATAL | B26: LIBREVILLE | C26: Gravure KIABI GROUPE | D26: ='Budget FCFA'!D26/VLOOKUP(D$2,$BO$127:$BP$138,2,FALSE) -> 0 | E26: ='Budget FCFA'!E26/VLOOKUP(E$2,$BO$127:$BP$138,2,FALSE) -> 0 | F26: ='Budget FCFA'!F26/VLOOKUP(F$2,$BO$127:$BP$138,2,FALSE) -> 0 | G26: ='Budget FCFA'!G26/VLOOKUP(G$2,$BO$127:$BP$138,2,FALSE) -> 0 | H26: ='Budget FCFA'!H26/VLOOKUP(H$2,$BO$127:$BP$138,2,FALSE) -> 0 | I26: ='Budget FCFA'!I26/VLOOKUP(I$2,$BO$127:$BP$138,2,FALSE) -> 0 | J26: ='Budget FCFA'!J26/VLOOKUP(J$2,$BO$127:$BP$138,2,FALSE) -> 0 | K26: ='Budget FCFA'!K26/VLOOKUP(K$2,$BO$127:$BP$138,2,FALSE) -> 0 | L26: ='Budget FCFA'!L26/VLOOKUP(L$2,$BO$127:$BP$138,2,FALSE) -> 0 | M26: ='Budget FCFA'!M26/VLOOKUP(M$2,$BO$127:$BP$138,2,FALSE) -> 0 | N26: ='Budget FCFA'!N26/VLOOKUP(N$2,$BO$127:$BP$138,2,FALSE) -> 0 | O26: ='Budget FCFA'!O26/VLOOKUP(O$2,$BO$127:$BP$138,2,FALSE) -> 0 | P26: ='Budget FCFA'!P26/VLOOKUP(P$2,$BO$127:$BP$138,2,FALSE) -> 0 | Q26: ='Budget FCFA'!Q26/VLOOKUP(Q$2,$BO$127:$BP$138,2,FALSE) -> 0 | R26: ='Budget FCFA'!R26/VLOOKUP(R$2,$BO$127:$BP$138,2,FALSE) -> 0 | S26: ='Budget FCFA'!S26/VLOOKUP(S$2,$BO$127:$BP$138,2,FALSE) -> 0 | T26: ='Budget FCFA'!T26/VLOOKUP(T$2,$BO$127:$BP$138,2,FALSE) -> 0 | U26: ='Budget FCFA'!U26/VLOOKUP(U$2,$BO$127:$BP$138,2,FALSE) -> 0 | V26: ='Budget FCFA'!V26/VLOOKUP(V$2,$BO$127:$BP$138,2,FALSE) -> 0 | W26: ='Budget FCFA'!W26/VLOOKUP(W$2,$BO$127:$BP$138,2,FALSE) -> 0 | X26: ='Budget FCFA'!X26/VLOOKUP(X$2,$BO$127:$BP$138,2,FALSE) -> 0 | Y26: ='Budget FCFA'!Y26/VLOOKUP(Y$2,$BO$127:$BP$138,2,FALSE) -> 0 | Z26: ='Budget FCFA'!Z26/VLOOKUP(Z$2,$BO$127:$BP$138,2,FALSE) -> 0 | AA26: ='Budget FCFA'!AA26/VLOOKUP(AA$2,$BO$127:$BP$138,2,FALSE) -> 0 | AB26: ='Budget FCFA'!AB26/VLOOKUP(AB$2,$BO$127:$BP$138,2,FALSE) -> 0 | AC26: ='Budget FCFA'!AC26/VLOOKUP(AC$2,$BO$127:$BP$138,2,FALSE) -> 0 | AD26: ='Budget FCFA'!AD26/VLOOKUP(AD$2,$BO$127:$BP$138,2,FALSE) -> 0 | AE26: ='Budget FCFA'!AE26/VLOOKUP(AE$2,$BO$127:$BP$138,2,FALSE) -> 0 | AF26: ='Budget FCFA'!AF26/VLOOKUP(AF$2,$BO$127:$BP$138,2,FALSE) -> 0 | AG26: ='Budget FCFA'!AG26/VLOOKUP(AG$2,$BO$127:$BP$138,2,FALSE) -> 0 | AH26: ='Budget FCFA'!AH26/VLOOKUP(AH$2,$BO$127:$BP$138,2,FALSE) -> 0 | AI26: ='Budget FCFA'!AI26/VLOOKUP(AI$2,$BO$127:$BP$138,2,FALSE) -> 0 | AJ26: ='Budget FCFA'!AJ26/VLOOKUP(AJ$2,$BO$127:$BP$138,2,FALSE) -> 0 | AK26: ='Budget FCFA'!AK26/VLOOKUP(AK$2,$BO$127:$BP$138,2,FALSE) -> 0 | AL26: ='Budget FCFA'!AL26/VLOOKUP(AL$2,$BO$127:$BP$138,2,FALSE) -> 0 | AM26: ='Budget FCFA'!AM26/VLOOKUP(AM$2,$BO$127:$BP$138,2,FALSE) -> 0 | AN26: ='Budget FCFA'!AN26/VLOOKUP(AN$2,$BO$127:$BP$138,2,FALSE) -> 0 | AO26: ='Budget FCFA'!AO26/VLOOKUP(AO$2,$BO$127:$BP$138,2,FALSE) -> 0 | AP26: ='Budget FCFA'!AP26/VLOOKUP(AP$2,$BO$127:$BP$138,2,FALSE) -> 0 | AQ26: ='Budget FCFA'!#REF!/VLOOKUP(AQ$2,$BO$127:$BP$138,2,FALSE) ->  | AR26: ='Budget FCFA'!#REF!/VLOOKUP(AR$2,$BO$127:$BP$138,2,FALSE) ->  | AS26: ='Budget FCFA'!#REF!/VLOOKUP(AS$2,$BO$127:$BP$138,2,FALSE) ->  | AT26: ='Budget FCFA'!#REF!/VLOOKUP(AT$2,$BO$127:$BP$138,2,FALSE) ->  | AU26: ='Budget FCFA'!#REF!/VLOOKUP(AU$2,$BO$127:$BP$138,2,FALSE) ->  | AV26: ='Budget FCFA'!#REF!/VLOOKUP(AV$2,$BO$127:$BP$138,2,FALSE) ->  | AW26: ='Budget FCFA'!#REF!/VLOOKUP(AW$2,$BO$127:$BP$138,2,FALSE) ->  | AX26: ='Budget FCFA'!#REF!/VLOOKUP(AX$2,$BO$127:$BP$138,2,FALSE) ->  | AY26: ='Budget FCFA'!#REF!/VLOOKUP(AY$2,$BO$127:$BP$138,2,FALSE) ->  | AZ26: ='Budget FCFA'!#REF!/VLOOKUP(AZ$2,$BO$127:$BP$138,2,FALSE) ->  | BA26: ='Budget FCFA'!#REF!/VLOOKUP(BA$2,$BO$127:$BP$138,2,FALSE) ->  | BB26: ='Budget FCFA'!#REF!/VLOOKUP(BB$2,$BO$127:$BP$138,2,FALSE) ->  | BC26: ='Budget FCFA'!#REF!/VLOOKUP(BC$2,$BO$127:$BP$138,2,FALSE) ->  | BD26: ='Budget FCFA'!#REF!/VLOOKUP(BD$2,$BO$127:$BP$138,2,FALSE) ->  | BE26: ='Budget FCFA'!#REF!/VLOOKUP(BE$2,$BO$127:$BP$138,2,FALSE) ->  | BF26: ='Budget FCFA'!#REF!/VLOOKUP(BF$2,$BO$127:$BP$138,2,FALSE) ->  | BG26: ='Budget FCFA'!#REF!/VLOOKUP(BG$2,$BO$127:$BP$138,2,FALSE) ->  | BH26: ='Budget FCFA'!#REF!/VLOOKUP(BH$2,$BO$127:$BP$138,2,FALSE) ->  | BI26: ='Budget FCFA'!#REF!/VLOOKUP(BI$2,$BO$127:$BP$138,2,FALSE) ->  | BJ26: ='Budget FCFA'!#REF!/VLOOKUP(BJ$2,$BO$127:$BP$138,2,FALSE) ->  | BL26: =BK26-'Budget FCFA'!#REF! -> 
A27: PUBCATAL | B27: DOUALA | C27: Gravure KIABI GROUPE | D27: ='Budget FCFA'!D27/VLOOKUP(D$2,$BO$127:$BP$138,2,FALSE) -> 0 | E27: ='Budget FCFA'!E27/VLOOKUP(E$2,$BO$127:$BP$138,2,FALSE) -> 0 | F27: ='Budget FCFA'!F27/VLOOKUP(F$2,$BO$127:$BP$138,2,FALSE) -> 0 | G27: ='Budget FCFA'!G27/VLOOKUP(G$2,$BO$127:$BP$138,2,FALSE) -> 0 | H27: ='Budget FCFA'!H27/VLOOKUP(H$2,$BO$127:$BP$138,2,FALSE) -> 0 | I27: ='Budget FCFA'!I27/VLOOKUP(I$2,$BO$127:$BP$138,2,FALSE) -> 0 | J27: ='Budget FCFA'!J27/VLOOKUP(J$2,$BO$127:$BP$138,2,FALSE) -> 0 | K27: ='Budget FCFA'!K27/VLOOKUP(K$2,$BO$127:$BP$138,2,FALSE) -> 0 | L27: ='Budget FCFA'!L27/VLOOKUP(L$2,$BO$127:$BP$138,2,FALSE) -> 0 | M27: ='Budget FCFA'!M27/VLOOKUP(M$2,$BO$127:$BP$138,2,FALSE) -> 0 | N27: ='Budget FCFA'!N27/VLOOKUP(N$2,$BO$127:$BP$138,2,FALSE) -> 0 | O27: ='Budget FCFA'!O27/VLOOKUP(O$2,$BO$127:$BP$138,2,FALSE) -> 0 | P27: ='Budget FCFA'!P27/VLOOKUP(P$2,$BO$127:$BP$138,2,FALSE) -> 0 | Q27: ='Budget FCFA'!Q27/VLOOKUP(Q$2,$BO$127:$BP$138,2,FALSE) -> 0 | R27: ='Budget FCFA'!R27/VLOOKUP(R$2,$BO$127:$BP$138,2,FALSE) -> 0 | S27: ='Budget FCFA'!S27/VLOOKUP(S$2,$BO$127:$BP$138,2,FALSE) -> 0 | T27: ='Budget FCFA'!T27/VLOOKUP(T$2,$BO$127:$BP$138,2,FALSE) -> 0 | U27: ='Budget FCFA'!U27/VLOOKUP(U$2,$BO$127:$BP$138,2,FALSE) -> 0 | V27: ='Budget FCFA'!V27/VLOOKUP(V$2,$BO$127:$BP$138,2,FALSE) -> 0 | W27: ='Budget FCFA'!W27/VLOOKUP(W$2,$BO$127:$BP$138,2,FALSE) -> 0 | X27: ='Budget FCFA'!X27/VLOOKUP(X$2,$BO$127:$BP$138,2,FALSE) -> 0 | Y27: ='Budget FCFA'!Y27/VLOOKUP(Y$2,$BO$127:$BP$138,2,FALSE) -> 0 | Z27: ='Budget FCFA'!Z27/VLOOKUP(Z$2,$BO$127:$BP$138,2,FALSE) -> 0 | AA27: ='Budget FCFA'!AA27/VLOOKUP(AA$2,$BO$127:$BP$138,2,FALSE) -> 0 | AB27: ='Budget FCFA'!AB27/VLOOKUP(AB$2,$BO$127:$BP$138,2,FALSE) -> 0 | AC27: ='Budget FCFA'!AC27/VLOOKUP(AC$2,$BO$127:$BP$138,2,FALSE) -> 0 | AD27: ='Budget FCFA'!AD27/VLOOKUP(AD$2,$BO$127:$BP$138,2,FALSE) -> 0 | AE27: ='Budget FCFA'!AE27/VLOOKUP(AE$2,$BO$127:$BP$138,2,FALSE) -> 0 | AF27: ='Budget FCFA'!AF27/VLOOKUP(AF$2,$BO$127:$BP$138,2,FALSE) -> 0 | AG27: ='Budget FCFA'!AG27/VLOOKUP(AG$2,$BO$127:$BP$138,2,FALSE) -> 0 | AH27: ='Budget FCFA'!AH27/VLOOKUP(AH$2,$BO$127:$BP$138,2,FALSE) -> 0 | AI27: ='Budget FCFA'!AI27/VLOOKUP(AI$2,$BO$127:$BP$138,2,FALSE) -> 0 | AJ27: ='Budget FCFA'!AJ27/VLOOKUP(AJ$2,$BO$127:$BP$138,2,FALSE) -> 0 | AK27: ='Budget FCFA'!AK27/VLOOKUP(AK$2,$BO$127:$BP$138,2,FALSE) -> 0 | AL27: ='Budget FCFA'!AL27/VLOOKUP(AL$2,$BO$127:$BP$138,2,FALSE) -> 0 | AM27: ='Budget FCFA'!AM27/VLOOKUP(AM$2,$BO$127:$BP$138,2,FALSE) -> 0 | AN27: ='Budget FCFA'!AN27/VLOOKUP(AN$2,$BO$127:$BP$138,2,FALSE) -> 0 | AO27: ='Budget FCFA'!AO27/VLOOKUP(AO$2,$BO$127:$BP$138,2,FALSE) -> 0 | AP27: ='Budget FCFA'!AP27/VLOOKUP(AP$2,$BO$127:$BP$138,2,FALSE) -> 0 | AQ27: ='Budget FCFA'!#REF!/VLOOKUP(AQ$2,$BO$127:$BP$138,2,FALSE) ->  | AR27: ='Budget FCFA'!#REF!/VLOOKUP(AR$2,$BO$127:$BP$138,2,FALSE) ->  | AS27: ='Budget FCFA'!#REF!/VLOOKUP(AS$2,$BO$127:$BP$138,2,FALSE) ->  | AT27: ='Budget FCFA'!#REF!/VLOOKUP(AT$2,$BO$127:$BP$138,2,FALSE) ->  | AU27: ='Budget FCFA'!#REF!/VLOOKUP(AU$2,$BO$127:$BP$138,2,FALSE) ->  | AV27: ='Budget FCFA'!#REF!/VLOOKUP(AV$2,$BO$127:$BP$138,2,FALSE) ->  | AW27: ='Budget FCFA'!#REF!/VLOOKUP(AW$2,$BO$127:$BP$138,2,FALSE) ->  | AX27: ='Budget FCFA'!#REF!/VLOOKUP(AX$2,$BO$127:$BP$138,2,FALSE) ->  | AY27: ='Budget FCFA'!#REF!/VLOOKUP(AY$2,$BO$127:$BP$138,2,FALSE) ->  | AZ27: ='Budget FCFA'!#REF!/VLOOKUP(AZ$2,$BO$127:$BP$138,2,FALSE) ->  | BA27: ='Budget FCFA'!#REF!/VLOOKUP(BA$2,$BO$127:$BP$138,2,FALSE) ->  | BB27: ='Budget FCFA'!#REF!/VLOOKUP(BB$2,$BO$127:$BP$138,2,FALSE) ->  | BC27: ='Budget FCFA'!#REF!/VLOOKUP(BC$2,$BO$127:$BP$138,2,FALSE) ->  | BD27: ='Budget FCFA'!#REF!/VLOOKUP(BD$2,$BO$127:$BP$138,2,FALSE) ->  | BE27: ='Budget FCFA'!#REF!/VLOOKUP(BE$2,$BO$127:$BP$138,2,FALSE) ->  | BF27: ='Budget FCFA'!#REF!/VLOOKUP(BF$2,$BO$127:$BP$138,2,FALSE) ->  | BG27: ='Budget FCFA'!#REF!/VLOOKUP(BG$2,$BO$127:$BP$138,2,FALSE) ->  | BH27: ='Budget FCFA'!#REF!/VLOOKUP(BH$2,$BO$127:$BP$138,2,FALSE) ->  | BI27: ='Budget FCFA'!#REF!/VLOOKUP(BI$2,$BO$127:$BP$138,2,FALSE) ->  | BJ27: ='Budget FCFA'!#REF!/VLOOKUP(BJ$2,$BO$127:$BP$138,2,FALSE) ->  | BL27: =BK27-'Budget FCFA'!#REF! -> 
A28: PUBCATAL | B28: TOTAL | C28: Total Gravure Kiabi Groupe | D28: ='Budget FCFA'!D28/VLOOKUP(D$2,$BO$127:$BP$138,2,FALSE) -> 0 | E28: ='Budget FCFA'!E28/VLOOKUP(E$2,$BO$127:$BP$138,2,FALSE) -> 0 | F28: ='Budget FCFA'!F28/VLOOKUP(F$2,$BO$127:$BP$138,2,FALSE) -> 0 | G28: ='Budget FCFA'!G28/VLOOKUP(G$2,$BO$127:$BP$138,2,FALSE) -> 0 | H28: ='Budget FCFA'!H28/VLOOKUP(H$2,$BO$127:$BP$138,2,FALSE) -> 0 | I28: ='Budget FCFA'!I28/VLOOKUP(I$2,$BO$127:$BP$138,2,FALSE) -> 0 | J28: ='Budget FCFA'!J28/VLOOKUP(J$2,$BO$127:$BP$138,2,FALSE) -> 0 | K28: ='Budget FCFA'!K28/VLOOKUP(K$2,$BO$127:$BP$138,2,FALSE) -> 0 | L28: ='Budget FCFA'!L28/VLOOKUP(L$2,$BO$127:$BP$138,2,FALSE) -> 0 | M28: ='Budget FCFA'!M28/VLOOKUP(M$2,$BO$127:$BP$138,2,FALSE) -> 0 | N28: ='Budget FCFA'!N28/VLOOKUP(N$2,$BO$127:$BP$138,2,FALSE) -> 0 | O28: ='Budget FCFA'!O28/VLOOKUP(O$2,$BO$127:$BP$138,2,FALSE) -> 0 | P28: ='Budget FCFA'!P28/VLOOKUP(P$2,$BO$127:$BP$138,2,FALSE) -> 0 | Q28: ='Budget FCFA'!Q28/VLOOKUP(Q$2,$BO$127:$BP$138,2,FALSE) -> 0 | R28: ='Budget FCFA'!R28/VLOOKUP(R$2,$BO$127:$BP$138,2,FALSE) -> 0 | S28: ='Budget FCFA'!S28/VLOOKUP(S$2,$BO$127:$BP$138,2,FALSE) -> 0 | T28: ='Budget FCFA'!T28/VLOOKUP(T$2,$BO$127:$BP$138,2,FALSE) -> 0 | U28: ='Budget FCFA'!U28/VLOOKUP(U$2,$BO$127:$BP$138,2,FALSE) -> 0 | V28: ='Budget FCFA'!V28/VLOOKUP(V$2,$BO$127:$BP$138,2,FALSE) -> 0 | W28: ='Budget FCFA'!W28/VLOOKUP(W$2,$BO$127:$BP$138,2,FALSE) -> 0 | X28: ='Budget FCFA'!X28/VLOOKUP(X$2,$BO$127:$BP$138,2,FALSE) -> 0 | Y28: ='Budget FCFA'!Y28/VLOOKUP(Y$2,$BO$127:$BP$138,2,FALSE) -> 0 | Z28: ='Budget FCFA'!Z28/VLOOKUP(Z$2,$BO$127:$BP$138,2,FALSE) -> 0 | AA28: ='Budget FCFA'!AA28/VLOOKUP(AA$2,$BO$127:$BP$138,2,FALSE) -> 0 | AB28: ='Budget FCFA'!AB28/VLOOKUP(AB$2,$BO$127:$BP$138,2,FALSE) -> 0 | AC28: ='Budget FCFA'!AC28/VLOOKUP(AC$2,$BO$127:$BP$138,2,FALSE) -> 0 | AD28: ='Budget FCFA'!AD28/VLOOKUP(AD$2,$BO$127:$BP$138,2,FALSE) -> 0 | AE28: ='Budget FCFA'!AE28/VLOOKUP(AE$2,$BO$127:$BP$138,2,FALSE) -> 0 | AF28: ='Budget FCFA'!AF28/VLOOKUP(AF$2,$BO$127:$BP$138,2,FALSE) -> 0 | AG28: ='Budget FCFA'!AG28/VLOOKUP(AG$2,$BO$127:$BP$138,2,FALSE) -> 0 | AH28: ='Budget FCFA'!AH28/VLOOKUP(AH$2,$BO$127:$BP$138,2,FALSE) -> 0 | AI28: ='Budget FCFA'!AI28/VLOOKUP(AI$2,$BO$127:$BP$138,2,FALSE) -> 0 | AJ28: ='Budget FCFA'!AJ28/VLOOKUP(AJ$2,$BO$127:$BP$138,2,FALSE) -> 0 | AK28: ='Budget FCFA'!AK28/VLOOKUP(AK$2,$BO$127:$BP$138,2,FALSE) -> 0 | AL28: ='Budget FCFA'!AL28/VLOOKUP(AL$2,$BO$127:$BP$138,2,FALSE) -> 0 | AM28: ='Budget FCFA'!AM28/VLOOKUP(AM$2,$BO$127:$BP$138,2,FALSE) -> 0 | AN28: ='Budget FCFA'!AN28/VLOOKUP(AN$2,$BO$127:$BP$138,2,FALSE) -> 0 | AO28: ='Budget FCFA'!AO28/VLOOKUP(AO$2,$BO$127:$BP$138,2,FALSE) -> 0 | AP28: ='Budget FCFA'!AP28/VLOOKUP(AP$2,$BO$127:$BP$138,2,FALSE) -> 0 | AQ28: ='Budget FCFA'!#REF!/VLOOKUP(AQ$2,$BO$127:$BP$138,2,FALSE) ->  | AR28: ='Budget FCFA'!#REF!/VLOOKUP(AR$2,$BO$127:$BP$138,2,FALSE) ->  | AS28: ='Budget FCFA'!#REF!/VLOOKUP(AS$2,$BO$127:$BP$138,2,FALSE) ->  | AT28: ='Budget FCFA'!#REF!/VLOOKUP(AT$2,$BO$127:$BP$138,2,FALSE) ->  | AU28: ='Budget FCFA'!#REF!/VLOOKUP(AU$2,$BO$127:$BP$138,2,FALSE) ->  | AV28: ='Budget FCFA'!#REF!/VLOOKUP(AV$2,$BO$127:$BP$138,2,FALSE) ->  | AW28: ='Budget FCFA'!#REF!/VLOOKUP(AW$2,$BO$127:$BP$138,2,FALSE) ->  | AX28: ='Budget FCFA'!#REF!/VLOOKUP(AX$2,$BO$127:$BP$138,2,FALSE) ->  | AY28: ='Budget FCFA'!#REF!/VLOOKUP(AY$2,$BO$127:$BP$138,2,FALSE) ->  | AZ28: ='Budget FCFA'!#REF!/VLOOKUP(AZ$2,$BO$127:$BP$138,2,FALSE) ->  | BA28: ='Budget FCFA'!#REF!/VLOOKUP(BA$2,$BO$127:$BP$138,2,FALSE) ->  | BB28: ='Budget FCFA'!#REF!/VLOOKUP(BB$2,$BO$127:$BP$138,2,FALSE) ->  | BC28: ='Budget FCFA'!#REF!/VLOOKUP(BC$2,$BO$127:$BP$138,2,FALSE) ->  | BD28: ='Budget FCFA'!#REF!/VLOOKUP(BD$2,$BO$127:$BP$138,2,FALSE) ->  | BE28: ='Budget FCFA'!#REF!/VLOOKUP(BE$2,$BO$127:$BP$138,2,FALSE) ->  | BF28: ='Budget FCFA'!#REF!/VLOOKUP(BF$2,$BO$127:$BP$138,2,FALSE) ->  | BG28: ='Budget FCFA'!#REF!/VLOOKUP(BG$2,$BO$127:$BP$138,2,FALSE) ->  | BH28: ='Budget FCFA'!#REF!/VLOOKUP(BH$2,$BO$127:$BP$138,2,FALSE) ->  | BI28: ='Budget FCFA'!#REF!/VLOOKUP(BI$2,$BO$127:$BP$138,2,FALSE) ->  | BJ28: ='Budget FCFA'!#REF!/VLOOKUP(BJ$2,$BO$127:$BP$138,2,FALSE) ->  | BL28: =BK28-'Budget FCFA'!#REF! -> 
A29: PUBCATAL | B29: ABIDJAN | C29: Impression catalogue | D29: ='Budget FCFA'!D29/VLOOKUP(D$2,$BO$127:$BP$138,2,FALSE) -> 0 | E29: ='Budget FCFA'!E29/VLOOKUP(E$2,$BO$127:$BP$138,2,FALSE) -> 114.3367629 | F29: ='Budget FCFA'!F29/VLOOKUP(F$2,$BO$127:$BP$138,2,FALSE) -> 0 | G29: ='Budget FCFA'!G29/VLOOKUP(G$2,$BO$127:$BP$138,2,FALSE) -> 0 | H29: ='Budget FCFA'!H29/VLOOKUP(H$2,$BO$127:$BP$138,2,FALSE) -> 0 | I29: ='Budget FCFA'!I29/VLOOKUP(I$2,$BO$127:$BP$138,2,FALSE) -> 3430.102888 | J29: ='Budget FCFA'!J29/VLOOKUP(J$2,$BO$127:$BP$138,2,FALSE) -> 0 | K29: ='Budget FCFA'!K29/VLOOKUP(K$2,$BO$127:$BP$138,2,FALSE) -> 0 | L29: ='Budget FCFA'!L29/VLOOKUP(L$2,$BO$127:$BP$138,2,FALSE) -> 0 | M29: ='Budget FCFA'!M29/VLOOKUP(M$2,$BO$127:$BP$138,2,FALSE) -> 0 | N29: ='Budget FCFA'!N29/VLOOKUP(N$2,$BO$127:$BP$138,2,FALSE) -> 0 | O29: ='Budget FCFA'!O29/VLOOKUP(O$2,$BO$127:$BP$138,2,FALSE) -> 114.3367629 | P29: ='Budget FCFA'!P29/VLOOKUP(P$2,$BO$127:$BP$138,2,FALSE) -> 1600.714681 | Q29: ='Budget FCFA'!Q29/VLOOKUP(Q$2,$BO$127:$BP$138,2,FALSE) -> 0 | R29: ='Budget FCFA'!R29/VLOOKUP(R$2,$BO$127:$BP$138,2,FALSE) -> 0 | S29: ='Budget FCFA'!S29/VLOOKUP(S$2,$BO$127:$BP$138,2,FALSE) -> 0 | T29: ='Budget FCFA'!T29/VLOOKUP(T$2,$BO$127:$BP$138,2,FALSE) -> 4459.133754 | U29: ='Budget FCFA'!U29/VLOOKUP(U$2,$BO$127:$BP$138,2,FALSE) -> 0 | V29: ='Budget FCFA'!V29/VLOOKUP(V$2,$BO$127:$BP$138,2,FALSE) -> 0 | W29: ='Budget FCFA'!W29/VLOOKUP(W$2,$BO$127:$BP$138,2,FALSE) -> 0 | X29: ='Budget FCFA'!X29/VLOOKUP(X$2,$BO$127:$BP$138,2,FALSE) -> 114.3367629 | Y29: ='Budget FCFA'!Y29/VLOOKUP(Y$2,$BO$127:$BP$138,2,FALSE) -> 0 | Z29: ='Budget FCFA'!Z29/VLOOKUP(Z$2,$BO$127:$BP$138,2,FALSE) -> 0 | AA29: ='Budget FCFA'!AA29/VLOOKUP(AA$2,$BO$127:$BP$138,2,FALSE) -> 0 | AB29: ='Budget FCFA'!AB29/VLOOKUP(AB$2,$BO$127:$BP$138,2,FALSE) -> 1864.657809 | AC29: ='Budget FCFA'!AC29/VLOOKUP(AC$2,$BO$127:$BP$138,2,FALSE) -> 0 | AD29: ='Budget FCFA'!AD29/VLOOKUP(AD$2,$BO$127:$BP$138,2,FALSE) -> 0 | AE29: ='Budget FCFA'!AE29/VLOOKUP(AE$2,$BO$127:$BP$138,2,FALSE) -> 0 | AF29: ='Budget FCFA'!AF29/VLOOKUP(AF$2,$BO$127:$BP$138,2,FALSE) -> 0 | AG29: ='Budget FCFA'!AG29/VLOOKUP(AG$2,$BO$127:$BP$138,2,FALSE) -> 114.3367629 | AH29: ='Budget FCFA'!AH29/VLOOKUP(AH$2,$BO$127:$BP$138,2,FALSE) -> 0 | AI29: ='Budget FCFA'!AI29/VLOOKUP(AI$2,$BO$127:$BP$138,2,FALSE) -> 0 | AJ29: ='Budget FCFA'!AJ29/VLOOKUP(AJ$2,$BO$127:$BP$138,2,FALSE) -> 0 | AK29: ='Budget FCFA'!AK29/VLOOKUP(AK$2,$BO$127:$BP$138,2,FALSE) -> 0 | AL29: ='Budget FCFA'!AL29/VLOOKUP(AL$2,$BO$127:$BP$138,2,FALSE) -> 6753.491464 | AM29: ='Budget FCFA'!AM29/VLOOKUP(AM$2,$BO$127:$BP$138,2,FALSE) -> 114.3367629 | AN29: ='Budget FCFA'!AN29/VLOOKUP(AN$2,$BO$127:$BP$138,2,FALSE) -> 0 | AO29: ='Budget FCFA'!AO29/VLOOKUP(AO$2,$BO$127:$BP$138,2,FALSE) -> 0 | AP29: ='Budget FCFA'!AP29/VLOOKUP(AP$2,$BO$127:$BP$138,2,FALSE) -> 0 | AQ29: ='Budget FCFA'!#REF!/VLOOKUP(AQ$2,$BO$127:$BP$138,2,FALSE) ->  | AR29: ='Budget FCFA'!#REF!/VLOOKUP(AR$2,$BO$127:$BP$138,2,FALSE) ->  | AS29: ='Budget FCFA'!#REF!/VLOOKUP(AS$2,$BO$127:$BP$138,2,FALSE) ->  | AT29: ='Budget FCFA'!#REF!/VLOOKUP(AT$2,$BO$127:$BP$138,2,FALSE) ->  | AU29: ='Budget FCFA'!#REF!/VLOOKUP(AU$2,$BO$127:$BP$138,2,FALSE) ->  | AV29: ='Budget FCFA'!#REF!/VLOOKUP(AV$2,$BO$127:$BP$138,2,FALSE) ->  | AW29: ='Budget FCFA'!#REF!/VLOOKUP(AW$2,$BO$127:$BP$138,2,FALSE) ->  | AX29: ='Budget FCFA'!#REF!/VLOOKUP(AX$2,$BO$127:$BP$138,2,FALSE) ->  | AY29: ='Budget FCFA'!#REF!/VLOOKUP(AY$2,$BO$127:$BP$138,2,FALSE) ->  | AZ29: ='Budget FCFA'!#REF!/VLOOKUP(AZ$2,$BO$127:$BP$138,2,FALSE) ->  | BA29: ='Budget FCFA'!#REF!/VLOOKUP(BA$2,$BO$127:$BP$138,2,FALSE) ->  | BB29: ='Budget FCFA'!#REF!/VLOOKUP(BB$2,$BO$127:$BP$138,2,FALSE) ->  | BC29: ='Budget FCFA'!#REF!/VLOOKUP(BC$2,$BO$127:$BP$138,2,FALSE) ->  | BD29: ='Budget FCFA'!#REF!/VLOOKUP(BD$2,$BO$127:$BP$138,2,FALSE) ->  | BE29: ='Budget FCFA'!#REF!/VLOOKUP(BE$2,$BO$127:$BP$138,2,FALSE) ->  | BF29: ='Budget FCFA'!#REF!/VLOOKUP(BF$2,$BO$127:$BP$138,2,FALSE) ->  | BG29: ='Budget FCFA'!#REF!/VLOOKUP(BG$2,$BO$127:$BP$138,2,FALSE) ->  | BH29: ='Budget FCFA'!#REF!/VLOOKUP(BH$2,$BO$127:$BP$138,2,FALSE) ->  | BI29: ='Budget FCFA'!#REF!/VLOOKUP(BI$2,$BO$127:$BP$138,2,FALSE) ->  | BJ29: ='Budget FCFA'!#REF!/VLOOKUP(BJ$2,$BO$127:$BP$138,2,FALSE) ->  | BL29: =BK29-'Budget FCFA'!#REF! -> 
A30: PUBCATAL | B30: BRAZZA | C30: Impression catalogue | D30: ='Budget FCFA'!D30/VLOOKUP(D$2,$BO$127:$BP$138,2,FALSE) -> 0 | E30: ='Budget FCFA'!E30/VLOOKUP(E$2,$BO$127:$BP$138,2,FALSE) -> 0 | F30: ='Budget FCFA'!F30/VLOOKUP(F$2,$BO$127:$BP$138,2,FALSE) -> 0 | G30: ='Budget FCFA'!G30/VLOOKUP(G$2,$BO$127:$BP$138,2,FALSE) -> 0 | H30: ='Budget FCFA'!H30/VLOOKUP(H$2,$BO$127:$BP$138,2,FALSE) -> 0 | I30: ='Budget FCFA'!I30/VLOOKUP(I$2,$BO$127:$BP$138,2,FALSE) -> 0 | J30: ='Budget FCFA'!J30/VLOOKUP(J$2,$BO$127:$BP$138,2,FALSE) -> 0 | K30: ='Budget FCFA'!K30/VLOOKUP(K$2,$BO$127:$BP$138,2,FALSE) -> 0 | L30: ='Budget FCFA'!L30/VLOOKUP(L$2,$BO$127:$BP$138,2,FALSE) -> 0 | M30: ='Budget FCFA'!M30/VLOOKUP(M$2,$BO$127:$BP$138,2,FALSE) -> 0 | N30: ='Budget FCFA'!N30/VLOOKUP(N$2,$BO$127:$BP$138,2,FALSE) -> 0 | O30: ='Budget FCFA'!O30/VLOOKUP(O$2,$BO$127:$BP$138,2,FALSE) -> 0 | P30: ='Budget FCFA'!P30/VLOOKUP(P$2,$BO$127:$BP$138,2,FALSE) -> 0 | Q30: ='Budget FCFA'!Q30/VLOOKUP(Q$2,$BO$127:$BP$138,2,FALSE) -> 0 | R30: ='Budget FCFA'!R30/VLOOKUP(R$2,$BO$127:$BP$138,2,FALSE) -> 0 | S30: ='Budget FCFA'!S30/VLOOKUP(S$2,$BO$127:$BP$138,2,FALSE) -> 0 | T30: ='Budget FCFA'!T30/VLOOKUP(T$2,$BO$127:$BP$138,2,FALSE) -> 0 | U30: ='Budget FCFA'!U30/VLOOKUP(U$2,$BO$127:$BP$138,2,FALSE) -> 0 | V30: ='Budget FCFA'!V30/VLOOKUP(V$2,$BO$127:$BP$138,2,FALSE) -> 0 | W30: ='Budget FCFA'!W30/VLOOKUP(W$2,$BO$127:$BP$138,2,FALSE) -> 0 | X30: ='Budget FCFA'!X30/VLOOKUP(X$2,$BO$127:$BP$138,2,FALSE) -> 0 | Y30: ='Budget FCFA'!Y30/VLOOKUP(Y$2,$BO$127:$BP$138,2,FALSE) -> 0 | Z30: ='Budget FCFA'!Z30/VLOOKUP(Z$2,$BO$127:$BP$138,2,FALSE) -> 0 | AA30: ='Budget FCFA'!AA30/VLOOKUP(AA$2,$BO$127:$BP$138,2,FALSE) -> 2385.82712 | AB30: ='Budget FCFA'!AB30/VLOOKUP(AB$2,$BO$127:$BP$138,2,FALSE) -> 0 | AC30: ='Budget FCFA'!AC30/VLOOKUP(AC$2,$BO$127:$BP$138,2,FALSE) -> 0 | AD30: ='Budget FCFA'!AD30/VLOOKUP(AD$2,$BO$127:$BP$138,2,FALSE) -> 0 | AE30: ='Budget FCFA'!AE30/VLOOKUP(AE$2,$BO$127:$BP$138,2,FALSE) -> 0 | AF30: ='Budget FCFA'!AF30/VLOOKUP(AF$2,$BO$127:$BP$138,2,FALSE) -> 0 | AG30: ='Budget FCFA'!AG30/VLOOKUP(AG$2,$BO$127:$BP$138,2,FALSE) -> 0 | AH30: ='Budget FCFA'!AH30/VLOOKUP(AH$2,$BO$127:$BP$138,2,FALSE) -> 0 | AI30: ='Budget FCFA'!AI30/VLOOKUP(AI$2,$BO$127:$BP$138,2,FALSE) -> 0 | AJ30: ='Budget FCFA'!AJ30/VLOOKUP(AJ$2,$BO$127:$BP$138,2,FALSE) -> 0 | AK30: ='Budget FCFA'!AK30/VLOOKUP(AK$2,$BO$127:$BP$138,2,FALSE) -> 0 | AL30: ='Budget FCFA'!AL30/VLOOKUP(AL$2,$BO$127:$BP$138,2,FALSE) -> 1631.204484 | AM30: ='Budget FCFA'!AM30/VLOOKUP(AM$2,$BO$127:$BP$138,2,FALSE) -> 0 | AN30: ='Budget FCFA'!AN30/VLOOKUP(AN$2,$BO$127:$BP$138,2,FALSE) -> 0 | AO30: ='Budget FCFA'!AO30/VLOOKUP(AO$2,$BO$127:$BP$138,2,FALSE) -> 0 | AP30: ='Budget FCFA'!AP30/VLOOKUP(AP$2,$BO$127:$BP$138,2,FALSE) -> 0 | AQ30: ='Budget FCFA'!#REF!/VLOOKUP(AQ$2,$BO$127:$BP$138,2,FALSE) ->  | AR30: ='Budget FCFA'!#REF!/VLOOKUP(AR$2,$BO$127:$BP$138,2,FALSE) ->  | AS30: ='Budget FCFA'!#REF!/VLOOKUP(AS$2,$BO$127:$BP$138,2,FALSE) ->  | AT30: ='Budget FCFA'!#REF!/VLOOKUP(AT$2,$BO$127:$BP$138,2,FALSE) ->  | AU30: ='Budget FCFA'!#REF!/VLOOKUP(AU$2,$BO$127:$BP$138,2,FALSE) ->  | AV30: ='Budget FCFA'!#REF!/VLOOKUP(AV$2,$BO$127:$BP$138,2,FALSE) ->  | AW30: ='Budget FCFA'!#REF!/VLOOKUP(AW$2,$BO$127:$BP$138,2,FALSE) ->  | AX30: ='Budget FCFA'!#REF!/VLOOKUP(AX$2,$BO$127:$BP$138,2,FALSE) ->  | AY30: ='Budget FCFA'!#REF!/VLOOKUP(AY$2,$BO$127:$BP$138,2,FALSE) ->  | AZ30: ='Budget FCFA'!#REF!/VLOOKUP(AZ$2,$BO$127:$BP$138,2,FALSE) ->  | BA30: ='Budget FCFA'!#REF!/VLOOKUP(BA$2,$BO$127:$BP$138,2,FALSE) ->  | BB30: ='Budget FCFA'!#REF!/VLOOKUP(BB$2,$BO$127:$BP$138,2,FALSE) ->  | BC30: ='Budget FCFA'!#REF!/VLOOKUP(BC$2,$BO$127:$BP$138,2,FALSE) ->  | BD30: ='Budget FCFA'!#REF!/VLOOKUP(BD$2,$BO$127:$BP$138,2,FALSE) ->  | BE30: ='Budget FCFA'!#REF!/VLOOKUP(BE$2,$BO$127:$BP$138,2,FALSE) ->  | BF30: ='Budget FCFA'!#REF!/VLOOKUP(BF$2,$BO$127:$BP$138,2,FALSE) ->  | BG30: ='Budget FCFA'!#REF!/VLOOKUP(BG$2,$BO$127:$BP$138,2,FALSE) ->  | BH30: ='Budget FCFA'!#REF!/VLOOKUP(BH$2,$BO$127:$BP$138,2,FALSE) ->  | BI30: ='Budget FCFA'!#REF!/VLOOKUP(BI$2,$BO$127:$BP$138,2,FALSE) ->  | BJ30: ='Budget FCFA'!#REF!/VLOOKUP(BJ$2,$BO$127:$BP$138,2,FALSE) ->  | BL30: =BK30-'Budget FCFA'!#REF! -> 
A31: PUBCATAL | B31: DAKAR | C31: Impression catalogue | D31: ='Budget FCFA'!D31/VLOOKUP(D$2,$BO$127:$BP$138,2,FALSE) -> 0 | E31: ='Budget FCFA'!E31/VLOOKUP(E$2,$BO$127:$BP$138,2,FALSE) -> 0 | F31: ='Budget FCFA'!F31/VLOOKUP(F$2,$BO$127:$BP$138,2,FALSE) -> 0 | G31: ='Budget FCFA'!G31/VLOOKUP(G$2,$BO$127:$BP$138,2,FALSE) -> 0 | H31: ='Budget FCFA'!H31/VLOOKUP(H$2,$BO$127:$BP$138,2,FALSE) -> 0 | I31: ='Budget FCFA'!I31/VLOOKUP(I$2,$BO$127:$BP$138,2,FALSE) -> 914.6941034 | J31: ='Budget FCFA'!J31/VLOOKUP(J$2,$BO$127:$BP$138,2,FALSE) -> 0 | K31: ='Budget FCFA'!K31/VLOOKUP(K$2,$BO$127:$BP$138,2,FALSE) -> 0 | L31: ='Budget FCFA'!L31/VLOOKUP(L$2,$BO$127:$BP$138,2,FALSE) -> 0 | M31: ='Budget FCFA'!M31/VLOOKUP(M$2,$BO$127:$BP$138,2,FALSE) -> 0 | N31: ='Budget FCFA'!N31/VLOOKUP(N$2,$BO$127:$BP$138,2,FALSE) -> 0 | O31: ='Budget FCFA'!O31/VLOOKUP(O$2,$BO$127:$BP$138,2,FALSE) -> 0 | P31: ='Budget FCFA'!P31/VLOOKUP(P$2,$BO$127:$BP$138,2,FALSE) -> 0 | Q31: ='Budget FCFA'!Q31/VLOOKUP(Q$2,$BO$127:$BP$138,2,FALSE) -> 0 | R31: ='Budget FCFA'!R31/VLOOKUP(R$2,$BO$127:$BP$138,2,FALSE) -> 0 | S31: ='Budget FCFA'!S31/VLOOKUP(S$2,$BO$127:$BP$138,2,FALSE) -> 0 | T31: ='Budget FCFA'!T31/VLOOKUP(T$2,$BO$127:$BP$138,2,FALSE) -> 0 | U31: ='Budget FCFA'!U31/VLOOKUP(U$2,$BO$127:$BP$138,2,FALSE) -> 0 | V31: ='Budget FCFA'!V31/VLOOKUP(V$2,$BO$127:$BP$138,2,FALSE) -> 0 | W31: ='Budget FCFA'!W31/VLOOKUP(W$2,$BO$127:$BP$138,2,FALSE) -> 0 | X31: ='Budget FCFA'!X31/VLOOKUP(X$2,$BO$127:$BP$138,2,FALSE) -> 0 | Y31: ='Budget FCFA'!Y31/VLOOKUP(Y$2,$BO$127:$BP$138,2,FALSE) -> 0 | Z31: ='Budget FCFA'!Z31/VLOOKUP(Z$2,$BO$127:$BP$138,2,FALSE) -> 0 | AA31: ='Budget FCFA'!AA31/VLOOKUP(AA$2,$BO$127:$BP$138,2,FALSE) -> 0 | AB31: ='Budget FCFA'!AB31/VLOOKUP(AB$2,$BO$127:$BP$138,2,FALSE) -> 0 | AC31: ='Budget FCFA'!AC31/VLOOKUP(AC$2,$BO$127:$BP$138,2,FALSE) -> 0 | AD31: ='Budget FCFA'!AD31/VLOOKUP(AD$2,$BO$127:$BP$138,2,FALSE) -> 0 | AE31: ='Budget FCFA'!AE31/VLOOKUP(AE$2,$BO$127:$BP$138,2,FALSE) -> 0 | AF31: ='Budget FCFA'!AF31/VLOOKUP(AF$2,$BO$127:$BP$138,2,FALSE) -> 0 | AG31: ='Budget FCFA'!AG31/VLOOKUP(AG$2,$BO$127:$BP$138,2,FALSE) -> 0 | AH31: ='Budget FCFA'!AH31/VLOOKUP(AH$2,$BO$127:$BP$138,2,FALSE) -> 0 | AI31: ='Budget FCFA'!AI31/VLOOKUP(AI$2,$BO$127:$BP$138,2,FALSE) -> 0 | AJ31: ='Budget FCFA'!AJ31/VLOOKUP(AJ$2,$BO$127:$BP$138,2,FALSE) -> 0 | AK31: ='Budget FCFA'!AK31/VLOOKUP(AK$2,$BO$127:$BP$138,2,FALSE) -> 0 | AL31: ='Budget FCFA'!AL31/VLOOKUP(AL$2,$BO$127:$BP$138,2,FALSE) -> 1173.857433 | AM31: ='Budget FCFA'!AM31/VLOOKUP(AM$2,$BO$127:$BP$138,2,FALSE) -> 0 | AN31: ='Budget FCFA'!AN31/VLOOKUP(AN$2,$BO$127:$BP$138,2,FALSE) -> 0 | AO31: ='Budget FCFA'!AO31/VLOOKUP(AO$2,$BO$127:$BP$138,2,FALSE) -> 0 | AP31: ='Budget FCFA'!AP31/VLOOKUP(AP$2,$BO$127:$BP$138,2,FALSE) -> 0 | AQ31: ='Budget FCFA'!#REF!/VLOOKUP(AQ$2,$BO$127:$BP$138,2,FALSE) ->  | AR31: ='Budget FCFA'!#REF!/VLOOKUP(AR$2,$BO$127:$BP$138,2,FALSE) ->  | AS31: ='Budget FCFA'!#REF!/VLOOKUP(AS$2,$BO$127:$BP$138,2,FALSE) ->  | AT31: ='Budget FCFA'!#REF!/VLOOKUP(AT$2,$BO$127:$BP$138,2,FALSE) ->  | AU31: ='Budget FCFA'!#REF!/VLOOKUP(AU$2,$BO$127:$BP$138,2,FALSE) ->  | AV31: ='Budget FCFA'!#REF!/VLOOKUP(AV$2,$BO$127:$BP$138,2,FALSE) ->  | AW31: ='Budget FCFA'!#REF!/VLOOKUP(AW$2,$BO$127:$BP$138,2,FALSE) ->  | AX31: ='Budget FCFA'!#REF!/VLOOKUP(AX$2,$BO$127:$BP$138,2,FALSE) ->  | AY31: ='Budget FCFA'!#REF!/VLOOKUP(AY$2,$BO$127:$BP$138,2,FALSE) ->  | AZ31: ='Budget FCFA'!#REF!/VLOOKUP(AZ$2,$BO$127:$BP$138,2,FALSE) ->  | BA31: ='Budget FCFA'!#REF!/VLOOKUP(BA$2,$BO$127:$BP$138,2,FALSE) ->  | BB31: ='Budget FCFA'!#REF!/VLOOKUP(BB$2,$BO$127:$BP$138,2,FALSE) ->  | BC31: ='Budget FCFA'!#REF!/VLOOKUP(BC$2,$BO$127:$BP$138,2,FALSE) ->  | BD31: ='Budget FCFA'!#REF!/VLOOKUP(BD$2,$BO$127:$BP$138,2,FALSE) ->  | BE31: ='Budget FCFA'!#REF!/VLOOKUP(BE$2,$BO$127:$BP$138,2,FALSE) ->  | BF31: ='Budget FCFA'!#REF!/VLOOKUP(BF$2,$BO$127:$BP$138,2,FALSE) ->  | BG31: ='Budget FCFA'!#REF!/VLOOKUP(BG$2,$BO$127:$BP$138,2,FALSE) ->  | BH31: ='Budget FCFA'!#REF!/VLOOKUP(BH$2,$BO$127:$BP$138,2,FALSE) ->  | BI31: ='Budget FCFA'!#REF!/VLOOKUP(BI$2,$BO$127:$BP$138,2,FALSE) ->  | BJ31: ='Budget FCFA'!#REF!/VLOOKUP(BJ$2,$BO$127:$BP$138,2,FALSE) ->  | BL31: =BK31-'Budget FCFA'!#REF! -> 
A32: PUBCATAL | B32: LIBREVILLE | C32: Impression catalogue | D32: ='Budget FCFA'!D32/VLOOKUP(D$2,$BO$127:$BP$138,2,FALSE) -> 0 | E32: ='Budget FCFA'!E32/VLOOKUP(E$2,$BO$127:$BP$138,2,FALSE) -> 0 | F32: ='Budget FCFA'!F32/VLOOKUP(F$2,$BO$127:$BP$138,2,FALSE) -> 0 | G32: ='Budget FCFA'!G32/VLOOKUP(G$2,$BO$127:$BP$138,2,FALSE) -> 0 | H32: ='Budget FCFA'!H32/VLOOKUP(H$2,$BO$127:$BP$138,2,FALSE) -> 0 | I32: ='Budget FCFA'!I32/VLOOKUP(I$2,$BO$127:$BP$138,2,FALSE) -> 1808.045344 | J32: ='Budget FCFA'!J32/VLOOKUP(J$2,$BO$127:$BP$138,2,FALSE) -> 0 | K32: ='Budget FCFA'!K32/VLOOKUP(K$2,$BO$127:$BP$138,2,FALSE) -> 0 | L32: ='Budget FCFA'!L32/VLOOKUP(L$2,$BO$127:$BP$138,2,FALSE) -> 0 | M32: ='Budget FCFA'!M32/VLOOKUP(M$2,$BO$127:$BP$138,2,FALSE) -> 0 | N32: ='Budget FCFA'!N32/VLOOKUP(N$2,$BO$127:$BP$138,2,FALSE) -> 0 | O32: ='Budget FCFA'!O32/VLOOKUP(O$2,$BO$127:$BP$138,2,FALSE) -> 0 | P32: ='Budget FCFA'!P32/VLOOKUP(P$2,$BO$127:$BP$138,2,FALSE) -> 0 | Q32: ='Budget FCFA'!Q32/VLOOKUP(Q$2,$BO$127:$BP$138,2,FALSE) -> 0 | R32: ='Budget FCFA'!R32/VLOOKUP(R$2,$BO$127:$BP$138,2,FALSE) -> 0 | S32: ='Budget FCFA'!S32/VLOOKUP(S$2,$BO$127:$BP$138,2,FALSE) -> 0 | T32: ='Budget FCFA'!T32/VLOOKUP(T$2,$BO$127:$BP$138,2,FALSE) -> 0 | U32: ='Budget FCFA'!U32/VLOOKUP(U$2,$BO$127:$BP$138,2,FALSE) -> 0 | V32: ='Budget FCFA'!V32/VLOOKUP(V$2,$BO$127:$BP$138,2,FALSE) -> 0 | W32: ='Budget FCFA'!W32/VLOOKUP(W$2,$BO$127:$BP$138,2,FALSE) -> 0 | X32: ='Budget FCFA'!X32/VLOOKUP(X$2,$BO$127:$BP$138,2,FALSE) -> 0 | Y32: ='Budget FCFA'!Y32/VLOOKUP(Y$2,$BO$127:$BP$138,2,FALSE) -> 0 | Z32: ='Budget FCFA'!Z32/VLOOKUP(Z$2,$BO$127:$BP$138,2,FALSE) -> 0 | AA32: ='Budget FCFA'!AA32/VLOOKUP(AA$2,$BO$127:$BP$138,2,FALSE) -> 0 | AB32: ='Budget FCFA'!AB32/VLOOKUP(AB$2,$BO$127:$BP$138,2,FALSE) -> 0 | AC32: ='Budget FCFA'!AC32/VLOOKUP(AC$2,$BO$127:$BP$138,2,FALSE) -> 0 | AD32: ='Budget FCFA'!AD32/VLOOKUP(AD$2,$BO$127:$BP$138,2,FALSE) -> 0 | AE32: ='Budget FCFA'!AE32/VLOOKUP(AE$2,$BO$127:$BP$138,2,FALSE) -> 0 | AF32: ='Budget FCFA'!AF32/VLOOKUP(AF$2,$BO$127:$BP$138,2,FALSE) -> 0 | AG32: ='Budget FCFA'!AG32/VLOOKUP(AG$2,$BO$127:$BP$138,2,FALSE) -> 0 | AH32: ='Budget FCFA'!AH32/VLOOKUP(AH$2,$BO$127:$BP$138,2,FALSE) -> 0 | AI32: ='Budget FCFA'!AI32/VLOOKUP(AI$2,$BO$127:$BP$138,2,FALSE) -> 0 | AJ32: ='Budget FCFA'!AJ32/VLOOKUP(AJ$2,$BO$127:$BP$138,2,FALSE) -> 0 | AK32: ='Budget FCFA'!AK32/VLOOKUP(AK$2,$BO$127:$BP$138,2,FALSE) -> 0 | AL32: ='Budget FCFA'!AL32/VLOOKUP(AL$2,$BO$127:$BP$138,2,FALSE) -> 3353.878379 | AM32: ='Budget FCFA'!AM32/VLOOKUP(AM$2,$BO$127:$BP$138,2,FALSE) -> 0 | AN32: ='Budget FCFA'!AN32/VLOOKUP(AN$2,$BO$127:$BP$138,2,FALSE) -> 0 | AO32: ='Budget FCFA'!AO32/VLOOKUP(AO$2,$BO$127:$BP$138,2,FALSE) -> 0 | AP32: ='Budget FCFA'!AP32/VLOOKUP(AP$2,$BO$127:$BP$138,2,FALSE) -> 0 | AQ32: ='Budget FCFA'!#REF!/VLOOKUP(AQ$2,$BO$127:$BP$138,2,FALSE) ->  | AR32: ='Budget FCFA'!#REF!/VLOOKUP(AR$2,$BO$127:$BP$138,2,FALSE) ->  | AS32: ='Budget FCFA'!#REF!/VLOOKUP(AS$2,$BO$127:$BP$138,2,FALSE) ->  | AT32: ='Budget FCFA'!#REF!/VLOOKUP(AT$2,$BO$127:$BP$138,2,FALSE) ->  | AU32: ='Budget FCFA'!#REF!/VLOOKUP(AU$2,$BO$127:$BP$138,2,FALSE) ->  | AV32: ='Budget FCFA'!#REF!/VLOOKUP(AV$2,$BO$127:$BP$138,2,FALSE) ->  | AW32: ='Budget FCFA'!#REF!/VLOOKUP(AW$2,$BO$127:$BP$138,2,FALSE) ->  | AX32: ='Budget FCFA'!#REF!/VLOOKUP(AX$2,$BO$127:$BP$138,2,FALSE) ->  | AY32: ='Budget FCFA'!#REF!/VLOOKUP(AY$2,$BO$127:$BP$138,2,FALSE) ->  | AZ32: ='Budget FCFA'!#REF!/VLOOKUP(AZ$2,$BO$127:$BP$138,2,FALSE) ->  | BA32: ='Budget FCFA'!#REF!/VLOOKUP(BA$2,$BO$127:$BP$138,2,FALSE) ->  | BB32: ='Budget FCFA'!#REF!/VLOOKUP(BB$2,$BO$127:$BP$138,2,FALSE) ->  | BC32: ='Budget FCFA'!#REF!/VLOOKUP(BC$2,$BO$127:$BP$138,2,FALSE) ->  | BD32: ='Budget FCFA'!#REF!/VLOOKUP(BD$2,$BO$127:$BP$138,2,FALSE) ->  | BE32: ='Budget FCFA'!#REF!/VLOOKUP(BE$2,$BO$127:$BP$138,2,FALSE) ->  | BF32: ='Budget FCFA'!#REF!/VLOOKUP(BF$2,$BO$127:$BP$138,2,FALSE) ->  | BG32: ='Budget FCFA'!#REF!/VLOOKUP(BG$2,$BO$127:$BP$138,2,FALSE) ->  | BH32: ='Budget FCFA'!#REF!/VLOOKUP(BH$2,$BO$127:$BP$138,2,FALSE) ->  | BI32: ='Budget FCFA'!#REF!/VLOOKUP(BI$2,$BO$127:$BP$138,2,FALSE) ->  | BJ32: ='Budget FCFA'!#REF!/VLOOKUP(BJ$2,$BO$127:$BP$138,2,FALSE) ->  | BL32: =BK32-'Budget FCFA'!#REF! -> 
A33: PUBCATAL | B33: DOUALA | C33: Impression catalogue | D33: ='Budget FCFA'!D33/VLOOKUP(D$2,$BO$127:$BP$138,2,FALSE) -> 0 | E33: ='Budget FCFA'!E33/VLOOKUP(E$2,$BO$127:$BP$138,2,FALSE) -> 0 | F33: ='Budget FCFA'!F33/VLOOKUP(F$2,$BO$127:$BP$138,2,FALSE) -> 0 | G33: ='Budget FCFA'!G33/VLOOKUP(G$2,$BO$127:$BP$138,2,FALSE) -> 0 | H33: ='Budget FCFA'!H33/VLOOKUP(H$2,$BO$127:$BP$138,2,FALSE) -> 0 | I33: ='Budget FCFA'!I33/VLOOKUP(I$2,$BO$127:$BP$138,2,FALSE) -> 1402.530959 | J33: ='Budget FCFA'!J33/VLOOKUP(J$2,$BO$127:$BP$138,2,FALSE) -> 0 | K33: ='Budget FCFA'!K33/VLOOKUP(K$2,$BO$127:$BP$138,2,FALSE) -> 0 | L33: ='Budget FCFA'!L33/VLOOKUP(L$2,$BO$127:$BP$138,2,FALSE) -> 0 | M33: ='Budget FCFA'!M33/VLOOKUP(M$2,$BO$127:$BP$138,2,FALSE) -> 0 | N33: ='Budget FCFA'!N33/VLOOKUP(N$2,$BO$127:$BP$138,2,FALSE) -> 0 | O33: ='Budget FCFA'!O33/VLOOKUP(O$2,$BO$127:$BP$138,2,FALSE) -> 0 | P33: ='Budget FCFA'!P33/VLOOKUP(P$2,$BO$127:$BP$138,2,FALSE) -> 0 | Q33: ='Budget FCFA'!Q33/VLOOKUP(Q$2,$BO$127:$BP$138,2,FALSE) -> 0 | R33: ='Budget FCFA'!R33/VLOOKUP(R$2,$BO$127:$BP$138,2,FALSE) -> 0 | S33: ='Budget FCFA'!S33/VLOOKUP(S$2,$BO$127:$BP$138,2,FALSE) -> 0 | T33: ='Budget FCFA'!T33/VLOOKUP(T$2,$BO$127:$BP$138,2,FALSE) -> 0 | U33: ='Budget FCFA'!U33/VLOOKUP(U$2,$BO$127:$BP$138,2,FALSE) -> 0 | V33: ='Budget FCFA'!V33/VLOOKUP(V$2,$BO$127:$BP$138,2,FALSE) -> 0 | W33: ='Budget FCFA'!W33/VLOOKUP(W$2,$BO$127:$BP$138,2,FALSE) -> 1512.294251 | X33: ='Budget FCFA'!X33/VLOOKUP(X$2,$BO$127:$BP$138,2,FALSE) -> 0 | Y33: ='Budget FCFA'!Y33/VLOOKUP(Y$2,$BO$127:$BP$138,2,FALSE) -> 0 | Z33: ='Budget FCFA'!Z33/VLOOKUP(Z$2,$BO$127:$BP$138,2,FALSE) -> 0 | AA33: ='Budget FCFA'!AA33/VLOOKUP(AA$2,$BO$127:$BP$138,2,FALSE) -> 0 | AB33: ='Budget FCFA'!AB33/VLOOKUP(AB$2,$BO$127:$BP$138,2,FALSE) -> 0 | AC33: ='Budget FCFA'!AC33/VLOOKUP(AC$2,$BO$127:$BP$138,2,FALSE) -> 0 | AD33: ='Budget FCFA'!AD33/VLOOKUP(AD$2,$BO$127:$BP$138,2,FALSE) -> 0 | AE33: ='Budget FCFA'!AE33/VLOOKUP(AE$2,$BO$127:$BP$138,2,FALSE) -> 0 | AF33: ='Budget FCFA'!AF33/VLOOKUP(AF$2,$BO$127:$BP$138,2,FALSE) -> 0 | AG33: ='Budget FCFA'!AG33/VLOOKUP(AG$2,$BO$127:$BP$138,2,FALSE) -> 0 | AH33: ='Budget FCFA'!AH33/VLOOKUP(AH$2,$BO$127:$BP$138,2,FALSE) -> 0 | AI33: ='Budget FCFA'!AI33/VLOOKUP(AI$2,$BO$127:$BP$138,2,FALSE) -> 0 | AJ33: ='Budget FCFA'!AJ33/VLOOKUP(AJ$2,$BO$127:$BP$138,2,FALSE) -> 0 | AK33: ='Budget FCFA'!AK33/VLOOKUP(AK$2,$BO$127:$BP$138,2,FALSE) -> 0 | AL33: ='Budget FCFA'!AL33/VLOOKUP(AL$2,$BO$127:$BP$138,2,FALSE) -> 2336.281189 | AM33: ='Budget FCFA'!AM33/VLOOKUP(AM$2,$BO$127:$BP$138,2,FALSE) -> 0 | AN33: ='Budget FCFA'!AN33/VLOOKUP(AN$2,$BO$127:$BP$138,2,FALSE) -> 0 | AO33: ='Budget FCFA'!AO33/VLOOKUP(AO$2,$BO$127:$BP$138,2,FALSE) -> 0 | AP33: ='Budget FCFA'!AP33/VLOOKUP(AP$2,$BO$127:$BP$138,2,FALSE) -> 0 | AQ33: ='Budget FCFA'!#REF!/VLOOKUP(AQ$2,$BO$127:$BP$138,2,FALSE) ->  | AR33: ='Budget FCFA'!#REF!/VLOOKUP(AR$2,$BO$127:$BP$138,2,FALSE) ->  | AS33: ='Budget FCFA'!#REF!/VLOOKUP(AS$2,$BO$127:$BP$138,2,FALSE) ->  | AT33: ='Budget FCFA'!#REF!/VLOOKUP(AT$2,$BO$127:$BP$138,2,FALSE) ->  | AU33: ='Budget FCFA'!#REF!/VLOOKUP(AU$2,$BO$127:$BP$138,2,FALSE) ->  | AV33: ='Budget FCFA'!#REF!/VLOOKUP(AV$2,$BO$127:$BP$138,2,FALSE) ->  | AW33: ='Budget FCFA'!#REF!/VLOOKUP(AW$2,$BO$127:$BP$138,2,FALSE) ->  | AX33: ='Budget FCFA'!#REF!/VLOOKUP(AX$2,$BO$127:$BP$138,2,FALSE) ->  | AY33: ='Budget FCFA'!#REF!/VLOOKUP(AY$2,$BO$127:$BP$138,2,FALSE) ->  | AZ33: ='Budget FCFA'!#REF!/VLOOKUP(AZ$2,$BO$127:$BP$138,2,FALSE) ->  | BA33: ='Budget FCFA'!#REF!/VLOOKUP(BA$2,$BO$127:$BP$138,2,FALSE) ->  | BB33: ='Budget FCFA'!#REF!/VLOOKUP(BB$2,$BO$127:$BP$138,2,FALSE) ->  | BC33: ='Budget FCFA'!#REF!/VLOOKUP(BC$2,$BO$127:$BP$138,2,FALSE) ->  | BD33: ='Budget FCFA'!#REF!/VLOOKUP(BD$2,$BO$127:$BP$138,2,FALSE) ->  | BE33: ='Budget FCFA'!#REF!/VLOOKUP(BE$2,$BO$127:$BP$138,2,FALSE) ->  | BF33: ='Budget FCFA'!#REF!/VLOOKUP(BF$2,$BO$127:$BP$138,2,FALSE) ->  | BG33: ='Budget FCFA'!#REF!/VLOOKUP(BG$2,$BO$127:$BP$138,2,FALSE) ->  | BH33: ='Budget FCFA'!#REF!/VLOOKUP(BH$2,$BO$127:$BP$138,2,FALSE) ->  | BI33: ='Budget FCFA'!#REF!/VLOOKUP(BI$2,$BO$127:$BP$138,2,FALSE) ->  | BJ33: ='Budget FCFA'!#REF!/VLOOKUP(BJ$2,$BO$127:$BP$138,2,FALSE) ->  | BL33: =BK33-'Budget FCFA'!#REF! -> 
A34: PUBCATAL | B34: TOTAL | C34: Total impression catalogue | D34: ='Budget FCFA'!D34/VLOOKUP(D$2,$BO$127:$BP$138,2,FALSE) -> 0 | E34: ='Budget FCFA'!E34/VLOOKUP(E$2,$BO$127:$BP$138,2,FALSE) -> 114.3367629 | F34: ='Budget FCFA'!F34/VLOOKUP(F$2,$BO$127:$BP$138,2,FALSE) -> 0 | G34: ='Budget FCFA'!G34/VLOOKUP(G$2,$BO$127:$BP$138,2,FALSE) -> 0 | H34: ='Budget FCFA'!H34/VLOOKUP(H$2,$BO$127:$BP$138,2,FALSE) -> 0 | I34: ='Budget FCFA'!I34/VLOOKUP(I$2,$BO$127:$BP$138,2,FALSE) -> 7555.373294 | J34: ='Budget FCFA'!J34/VLOOKUP(J$2,$BO$127:$BP$138,2,FALSE) -> 0 | K34: ='Budget FCFA'!K34/VLOOKUP(K$2,$BO$127:$BP$138,2,FALSE) -> 0 | L34: ='Budget FCFA'!L34/VLOOKUP(L$2,$BO$127:$BP$138,2,FALSE) -> 0 | M34: ='Budget FCFA'!M34/VLOOKUP(M$2,$BO$127:$BP$138,2,FALSE) -> 0 | N34: ='Budget FCFA'!N34/VLOOKUP(N$2,$BO$127:$BP$138,2,FALSE) -> 0 | O34: ='Budget FCFA'!O34/VLOOKUP(O$2,$BO$127:$BP$138,2,FALSE) -> 114.3367629 | P34: ='Budget FCFA'!P34/VLOOKUP(P$2,$BO$127:$BP$138,2,FALSE) -> 1600.714681 | Q34: ='Budget FCFA'!Q34/VLOOKUP(Q$2,$BO$127:$BP$138,2,FALSE) -> 0 | R34: ='Budget FCFA'!R34/VLOOKUP(R$2,$BO$127:$BP$138,2,FALSE) -> 0 | S34: ='Budget FCFA'!S34/VLOOKUP(S$2,$BO$127:$BP$138,2,FALSE) -> 0 | T34: ='Budget FCFA'!T34/VLOOKUP(T$2,$BO$127:$BP$138,2,FALSE) -> 4459.133754 | U34: ='Budget FCFA'!U34/VLOOKUP(U$2,$BO$127:$BP$138,2,FALSE) -> 0 | V34: ='Budget FCFA'!V34/VLOOKUP(V$2,$BO$127:$BP$138,2,FALSE) -> 0 | W34: ='Budget FCFA'!W34/VLOOKUP(W$2,$BO$127:$BP$138,2,FALSE) -> 1512.294251 | X34: ='Budget FCFA'!X34/VLOOKUP(X$2,$BO$127:$BP$138,2,FALSE) -> 114.3367629 | Y34: ='Budget FCFA'!Y34/VLOOKUP(Y$2,$BO$127:$BP$138,2,FALSE) -> 0 | Z34: ='Budget FCFA'!Z34/VLOOKUP(Z$2,$BO$127:$BP$138,2,FALSE) -> 0 | AA34: ='Budget FCFA'!AA34/VLOOKUP(AA$2,$BO$127:$BP$138,2,FALSE) -> 2385.82712 | AB34: ='Budget FCFA'!AB34/VLOOKUP(AB$2,$BO$127:$BP$138,2,FALSE) -> 1864.657809 | AC34: ='Budget FCFA'!AC34/VLOOKUP(AC$2,$BO$127:$BP$138,2,FALSE) -> 0 | AD34: ='Budget FCFA'!AD34/VLOOKUP(AD$2,$BO$127:$BP$138,2,FALSE) -> 0 | AE34: ='Budget FCFA'!AE34/VLOOKUP(AE$2,$BO$127:$BP$138,2,FALSE) -> 0 | AF34: ='Budget FCFA'!AF34/VLOOKUP(AF$2,$BO$127:$BP$138,2,FALSE) -> 0 | AG34: ='Budget FCFA'!AG34/VLOOKUP(AG$2,$BO$127:$BP$138,2,FALSE) -> 114.3367629 | AH34: ='Budget FCFA'!AH34/VLOOKUP(AH$2,$BO$127:$BP$138,2,FALSE) -> 0 | AI34: ='Budget FCFA'!AI34/VLOOKUP(AI$2,$BO$127:$BP$138,2,FALSE) -> 0 | AJ34: ='Budget FCFA'!AJ34/VLOOKUP(AJ$2,$BO$127:$BP$138,2,FALSE) -> 0 | AK34: ='Budget FCFA'!AK34/VLOOKUP(AK$2,$BO$127:$BP$138,2,FALSE) -> 0 | AL34: ='Budget FCFA'!AL34/VLOOKUP(AL$2,$BO$127:$BP$138,2,FALSE) -> 15248.71295 | AM34: ='Budget FCFA'!AM34/VLOOKUP(AM$2,$BO$127:$BP$138,2,FALSE) -> 114.3367629 | AN34: ='Budget FCFA'!AN34/VLOOKUP(AN$2,$BO$127:$BP$138,2,FALSE) -> 0 | AO34: ='Budget FCFA'!AO34/VLOOKUP(AO$2,$BO$127:$BP$138,2,FALSE) -> 0 | AP34: ='Budget FCFA'!AP34/VLOOKUP(AP$2,$BO$127:$BP$138,2,FALSE) -> 0 | AQ34: ='Budget FCFA'!#REF!/VLOOKUP(AQ$2,$BO$127:$BP$138,2,FALSE) ->  | AR34: ='Budget FCFA'!#REF!/VLOOKUP(AR$2,$BO$127:$BP$138,2,FALSE) ->  | AS34: ='Budget FCFA'!#REF!/VLOOKUP(AS$2,$BO$127:$BP$138,2,FALSE) ->  | AT34: ='Budget FCFA'!#REF!/VLOOKUP(AT$2,$BO$127:$BP$138,2,FALSE) ->  | AU34: ='Budget FCFA'!#REF!/VLOOKUP(AU$2,$BO$127:$BP$138,2,FALSE) ->  | AV34: ='Budget FCFA'!#REF!/VLOOKUP(AV$2,$BO$127:$BP$138,2,FALSE) ->  | AW34: ='Budget FCFA'!#REF!/VLOOKUP(AW$2,$BO$127:$BP$138,2,FALSE) ->  | AX34: ='Budget FCFA'!#REF!/VLOOKUP(AX$2,$BO$127:$BP$138,2,FALSE) ->  | AY34: ='Budget FCFA'!#REF!/VLOOKUP(AY$2,$BO$127:$BP$138,2,FALSE) ->  | AZ34: ='Budget FCFA'!#REF!/VLOOKUP(AZ$2,$BO$127:$BP$138,2,FALSE) ->  | BA34: ='Budget FCFA'!#REF!/VLOOKUP(BA$2,$BO$127:$BP$138,2,FALSE) ->  | BB34: ='Budget FCFA'!#REF!/VLOOKUP(BB$2,$BO$127:$BP$138,2,FALSE) ->  | BC34: ='Budget FCFA'!#REF!/VLOOKUP(BC$2,$BO$127:$BP$138,2,FALSE) ->  | BD34: ='Budget FCFA'!#REF!/VLOOKUP(BD$2,$BO$127:$BP$138,2,FALSE) ->  | BE34: ='Budget FCFA'!#REF!/VLOOKUP(BE$2,$BO$127:$BP$138,2,FALSE) ->  | BF34: ='Budget FCFA'!#REF!/VLOOKUP(BF$2,$BO$127:$BP$138,2,FALSE) ->  | BG34: ='Budget FCFA'!#REF!/VLOOKUP(BG$2,$BO$127:$BP$138,2,FALSE) ->  | BH34: ='Budget FCFA'!#REF!/VLOOKUP(BH$2,$BO$127:$BP$138,2,FALSE) ->  | BI34: ='Budget FCFA'!#REF!/VLOOKUP(BI$2,$BO$127:$BP$138,2,FALSE) ->  | BJ34: ='Budget FCFA'!#REF!/VLOOKUP(BJ$2,$BO$127:$BP$138,2,FALSE) ->  | BL34: =BK34-'Budget FCFA'!#REF! -> 
A35: PUBCATAL | B35: TOTAL | C35: Total catalogue | D35: ='Budget FCFA'!D35/VLOOKUP(D$2,$BO$127:$BP$138,2,FALSE) -> 0 | E35: ='Budget FCFA'!E35/VLOOKUP(E$2,$BO$127:$BP$138,2,FALSE) -> 114.3367629 | F35: ='Budget FCFA'!F35/VLOOKUP(F$2,$BO$127:$BP$138,2,FALSE) -> 0 | G35: ='Budget FCFA'!G35/VLOOKUP(G$2,$BO$127:$BP$138,2,FALSE) -> 0 | H35: ='Budget FCFA'!H35/VLOOKUP(H$2,$BO$127:$BP$138,2,FALSE) -> 0 | I35: ='Budget FCFA'!I35/VLOOKUP(I$2,$BO$127:$BP$138,2,FALSE) -> 7555.373294 | J35: ='Budget FCFA'!J35/VLOOKUP(J$2,$BO$127:$BP$138,2,FALSE) -> 0 | K35: ='Budget FCFA'!K35/VLOOKUP(K$2,$BO$127:$BP$138,2,FALSE) -> 0 | L35: ='Budget FCFA'!L35/VLOOKUP(L$2,$BO$127:$BP$138,2,FALSE) -> 0 | M35: ='Budget FCFA'!M35/VLOOKUP(M$2,$BO$127:$BP$138,2,FALSE) -> 0 | N35: ='Budget FCFA'!N35/VLOOKUP(N$2,$BO$127:$BP$138,2,FALSE) -> 0 | O35: ='Budget FCFA'!O35/VLOOKUP(O$2,$BO$127:$BP$138,2,FALSE) -> 114.3367629 | P35: ='Budget FCFA'!P35/VLOOKUP(P$2,$BO$127:$BP$138,2,FALSE) -> 1600.714681 | Q35: ='Budget FCFA'!Q35/VLOOKUP(Q$2,$BO$127:$BP$138,2,FALSE) -> 0 | R35: ='Budget FCFA'!R35/VLOOKUP(R$2,$BO$127:$BP$138,2,FALSE) -> 780 | S35: ='Budget FCFA'!S35/VLOOKUP(S$2,$BO$127:$BP$138,2,FALSE) -> 0 | T35: ='Budget FCFA'!T35/VLOOKUP(T$2,$BO$127:$BP$138,2,FALSE) -> 4459.133754 | U35: ='Budget FCFA'!U35/VLOOKUP(U$2,$BO$127:$BP$138,2,FALSE) -> 0 | V35: ='Budget FCFA'!V35/VLOOKUP(V$2,$BO$127:$BP$138,2,FALSE) -> 0 | W35: ='Budget FCFA'!W35/VLOOKUP(W$2,$BO$127:$BP$138,2,FALSE) -> 1512.294251 | X35: ='Budget FCFA'!X35/VLOOKUP(X$2,$BO$127:$BP$138,2,FALSE) -> 114.3367629 | Y35: ='Budget FCFA'!Y35/VLOOKUP(Y$2,$BO$127:$BP$138,2,FALSE) -> 0 | Z35: ='Budget FCFA'!Z35/VLOOKUP(Z$2,$BO$127:$BP$138,2,FALSE) -> 0 | AA35: ='Budget FCFA'!AA35/VLOOKUP(AA$2,$BO$127:$BP$138,2,FALSE) -> 2385.82712 | AB35: ='Budget FCFA'!AB35/VLOOKUP(AB$2,$BO$127:$BP$138,2,FALSE) -> 1864.657809 | AC35: ='Budget FCFA'!AC35/VLOOKUP(AC$2,$BO$127:$BP$138,2,FALSE) -> 0 | AD35: ='Budget FCFA'!AD35/VLOOKUP(AD$2,$BO$127:$BP$138,2,FALSE) -> 0 | AE35: ='Budget FCFA'!AE35/VLOOKUP(AE$2,$BO$127:$BP$138,2,FALSE) -> 0 | AF35: ='Budget FCFA'!AF35/VLOOKUP(AF$2,$BO$127:$BP$138,2,FALSE) -> 0 | AG35: ='Budget FCFA'!AG35/VLOOKUP(AG$2,$BO$127:$BP$138,2,FALSE) -> 114.3367629 | AH35: ='Budget FCFA'!AH35/VLOOKUP(AH$2,$BO$127:$BP$138,2,FALSE) -> 0 | AI35: ='Budget FCFA'!AI35/VLOOKUP(AI$2,$BO$127:$BP$138,2,FALSE) -> 0 | AJ35: ='Budget FCFA'!AJ35/VLOOKUP(AJ$2,$BO$127:$BP$138,2,FALSE) -> 0 | AK35: ='Budget FCFA'!AK35/VLOOKUP(AK$2,$BO$127:$BP$138,2,FALSE) -> 0 | AL35: ='Budget FCFA'!AL35/VLOOKUP(AL$2,$BO$127:$BP$138,2,FALSE) -> 15248.71295 | AM35: ='Budget FCFA'!AM35/VLOOKUP(AM$2,$BO$127:$BP$138,2,FALSE) -> 114.3367629 | AN35: ='Budget FCFA'!AN35/VLOOKUP(AN$2,$BO$127:$BP$138,2,FALSE) -> 0 | AO35: ='Budget FCFA'!AO35/VLOOKUP(AO$2,$BO$127:$BP$138,2,FALSE) -> 0 | AP35: ='Budget FCFA'!AP35/VLOOKUP(AP$2,$BO$127:$BP$138,2,FALSE) -> 0 | AQ35: ='Budget FCFA'!#REF!/VLOOKUP(AQ$2,$BO$127:$BP$138,2,FALSE) ->  | AR35: ='Budget FCFA'!#REF!/VLOOKUP(AR$2,$BO$127:$BP$138,2,FALSE) ->  | AS35: ='Budget FCFA'!#REF!/VLOOKUP(AS$2,$BO$127:$BP$138,2,FALSE) ->  | AT35: ='Budget FCFA'!#REF!/VLOOKUP(AT$2,$BO$127:$BP$138,2,FALSE) ->  | AU35: ='Budget FCFA'!#REF!/VLOOKUP(AU$2,$BO$127:$BP$138,2,FALSE) ->  | AV35: ='Budget FCFA'!#REF!/VLOOKUP(AV$2,$BO$127:$BP$138,2,FALSE) ->  | AW35: ='Budget FCFA'!#REF!/VLOOKUP(AW$2,$BO$127:$BP$138,2,FALSE) ->  | AX35: ='Budget FCFA'!#REF!/VLOOKUP(AX$2,$BO$127:$BP$138,2,FALSE) ->  | AY35: ='Budget FCFA'!#REF!/VLOOKUP(AY$2,$BO$127:$BP$138,2,FALSE) ->  | AZ35: ='Budget FCFA'!#REF!/VLOOKUP(AZ$2,$BO$127:$BP$138,2,FALSE) ->  | BA35: ='Budget FCFA'!#REF!/VLOOKUP(BA$2,$BO$127:$BP$138,2,FALSE) ->  | BB35: ='Budget FCFA'!#REF!/VLOOKUP(BB$2,$BO$127:$BP$138,2,FALSE) ->  | BC35: ='Budget FCFA'!#REF!/VLOOKUP(BC$2,$BO$127:$BP$138,2,FALSE) ->  | BD35: ='Budget FCFA'!#REF!/VLOOKUP(BD$2,$BO$127:$BP$138,2,FALSE) ->  | BE35: ='Budget FCFA'!#REF!/VLOOKUP(BE$2,$BO$127:$BP$138,2,FALSE) ->  | BF35: ='Budget FCFA'!#REF!/VLOOKUP(BF$2,$BO$127:$BP$138,2,FALSE) ->  | BG35: ='Budget FCFA'!#REF!/VLOOKUP(BG$2,$BO$127:$BP$138,2,FALSE) ->  | BH35: ='Budget FCFA'!#REF!/VLOOKUP(BH$2,$BO$127:$BP$138,2,FALSE) ->  | BI35: ='Budget FCFA'!#REF!/VLOOKUP(BI$2,$BO$127:$BP$138,2,FALSE) ->  | BJ35: ='Budget FCFA'!#REF!/VLOOKUP(BJ$2,$BO$127:$BP$138,2,FALSE) ->  | BL35: =BK35-'Budget FCFA'!#REF! -> 
A36: PUBDISTR | B36: ABIDJAN | C36: Coût distribution | D36: ='Budget FCFA'!D36/VLOOKUP(D$2,$BO$127:$BP$138,2,FALSE) -> 0 | E36: ='Budget FCFA'!E36/VLOOKUP(E$2,$BO$127:$BP$138,2,FALSE) -> 0 | F36: ='Budget FCFA'!F36/VLOOKUP(F$2,$BO$127:$BP$138,2,FALSE) -> 0 | G36: ='Budget FCFA'!G36/VLOOKUP(G$2,$BO$127:$BP$138,2,FALSE) -> 0 | H36: ='Budget FCFA'!H36/VLOOKUP(H$2,$BO$127:$BP$138,2,FALSE) -> 0 | I36: ='Budget FCFA'!I36/VLOOKUP(I$2,$BO$127:$BP$138,2,FALSE) -> 490.8858355 | J36: ='Budget FCFA'!J36/VLOOKUP(J$2,$BO$127:$BP$138,2,FALSE) -> 0 | K36: ='Budget FCFA'!K36/VLOOKUP(K$2,$BO$127:$BP$138,2,FALSE) -> 0 | L36: ='Budget FCFA'!L36/VLOOKUP(L$2,$BO$127:$BP$138,2,FALSE) -> 0 | M36: ='Budget FCFA'!M36/VLOOKUP(M$2,$BO$127:$BP$138,2,FALSE) -> 0 | N36: ='Budget FCFA'!N36/VLOOKUP(N$2,$BO$127:$BP$138,2,FALSE) -> 0 | O36: ='Budget FCFA'!O36/VLOOKUP(O$2,$BO$127:$BP$138,2,FALSE) -> 0 | P36: ='Budget FCFA'!P36/VLOOKUP(P$2,$BO$127:$BP$138,2,FALSE) -> 1577.847328 | Q36: ='Budget FCFA'!Q36/VLOOKUP(Q$2,$BO$127:$BP$138,2,FALSE) -> 0 | R36: ='Budget FCFA'!R36/VLOOKUP(R$2,$BO$127:$BP$138,2,FALSE) -> 0 | S36: ='Budget FCFA'!S36/VLOOKUP(S$2,$BO$127:$BP$138,2,FALSE) -> 0 | T36: ='Budget FCFA'!T36/VLOOKUP(T$2,$BO$127:$BP$138,2,FALSE) -> 3219.723244 | U36: ='Budget FCFA'!U36/VLOOKUP(U$2,$BO$127:$BP$138,2,FALSE) -> 0 | V36: ='Budget FCFA'!V36/VLOOKUP(V$2,$BO$127:$BP$138,2,FALSE) -> 0 | W36: ='Budget FCFA'!W36/VLOOKUP(W$2,$BO$127:$BP$138,2,FALSE) -> 0 | X36: ='Budget FCFA'!X36/VLOOKUP(X$2,$BO$127:$BP$138,2,FALSE) -> 0 | Y36: ='Budget FCFA'!Y36/VLOOKUP(Y$2,$BO$127:$BP$138,2,FALSE) -> 0 | Z36: ='Budget FCFA'!Z36/VLOOKUP(Z$2,$BO$127:$BP$138,2,FALSE) -> 0 | AA36: ='Budget FCFA'!AA36/VLOOKUP(AA$2,$BO$127:$BP$138,2,FALSE) -> 0 | AB36: ='Budget FCFA'!AB36/VLOOKUP(AB$2,$BO$127:$BP$138,2,FALSE) -> 611.9121952 | AC36: ='Budget FCFA'!AC36/VLOOKUP(AC$2,$BO$127:$BP$138,2,FALSE) -> 0 | AD36: ='Budget FCFA'!AD36/VLOOKUP(AD$2,$BO$127:$BP$138,2,FALSE) -> 0 | AE36: ='Budget FCFA'!AE36/VLOOKUP(AE$2,$BO$127:$BP$138,2,FALSE) -> 0 | AF36: ='Budget FCFA'!AF36/VLOOKUP(AF$2,$BO$127:$BP$138,2,FALSE) -> 0 | AG36: ='Budget FCFA'!AG36/VLOOKUP(AG$2,$BO$127:$BP$138,2,FALSE) -> 0 | AH36: ='Budget FCFA'!AH36/VLOOKUP(AH$2,$BO$127:$BP$138,2,FALSE) -> 0 | AI36: ='Budget FCFA'!AI36/VLOOKUP(AI$2,$BO$127:$BP$138,2,FALSE) -> 0 | AJ36: ='Budget FCFA'!AJ36/VLOOKUP(AJ$2,$BO$127:$BP$138,2,FALSE) -> 0 | AK36: ='Budget FCFA'!AK36/VLOOKUP(AK$2,$BO$127:$BP$138,2,FALSE) -> 0 | AL36: ='Budget FCFA'!AL36/VLOOKUP(AL$2,$BO$127:$BP$138,2,FALSE) -> 4655.792986 | AM36: ='Budget FCFA'!AM36/VLOOKUP(AM$2,$BO$127:$BP$138,2,FALSE) -> 0 | AN36: ='Budget FCFA'!AN36/VLOOKUP(AN$2,$BO$127:$BP$138,2,FALSE) -> 0 | AO36: ='Budget FCFA'!AO36/VLOOKUP(AO$2,$BO$127:$BP$138,2,FALSE) -> 0 | AP36: ='Budget FCFA'!AP36/VLOOKUP(AP$2,$BO$127:$BP$138,2,FALSE) -> 0 | AQ36: ='Budget FCFA'!#REF!/VLOOKUP(AQ$2,$BO$127:$BP$138,2,FALSE) ->  | AR36: ='Budget FCFA'!#REF!/VLOOKUP(AR$2,$BO$127:$BP$138,2,FALSE) ->  | AS36: ='Budget FCFA'!#REF!/VLOOKUP(AS$2,$BO$127:$BP$138,2,FALSE) ->  | AT36: ='Budget FCFA'!#REF!/VLOOKUP(AT$2,$BO$127:$BP$138,2,FALSE) ->  | AU36: ='Budget FCFA'!#REF!/VLOOKUP(AU$2,$BO$127:$BP$138,2,FALSE) ->  | AV36: ='Budget FCFA'!#REF!/VLOOKUP(AV$2,$BO$127:$BP$138,2,FALSE) ->  | AW36: ='Budget FCFA'!#REF!/VLOOKUP(AW$2,$BO$127:$BP$138,2,FALSE) ->  | AX36: ='Budget FCFA'!#REF!/VLOOKUP(AX$2,$BO$127:$BP$138,2,FALSE) ->  | AY36: ='Budget FCFA'!#REF!/VLOOKUP(AY$2,$BO$127:$BP$138,2,FALSE) ->  | AZ36: ='Budget FCFA'!#REF!/VLOOKUP(AZ$2,$BO$127:$BP$138,2,FALSE) ->  | BA36: ='Budget FCFA'!#REF!/VLOOKUP(BA$2,$BO$127:$BP$138,2,FALSE) ->  | BB36: ='Budget FCFA'!#REF!/VLOOKUP(BB$2,$BO$127:$BP$138,2,FALSE) ->  | BC36: ='Budget FCFA'!#REF!/VLOOKUP(BC$2,$BO$127:$BP$138,2,FALSE) ->  | BD36: ='Budget FCFA'!#REF!/VLOOKUP(BD$2,$BO$127:$BP$138,2,FALSE) ->  | BE36: ='Budget FCFA'!#REF!/VLOOKUP(BE$2,$BO$127:$BP$138,2,FALSE) ->  | BF36: ='Budget FCFA'!#REF!/VLOOKUP(BF$2,$BO$127:$BP$138,2,FALSE) ->  | BG36: ='Budget FCFA'!#REF!/VLOOKUP(BG$2,$BO$127:$BP$138,2,FALSE) ->  | BH36: ='Budget FCFA'!#REF!/VLOOKUP(BH$2,$BO$127:$BP$138,2,FALSE) ->  | BI36: ='Budget FCFA'!#REF!/VLOOKUP(BI$2,$BO$127:$BP$138,2,FALSE) ->  | BJ36: ='Budget FCFA'!#REF!/VLOOKUP(BJ$2,$BO$127:$BP$138,2,FALSE) ->  | BL36: =BK36-'Budget FCFA'!#REF! -> 
A37: PUBDISTR | B37: BRAZZA | C37: Coût distribution | D37: ='Budget FCFA'!D37/VLOOKUP(D$2,$BO$127:$BP$138,2,FALSE) -> 0 | E37: ='Budget FCFA'!E37/VLOOKUP(E$2,$BO$127:$BP$138,2,FALSE) -> 0 | F37: ='Budget FCFA'!F37/VLOOKUP(F$2,$BO$127:$BP$138,2,FALSE) -> 0 | G37: ='Budget FCFA'!G37/VLOOKUP(G$2,$BO$127:$BP$138,2,FALSE) -> 0 | H37: ='Budget FCFA'!H37/VLOOKUP(H$2,$BO$127:$BP$138,2,FALSE) -> 0 | I37: ='Budget FCFA'!I37/VLOOKUP(I$2,$BO$127:$BP$138,2,FALSE) -> 0 | J37: ='Budget FCFA'!J37/VLOOKUP(J$2,$BO$127:$BP$138,2,FALSE) -> 0 | K37: ='Budget FCFA'!K37/VLOOKUP(K$2,$BO$127:$BP$138,2,FALSE) -> 0 | L37: ='Budget FCFA'!L37/VLOOKUP(L$2,$BO$127:$BP$138,2,FALSE) -> 0 | M37: ='Budget FCFA'!M37/VLOOKUP(M$2,$BO$127:$BP$138,2,FALSE) -> 0 | N37: ='Budget FCFA'!N37/VLOOKUP(N$2,$BO$127:$BP$138,2,FALSE) -> 0 | O37: ='Budget FCFA'!O37/VLOOKUP(O$2,$BO$127:$BP$138,2,FALSE) -> 0 | P37: ='Budget FCFA'!P37/VLOOKUP(P$2,$BO$127:$BP$138,2,FALSE) -> 0 | Q37: ='Budget FCFA'!Q37/VLOOKUP(Q$2,$BO$127:$BP$138,2,FALSE) -> 0 | R37: ='Budget FCFA'!R37/VLOOKUP(R$2,$BO$127:$BP$138,2,FALSE) -> 0 | S37: ='Budget FCFA'!S37/VLOOKUP(S$2,$BO$127:$BP$138,2,FALSE) -> 0 | T37: ='Budget FCFA'!T37/VLOOKUP(T$2,$BO$127:$BP$138,2,FALSE) -> 0 | U37: ='Budget FCFA'!U37/VLOOKUP(U$2,$BO$127:$BP$138,2,FALSE) -> 0 | V37: ='Budget FCFA'!V37/VLOOKUP(V$2,$BO$127:$BP$138,2,FALSE) -> 0 | W37: ='Budget FCFA'!W37/VLOOKUP(W$2,$BO$127:$BP$138,2,FALSE) -> 0 | X37: ='Budget FCFA'!X37/VLOOKUP(X$2,$BO$127:$BP$138,2,FALSE) -> 0 | Y37: ='Budget FCFA'!Y37/VLOOKUP(Y$2,$BO$127:$BP$138,2,FALSE) -> 0 | Z37: ='Budget FCFA'!Z37/VLOOKUP(Z$2,$BO$127:$BP$138,2,FALSE) -> 0 | AA37: ='Budget FCFA'!AA37/VLOOKUP(AA$2,$BO$127:$BP$138,2,FALSE) -> 0 | AB37: ='Budget FCFA'!AB37/VLOOKUP(AB$2,$BO$127:$BP$138,2,FALSE) -> 0 | AC37: ='Budget FCFA'!AC37/VLOOKUP(AC$2,$BO$127:$BP$138,2,FALSE) -> 0 | AD37: ='Budget FCFA'!AD37/VLOOKUP(AD$2,$BO$127:$BP$138,2,FALSE) -> 0 | AE37: ='Budget FCFA'!AE37/VLOOKUP(AE$2,$BO$127:$BP$138,2,FALSE) -> 0 | AF37: ='Budget FCFA'!AF37/VLOOKUP(AF$2,$BO$127:$BP$138,2,FALSE) -> 0 | AG37: ='Budget FCFA'!AG37/VLOOKUP(AG$2,$BO$127:$BP$138,2,FALSE) -> 0 | AH37: ='Budget FCFA'!AH37/VLOOKUP(AH$2,$BO$127:$BP$138,2,FALSE) -> 0 | AI37: ='Budget FCFA'!AI37/VLOOKUP(AI$2,$BO$127:$BP$138,2,FALSE) -> 0 | AJ37: ='Budget FCFA'!AJ37/VLOOKUP(AJ$2,$BO$127:$BP$138,2,FALSE) -> 0 | AK37: ='Budget FCFA'!AK37/VLOOKUP(AK$2,$BO$127:$BP$138,2,FALSE) -> 0 | AL37: ='Budget FCFA'!AL37/VLOOKUP(AL$2,$BO$127:$BP$138,2,FALSE) -> 1132.696198 | AM37: ='Budget FCFA'!AM37/VLOOKUP(AM$2,$BO$127:$BP$138,2,FALSE) -> 0 | AN37: ='Budget FCFA'!AN37/VLOOKUP(AN$2,$BO$127:$BP$138,2,FALSE) -> 0 | AO37: ='Budget FCFA'!AO37/VLOOKUP(AO$2,$BO$127:$BP$138,2,FALSE) -> 0 | AP37: ='Budget FCFA'!AP37/VLOOKUP(AP$2,$BO$127:$BP$138,2,FALSE) -> 0 | AQ37: ='Budget FCFA'!#REF!/VLOOKUP(AQ$2,$BO$127:$BP$138,2,FALSE) ->  | AR37: ='Budget FCFA'!#REF!/VLOOKUP(AR$2,$BO$127:$BP$138,2,FALSE) ->  | AS37: ='Budget FCFA'!#REF!/VLOOKUP(AS$2,$BO$127:$BP$138,2,FALSE) ->  | AT37: ='Budget FCFA'!#REF!/VLOOKUP(AT$2,$BO$127:$BP$138,2,FALSE) ->  | AU37: ='Budget FCFA'!#REF!/VLOOKUP(AU$2,$BO$127:$BP$138,2,FALSE) ->  | AV37: ='Budget FCFA'!#REF!/VLOOKUP(AV$2,$BO$127:$BP$138,2,FALSE) ->  | AW37: ='Budget FCFA'!#REF!/VLOOKUP(AW$2,$BO$127:$BP$138,2,FALSE) ->  | AX37: ='Budget FCFA'!#REF!/VLOOKUP(AX$2,$BO$127:$BP$138,2,FALSE) ->  | AY37: ='Budget FCFA'!#REF!/VLOOKUP(AY$2,$BO$127:$BP$138,2,FALSE) ->  | AZ37: ='Budget FCFA'!#REF!/VLOOKUP(AZ$2,$BO$127:$BP$138,2,FALSE) ->  | BA37: ='Budget FCFA'!#REF!/VLOOKUP(BA$2,$BO$127:$BP$138,2,FALSE) ->  | BB37: ='Budget FCFA'!#REF!/VLOOKUP(BB$2,$BO$127:$BP$138,2,FALSE) ->  | BC37: ='Budget FCFA'!#REF!/VLOOKUP(BC$2,$BO$127:$BP$138,2,FALSE) ->  | BD37: ='Budget FCFA'!#REF!/VLOOKUP(BD$2,$BO$127:$BP$138,2,FALSE) ->  | BE37: ='Budget FCFA'!#REF!/VLOOKUP(BE$2,$BO$127:$BP$138,2,FALSE) ->  | BF37: ='Budget FCFA'!#REF!/VLOOKUP(BF$2,$BO$127:$BP$138,2,FALSE) ->  | BG37: ='Budget FCFA'!#REF!/VLOOKUP(BG$2,$BO$127:$BP$138,2,FALSE) ->  | BH37: ='Budget FCFA'!#REF!/VLOOKUP(BH$2,$BO$127:$BP$138,2,FALSE) ->  | BI37: ='Budget FCFA'!#REF!/VLOOKUP(BI$2,$BO$127:$BP$138,2,FALSE) ->  | BJ37: ='Budget FCFA'!#REF!/VLOOKUP(BJ$2,$BO$127:$BP$138,2,FALSE) ->  | BL37: =BK37-'Budget FCFA'!#REF! -> 
A38: PUBDISTR | B38: DAKAR | C38: Coût distribution | D38: ='Budget FCFA'!D38/VLOOKUP(D$2,$BO$127:$BP$138,2,FALSE) -> 0 | E38: ='Budget FCFA'!E38/VLOOKUP(E$2,$BO$127:$BP$138,2,FALSE) -> 0 | F38: ='Budget FCFA'!F38/VLOOKUP(F$2,$BO$127:$BP$138,2,FALSE) -> 0 | G38: ='Budget FCFA'!G38/VLOOKUP(G$2,$BO$127:$BP$138,2,FALSE) -> 0 | H38: ='Budget FCFA'!H38/VLOOKUP(H$2,$BO$127:$BP$138,2,FALSE) -> 0 | I38: ='Budget FCFA'!I38/VLOOKUP(I$2,$BO$127:$BP$138,2,FALSE) -> 2683.102703 | J38: ='Budget FCFA'!J38/VLOOKUP(J$2,$BO$127:$BP$138,2,FALSE) -> 0 | K38: ='Budget FCFA'!K38/VLOOKUP(K$2,$BO$127:$BP$138,2,FALSE) -> 0 | L38: ='Budget FCFA'!L38/VLOOKUP(L$2,$BO$127:$BP$138,2,FALSE) -> 0 | M38: ='Budget FCFA'!M38/VLOOKUP(M$2,$BO$127:$BP$138,2,FALSE) -> 0 | N38: ='Budget FCFA'!N38/VLOOKUP(N$2,$BO$127:$BP$138,2,FALSE) -> 0 | O38: ='Budget FCFA'!O38/VLOOKUP(O$2,$BO$127:$BP$138,2,FALSE) -> 0 | P38: ='Budget FCFA'!P38/VLOOKUP(P$2,$BO$127:$BP$138,2,FALSE) -> 0 | Q38: ='Budget FCFA'!Q38/VLOOKUP(Q$2,$BO$127:$BP$138,2,FALSE) -> 0 | R38: ='Budget FCFA'!R38/VLOOKUP(R$2,$BO$127:$BP$138,2,FALSE) -> 0 | S38: ='Budget FCFA'!S38/VLOOKUP(S$2,$BO$127:$BP$138,2,FALSE) -> 0 | T38: ='Budget FCFA'!T38/VLOOKUP(T$2,$BO$127:$BP$138,2,FALSE) -> 0 | U38: ='Budget FCFA'!U38/VLOOKUP(U$2,$BO$127:$BP$138,2,FALSE) -> 0 | V38: ='Budget FCFA'!V38/VLOOKUP(V$2,$BO$127:$BP$138,2,FALSE) -> 0 | W38: ='Budget FCFA'!W38/VLOOKUP(W$2,$BO$127:$BP$138,2,FALSE) -> 0 | X38: ='Budget FCFA'!X38/VLOOKUP(X$2,$BO$127:$BP$138,2,FALSE) -> 0 | Y38: ='Budget FCFA'!Y38/VLOOKUP(Y$2,$BO$127:$BP$138,2,FALSE) -> 0 | Z38: ='Budget FCFA'!Z38/VLOOKUP(Z$2,$BO$127:$BP$138,2,FALSE) -> 0 | AA38: ='Budget FCFA'!AA38/VLOOKUP(AA$2,$BO$127:$BP$138,2,FALSE) -> 0 | AB38: ='Budget FCFA'!AB38/VLOOKUP(AB$2,$BO$127:$BP$138,2,FALSE) -> 0 | AC38: ='Budget FCFA'!AC38/VLOOKUP(AC$2,$BO$127:$BP$138,2,FALSE) -> 0 | AD38: ='Budget FCFA'!AD38/VLOOKUP(AD$2,$BO$127:$BP$138,2,FALSE) -> 0 | AE38: ='Budget FCFA'!AE38/VLOOKUP(AE$2,$BO$127:$BP$138,2,FALSE) -> 0 | AF38: ='Budget FCFA'!AF38/VLOOKUP(AF$2,$BO$127:$BP$138,2,FALSE) -> 0 | AG38: ='Budget FCFA'!AG38/VLOOKUP(AG$2,$BO$127:$BP$138,2,FALSE) -> 0 | AH38: ='Budget FCFA'!AH38/VLOOKUP(AH$2,$BO$127:$BP$138,2,FALSE) -> 0 | AI38: ='Budget FCFA'!AI38/VLOOKUP(AI$2,$BO$127:$BP$138,2,FALSE) -> 0 | AJ38: ='Budget FCFA'!AJ38/VLOOKUP(AJ$2,$BO$127:$BP$138,2,FALSE) -> 0 | AK38: ='Budget FCFA'!AK38/VLOOKUP(AK$2,$BO$127:$BP$138,2,FALSE) -> 0 | AL38: ='Budget FCFA'!AL38/VLOOKUP(AL$2,$BO$127:$BP$138,2,FALSE) -> 2079.709493 | AM38: ='Budget FCFA'!AM38/VLOOKUP(AM$2,$BO$127:$BP$138,2,FALSE) -> 0 | AN38: ='Budget FCFA'!AN38/VLOOKUP(AN$2,$BO$127:$BP$138,2,FALSE) -> 0 | AO38: ='Budget FCFA'!AO38/VLOOKUP(AO$2,$BO$127:$BP$138,2,FALSE) -> 0 | AP38: ='Budget FCFA'!AP38/VLOOKUP(AP$2,$BO$127:$BP$138,2,FALSE) -> 0 | AQ38: ='Budget FCFA'!#REF!/VLOOKUP(AQ$2,$BO$127:$BP$138,2,FALSE) ->  | AR38: ='Budget FCFA'!#REF!/VLOOKUP(AR$2,$BO$127:$BP$138,2,FALSE) ->  | AS38: ='Budget FCFA'!#REF!/VLOOKUP(AS$2,$BO$127:$BP$138,2,FALSE) ->  | AT38: ='Budget FCFA'!#REF!/VLOOKUP(AT$2,$BO$127:$BP$138,2,FALSE) ->  | AU38: ='Budget FCFA'!#REF!/VLOOKUP(AU$2,$BO$127:$BP$138,2,FALSE) ->  | AV38: ='Budget FCFA'!#REF!/VLOOKUP(AV$2,$BO$127:$BP$138,2,FALSE) ->  | AW38: ='Budget FCFA'!#REF!/VLOOKUP(AW$2,$BO$127:$BP$138,2,FALSE) ->  | AX38: ='Budget FCFA'!#REF!/VLOOKUP(AX$2,$BO$127:$BP$138,2,FALSE) ->  | AY38: ='Budget FCFA'!#REF!/VLOOKUP(AY$2,$BO$127:$BP$138,2,FALSE) ->  | AZ38: ='Budget FCFA'!#REF!/VLOOKUP(AZ$2,$BO$127:$BP$138,2,FALSE) ->  | BA38: ='Budget FCFA'!#REF!/VLOOKUP(BA$2,$BO$127:$BP$138,2,FALSE) ->  | BB38: ='Budget FCFA'!#REF!/VLOOKUP(BB$2,$BO$127:$BP$138,2,FALSE) ->  | BC38: ='Budget FCFA'!#REF!/VLOOKUP(BC$2,$BO$127:$BP$138,2,FALSE) ->  | BD38: ='Budget FCFA'!#REF!/VLOOKUP(BD$2,$BO$127:$BP$138,2,FALSE) ->  | BE38: ='Budget FCFA'!#REF!/VLOOKUP(BE$2,$BO$127:$BP$138,2,FALSE) ->  | BF38: ='Budget FCFA'!#REF!/VLOOKUP(BF$2,$BO$127:$BP$138,2,FALSE) ->  | BG38: ='Budget FCFA'!#REF!/VLOOKUP(BG$2,$BO$127:$BP$138,2,FALSE) ->  | BH38: ='Budget FCFA'!#REF!/VLOOKUP(BH$2,$BO$127:$BP$138,2,FALSE) ->  | BI38: ='Budget FCFA'!#REF!/VLOOKUP(BI$2,$BO$127:$BP$138,2,FALSE) ->  | BJ38: ='Budget FCFA'!#REF!/VLOOKUP(BJ$2,$BO$127:$BP$138,2,FALSE) ->  | BL38: =BK38-'Budget FCFA'!#REF! -> 
A39: PUBDISTR | B39: LIBREVILLE | C39: Coût distribution | D39: ='Budget FCFA'!D39/VLOOKUP(D$2,$BO$127:$BP$138,2,FALSE) -> 0 | E39: ='Budget FCFA'!E39/VLOOKUP(E$2,$BO$127:$BP$138,2,FALSE) -> 0 | F39: ='Budget FCFA'!F39/VLOOKUP(F$2,$BO$127:$BP$138,2,FALSE) -> 0 | G39: ='Budget FCFA'!G39/VLOOKUP(G$2,$BO$127:$BP$138,2,FALSE) -> 0 | H39: ='Budget FCFA'!H39/VLOOKUP(H$2,$BO$127:$BP$138,2,FALSE) -> 0 | I39: ='Budget FCFA'!I39/VLOOKUP(I$2,$BO$127:$BP$138,2,FALSE) -> 1463.510565 | J39: ='Budget FCFA'!J39/VLOOKUP(J$2,$BO$127:$BP$138,2,FALSE) -> 0 | K39: ='Budget FCFA'!K39/VLOOKUP(K$2,$BO$127:$BP$138,2,FALSE) -> 0 | L39: ='Budget FCFA'!L39/VLOOKUP(L$2,$BO$127:$BP$138,2,FALSE) -> 0 | M39: ='Budget FCFA'!M39/VLOOKUP(M$2,$BO$127:$BP$138,2,FALSE) -> 0 | N39: ='Budget FCFA'!N39/VLOOKUP(N$2,$BO$127:$BP$138,2,FALSE) -> 0 | O39: ='Budget FCFA'!O39/VLOOKUP(O$2,$BO$127:$BP$138,2,FALSE) -> 0 | P39: ='Budget FCFA'!P39/VLOOKUP(P$2,$BO$127:$BP$138,2,FALSE) -> 0 | Q39: ='Budget FCFA'!Q39/VLOOKUP(Q$2,$BO$127:$BP$138,2,FALSE) -> 0 | R39: ='Budget FCFA'!R39/VLOOKUP(R$2,$BO$127:$BP$138,2,FALSE) -> 0 | S39: ='Budget FCFA'!S39/VLOOKUP(S$2,$BO$127:$BP$138,2,FALSE) -> 0 | T39: ='Budget FCFA'!T39/VLOOKUP(T$2,$BO$127:$BP$138,2,FALSE) -> 0 | U39: ='Budget FCFA'!U39/VLOOKUP(U$2,$BO$127:$BP$138,2,FALSE) -> 0 | V39: ='Budget FCFA'!V39/VLOOKUP(V$2,$BO$127:$BP$138,2,FALSE) -> 0 | W39: ='Budget FCFA'!W39/VLOOKUP(W$2,$BO$127:$BP$138,2,FALSE) -> 0 | X39: ='Budget FCFA'!X39/VLOOKUP(X$2,$BO$127:$BP$138,2,FALSE) -> 0 | Y39: ='Budget FCFA'!Y39/VLOOKUP(Y$2,$BO$127:$BP$138,2,FALSE) -> 0 | Z39: ='Budget FCFA'!Z39/VLOOKUP(Z$2,$BO$127:$BP$138,2,FALSE) -> 0 | AA39: ='Budget FCFA'!AA39/VLOOKUP(AA$2,$BO$127:$BP$138,2,FALSE) -> 0 | AB39: ='Budget FCFA'!AB39/VLOOKUP(AB$2,$BO$127:$BP$138,2,FALSE) -> 0 | AC39: ='Budget FCFA'!AC39/VLOOKUP(AC$2,$BO$127:$BP$138,2,FALSE) -> 0 | AD39: ='Budget FCFA'!AD39/VLOOKUP(AD$2,$BO$127:$BP$138,2,FALSE) -> 0 | AE39: ='Budget FCFA'!AE39/VLOOKUP(AE$2,$BO$127:$BP$138,2,FALSE) -> 0 | AF39: ='Budget FCFA'!AF39/VLOOKUP(AF$2,$BO$127:$BP$138,2,FALSE) -> 0 | AG39: ='Budget FCFA'!AG39/VLOOKUP(AG$2,$BO$127:$BP$138,2,FALSE) -> 0 | AH39: ='Budget FCFA'!AH39/VLOOKUP(AH$2,$BO$127:$BP$138,2,FALSE) -> 0 | AI39: ='Budget FCFA'!AI39/VLOOKUP(AI$2,$BO$127:$BP$138,2,FALSE) -> 0 | AJ39: ='Budget FCFA'!AJ39/VLOOKUP(AJ$2,$BO$127:$BP$138,2,FALSE) -> 0 | AK39: ='Budget FCFA'!AK39/VLOOKUP(AK$2,$BO$127:$BP$138,2,FALSE) -> 0 | AL39: ='Budget FCFA'!AL39/VLOOKUP(AL$2,$BO$127:$BP$138,2,FALSE) -> 2243.273568 | AM39: ='Budget FCFA'!AM39/VLOOKUP(AM$2,$BO$127:$BP$138,2,FALSE) -> 0 | AN39: ='Budget FCFA'!AN39/VLOOKUP(AN$2,$BO$127:$BP$138,2,FALSE) -> 0 | AO39: ='Budget FCFA'!AO39/VLOOKUP(AO$2,$BO$127:$BP$138,2,FALSE) -> 0 | AP39: ='Budget FCFA'!AP39/VLOOKUP(AP$2,$BO$127:$BP$138,2,FALSE) -> 0 | AQ39: ='Budget FCFA'!#REF!/VLOOKUP(AQ$2,$BO$127:$BP$138,2,FALSE) ->  | AR39: ='Budget FCFA'!#REF!/VLOOKUP(AR$2,$BO$127:$BP$138,2,FALSE) ->  | AS39: ='Budget FCFA'!#REF!/VLOOKUP(AS$2,$BO$127:$BP$138,2,FALSE) ->  | AT39: ='Budget FCFA'!#REF!/VLOOKUP(AT$2,$BO$127:$BP$138,2,FALSE) ->  | AU39: ='Budget FCFA'!#REF!/VLOOKUP(AU$2,$BO$127:$BP$138,2,FALSE) ->  | AV39: ='Budget FCFA'!#REF!/VLOOKUP(AV$2,$BO$127:$BP$138,2,FALSE) ->  | AW39: ='Budget FCFA'!#REF!/VLOOKUP(AW$2,$BO$127:$BP$138,2,FALSE) ->  | AX39: ='Budget FCFA'!#REF!/VLOOKUP(AX$2,$BO$127:$BP$138,2,FALSE) ->  | AY39: ='Budget FCFA'!#REF!/VLOOKUP(AY$2,$BO$127:$BP$138,2,FALSE) ->  | AZ39: ='Budget FCFA'!#REF!/VLOOKUP(AZ$2,$BO$127:$BP$138,2,FALSE) ->  | BA39: ='Budget FCFA'!#REF!/VLOOKUP(BA$2,$BO$127:$BP$138,2,FALSE) ->  | BB39: ='Budget FCFA'!#REF!/VLOOKUP(BB$2,$BO$127:$BP$138,2,FALSE) ->  | BC39: ='Budget FCFA'!#REF!/VLOOKUP(BC$2,$BO$127:$BP$138,2,FALSE) ->  | BD39: ='Budget FCFA'!#REF!/VLOOKUP(BD$2,$BO$127:$BP$138,2,FALSE) ->  | BE39: ='Budget FCFA'!#REF!/VLOOKUP(BE$2,$BO$127:$BP$138,2,FALSE) ->  | BF39: ='Budget FCFA'!#REF!/VLOOKUP(BF$2,$BO$127:$BP$138,2,FALSE) ->  | BG39: ='Budget FCFA'!#REF!/VLOOKUP(BG$2,$BO$127:$BP$138,2,FALSE) ->  | BH39: ='Budget FCFA'!#REF!/VLOOKUP(BH$2,$BO$127:$BP$138,2,FALSE) ->  | BI39: ='Budget FCFA'!#REF!/VLOOKUP(BI$2,$BO$127:$BP$138,2,FALSE) ->  | BJ39: ='Budget FCFA'!#REF!/VLOOKUP(BJ$2,$BO$127:$BP$138,2,FALSE) ->  | BL39: =BK39-'Budget FCFA'!#REF! -> 
A40: PUBDISTR | B40: DOUALA | C40: Coût distribution | D40: ='Budget FCFA'!D40/VLOOKUP(D$2,$BO$127:$BP$138,2,FALSE) -> 0 | E40: ='Budget FCFA'!E40/VLOOKUP(E$2,$BO$127:$BP$138,2,FALSE) -> 0 | F40: ='Budget FCFA'!F40/VLOOKUP(F$2,$BO$127:$BP$138,2,FALSE) -> 0 | G40: ='Budget FCFA'!G40/VLOOKUP(G$2,$BO$127:$BP$138,2,FALSE) -> 0 | H40: ='Budget FCFA'!H40/VLOOKUP(H$2,$BO$127:$BP$138,2,FALSE) -> 0 | I40: ='Budget FCFA'!I40/VLOOKUP(I$2,$BO$127:$BP$138,2,FALSE) -> 2865.668024 | J40: ='Budget FCFA'!J40/VLOOKUP(J$2,$BO$127:$BP$138,2,FALSE) -> 0 | K40: ='Budget FCFA'!K40/VLOOKUP(K$2,$BO$127:$BP$138,2,FALSE) -> 0 | L40: ='Budget FCFA'!L40/VLOOKUP(L$2,$BO$127:$BP$138,2,FALSE) -> 0 | M40: ='Budget FCFA'!M40/VLOOKUP(M$2,$BO$127:$BP$138,2,FALSE) -> 0 | N40: ='Budget FCFA'!N40/VLOOKUP(N$2,$BO$127:$BP$138,2,FALSE) -> 0 | O40: ='Budget FCFA'!O40/VLOOKUP(O$2,$BO$127:$BP$138,2,FALSE) -> 0 | P40: ='Budget FCFA'!P40/VLOOKUP(P$2,$BO$127:$BP$138,2,FALSE) -> 0 | Q40: ='Budget FCFA'!Q40/VLOOKUP(Q$2,$BO$127:$BP$138,2,FALSE) -> 0 | R40: ='Budget FCFA'!R40/VLOOKUP(R$2,$BO$127:$BP$138,2,FALSE) -> 0 | S40: ='Budget FCFA'!S40/VLOOKUP(S$2,$BO$127:$BP$138,2,FALSE) -> 0 | T40: ='Budget FCFA'!T40/VLOOKUP(T$2,$BO$127:$BP$138,2,FALSE) -> 0 | U40: ='Budget FCFA'!U40/VLOOKUP(U$2,$BO$127:$BP$138,2,FALSE) -> 0 | V40: ='Budget FCFA'!V40/VLOOKUP(V$2,$BO$127:$BP$138,2,FALSE) -> 0 | W40: ='Budget FCFA'!W40/VLOOKUP(W$2,$BO$127:$BP$138,2,FALSE) -> 0 | X40: ='Budget FCFA'!X40/VLOOKUP(X$2,$BO$127:$BP$138,2,FALSE) -> 0 | Y40: ='Budget FCFA'!Y40/VLOOKUP(Y$2,$BO$127:$BP$138,2,FALSE) -> 0 | Z40: ='Budget FCFA'!Z40/VLOOKUP(Z$2,$BO$127:$BP$138,2,FALSE) -> 0 | AA40: ='Budget FCFA'!AA40/VLOOKUP(AA$2,$BO$127:$BP$138,2,FALSE) -> 0 | AB40: ='Budget FCFA'!AB40/VLOOKUP(AB$2,$BO$127:$BP$138,2,FALSE) -> 0 | AC40: ='Budget FCFA'!AC40/VLOOKUP(AC$2,$BO$127:$BP$138,2,FALSE) -> 0 | AD40: ='Budget FCFA'!AD40/VLOOKUP(AD$2,$BO$127:$BP$138,2,FALSE) -> 0 | AE40: ='Budget FCFA'!AE40/VLOOKUP(AE$2,$BO$127:$BP$138,2,FALSE) -> 0 | AF40: ='Budget FCFA'!AF40/VLOOKUP(AF$2,$BO$127:$BP$138,2,FALSE) -> 0 | AG40: ='Budget FCFA'!AG40/VLOOKUP(AG$2,$BO$127:$BP$138,2,FALSE) -> 0 | AH40: ='Budget FCFA'!AH40/VLOOKUP(AH$2,$BO$127:$BP$138,2,FALSE) -> 0 | AI40: ='Budget FCFA'!AI40/VLOOKUP(AI$2,$BO$127:$BP$138,2,FALSE) -> 0 | AJ40: ='Budget FCFA'!AJ40/VLOOKUP(AJ$2,$BO$127:$BP$138,2,FALSE) -> 0 | AK40: ='Budget FCFA'!AK40/VLOOKUP(AK$2,$BO$127:$BP$138,2,FALSE) -> 0 | AL40: ='Budget FCFA'!AL40/VLOOKUP(AL$2,$BO$127:$BP$138,2,FALSE) -> 2248.623004 | AM40: ='Budget FCFA'!AM40/VLOOKUP(AM$2,$BO$127:$BP$138,2,FALSE) -> 0 | AN40: ='Budget FCFA'!AN40/VLOOKUP(AN$2,$BO$127:$BP$138,2,FALSE) -> 0 | AO40: ='Budget FCFA'!AO40/VLOOKUP(AO$2,$BO$127:$BP$138,2,FALSE) -> 0 | AP40: ='Budget FCFA'!AP40/VLOOKUP(AP$2,$BO$127:$BP$138,2,FALSE) -> 0 | AQ40: ='Budget FCFA'!#REF!/VLOOKUP(AQ$2,$BO$127:$BP$138,2,FALSE) ->  | AR40: ='Budget FCFA'!#REF!/VLOOKUP(AR$2,$BO$127:$BP$138,2,FALSE) ->  | AS40: ='Budget FCFA'!#REF!/VLOOKUP(AS$2,$BO$127:$BP$138,2,FALSE) ->  | AT40: ='Budget FCFA'!#REF!/VLOOKUP(AT$2,$BO$127:$BP$138,2,FALSE) ->  | AU40: ='Budget FCFA'!#REF!/VLOOKUP(AU$2,$BO$127:$BP$138,2,FALSE) ->  | AV40: ='Budget FCFA'!#REF!/VLOOKUP(AV$2,$BO$127:$BP$138,2,FALSE) ->  | AW40: ='Budget FCFA'!#REF!/VLOOKUP(AW$2,$BO$127:$BP$138,2,FALSE) ->  | AX40: ='Budget FCFA'!#REF!/VLOOKUP(AX$2,$BO$127:$BP$138,2,FALSE) ->  | AY40: ='Budget FCFA'!#REF!/VLOOKUP(AY$2,$BO$127:$BP$138,2,FALSE) ->  | AZ40: ='Budget FCFA'!#REF!/VLOOKUP(AZ$2,$BO$127:$BP$138,2,FALSE) ->  | BA40: ='Budget FCFA'!#REF!/VLOOKUP(BA$2,$BO$127:$BP$138,2,FALSE) ->  | BB40: ='Budget FCFA'!#REF!/VLOOKUP(BB$2,$BO$127:$BP$138,2,FALSE) ->  | BC40: ='Budget FCFA'!#REF!/VLOOKUP(BC$2,$BO$127:$BP$138,2,FALSE) ->  | BD40: ='Budget FCFA'!#REF!/VLOOKUP(BD$2,$BO$127:$BP$138,2,FALSE) ->  | BE40: ='Budget FCFA'!#REF!/VLOOKUP(BE$2,$BO$127:$BP$138,2,FALSE) ->  | BF40: ='Budget FCFA'!#REF!/VLOOKUP(BF$2,$BO$127:$BP$138,2,FALSE) ->  | BG40: ='Budget FCFA'!#REF!/VLOOKUP(BG$2,$BO$127:$BP$138,2,FALSE) ->  | BH40: ='Budget FCFA'!#REF!/VLOOKUP(BH$2,$BO$127:$BP$138,2,FALSE) ->  | BI40: ='Budget FCFA'!#REF!/VLOOKUP(BI$2,$BO$127:$BP$138,2,FALSE) ->  | BJ40: ='Budget FCFA'!#REF!/VLOOKUP(BJ$2,$BO$127:$BP$138,2,FALSE) ->  | BL40: =BK40-'Budget FCFA'!#REF! -> 
A41: PUBDISTR | B41: TOTAL | C41: Total distribution | D41: ='Budget FCFA'!D41/VLOOKUP(D$2,$BO$127:$BP$138,2,FALSE) -> 0 | E41: ='Budget FCFA'!E41/VLOOKUP(E$2,$BO$127:$BP$138,2,FALSE) -> 0 | F41: ='Budget FCFA'!F41/VLOOKUP(F$2,$BO$127:$BP$138,2,FALSE) -> 0 | G41: ='Budget FCFA'!G41/VLOOKUP(G$2,$BO$127:$BP$138,2,FALSE) -> 0 | H41: ='Budget FCFA'!H41/VLOOKUP(H$2,$BO$127:$BP$138,2,FALSE) -> 0 | I41: ='Budget FCFA'!I41/VLOOKUP(I$2,$BO$127:$BP$138,2,FALSE) -> 7503.167128 | J41: ='Budget FCFA'!J41/VLOOKUP(J$2,$BO$127:$BP$138,2,FALSE) -> 0 | K41: ='Budget FCFA'!K41/VLOOKUP(K$2,$BO$127:$BP$138,2,FALSE) -> 0 | L41: ='Budget FCFA'!L41/VLOOKUP(L$2,$BO$127:$BP$138,2,FALSE) -> 0 | M41: ='Budget FCFA'!M41/VLOOKUP(M$2,$BO$127:$BP$138,2,FALSE) -> 0 | N41: ='Budget FCFA'!N41/VLOOKUP(N$2,$BO$127:$BP$138,2,FALSE) -> 0 | O41: ='Budget FCFA'!O41/VLOOKUP(O$2,$BO$127:$BP$138,2,FALSE) -> 0 | P41: ='Budget FCFA'!P41/VLOOKUP(P$2,$BO$127:$BP$138,2,FALSE) -> 1577.847328 | Q41: ='Budget FCFA'!Q41/VLOOKUP(Q$2,$BO$127:$BP$138,2,FALSE) -> 0 | R41: ='Budget FCFA'!R41/VLOOKUP(R$2,$BO$127:$BP$138,2,FALSE) -> 0 | S41: ='Budget FCFA'!S41/VLOOKUP(S$2,$BO$127:$BP$138,2,FALSE) -> 0 | T41: ='Budget FCFA'!T41/VLOOKUP(T$2,$BO$127:$BP$138,2,FALSE) -> 3219.723244 | U41: ='Budget FCFA'!U41/VLOOKUP(U$2,$BO$127:$BP$138,2,FALSE) -> 0 | V41: ='Budget FCFA'!V41/VLOOKUP(V$2,$BO$127:$BP$138,2,FALSE) -> 0 | W41: ='Budget FCFA'!W41/VLOOKUP(W$2,$BO$127:$BP$138,2,FALSE) -> 0 | X41: ='Budget FCFA'!X41/VLOOKUP(X$2,$BO$127:$BP$138,2,FALSE) -> 0 | Y41: ='Budget FCFA'!Y41/VLOOKUP(Y$2,$BO$127:$BP$138,2,FALSE) -> 0 | Z41: ='Budget FCFA'!Z41/VLOOKUP(Z$2,$BO$127:$BP$138,2,FALSE) -> 0 | AA41: ='Budget FCFA'!AA41/VLOOKUP(AA$2,$BO$127:$BP$138,2,FALSE) -> 0 | AB41: ='Budget FCFA'!AB41/VLOOKUP(AB$2,$BO$127:$BP$138,2,FALSE) -> 611.9121952 | AC41: ='Budget FCFA'!AC41/VLOOKUP(AC$2,$BO$127:$BP$138,2,FALSE) -> 0 | AD41: ='Budget FCFA'!AD41/VLOOKUP(AD$2,$BO$127:$BP$138,2,FALSE) -> 0 | AE41: ='Budget FCFA'!AE41/VLOOKUP(AE$2,$BO$127:$BP$138,2,FALSE) -> 0 | AF41: ='Budget FCFA'!AF41/VLOOKUP(AF$2,$BO$127:$BP$138,2,FALSE) -> 0 | AG41: ='Budget FCFA'!AG41/VLOOKUP(AG$2,$BO$127:$BP$138,2,FALSE) -> 0 | AH41: ='Budget FCFA'!AH41/VLOOKUP(AH$2,$BO$127:$BP$138,2,FALSE) -> 0 | AI41: ='Budget FCFA'!AI41/VLOOKUP(AI$2,$BO$127:$BP$138,2,FALSE) -> 0 | AJ41: ='Budget FCFA'!AJ41/VLOOKUP(AJ$2,$BO$127:$BP$138,2,FALSE) -> 0 | AK41: ='Budget FCFA'!AK41/VLOOKUP(AK$2,$BO$127:$BP$138,2,FALSE) -> 0 | AL41: ='Budget FCFA'!AL41/VLOOKUP(AL$2,$BO$127:$BP$138,2,FALSE) -> 12360.09525 | AM41: ='Budget FCFA'!AM41/VLOOKUP(AM$2,$BO$127:$BP$138,2,FALSE) -> 0 | AN41: ='Budget FCFA'!AN41/VLOOKUP(AN$2,$BO$127:$BP$138,2,FALSE) -> 0 | AO41: ='Budget FCFA'!AO41/VLOOKUP(AO$2,$BO$127:$BP$138,2,FALSE) -> 0 | AP41: ='Budget FCFA'!AP41/VLOOKUP(AP$2,$BO$127:$BP$138,2,FALSE) -> 0 | AQ41: ='Budget FCFA'!#REF!/VLOOKUP(AQ$2,$BO$127:$BP$138,2,FALSE) ->  | AR41: ='Budget FCFA'!#REF!/VLOOKUP(AR$2,$BO$127:$BP$138,2,FALSE) ->  | AS41: ='Budget FCFA'!#REF!/VLOOKUP(AS$2,$BO$127:$BP$138,2,FALSE) ->  | AT41: ='Budget FCFA'!#REF!/VLOOKUP(AT$2,$BO$127:$BP$138,2,FALSE) ->  | AU41: ='Budget FCFA'!#REF!/VLOOKUP(AU$2,$BO$127:$BP$138,2,FALSE) ->  | AV41: ='Budget FCFA'!#REF!/VLOOKUP(AV$2,$BO$127:$BP$138,2,FALSE) ->  | AW41: ='Budget FCFA'!#REF!/VLOOKUP(AW$2,$BO$127:$BP$138,2,FALSE) ->  | AX41: ='Budget FCFA'!#REF!/VLOOKUP(AX$2,$BO$127:$BP$138,2,FALSE) ->  | AY41: ='Budget FCFA'!#REF!/VLOOKUP(AY$2,$BO$127:$BP$138,2,FALSE) ->  | AZ41: ='Budget FCFA'!#REF!/VLOOKUP(AZ$2,$BO$127:$BP$138,2,FALSE) ->  | BA41: ='Budget FCFA'!#REF!/VLOOKUP(BA$2,$BO$127:$BP$138,2,FALSE) ->  | BB41: ='Budget FCFA'!#REF!/VLOOKUP(BB$2,$BO$127:$BP$138,2,FALSE) ->  | BC41: ='Budget FCFA'!#REF!/VLOOKUP(BC$2,$BO$127:$BP$138,2,FALSE) ->  | BD41: ='Budget FCFA'!#REF!/VLOOKUP(BD$2,$BO$127:$BP$138,2,FALSE) ->  | BE41: ='Budget FCFA'!#REF!/VLOOKUP(BE$2,$BO$127:$BP$138,2,FALSE) ->  | BF41: ='Budget FCFA'!#REF!/VLOOKUP(BF$2,$BO$127:$BP$138,2,FALSE) ->  | BG41: ='Budget FCFA'!#REF!/VLOOKUP(BG$2,$BO$127:$BP$138,2,FALSE) ->  | BH41: ='Budget FCFA'!#REF!/VLOOKUP(BH$2,$BO$127:$BP$138,2,FALSE) ->  | BI41: ='Budget FCFA'!#REF!/VLOOKUP(BI$2,$BO$127:$BP$138,2,FALSE) ->  | BJ41: ='Budget FCFA'!#REF!/VLOOKUP(BJ$2,$BO$127:$BP$138,2,FALSE) ->  | BL41: =BK41-'Budget FCFA'!#REF! -> 
A42: PUBAFFIC | B42: ABIDJAN | C42: Réseau affichage | D42: ='Budget FCFA'!D42/VLOOKUP(D$2,$BO$127:$BP$138,2,FALSE) -> 186.7500461 | E42: ='Budget FCFA'!E42/VLOOKUP(E$2,$BO$127:$BP$138,2,FALSE) -> 447.6512942 | F42: ='Budget FCFA'!F42/VLOOKUP(F$2,$BO$127:$BP$138,2,FALSE) -> 0 | G42: ='Budget FCFA'!G42/VLOOKUP(G$2,$BO$127:$BP$138,2,FALSE) -> 0 | H42: ='Budget FCFA'!H42/VLOOKUP(H$2,$BO$127:$BP$138,2,FALSE) -> 274.408231 | I42: ='Budget FCFA'!I42/VLOOKUP(I$2,$BO$127:$BP$138,2,FALSE) -> 431.5724964 | J42: ='Budget FCFA'!J42/VLOOKUP(J$2,$BO$127:$BP$138,2,FALSE) -> 0 | K42: ='Budget FCFA'!K42/VLOOKUP(K$2,$BO$127:$BP$138,2,FALSE) -> 0 | L42: ='Budget FCFA'!L42/VLOOKUP(L$2,$BO$127:$BP$138,2,FALSE) -> 0 | M42: ='Budget FCFA'!M42/VLOOKUP(M$2,$BO$127:$BP$138,2,FALSE) -> 274.408231 | N42: ='Budget FCFA'!N42/VLOOKUP(N$2,$BO$127:$BP$138,2,FALSE) -> 0 | O42: ='Budget FCFA'!O42/VLOOKUP(O$2,$BO$127:$BP$138,2,FALSE) -> 468.323381 | P42: ='Budget FCFA'!P42/VLOOKUP(P$2,$BO$127:$BP$138,2,FALSE) -> 3040.138302 | Q42: ='Budget FCFA'!Q42/VLOOKUP(Q$2,$BO$127:$BP$138,2,FALSE) -> 0 | R42: ='Budget FCFA'!R42/VLOOKUP(R$2,$BO$127:$BP$138,2,FALSE) -> 274.408231 | S42: ='Budget FCFA'!S42/VLOOKUP(S$2,$BO$127:$BP$138,2,FALSE) -> 0 | T42: ='Budget FCFA'!T42/VLOOKUP(T$2,$BO$127:$BP$138,2,FALSE) -> 6058.50231 | U42: ='Budget FCFA'!U42/VLOOKUP(U$2,$BO$127:$BP$138,2,FALSE) -> 0 | V42: ='Budget FCFA'!V42/VLOOKUP(V$2,$BO$127:$BP$138,2,FALSE) -> 0 | W42: ='Budget FCFA'!W42/VLOOKUP(W$2,$BO$127:$BP$138,2,FALSE) -> 274.408231 | X42: ='Budget FCFA'!X42/VLOOKUP(X$2,$BO$127:$BP$138,2,FALSE) -> 0 | Y42: ='Budget FCFA'!Y42/VLOOKUP(Y$2,$BO$127:$BP$138,2,FALSE) -> 0 | Z42: ='Budget FCFA'!Z42/VLOOKUP(Z$2,$BO$127:$BP$138,2,FALSE) -> 0 | AA42: ='Budget FCFA'!AA42/VLOOKUP(AA$2,$BO$127:$BP$138,2,FALSE) -> 274.408231 | AB42: ='Budget FCFA'!AB42/VLOOKUP(AB$2,$BO$127:$BP$138,2,FALSE) -> 4153.206374 | AC42: ='Budget FCFA'!AC42/VLOOKUP(AC$2,$BO$127:$BP$138,2,FALSE) -> 0 | AD42: ='Budget FCFA'!AD42/VLOOKUP(AD$2,$BO$127:$BP$138,2,FALSE) -> 0 | AE42: ='Budget FCFA'!AE42/VLOOKUP(AE$2,$BO$127:$BP$138,2,FALSE) -> 0 | AF42: ='Budget FCFA'!AF42/VLOOKUP(AF$2,$BO$127:$BP$138,2,FALSE) -> 273.9905351 | AG42: ='Budget FCFA'!AG42/VLOOKUP(AG$2,$BO$127:$BP$138,2,FALSE) -> 0 | AH42: ='Budget FCFA'!AH42/VLOOKUP(AH$2,$BO$127:$BP$138,2,FALSE) -> 0 | AI42: ='Budget FCFA'!AI42/VLOOKUP(AI$2,$BO$127:$BP$138,2,FALSE) -> 0 | AJ42: ='Budget FCFA'!AJ42/VLOOKUP(AJ$2,$BO$127:$BP$138,2,FALSE) -> 0 | AK42: ='Budget FCFA'!AK42/VLOOKUP(AK$2,$BO$127:$BP$138,2,FALSE) -> 274.408231 | AL42: ='Budget FCFA'!AL42/VLOOKUP(AL$2,$BO$127:$BP$138,2,FALSE) -> 9938.913679 | AM42: ='Budget FCFA'!AM42/VLOOKUP(AM$2,$BO$127:$BP$138,2,FALSE) -> 0 | AN42: ='Budget FCFA'!AN42/VLOOKUP(AN$2,$BO$127:$BP$138,2,FALSE) -> 0 | AO42: ='Budget FCFA'!AO42/VLOOKUP(AO$2,$BO$127:$BP$138,2,FALSE) -> 0 | AP42: ='Budget FCFA'!AP42/VLOOKUP(AP$2,$BO$127:$BP$138,2,FALSE) -> 274.408231 | AQ42: ='Budget FCFA'!#REF!/VLOOKUP(AQ$2,$BO$127:$BP$138,2,FALSE) ->  | AR42: ='Budget FCFA'!#REF!/VLOOKUP(AR$2,$BO$127:$BP$138,2,FALSE) ->  | AS42: ='Budget FCFA'!#REF!/VLOOKUP(AS$2,$BO$127:$BP$138,2,FALSE) ->  | AT42: ='Budget FCFA'!#REF!/VLOOKUP(AT$2,$BO$127:$BP$138,2,FALSE) ->  | AU42: ='Budget FCFA'!#REF!/VLOOKUP(AU$2,$BO$127:$BP$138,2,FALSE) ->  | AV42: ='Budget FCFA'!#REF!/VLOOKUP(AV$2,$BO$127:$BP$138,2,FALSE) ->  | AW42: ='Budget FCFA'!#REF!/VLOOKUP(AW$2,$BO$127:$BP$138,2,FALSE) ->  | AX42: ='Budget FCFA'!#REF!/VLOOKUP(AX$2,$BO$127:$BP$138,2,FALSE) ->  | AY42: ='Budget FCFA'!#REF!/VLOOKUP(AY$2,$BO$127:$BP$138,2,FALSE) ->  | AZ42: ='Budget FCFA'!#REF!/VLOOKUP(AZ$2,$BO$127:$BP$138,2,FALSE) ->  | BA42: ='Budget FCFA'!#REF!/VLOOKUP(BA$2,$BO$127:$BP$138,2,FALSE) ->  | BB42: ='Budget FCFA'!#REF!/VLOOKUP(BB$2,$BO$127:$BP$138,2,FALSE) ->  | BC42: ='Budget FCFA'!#REF!/VLOOKUP(BC$2,$BO$127:$BP$138,2,FALSE) ->  | BD42: ='Budget FCFA'!#REF!/VLOOKUP(BD$2,$BO$127:$BP$138,2,FALSE) ->  | BE42: ='Budget FCFA'!#REF!/VLOOKUP(BE$2,$BO$127:$BP$138,2,FALSE) ->  | BF42: ='Budget FCFA'!#REF!/VLOOKUP(BF$2,$BO$127:$BP$138,2,FALSE) ->  | BG42: ='Budget FCFA'!#REF!/VLOOKUP(BG$2,$BO$127:$BP$138,2,FALSE) ->  | BH42: ='Budget FCFA'!#REF!/VLOOKUP(BH$2,$BO$127:$BP$138,2,FALSE) ->  | BI42: ='Budget FCFA'!#REF!/VLOOKUP(BI$2,$BO$127:$BP$138,2,FALSE) ->  | BJ42: ='Budget FCFA'!#REF!/VLOOKUP(BJ$2,$BO$127:$BP$138,2,FALSE) ->  | BL42: =BK42-'Budget FCFA'!#REF! -> 
A43: PUBAFFIC | B43: BRAZZA | C43: Réseau affichage | D43: ='Budget FCFA'!D43/VLOOKUP(D$2,$BO$127:$BP$138,2,FALSE) -> 0 | E43: ='Budget FCFA'!E43/VLOOKUP(E$2,$BO$127:$BP$138,2,FALSE) -> 0 | F43: ='Budget FCFA'!F43/VLOOKUP(F$2,$BO$127:$BP$138,2,FALSE) -> 732.5175278 | G43: ='Budget FCFA'!G43/VLOOKUP(G$2,$BO$127:$BP$138,2,FALSE) -> 0 | H43: ='Budget FCFA'!H43/VLOOKUP(H$2,$BO$127:$BP$138,2,FALSE) -> 0 | I43: ='Budget FCFA'!I43/VLOOKUP(I$2,$BO$127:$BP$138,2,FALSE) -> 0 | J43: ='Budget FCFA'!J43/VLOOKUP(J$2,$BO$127:$BP$138,2,FALSE) -> 0 | K43: ='Budget FCFA'!K43/VLOOKUP(K$2,$BO$127:$BP$138,2,FALSE) -> 0 | L43: ='Budget FCFA'!L43/VLOOKUP(L$2,$BO$127:$BP$138,2,FALSE) -> 0 | M43: ='Budget FCFA'!M43/VLOOKUP(M$2,$BO$127:$BP$138,2,FALSE) -> 251.5408784 | N43: ='Budget FCFA'!N43/VLOOKUP(N$2,$BO$127:$BP$138,2,FALSE) -> 0 | O43: ='Budget FCFA'!O43/VLOOKUP(O$2,$BO$127:$BP$138,2,FALSE) -> 0 | P43: ='Budget FCFA'!P43/VLOOKUP(P$2,$BO$127:$BP$138,2,FALSE) -> 0 | Q43: ='Budget FCFA'!Q43/VLOOKUP(Q$2,$BO$127:$BP$138,2,FALSE) -> 0 | R43: ='Budget FCFA'!R43/VLOOKUP(R$2,$BO$127:$BP$138,2,FALSE) -> 251.5408784 | S43: ='Budget FCFA'!S43/VLOOKUP(S$2,$BO$127:$BP$138,2,FALSE) -> 0 | T43: ='Budget FCFA'!T43/VLOOKUP(T$2,$BO$127:$BP$138,2,FALSE) -> 0 | U43: ='Budget FCFA'!U43/VLOOKUP(U$2,$BO$127:$BP$138,2,FALSE) -> 0 | V43: ='Budget FCFA'!V43/VLOOKUP(V$2,$BO$127:$BP$138,2,FALSE) -> 0 | W43: ='Budget FCFA'!W43/VLOOKUP(W$2,$BO$127:$BP$138,2,FALSE) -> 251.5408784 | X43: ='Budget FCFA'!X43/VLOOKUP(X$2,$BO$127:$BP$138,2,FALSE) -> 0 | Y43: ='Budget FCFA'!Y43/VLOOKUP(Y$2,$BO$127:$BP$138,2,FALSE) -> 0 | Z43: ='Budget FCFA'!Z43/VLOOKUP(Z$2,$BO$127:$BP$138,2,FALSE) -> 0 | AA43: ='Budget FCFA'!AA43/VLOOKUP(AA$2,$BO$127:$BP$138,2,FALSE) -> 251.5408784 | AB43: ='Budget FCFA'!AB43/VLOOKUP(AB$2,$BO$127:$BP$138,2,FALSE) -> 0 | AC43: ='Budget FCFA'!AC43/VLOOKUP(AC$2,$BO$127:$BP$138,2,FALSE) -> 0 | AD43: ='Budget FCFA'!AD43/VLOOKUP(AD$2,$BO$127:$BP$138,2,FALSE) -> 0 | AE43: ='Budget FCFA'!AE43/VLOOKUP(AE$2,$BO$127:$BP$138,2,FALSE) -> 0 | AF43: ='Budget FCFA'!AF43/VLOOKUP(AF$2,$BO$127:$BP$138,2,FALSE) -> 251.1579906 | AG43: ='Budget FCFA'!AG43/VLOOKUP(AG$2,$BO$127:$BP$138,2,FALSE) -> 0 | AH43: ='Budget FCFA'!AH43/VLOOKUP(AH$2,$BO$127:$BP$138,2,FALSE) -> 0 | AI43: ='Budget FCFA'!AI43/VLOOKUP(AI$2,$BO$127:$BP$138,2,FALSE) -> 0 | AJ43: ='Budget FCFA'!AJ43/VLOOKUP(AJ$2,$BO$127:$BP$138,2,FALSE) -> 0 | AK43: ='Budget FCFA'!AK43/VLOOKUP(AK$2,$BO$127:$BP$138,2,FALSE) -> 251.5408784 | AL43: ='Budget FCFA'!AL43/VLOOKUP(AL$2,$BO$127:$BP$138,2,FALSE) -> 4125.270406 | AM43: ='Budget FCFA'!AM43/VLOOKUP(AM$2,$BO$127:$BP$138,2,FALSE) -> 0 | AN43: ='Budget FCFA'!AN43/VLOOKUP(AN$2,$BO$127:$BP$138,2,FALSE) -> 0 | AO43: ='Budget FCFA'!AO43/VLOOKUP(AO$2,$BO$127:$BP$138,2,FALSE) -> 0 | AP43: ='Budget FCFA'!AP43/VLOOKUP(AP$2,$BO$127:$BP$138,2,FALSE) -> 251.5408784 | AQ43: ='Budget FCFA'!#REF!/VLOOKUP(AQ$2,$BO$127:$BP$138,2,FALSE) ->  | AR43: ='Budget FCFA'!#REF!/VLOOKUP(AR$2,$BO$127:$BP$138,2,FALSE) ->  | AS43: ='Budget FCFA'!#REF!/VLOOKUP(AS$2,$BO$127:$BP$138,2,FALSE) ->  | AT43: ='Budget FCFA'!#REF!/VLOOKUP(AT$2,$BO$127:$BP$138,2,FALSE) ->  | AU43: ='Budget FCFA'!#REF!/VLOOKUP(AU$2,$BO$127:$BP$138,2,FALSE) ->  | AV43: ='Budget FCFA'!#REF!/VLOOKUP(AV$2,$BO$127:$BP$138,2,FALSE) ->  | AW43: ='Budget FCFA'!#REF!/VLOOKUP(AW$2,$BO$127:$BP$138,2,FALSE) ->  | AX43: ='Budget FCFA'!#REF!/VLOOKUP(AX$2,$BO$127:$BP$138,2,FALSE) ->  | AY43: ='Budget FCFA'!#REF!/VLOOKUP(AY$2,$BO$127:$BP$138,2,FALSE) ->  | AZ43: ='Budget FCFA'!#REF!/VLOOKUP(AZ$2,$BO$127:$BP$138,2,FALSE) ->  | BA43: ='Budget FCFA'!#REF!/VLOOKUP(BA$2,$BO$127:$BP$138,2,FALSE) ->  | BB43: ='Budget FCFA'!#REF!/VLOOKUP(BB$2,$BO$127:$BP$138,2,FALSE) ->  | BC43: ='Budget FCFA'!#REF!/VLOOKUP(BC$2,$BO$127:$BP$138,2,FALSE) ->  | BD43: ='Budget FCFA'!#REF!/VLOOKUP(BD$2,$BO$127:$BP$138,2,FALSE) ->  | BE43: ='Budget FCFA'!#REF!/VLOOKUP(BE$2,$BO$127:$BP$138,2,FALSE) ->  | BF43: ='Budget FCFA'!#REF!/VLOOKUP(BF$2,$BO$127:$BP$138,2,FALSE) ->  | BG43: ='Budget FCFA'!#REF!/VLOOKUP(BG$2,$BO$127:$BP$138,2,FALSE) ->  | BH43: ='Budget FCFA'!#REF!/VLOOKUP(BH$2,$BO$127:$BP$138,2,FALSE) ->  | BI43: ='Budget FCFA'!#REF!/VLOOKUP(BI$2,$BO$127:$BP$138,2,FALSE) ->  | BJ43: ='Budget FCFA'!#REF!/VLOOKUP(BJ$2,$BO$127:$BP$138,2,FALSE) ->  | BL43: =BK43-'Budget FCFA'!#REF! -> 
A44: PUBAFFIC | B44: DAKAR | C44: Réseau affichage | D44: ='Budget FCFA'!D44/VLOOKUP(D$2,$BO$127:$BP$138,2,FALSE) -> 0 | E44: ='Budget FCFA'!E44/VLOOKUP(E$2,$BO$127:$BP$138,2,FALSE) -> 0 | F44: ='Budget FCFA'!F44/VLOOKUP(F$2,$BO$127:$BP$138,2,FALSE) -> 0 | G44: ='Budget FCFA'!G44/VLOOKUP(G$2,$BO$127:$BP$138,2,FALSE) -> 0 | H44: ='Budget FCFA'!H44/VLOOKUP(H$2,$BO$127:$BP$138,2,FALSE) -> 0 | I44: ='Budget FCFA'!I44/VLOOKUP(I$2,$BO$127:$BP$138,2,FALSE) -> 0 | J44: ='Budget FCFA'!J44/VLOOKUP(J$2,$BO$127:$BP$138,2,FALSE) -> 0 | K44: ='Budget FCFA'!K44/VLOOKUP(K$2,$BO$127:$BP$138,2,FALSE) -> 0 | L44: ='Budget FCFA'!L44/VLOOKUP(L$2,$BO$127:$BP$138,2,FALSE) -> 0 | M44: ='Budget FCFA'!M44/VLOOKUP(M$2,$BO$127:$BP$138,2,FALSE) -> 768.3430469 | N44: ='Budget FCFA'!N44/VLOOKUP(N$2,$BO$127:$BP$138,2,FALSE) -> 0 | O44: ='Budget FCFA'!O44/VLOOKUP(O$2,$BO$127:$BP$138,2,FALSE) -> 0 | P44: ='Budget FCFA'!P44/VLOOKUP(P$2,$BO$127:$BP$138,2,FALSE) -> 546.9108493 | Q44: ='Budget FCFA'!Q44/VLOOKUP(Q$2,$BO$127:$BP$138,2,FALSE) -> 0 | R44: ='Budget FCFA'!R44/VLOOKUP(R$2,$BO$127:$BP$138,2,FALSE) -> 0 | S44: ='Budget FCFA'!S44/VLOOKUP(S$2,$BO$127:$BP$138,2,FALSE) -> 0 | T44: ='Budget FCFA'!T44/VLOOKUP(T$2,$BO$127:$BP$138,2,FALSE) -> 0 | U44: ='Budget FCFA'!U44/VLOOKUP(U$2,$BO$127:$BP$138,2,FALSE) -> 0 | V44: ='Budget FCFA'!V44/VLOOKUP(V$2,$BO$127:$BP$138,2,FALSE) -> 0 | W44: ='Budget FCFA'!W44/VLOOKUP(W$2,$BO$127:$BP$138,2,FALSE) -> 0 | X44: ='Budget FCFA'!X44/VLOOKUP(X$2,$BO$127:$BP$138,2,FALSE) -> 0 | Y44: ='Budget FCFA'!Y44/VLOOKUP(Y$2,$BO$127:$BP$138,2,FALSE) -> 0 | Z44: ='Budget FCFA'!Z44/VLOOKUP(Z$2,$BO$127:$BP$138,2,FALSE) -> 0 | AA44: ='Budget FCFA'!AA44/VLOOKUP(AA$2,$BO$127:$BP$138,2,FALSE) -> 0 | AB44: ='Budget FCFA'!AB44/VLOOKUP(AB$2,$BO$127:$BP$138,2,FALSE) -> 0 | AC44: ='Budget FCFA'!AC44/VLOOKUP(AC$2,$BO$127:$BP$138,2,FALSE) -> 0 | AD44: ='Budget FCFA'!AD44/VLOOKUP(AD$2,$BO$127:$BP$138,2,FALSE) -> 0 | AE44: ='Budget FCFA'!AE44/VLOOKUP(AE$2,$BO$127:$BP$138,2,FALSE) -> 0 | AF44: ='Budget FCFA'!AF44/VLOOKUP(AF$2,$BO$127:$BP$138,2,FALSE) -> 0 | AG44: ='Budget FCFA'!AG44/VLOOKUP(AG$2,$BO$127:$BP$138,2,FALSE) -> 0 | AH44: ='Budget FCFA'!AH44/VLOOKUP(AH$2,$BO$127:$BP$138,2,FALSE) -> 0 | AI44: ='Budget FCFA'!AI44/VLOOKUP(AI$2,$BO$127:$BP$138,2,FALSE) -> 0 | AJ44: ='Budget FCFA'!AJ44/VLOOKUP(AJ$2,$BO$127:$BP$138,2,FALSE) -> 0 | AK44: ='Budget FCFA'!AK44/VLOOKUP(AK$2,$BO$127:$BP$138,2,FALSE) -> 0 | AL44: ='Budget FCFA'!AL44/VLOOKUP(AL$2,$BO$127:$BP$138,2,FALSE) -> 0 | AM44: ='Budget FCFA'!AM44/VLOOKUP(AM$2,$BO$127:$BP$138,2,FALSE) -> 365.8776414 | AN44: ='Budget FCFA'!AN44/VLOOKUP(AN$2,$BO$127:$BP$138,2,FALSE) -> 0 | AO44: ='Budget FCFA'!AO44/VLOOKUP(AO$2,$BO$127:$BP$138,2,FALSE) -> 0 | AP44: ='Budget FCFA'!AP44/VLOOKUP(AP$2,$BO$127:$BP$138,2,FALSE) -> 0 | AQ44: ='Budget FCFA'!#REF!/VLOOKUP(AQ$2,$BO$127:$BP$138,2,FALSE) ->  | AR44: ='Budget FCFA'!#REF!/VLOOKUP(AR$2,$BO$127:$BP$138,2,FALSE) ->  | AS44: ='Budget FCFA'!#REF!/VLOOKUP(AS$2,$BO$127:$BP$138,2,FALSE) ->  | AT44: ='Budget FCFA'!#REF!/VLOOKUP(AT$2,$BO$127:$BP$138,2,FALSE) ->  | AU44: ='Budget FCFA'!#REF!/VLOOKUP(AU$2,$BO$127:$BP$138,2,FALSE) ->  | AV44: ='Budget FCFA'!#REF!/VLOOKUP(AV$2,$BO$127:$BP$138,2,FALSE) ->  | AW44: ='Budget FCFA'!#REF!/VLOOKUP(AW$2,$BO$127:$BP$138,2,FALSE) ->  | AX44: ='Budget FCFA'!#REF!/VLOOKUP(AX$2,$BO$127:$BP$138,2,FALSE) ->  | AY44: ='Budget FCFA'!#REF!/VLOOKUP(AY$2,$BO$127:$BP$138,2,FALSE) ->  | AZ44: ='Budget FCFA'!#REF!/VLOOKUP(AZ$2,$BO$127:$BP$138,2,FALSE) ->  | BA44: ='Budget FCFA'!#REF!/VLOOKUP(BA$2,$BO$127:$BP$138,2,FALSE) ->  | BB44: ='Budget FCFA'!#REF!/VLOOKUP(BB$2,$BO$127:$BP$138,2,FALSE) ->  | BC44: ='Budget FCFA'!#REF!/VLOOKUP(BC$2,$BO$127:$BP$138,2,FALSE) ->  | BD44: ='Budget FCFA'!#REF!/VLOOKUP(BD$2,$BO$127:$BP$138,2,FALSE) ->  | BE44: ='Budget FCFA'!#REF!/VLOOKUP(BE$2,$BO$127:$BP$138,2,FALSE) ->  | BF44: ='Budget FCFA'!#REF!/VLOOKUP(BF$2,$BO$127:$BP$138,2,FALSE) ->  | BG44: ='Budget FCFA'!#REF!/VLOOKUP(BG$2,$BO$127:$BP$138,2,FALSE) ->  | BH44: ='Budget FCFA'!#REF!/VLOOKUP(BH$2,$BO$127:$BP$138,2,FALSE) ->  | BI44: ='Budget FCFA'!#REF!/VLOOKUP(BI$2,$BO$127:$BP$138,2,FALSE) ->  | BJ44: ='Budget FCFA'!#REF!/VLOOKUP(BJ$2,$BO$127:$BP$138,2,FALSE) ->  | BL44: =BK44-'Budget FCFA'!#REF! -> 
A45: PUBAFFIC | B45: LIBREVILLE | C45: Réseau affichage | D45: ='Budget FCFA'!D45/VLOOKUP(D$2,$BO$127:$BP$138,2,FALSE) -> 0 | E45: ='Budget FCFA'!E45/VLOOKUP(E$2,$BO$127:$BP$138,2,FALSE) -> 0 | F45: ='Budget FCFA'!F45/VLOOKUP(F$2,$BO$127:$BP$138,2,FALSE) -> 0 | G45: ='Budget FCFA'!G45/VLOOKUP(G$2,$BO$127:$BP$138,2,FALSE) -> 0 | H45: ='Budget FCFA'!H45/VLOOKUP(H$2,$BO$127:$BP$138,2,FALSE) -> 0 | I45: ='Budget FCFA'!I45/VLOOKUP(I$2,$BO$127:$BP$138,2,FALSE) -> 0 | J45: ='Budget FCFA'!J45/VLOOKUP(J$2,$BO$127:$BP$138,2,FALSE) -> 0 | K45: ='Budget FCFA'!K45/VLOOKUP(K$2,$BO$127:$BP$138,2,FALSE) -> 0 | L45: ='Budget FCFA'!L45/VLOOKUP(L$2,$BO$127:$BP$138,2,FALSE) -> 0 | M45: ='Budget FCFA'!M45/VLOOKUP(M$2,$BO$127:$BP$138,2,FALSE) -> 0 | N45: ='Budget FCFA'!N45/VLOOKUP(N$2,$BO$127:$BP$138,2,FALSE) -> 0 | O45: ='Budget FCFA'!O45/VLOOKUP(O$2,$BO$127:$BP$138,2,FALSE) -> 0 | P45: ='Budget FCFA'!P45/VLOOKUP(P$2,$BO$127:$BP$138,2,FALSE) -> 0 | Q45: ='Budget FCFA'!Q45/VLOOKUP(Q$2,$BO$127:$BP$138,2,FALSE) -> 0 | R45: ='Budget FCFA'!R45/VLOOKUP(R$2,$BO$127:$BP$138,2,FALSE) -> 0 | S45: ='Budget FCFA'!S45/VLOOKUP(S$2,$BO$127:$BP$138,2,FALSE) -> 0 | T45: ='Budget FCFA'!T45/VLOOKUP(T$2,$BO$127:$BP$138,2,FALSE) -> 0 | U45: ='Budget FCFA'!U45/VLOOKUP(U$2,$BO$127:$BP$138,2,FALSE) -> 0 | V45: ='Budget FCFA'!V45/VLOOKUP(V$2,$BO$127:$BP$138,2,FALSE) -> 0 | W45: ='Budget FCFA'!W45/VLOOKUP(W$2,$BO$127:$BP$138,2,FALSE) -> 0 | X45: ='Budget FCFA'!X45/VLOOKUP(X$2,$BO$127:$BP$138,2,FALSE) -> 0 | Y45: ='Budget FCFA'!Y45/VLOOKUP(Y$2,$BO$127:$BP$138,2,FALSE) -> 0 | Z45: ='Budget FCFA'!Z45/VLOOKUP(Z$2,$BO$127:$BP$138,2,FALSE) -> 0 | AA45: ='Budget FCFA'!AA45/VLOOKUP(AA$2,$BO$127:$BP$138,2,FALSE) -> 0 | AB45: ='Budget FCFA'!AB45/VLOOKUP(AB$2,$BO$127:$BP$138,2,FALSE) -> 0 | AC45: ='Budget FCFA'!AC45/VLOOKUP(AC$2,$BO$127:$BP$138,2,FALSE) -> 0 | AD45: ='Budget FCFA'!AD45/VLOOKUP(AD$2,$BO$127:$BP$138,2,FALSE) -> 0 | AE45: ='Budget FCFA'!AE45/VLOOKUP(AE$2,$BO$127:$BP$138,2,FALSE) -> 0 | AF45: ='Budget FCFA'!AF45/VLOOKUP(AF$2,$BO$127:$BP$138,2,FALSE) -> 0 | AG45: ='Budget FCFA'!AG45/VLOOKUP(AG$2,$BO$127:$BP$138,2,FALSE) -> 0 | AH45: ='Budget FCFA'!AH45/VLOOKUP(AH$2,$BO$127:$BP$138,2,FALSE) -> 0 | AI45: ='Budget FCFA'!AI45/VLOOKUP(AI$2,$BO$127:$BP$138,2,FALSE) -> 0 | AJ45: ='Budget FCFA'!AJ45/VLOOKUP(AJ$2,$BO$127:$BP$138,2,FALSE) -> 0 | AK45: ='Budget FCFA'!AK45/VLOOKUP(AK$2,$BO$127:$BP$138,2,FALSE) -> 0 | AL45: ='Budget FCFA'!AL45/VLOOKUP(AL$2,$BO$127:$BP$138,2,FALSE) -> 791.824769 | AM45: ='Budget FCFA'!AM45/VLOOKUP(AM$2,$BO$127:$BP$138,2,FALSE) -> 0 | AN45: ='Budget FCFA'!AN45/VLOOKUP(AN$2,$BO$127:$BP$138,2,FALSE) -> 0 | AO45: ='Budget FCFA'!AO45/VLOOKUP(AO$2,$BO$127:$BP$138,2,FALSE) -> 0 | AP45: ='Budget FCFA'!AP45/VLOOKUP(AP$2,$BO$127:$BP$138,2,FALSE) -> 0 | AQ45: ='Budget FCFA'!#REF!/VLOOKUP(AQ$2,$BO$127:$BP$138,2,FALSE) ->  | AR45: ='Budget FCFA'!#REF!/VLOOKUP(AR$2,$BO$127:$BP$138,2,FALSE) ->  | AS45: ='Budget FCFA'!#REF!/VLOOKUP(AS$2,$BO$127:$BP$138,2,FALSE) ->  | AT45: ='Budget FCFA'!#REF!/VLOOKUP(AT$2,$BO$127:$BP$138,2,FALSE) ->  | AU45: ='Budget FCFA'!#REF!/VLOOKUP(AU$2,$BO$127:$BP$138,2,FALSE) ->  | AV45: ='Budget FCFA'!#REF!/VLOOKUP(AV$2,$BO$127:$BP$138,2,FALSE) ->  | AW45: ='Budget FCFA'!#REF!/VLOOKUP(AW$2,$BO$127:$BP$138,2,FALSE) ->  | AX45: ='Budget FCFA'!#REF!/VLOOKUP(AX$2,$BO$127:$BP$138,2,FALSE) ->  | AY45: ='Budget FCFA'!#REF!/VLOOKUP(AY$2,$BO$127:$BP$138,2,FALSE) ->  | AZ45: ='Budget FCFA'!#REF!/VLOOKUP(AZ$2,$BO$127:$BP$138,2,FALSE) ->  | BA45: ='Budget FCFA'!#REF!/VLOOKUP(BA$2,$BO$127:$BP$138,2,FALSE) ->  | BB45: ='Budget FCFA'!#REF!/VLOOKUP(BB$2,$BO$127:$BP$138,2,FALSE) ->  | BC45: ='Budget FCFA'!#REF!/VLOOKUP(BC$2,$BO$127:$BP$138,2,FALSE) ->  | BD45: ='Budget FCFA'!#REF!/VLOOKUP(BD$2,$BO$127:$BP$138,2,FALSE) ->  | BE45: ='Budget FCFA'!#REF!/VLOOKUP(BE$2,$BO$127:$BP$138,2,FALSE) ->  | BF45: ='Budget FCFA'!#REF!/VLOOKUP(BF$2,$BO$127:$BP$138,2,FALSE) ->  | BG45: ='Budget FCFA'!#REF!/VLOOKUP(BG$2,$BO$127:$BP$138,2,FALSE) ->  | BH45: ='Budget FCFA'!#REF!/VLOOKUP(BH$2,$BO$127:$BP$138,2,FALSE) ->  | BI45: ='Budget FCFA'!#REF!/VLOOKUP(BI$2,$BO$127:$BP$138,2,FALSE) ->  | BJ45: ='Budget FCFA'!#REF!/VLOOKUP(BJ$2,$BO$127:$BP$138,2,FALSE) ->  | BL45: =BK45-'Budget FCFA'!#REF! -> 
A46: PUBAFFIC | B46: DOUALA | C46: Réseau affichage | D46: ='Budget FCFA'!D46/VLOOKUP(D$2,$BO$127:$BP$138,2,FALSE) -> 0 | E46: ='Budget FCFA'!E46/VLOOKUP(E$2,$BO$127:$BP$138,2,FALSE) -> 0 | F46: ='Budget FCFA'!F46/VLOOKUP(F$2,$BO$127:$BP$138,2,FALSE) -> 0 | G46: ='Budget FCFA'!G46/VLOOKUP(G$2,$BO$127:$BP$138,2,FALSE) -> 0 | H46: ='Budget FCFA'!H46/VLOOKUP(H$2,$BO$127:$BP$138,2,FALSE) -> 502.4719608 | I46: ='Budget FCFA'!I46/VLOOKUP(I$2,$BO$127:$BP$138,2,FALSE) -> 1595.348476 | J46: ='Budget FCFA'!J46/VLOOKUP(J$2,$BO$127:$BP$138,2,FALSE) -> 0 | K46: ='Budget FCFA'!K46/VLOOKUP(K$2,$BO$127:$BP$138,2,FALSE) -> 0 | L46: ='Budget FCFA'!L46/VLOOKUP(L$2,$BO$127:$BP$138,2,FALSE) -> 0 | M46: ='Budget FCFA'!M46/VLOOKUP(M$2,$BO$127:$BP$138,2,FALSE) -> 0 | N46: ='Budget FCFA'!N46/VLOOKUP(N$2,$BO$127:$BP$138,2,FALSE) -> 0 | O46: ='Budget FCFA'!O46/VLOOKUP(O$2,$BO$127:$BP$138,2,FALSE) -> 0 | P46: ='Budget FCFA'!P46/VLOOKUP(P$2,$BO$127:$BP$138,2,FALSE) -> 0 | Q46: ='Budget FCFA'!Q46/VLOOKUP(Q$2,$BO$127:$BP$138,2,FALSE) -> 0 | R46: ='Budget FCFA'!R46/VLOOKUP(R$2,$BO$127:$BP$138,2,FALSE) -> 695.6096208 | S46: ='Budget FCFA'!S46/VLOOKUP(S$2,$BO$127:$BP$138,2,FALSE) -> 0 | T46: ='Budget FCFA'!T46/VLOOKUP(T$2,$BO$127:$BP$138,2,FALSE) -> 0 | U46: ='Budget FCFA'!U46/VLOOKUP(U$2,$BO$127:$BP$138,2,FALSE) -> 0 | V46: ='Budget FCFA'!V46/VLOOKUP(V$2,$BO$127:$BP$138,2,FALSE) -> 0 | W46: ='Budget FCFA'!W46/VLOOKUP(W$2,$BO$127:$BP$138,2,FALSE) -> 0 | X46: ='Budget FCFA'!X46/VLOOKUP(X$2,$BO$127:$BP$138,2,FALSE) -> 0 | Y46: ='Budget FCFA'!Y46/VLOOKUP(Y$2,$BO$127:$BP$138,2,FALSE) -> 0 | Z46: ='Budget FCFA'!Z46/VLOOKUP(Z$2,$BO$127:$BP$138,2,FALSE) -> 0 | AA46: ='Budget FCFA'!AA46/VLOOKUP(AA$2,$BO$127:$BP$138,2,FALSE) -> 0 | AB46: ='Budget FCFA'!AB46/VLOOKUP(AB$2,$BO$127:$BP$138,2,FALSE) -> 0 | AC46: ='Budget FCFA'!AC46/VLOOKUP(AC$2,$BO$127:$BP$138,2,FALSE) -> 0 | AD46: ='Budget FCFA'!AD46/VLOOKUP(AD$2,$BO$127:$BP$138,2,FALSE) -> 0 | AE46: ='Budget FCFA'!AE46/VLOOKUP(AE$2,$BO$127:$BP$138,2,FALSE) -> 0 | AF46: ='Budget FCFA'!AF46/VLOOKUP(AF$2,$BO$127:$BP$138,2,FALSE) -> 0 | AG46: ='Budget FCFA'!AG46/VLOOKUP(AG$2,$BO$127:$BP$138,2,FALSE) -> 0 | AH46: ='Budget FCFA'!AH46/VLOOKUP(AH$2,$BO$127:$BP$138,2,FALSE) -> 0 | AI46: ='Budget FCFA'!AI46/VLOOKUP(AI$2,$BO$127:$BP$138,2,FALSE) -> 0 | AJ46: ='Budget FCFA'!AJ46/VLOOKUP(AJ$2,$BO$127:$BP$138,2,FALSE) -> 0 | AK46: ='Budget FCFA'!AK46/VLOOKUP(AK$2,$BO$127:$BP$138,2,FALSE) -> 0 | AL46: ='Budget FCFA'!AL46/VLOOKUP(AL$2,$BO$127:$BP$138,2,FALSE) -> 2149.531143 | AM46: ='Budget FCFA'!AM46/VLOOKUP(AM$2,$BO$127:$BP$138,2,FALSE) -> 0 | AN46: ='Budget FCFA'!AN46/VLOOKUP(AN$2,$BO$127:$BP$138,2,FALSE) -> 0 | AO46: ='Budget FCFA'!AO46/VLOOKUP(AO$2,$BO$127:$BP$138,2,FALSE) -> 0 | AP46: ='Budget FCFA'!AP46/VLOOKUP(AP$2,$BO$127:$BP$138,2,FALSE) -> 0 | AQ46: ='Budget FCFA'!#REF!/VLOOKUP(AQ$2,$BO$127:$BP$138,2,FALSE) ->  | AR46: ='Budget FCFA'!#REF!/VLOOKUP(AR$2,$BO$127:$BP$138,2,FALSE) ->  | AS46: ='Budget FCFA'!#REF!/VLOOKUP(AS$2,$BO$127:$BP$138,2,FALSE) ->  | AT46: ='Budget FCFA'!#REF!/VLOOKUP(AT$2,$BO$127:$BP$138,2,FALSE) ->  | AU46: ='Budget FCFA'!#REF!/VLOOKUP(AU$2,$BO$127:$BP$138,2,FALSE) ->  | AV46: ='Budget FCFA'!#REF!/VLOOKUP(AV$2,$BO$127:$BP$138,2,FALSE) ->  | AW46: ='Budget FCFA'!#REF!/VLOOKUP(AW$2,$BO$127:$BP$138,2,FALSE) ->  | AX46: ='Budget FCFA'!#REF!/VLOOKUP(AX$2,$BO$127:$BP$138,2,FALSE) ->  | AY46: ='Budget FCFA'!#REF!/VLOOKUP(AY$2,$BO$127:$BP$138,2,FALSE) ->  | AZ46: ='Budget FCFA'!#REF!/VLOOKUP(AZ$2,$BO$127:$BP$138,2,FALSE) ->  | BA46: ='Budget FCFA'!#REF!/VLOOKUP(BA$2,$BO$127:$BP$138,2,FALSE) ->  | BB46: ='Budget FCFA'!#REF!/VLOOKUP(BB$2,$BO$127:$BP$138,2,FALSE) ->  | BC46: ='Budget FCFA'!#REF!/VLOOKUP(BC$2,$BO$127:$BP$138,2,FALSE) ->  | BD46: ='Budget FCFA'!#REF!/VLOOKUP(BD$2,$BO$127:$BP$138,2,FALSE) ->  | BE46: ='Budget FCFA'!#REF!/VLOOKUP(BE$2,$BO$127:$BP$138,2,FALSE) ->  | BF46: ='Budget FCFA'!#REF!/VLOOKUP(BF$2,$BO$127:$BP$138,2,FALSE) ->  | BG46: ='Budget FCFA'!#REF!/VLOOKUP(BG$2,$BO$127:$BP$138,2,FALSE) ->  | BH46: ='Budget FCFA'!#REF!/VLOOKUP(BH$2,$BO$127:$BP$138,2,FALSE) ->  | BI46: ='Budget FCFA'!#REF!/VLOOKUP(BI$2,$BO$127:$BP$138,2,FALSE) ->  | BJ46: ='Budget FCFA'!#REF!/VLOOKUP(BJ$2,$BO$127:$BP$138,2,FALSE) ->  | BL46: =BK46-'Budget FCFA'!#REF! -> 
A47: PUBAFFIC | B47: ABIDJAN | C47: Frais de création affichage | D47: ='Budget FCFA'!D47/VLOOKUP(D$2,$BO$127:$BP$138,2,FALSE) -> 0 | E47: ='Budget FCFA'!E47/VLOOKUP(E$2,$BO$127:$BP$138,2,FALSE) -> 0 | F47: ='Budget FCFA'!F47/VLOOKUP(F$2,$BO$127:$BP$138,2,FALSE) -> 0 | G47: ='Budget FCFA'!G47/VLOOKUP(G$2,$BO$127:$BP$138,2,FALSE) -> 0 | H47: ='Budget FCFA'!H47/VLOOKUP(H$2,$BO$127:$BP$138,2,FALSE) -> 57.01593245 | I47: ='Budget FCFA'!I47/VLOOKUP(I$2,$BO$127:$BP$138,2,FALSE) -> 0 | J47: ='Budget FCFA'!J47/VLOOKUP(J$2,$BO$127:$BP$138,2,FALSE) -> 0 | K47: ='Budget FCFA'!K47/VLOOKUP(K$2,$BO$127:$BP$138,2,FALSE) -> 0 | L47: ='Budget FCFA'!L47/VLOOKUP(L$2,$BO$127:$BP$138,2,FALSE) -> 0 | M47: ='Budget FCFA'!M47/VLOOKUP(M$2,$BO$127:$BP$138,2,FALSE) -> 57.01593245 | N47: ='Budget FCFA'!N47/VLOOKUP(N$2,$BO$127:$BP$138,2,FALSE) -> 0 | O47: ='Budget FCFA'!O47/VLOOKUP(O$2,$BO$127:$BP$138,2,FALSE) -> 0 | P47: ='Budget FCFA'!P47/VLOOKUP(P$2,$BO$127:$BP$138,2,FALSE) -> 0 | Q47: ='Budget FCFA'!Q47/VLOOKUP(Q$2,$BO$127:$BP$138,2,FALSE) -> 0 | R47: ='Budget FCFA'!R47/VLOOKUP(R$2,$BO$127:$BP$138,2,FALSE) -> 57.01593245 | S47: ='Budget FCFA'!S47/VLOOKUP(S$2,$BO$127:$BP$138,2,FALSE) -> 0 | T47: ='Budget FCFA'!T47/VLOOKUP(T$2,$BO$127:$BP$138,2,FALSE) -> 0 | U47: ='Budget FCFA'!U47/VLOOKUP(U$2,$BO$127:$BP$138,2,FALSE) -> 0 | V47: ='Budget FCFA'!V47/VLOOKUP(V$2,$BO$127:$BP$138,2,FALSE) -> 0 | W47: ='Budget FCFA'!W47/VLOOKUP(W$2,$BO$127:$BP$138,2,FALSE) -> 57.01593245 | X47: ='Budget FCFA'!X47/VLOOKUP(X$2,$BO$127:$BP$138,2,FALSE) -> 0 | Y47: ='Budget FCFA'!Y47/VLOOKUP(Y$2,$BO$127:$BP$138,2,FALSE) -> 0 | Z47: ='Budget FCFA'!Z47/VLOOKUP(Z$2,$BO$127:$BP$138,2,FALSE) -> 0 | AA47: ='Budget FCFA'!AA47/VLOOKUP(AA$2,$BO$127:$BP$138,2,FALSE) -> 57.01593245 | AB47: ='Budget FCFA'!AB47/VLOOKUP(AB$2,$BO$127:$BP$138,2,FALSE) -> 0 | AC47: ='Budget FCFA'!AC47/VLOOKUP(AC$2,$BO$127:$BP$138,2,FALSE) -> 0 | AD47: ='Budget FCFA'!AD47/VLOOKUP(AD$2,$BO$127:$BP$138,2,FALSE) -> 0 | AE47: ='Budget FCFA'!AE47/VLOOKUP(AE$2,$BO$127:$BP$138,2,FALSE) -> 0 | AF47: ='Budget FCFA'!AF47/VLOOKUP(AF$2,$BO$127:$BP$138,2,FALSE) -> 56.92914453 | AG47: ='Budget FCFA'!AG47/VLOOKUP(AG$2,$BO$127:$BP$138,2,FALSE) -> 0 | AH47: ='Budget FCFA'!AH47/VLOOKUP(AH$2,$BO$127:$BP$138,2,FALSE) -> 0 | AI47: ='Budget FCFA'!AI47/VLOOKUP(AI$2,$BO$127:$BP$138,2,FALSE) -> 0 | AJ47: ='Budget FCFA'!AJ47/VLOOKUP(AJ$2,$BO$127:$BP$138,2,FALSE) -> 0 | AK47: ='Budget FCFA'!AK47/VLOOKUP(AK$2,$BO$127:$BP$138,2,FALSE) -> 57.01593245 | AL47: ='Budget FCFA'!AL47/VLOOKUP(AL$2,$BO$127:$BP$138,2,FALSE) -> 1029.030866 | AM47: ='Budget FCFA'!AM47/VLOOKUP(AM$2,$BO$127:$BP$138,2,FALSE) -> 0 | AN47: ='Budget FCFA'!AN47/VLOOKUP(AN$2,$BO$127:$BP$138,2,FALSE) -> 0 | AO47: ='Budget FCFA'!AO47/VLOOKUP(AO$2,$BO$127:$BP$138,2,FALSE) -> 0 | AP47: ='Budget FCFA'!AP47/VLOOKUP(AP$2,$BO$127:$BP$138,2,FALSE) -> 57.01593245 | AQ47: ='Budget FCFA'!#REF!/VLOOKUP(AQ$2,$BO$127:$BP$138,2,FALSE) ->  | AR47: ='Budget FCFA'!#REF!/VLOOKUP(AR$2,$BO$127:$BP$138,2,FALSE) ->  | AS47: ='Budget FCFA'!#REF!/VLOOKUP(AS$2,$BO$127:$BP$138,2,FALSE) ->  | AT47: ='Budget FCFA'!#REF!/VLOOKUP(AT$2,$BO$127:$BP$138,2,FALSE) ->  | AU47: ='Budget FCFA'!#REF!/VLOOKUP(AU$2,$BO$127:$BP$138,2,FALSE) ->  | AV47: ='Budget FCFA'!#REF!/VLOOKUP(AV$2,$BO$127:$BP$138,2,FALSE) ->  | AW47: ='Budget FCFA'!#REF!/VLOOKUP(AW$2,$BO$127:$BP$138,2,FALSE) ->  | AX47: ='Budget FCFA'!#REF!/VLOOKUP(AX$2,$BO$127:$BP$138,2,FALSE) ->  | AY47: ='Budget FCFA'!#REF!/VLOOKUP(AY$2,$BO$127:$BP$138,2,FALSE) ->  | AZ47: ='Budget FCFA'!#REF!/VLOOKUP(AZ$2,$BO$127:$BP$138,2,FALSE) ->  | BA47: ='Budget FCFA'!#REF!/VLOOKUP(BA$2,$BO$127:$BP$138,2,FALSE) ->  | BB47: ='Budget FCFA'!#REF!/VLOOKUP(BB$2,$BO$127:$BP$138,2,FALSE) ->  | BC47: ='Budget FCFA'!#REF!/VLOOKUP(BC$2,$BO$127:$BP$138,2,FALSE) ->  | BD47: ='Budget FCFA'!#REF!/VLOOKUP(BD$2,$BO$127:$BP$138,2,FALSE) ->  | BE47: ='Budget FCFA'!#REF!/VLOOKUP(BE$2,$BO$127:$BP$138,2,FALSE) ->  | BF47: ='Budget FCFA'!#REF!/VLOOKUP(BF$2,$BO$127:$BP$138,2,FALSE) ->  | BG47: ='Budget FCFA'!#REF!/VLOOKUP(BG$2,$BO$127:$BP$138,2,FALSE) ->  | BH47: ='Budget FCFA'!#REF!/VLOOKUP(BH$2,$BO$127:$BP$138,2,FALSE) ->  | BI47: ='Budget FCFA'!#REF!/VLOOKUP(BI$2,$BO$127:$BP$138,2,FALSE) ->  | BJ47: ='Budget FCFA'!#REF!/VLOOKUP(BJ$2,$BO$127:$BP$138,2,FALSE) ->  | BL47: =BK47-'Budget FCFA'!#REF! -> 
A48: PUBAFFIC | B48: BRAZZA | C48: Frais de création affichage | D48: ='Budget FCFA'!D48/VLOOKUP(D$2,$BO$127:$BP$138,2,FALSE) -> 0 | E48: ='Budget FCFA'!E48/VLOOKUP(E$2,$BO$127:$BP$138,2,FALSE) -> 0 | F48: ='Budget FCFA'!F48/VLOOKUP(F$2,$BO$127:$BP$138,2,FALSE) -> 0 | G48: ='Budget FCFA'!G48/VLOOKUP(G$2,$BO$127:$BP$138,2,FALSE) -> 0 | H48: ='Budget FCFA'!H48/VLOOKUP(H$2,$BO$127:$BP$138,2,FALSE) -> 57.01593245 | I48: ='Budget FCFA'!I48/VLOOKUP(I$2,$BO$127:$BP$138,2,FALSE) -> 0 | J48: ='Budget FCFA'!J48/VLOOKUP(J$2,$BO$127:$BP$138,2,FALSE) -> 0 | K48: ='Budget FCFA'!K48/VLOOKUP(K$2,$BO$127:$BP$138,2,FALSE) -> 0 | L48: ='Budget FCFA'!L48/VLOOKUP(L$2,$BO$127:$BP$138,2,FALSE) -> 0 | M48: ='Budget FCFA'!M48/VLOOKUP(M$2,$BO$127:$BP$138,2,FALSE) -> 57.01593245 | N48: ='Budget FCFA'!N48/VLOOKUP(N$2,$BO$127:$BP$138,2,FALSE) -> 0 | O48: ='Budget FCFA'!O48/VLOOKUP(O$2,$BO$127:$BP$138,2,FALSE) -> 0 | P48: ='Budget FCFA'!P48/VLOOKUP(P$2,$BO$127:$BP$138,2,FALSE) -> 0 | Q48: ='Budget FCFA'!Q48/VLOOKUP(Q$2,$BO$127:$BP$138,2,FALSE) -> 0 | R48: ='Budget FCFA'!R48/VLOOKUP(R$2,$BO$127:$BP$138,2,FALSE) -> 57.01593245 | S48: ='Budget FCFA'!S48/VLOOKUP(S$2,$BO$127:$BP$138,2,FALSE) -> 0 | T48: ='Budget FCFA'!T48/VLOOKUP(T$2,$BO$127:$BP$138,2,FALSE) -> 0 | U48: ='Budget FCFA'!U48/VLOOKUP(U$2,$BO$127:$BP$138,2,FALSE) -> 0 | V48: ='Budget FCFA'!V48/VLOOKUP(V$2,$BO$127:$BP$138,2,FALSE) -> 0 | W48: ='Budget FCFA'!W48/VLOOKUP(W$2,$BO$127:$BP$138,2,FALSE) -> 57.01593245 | X48: ='Budget FCFA'!X48/VLOOKUP(X$2,$BO$127:$BP$138,2,FALSE) -> 0 | Y48: ='Budget FCFA'!Y48/VLOOKUP(Y$2,$BO$127:$BP$138,2,FALSE) -> 0 | Z48: ='Budget FCFA'!Z48/VLOOKUP(Z$2,$BO$127:$BP$138,2,FALSE) -> 0 | AA48: ='Budget FCFA'!AA48/VLOOKUP(AA$2,$BO$127:$BP$138,2,FALSE) -> 57.01593245 | AB48: ='Budget FCFA'!AB48/VLOOKUP(AB$2,$BO$127:$BP$138,2,FALSE) -> 0 | AC48: ='Budget FCFA'!AC48/VLOOKUP(AC$2,$BO$127:$BP$138,2,FALSE) -> 0 | AD48: ='Budget FCFA'!AD48/VLOOKUP(AD$2,$BO$127:$BP$138,2,FALSE) -> 0 | AE48: ='Budget FCFA'!AE48/VLOOKUP(AE$2,$BO$127:$BP$138,2,FALSE) -> 0 | AF48: ='Budget FCFA'!AF48/VLOOKUP(AF$2,$BO$127:$BP$138,2,FALSE) -> 56.92914453 | AG48: ='Budget FCFA'!AG48/VLOOKUP(AG$2,$BO$127:$BP$138,2,FALSE) -> 0 | AH48: ='Budget FCFA'!AH48/VLOOKUP(AH$2,$BO$127:$BP$138,2,FALSE) -> 0 | AI48: ='Budget FCFA'!AI48/VLOOKUP(AI$2,$BO$127:$BP$138,2,FALSE) -> 0 | AJ48: ='Budget FCFA'!AJ48/VLOOKUP(AJ$2,$BO$127:$BP$138,2,FALSE) -> 0 | AK48: ='Budget FCFA'!AK48/VLOOKUP(AK$2,$BO$127:$BP$138,2,FALSE) -> 57.01593245 | AL48: ='Budget FCFA'!AL48/VLOOKUP(AL$2,$BO$127:$BP$138,2,FALSE) -> 0 | AM48: ='Budget FCFA'!AM48/VLOOKUP(AM$2,$BO$127:$BP$138,2,FALSE) -> 0 | AN48: ='Budget FCFA'!AN48/VLOOKUP(AN$2,$BO$127:$BP$138,2,FALSE) -> 0 | AO48: ='Budget FCFA'!AO48/VLOOKUP(AO$2,$BO$127:$BP$138,2,FALSE) -> 0 | AP48: ='Budget FCFA'!AP48/VLOOKUP(AP$2,$BO$127:$BP$138,2,FALSE) -> 57.01593245 | AQ48: ='Budget FCFA'!#REF!/VLOOKUP(AQ$2,$BO$127:$BP$138,2,FALSE) ->  | AR48: ='Budget FCFA'!#REF!/VLOOKUP(AR$2,$BO$127:$BP$138,2,FALSE) ->  | AS48: ='Budget FCFA'!#REF!/VLOOKUP(AS$2,$BO$127:$BP$138,2,FALSE) ->  | AT48: ='Budget FCFA'!#REF!/VLOOKUP(AT$2,$BO$127:$BP$138,2,FALSE) ->  | AU48: ='Budget FCFA'!#REF!/VLOOKUP(AU$2,$BO$127:$BP$138,2,FALSE) ->  | AV48: ='Budget FCFA'!#REF!/VLOOKUP(AV$2,$BO$127:$BP$138,2,FALSE) ->  | AW48: ='Budget FCFA'!#REF!/VLOOKUP(AW$2,$BO$127:$BP$138,2,FALSE) ->  | AX48: ='Budget FCFA'!#REF!/VLOOKUP(AX$2,$BO$127:$BP$138,2,FALSE) ->  | AY48: ='Budget FCFA'!#REF!/VLOOKUP(AY$2,$BO$127:$BP$138,2,FALSE) ->  | AZ48: ='Budget FCFA'!#REF!/VLOOKUP(AZ$2,$BO$127:$BP$138,2,FALSE) ->  | BA48: ='Budget FCFA'!#REF!/VLOOKUP(BA$2,$BO$127:$BP$138,2,FALSE) ->  | BB48: ='Budget FCFA'!#REF!/VLOOKUP(BB$2,$BO$127:$BP$138,2,FALSE) ->  | BC48: ='Budget FCFA'!#REF!/VLOOKUP(BC$2,$BO$127:$BP$138,2,FALSE) ->  | BD48: ='Budget FCFA'!#REF!/VLOOKUP(BD$2,$BO$127:$BP$138,2,FALSE) ->  | BE48: ='Budget FCFA'!#REF!/VLOOKUP(BE$2,$BO$127:$BP$138,2,FALSE) ->  | BF48: ='Budget FCFA'!#REF!/VLOOKUP(BF$2,$BO$127:$BP$138,2,FALSE) ->  | BG48: ='Budget FCFA'!#REF!/VLOOKUP(BG$2,$BO$127:$BP$138,2,FALSE) ->  | BH48: ='Budget FCFA'!#REF!/VLOOKUP(BH$2,$BO$127:$BP$138,2,FALSE) ->  | BI48: ='Budget FCFA'!#REF!/VLOOKUP(BI$2,$BO$127:$BP$138,2,FALSE) ->  | BJ48: ='Budget FCFA'!#REF!/VLOOKUP(BJ$2,$BO$127:$BP$138,2,FALSE) ->  | BL48: =BK48-'Budget FCFA'!#REF! -> 
A49: PUBAFFIC | B49: DAKAR | C49: Frais de création affichage | D49: ='Budget FCFA'!D49/VLOOKUP(D$2,$BO$127:$BP$138,2,FALSE) -> 0 | E49: ='Budget FCFA'!E49/VLOOKUP(E$2,$BO$127:$BP$138,2,FALSE) -> 0 | F49: ='Budget FCFA'!F49/VLOOKUP(F$2,$BO$127:$BP$138,2,FALSE) -> 0 | G49: ='Budget FCFA'!G49/VLOOKUP(G$2,$BO$127:$BP$138,2,FALSE) -> 0 | H49: ='Budget FCFA'!H49/VLOOKUP(H$2,$BO$127:$BP$138,2,FALSE) -> 57.01593245 | I49: ='Budget FCFA'!I49/VLOOKUP(I$2,$BO$127:$BP$138,2,FALSE) -> 0 | J49: ='Budget FCFA'!J49/VLOOKUP(J$2,$BO$127:$BP$138,2,FALSE) -> 0 | K49: ='Budget FCFA'!K49/VLOOKUP(K$2,$BO$127:$BP$138,2,FALSE) -> 0 | L49: ='Budget FCFA'!L49/VLOOKUP(L$2,$BO$127:$BP$138,2,FALSE) -> 0 | M49: ='Budget FCFA'!M49/VLOOKUP(M$2,$BO$127:$BP$138,2,FALSE) -> 57.01593245 | N49: ='Budget FCFA'!N49/VLOOKUP(N$2,$BO$127:$BP$138,2,FALSE) -> 0 | O49: ='Budget FCFA'!O49/VLOOKUP(O$2,$BO$127:$BP$138,2,FALSE) -> 0 | P49: ='Budget FCFA'!P49/VLOOKUP(P$2,$BO$127:$BP$138,2,FALSE) -> 0 | Q49: ='Budget FCFA'!Q49/VLOOKUP(Q$2,$BO$127:$BP$138,2,FALSE) -> 0 | R49: ='Budget FCFA'!R49/VLOOKUP(R$2,$BO$127:$BP$138,2,FALSE) -> 57.01593245 | S49: ='Budget FCFA'!S49/VLOOKUP(S$2,$BO$127:$BP$138,2,FALSE) -> 0 | T49: ='Budget FCFA'!T49/VLOOKUP(T$2,$BO$127:$BP$138,2,FALSE) -> 0 | U49: ='Budget FCFA'!U49/VLOOKUP(U$2,$BO$127:$BP$138,2,FALSE) -> 0 | V49: ='Budget FCFA'!V49/VLOOKUP(V$2,$BO$127:$BP$138,2,FALSE) -> 0 | W49: ='Budget FCFA'!W49/VLOOKUP(W$2,$BO$127:$BP$138,2,FALSE) -> 57.01593245 | X49: ='Budget FCFA'!X49/VLOOKUP(X$2,$BO$127:$BP$138,2,FALSE) -> 0 | Y49: ='Budget FCFA'!Y49/VLOOKUP(Y$2,$BO$127:$BP$138,2,FALSE) -> 0 | Z49: ='Budget FCFA'!Z49/VLOOKUP(Z$2,$BO$127:$BP$138,2,FALSE) -> 0 | AA49: ='Budget FCFA'!AA49/VLOOKUP(AA$2,$BO$127:$BP$138,2,FALSE) -> 57.01593245 | AB49: ='Budget FCFA'!AB49/VLOOKUP(AB$2,$BO$127:$BP$138,2,FALSE) -> 0 | AC49: ='Budget FCFA'!AC49/VLOOKUP(AC$2,$BO$127:$BP$138,2,FALSE) -> 0 | AD49: ='Budget FCFA'!AD49/VLOOKUP(AD$2,$BO$127:$BP$138,2,FALSE) -> 0 | AE49: ='Budget FCFA'!AE49/VLOOKUP(AE$2,$BO$127:$BP$138,2,FALSE) -> 0 | AF49: ='Budget FCFA'!AF49/VLOOKUP(AF$2,$BO$127:$BP$138,2,FALSE) -> 56.92914453 | AG49: ='Budget FCFA'!AG49/VLOOKUP(AG$2,$BO$127:$BP$138,2,FALSE) -> 0 | AH49: ='Budget FCFA'!AH49/VLOOKUP(AH$2,$BO$127:$BP$138,2,FALSE) -> 0 | AI49: ='Budget FCFA'!AI49/VLOOKUP(AI$2,$BO$127:$BP$138,2,FALSE) -> 0 | AJ49: ='Budget FCFA'!AJ49/VLOOKUP(AJ$2,$BO$127:$BP$138,2,FALSE) -> 0 | AK49: ='Budget FCFA'!AK49/VLOOKUP(AK$2,$BO$127:$BP$138,2,FALSE) -> 57.01593245 | AL49: ='Budget FCFA'!AL49/VLOOKUP(AL$2,$BO$127:$BP$138,2,FALSE) -> 0 | AM49: ='Budget FCFA'!AM49/VLOOKUP(AM$2,$BO$127:$BP$138,2,FALSE) -> 0 | AN49: ='Budget FCFA'!AN49/VLOOKUP(AN$2,$BO$127:$BP$138,2,FALSE) -> 0 | AO49: ='Budget FCFA'!AO49/VLOOKUP(AO$2,$BO$127:$BP$138,2,FALSE) -> 0 | AP49: ='Budget FCFA'!AP49/VLOOKUP(AP$2,$BO$127:$BP$138,2,FALSE) -> 57.01593245 | AQ49: ='Budget FCFA'!#REF!/VLOOKUP(AQ$2,$BO$127:$BP$138,2,FALSE) ->  | AR49: ='Budget FCFA'!#REF!/VLOOKUP(AR$2,$BO$127:$BP$138,2,FALSE) ->  | AS49: ='Budget FCFA'!#REF!/VLOOKUP(AS$2,$BO$127:$BP$138,2,FALSE) ->  | AT49: ='Budget FCFA'!#REF!/VLOOKUP(AT$2,$BO$127:$BP$138,2,FALSE) ->  | AU49: ='Budget FCFA'!#REF!/VLOOKUP(AU$2,$BO$127:$BP$138,2,FALSE) ->  | AV49: ='Budget FCFA'!#REF!/VLOOKUP(AV$2,$BO$127:$BP$138,2,FALSE) ->  | AW49: ='Budget FCFA'!#REF!/VLOOKUP(AW$2,$BO$127:$BP$138,2,FALSE) ->  | AX49: ='Budget FCFA'!#REF!/VLOOKUP(AX$2,$BO$127:$BP$138,2,FALSE) ->  | AY49: ='Budget FCFA'!#REF!/VLOOKUP(AY$2,$BO$127:$BP$138,2,FALSE) ->  | AZ49: ='Budget FCFA'!#REF!/VLOOKUP(AZ$2,$BO$127:$BP$138,2,FALSE) ->  | BA49: ='Budget FCFA'!#REF!/VLOOKUP(BA$2,$BO$127:$BP$138,2,FALSE) ->  | BB49: ='Budget FCFA'!#REF!/VLOOKUP(BB$2,$BO$127:$BP$138,2,FALSE) ->  | BC49: ='Budget FCFA'!#REF!/VLOOKUP(BC$2,$BO$127:$BP$138,2,FALSE) ->  | BD49: ='Budget FCFA'!#REF!/VLOOKUP(BD$2,$BO$127:$BP$138,2,FALSE) ->  | BE49: ='Budget FCFA'!#REF!/VLOOKUP(BE$2,$BO$127:$BP$138,2,FALSE) ->  | BF49: ='Budget FCFA'!#REF!/VLOOKUP(BF$2,$BO$127:$BP$138,2,FALSE) ->  | BG49: ='Budget FCFA'!#REF!/VLOOKUP(BG$2,$BO$127:$BP$138,2,FALSE) ->  | BH49: ='Budget FCFA'!#REF!/VLOOKUP(BH$2,$BO$127:$BP$138,2,FALSE) ->  | BI49: ='Budget FCFA'!#REF!/VLOOKUP(BI$2,$BO$127:$BP$138,2,FALSE) ->  | BJ49: ='Budget FCFA'!#REF!/VLOOKUP(BJ$2,$BO$127:$BP$138,2,FALSE) ->  | BL49: =BK49-'Budget FCFA'!#REF! -> 
A50: PUBAFFIC | B50: LIBREVILLE | C50: Frais de création affichage | D50: ='Budget FCFA'!D50/VLOOKUP(D$2,$BO$127:$BP$138,2,FALSE) -> 0 | E50: ='Budget FCFA'!E50/VLOOKUP(E$2,$BO$127:$BP$138,2,FALSE) -> 0 | F50: ='Budget FCFA'!F50/VLOOKUP(F$2,$BO$127:$BP$138,2,FALSE) -> 0 | G50: ='Budget FCFA'!G50/VLOOKUP(G$2,$BO$127:$BP$138,2,FALSE) -> 0 | H50: ='Budget FCFA'!H50/VLOOKUP(H$2,$BO$127:$BP$138,2,FALSE) -> 57.01593245 | I50: ='Budget FCFA'!I50/VLOOKUP(I$2,$BO$127:$BP$138,2,FALSE) -> 0 | J50: ='Budget FCFA'!J50/VLOOKUP(J$2,$BO$127:$BP$138,2,FALSE) -> 0 | K50: ='Budget FCFA'!K50/VLOOKUP(K$2,$BO$127:$BP$138,2,FALSE) -> 0 | L50: ='Budget FCFA'!L50/VLOOKUP(L$2,$BO$127:$BP$138,2,FALSE) -> 0 | M50: ='Budget FCFA'!M50/VLOOKUP(M$2,$BO$127:$BP$138,2,FALSE) -> 57.01593245 | N50: ='Budget FCFA'!N50/VLOOKUP(N$2,$BO$127:$BP$138,2,FALSE) -> 0 | O50: ='Budget FCFA'!O50/VLOOKUP(O$2,$BO$127:$BP$138,2,FALSE) -> 0 | P50: ='Budget FCFA'!P50/VLOOKUP(P$2,$BO$127:$BP$138,2,FALSE) -> 0 | Q50: ='Budget FCFA'!Q50/VLOOKUP(Q$2,$BO$127:$BP$138,2,FALSE) -> 0 | R50: ='Budget FCFA'!R50/VLOOKUP(R$2,$BO$127:$BP$138,2,FALSE) -> 57.01593245 | S50: ='Budget FCFA'!S50/VLOOKUP(S$2,$BO$127:$BP$138,2,FALSE) -> 0 | T50: ='Budget FCFA'!T50/VLOOKUP(T$2,$BO$127:$BP$138,2,FALSE) -> 0 | U50: ='Budget FCFA'!U50/VLOOKUP(U$2,$BO$127:$BP$138,2,FALSE) -> 0 | V50: ='Budget FCFA'!V50/VLOOKUP(V$2,$BO$127:$BP$138,2,FALSE) -> 0 | W50: ='Budget FCFA'!W50/VLOOKUP(W$2,$BO$127:$BP$138,2,FALSE) -> 57.01593245 | X50: ='Budget FCFA'!X50/VLOOKUP(X$2,$BO$127:$BP$138,2,FALSE) -> 0 | Y50: ='Budget FCFA'!Y50/VLOOKUP(Y$2,$BO$127:$BP$138,2,FALSE) -> 0 | Z50: ='Budget FCFA'!Z50/VLOOKUP(Z$2,$BO$127:$BP$138,2,FALSE) -> 0 | AA50: ='Budget FCFA'!AA50/VLOOKUP(AA$2,$BO$127:$BP$138,2,FALSE) -> 57.01593245 | AB50: ='Budget FCFA'!AB50/VLOOKUP(AB$2,$BO$127:$BP$138,2,FALSE) -> 0 | AC50: ='Budget FCFA'!AC50/VLOOKUP(AC$2,$BO$127:$BP$138,2,FALSE) -> 0 | AD50: ='Budget FCFA'!AD50/VLOOKUP(AD$2,$BO$127:$BP$138,2,FALSE) -> 0 | AE50: ='Budget FCFA'!AE50/VLOOKUP(AE$2,$BO$127:$BP$138,2,FALSE) -> 0 | AF50: ='Budget FCFA'!AF50/VLOOKUP(AF$2,$BO$127:$BP$138,2,FALSE) -> 56.92914453 | AG50: ='Budget FCFA'!AG50/VLOOKUP(AG$2,$BO$127:$BP$138,2,FALSE) -> 0 | AH50: ='Budget FCFA'!AH50/VLOOKUP(AH$2,$BO$127:$BP$138,2,FALSE) -> 0 | AI50: ='Budget FCFA'!AI50/VLOOKUP(AI$2,$BO$127:$BP$138,2,FALSE) -> 0 | AJ50: ='Budget FCFA'!AJ50/VLOOKUP(AJ$2,$BO$127:$BP$138,2,FALSE) -> 0 | AK50: ='Budget FCFA'!AK50/VLOOKUP(AK$2,$BO$127:$BP$138,2,FALSE) -> 57.01593245 | AL50: ='Budget FCFA'!AL50/VLOOKUP(AL$2,$BO$127:$BP$138,2,FALSE) -> 0 | AM50: ='Budget FCFA'!AM50/VLOOKUP(AM$2,$BO$127:$BP$138,2,FALSE) -> 0 | AN50: ='Budget FCFA'!AN50/VLOOKUP(AN$2,$BO$127:$BP$138,2,FALSE) -> 0 | AO50: ='Budget FCFA'!AO50/VLOOKUP(AO$2,$BO$127:$BP$138,2,FALSE) -> 0 | AP50: ='Budget FCFA'!AP50/VLOOKUP(AP$2,$BO$127:$BP$138,2,FALSE) -> 57.01593245 | AQ50: ='Budget FCFA'!#REF!/VLOOKUP(AQ$2,$BO$127:$BP$138,2,FALSE) ->  | AR50: ='Budget FCFA'!#REF!/VLOOKUP(AR$2,$BO$127:$BP$138,2,FALSE) ->  | AS50: ='Budget FCFA'!#REF!/VLOOKUP(AS$2,$BO$127:$BP$138,2,FALSE) ->  | AT50: ='Budget FCFA'!#REF!/VLOOKUP(AT$2,$BO$127:$BP$138,2,FALSE) ->  | AU50: ='Budget FCFA'!#REF!/VLOOKUP(AU$2,$BO$127:$BP$138,2,FALSE) ->  | AV50: ='Budget FCFA'!#REF!/VLOOKUP(AV$2,$BO$127:$BP$138,2,FALSE) ->  | AW50: ='Budget FCFA'!#REF!/VLOOKUP(AW$2,$BO$127:$BP$138,2,FALSE) ->  | AX50: ='Budget FCFA'!#REF!/VLOOKUP(AX$2,$BO$127:$BP$138,2,FALSE) ->  | AY50: ='Budget FCFA'!#REF!/VLOOKUP(AY$2,$BO$127:$BP$138,2,FALSE) ->  | AZ50: ='Budget FCFA'!#REF!/VLOOKUP(AZ$2,$BO$127:$BP$138,2,FALSE) ->  | BA50: ='Budget FCFA'!#REF!/VLOOKUP(BA$2,$BO$127:$BP$138,2,FALSE) ->  | BB50: ='Budget FCFA'!#REF!/VLOOKUP(BB$2,$BO$127:$BP$138,2,FALSE) ->  | BC50: ='Budget FCFA'!#REF!/VLOOKUP(BC$2,$BO$127:$BP$138,2,FALSE) ->  | BD50: ='Budget FCFA'!#REF!/VLOOKUP(BD$2,$BO$127:$BP$138,2,FALSE) ->  | BE50: ='Budget FCFA'!#REF!/VLOOKUP(BE$2,$BO$127:$BP$138,2,FALSE) ->  | BF50: ='Budget FCFA'!#REF!/VLOOKUP(BF$2,$BO$127:$BP$138,2,FALSE) ->  | BG50: ='Budget FCFA'!#REF!/VLOOKUP(BG$2,$BO$127:$BP$138,2,FALSE) ->  | BH50: ='Budget FCFA'!#REF!/VLOOKUP(BH$2,$BO$127:$BP$138,2,FALSE) ->  | BI50: ='Budget FCFA'!#REF!/VLOOKUP(BI$2,$BO$127:$BP$138,2,FALSE) ->  | BJ50: ='Budget FCFA'!#REF!/VLOOKUP(BJ$2,$BO$127:$BP$138,2,FALSE) ->  | BL50: =BK50-'Budget FCFA'!#REF! -> 
A51: PUBAFFIC | B51: DOUALA | C51: Frais de création affichage | D51: ='Budget FCFA'!D51/VLOOKUP(D$2,$BO$127:$BP$138,2,FALSE) -> 0 | E51: ='Budget FCFA'!E51/VLOOKUP(E$2,$BO$127:$BP$138,2,FALSE) -> 0 | F51: ='Budget FCFA'!F51/VLOOKUP(F$2,$BO$127:$BP$138,2,FALSE) -> 0 | G51: ='Budget FCFA'!G51/VLOOKUP(G$2,$BO$127:$BP$138,2,FALSE) -> 0 | H51: ='Budget FCFA'!H51/VLOOKUP(H$2,$BO$127:$BP$138,2,FALSE) -> 57.01593245 | I51: ='Budget FCFA'!I51/VLOOKUP(I$2,$BO$127:$BP$138,2,FALSE) -> 0 | J51: ='Budget FCFA'!J51/VLOOKUP(J$2,$BO$127:$BP$138,2,FALSE) -> 0 | K51: ='Budget FCFA'!K51/VLOOKUP(K$2,$BO$127:$BP$138,2,FALSE) -> 0 | L51: ='Budget FCFA'!L51/VLOOKUP(L$2,$BO$127:$BP$138,2,FALSE) -> 0 | M51: ='Budget FCFA'!M51/VLOOKUP(M$2,$BO$127:$BP$138,2,FALSE) -> 57.01593245 | N51: ='Budget FCFA'!N51/VLOOKUP(N$2,$BO$127:$BP$138,2,FALSE) -> 0 | O51: ='Budget FCFA'!O51/VLOOKUP(O$2,$BO$127:$BP$138,2,FALSE) -> 0 | P51: ='Budget FCFA'!P51/VLOOKUP(P$2,$BO$127:$BP$138,2,FALSE) -> 0 | Q51: ='Budget FCFA'!Q51/VLOOKUP(Q$2,$BO$127:$BP$138,2,FALSE) -> 0 | R51: ='Budget FCFA'!R51/VLOOKUP(R$2,$BO$127:$BP$138,2,FALSE) -> 57.01593245 | S51: ='Budget FCFA'!S51/VLOOKUP(S$2,$BO$127:$BP$138,2,FALSE) -> 0 | T51: ='Budget FCFA'!T51/VLOOKUP(T$2,$BO$127:$BP$138,2,FALSE) -> 0 | U51: ='Budget FCFA'!U51/VLOOKUP(U$2,$BO$127:$BP$138,2,FALSE) -> 0 | V51: ='Budget FCFA'!V51/VLOOKUP(V$2,$BO$127:$BP$138,2,FALSE) -> 0 | W51: ='Budget FCFA'!W51/VLOOKUP(W$2,$BO$127:$BP$138,2,FALSE) -> 57.01593245 | X51: ='Budget FCFA'!X51/VLOOKUP(X$2,$BO$127:$BP$138,2,FALSE) -> 0 | Y51: ='Budget FCFA'!Y51/VLOOKUP(Y$2,$BO$127:$BP$138,2,FALSE) -> 0 | Z51: ='Budget FCFA'!Z51/VLOOKUP(Z$2,$BO$127:$BP$138,2,FALSE) -> 0 | AA51: ='Budget FCFA'!AA51/VLOOKUP(AA$2,$BO$127:$BP$138,2,FALSE) -> 57.01593245 | AB51: ='Budget FCFA'!AB51/VLOOKUP(AB$2,$BO$127:$BP$138,2,FALSE) -> 0 | AC51: ='Budget FCFA'!AC51/VLOOKUP(AC$2,$BO$127:$BP$138,2,FALSE) -> 0 | AD51: ='Budget FCFA'!AD51/VLOOKUP(AD$2,$BO$127:$BP$138,2,FALSE) -> 0 | AE51: ='Budget FCFA'!AE51/VLOOKUP(AE$2,$BO$127:$BP$138,2,FALSE) -> 0 | AF51: ='Budget FCFA'!AF51/VLOOKUP(AF$2,$BO$127:$BP$138,2,FALSE) -> 56.92914453 | AG51: ='Budget FCFA'!AG51/VLOOKUP(AG$2,$BO$127:$BP$138,2,FALSE) -> 0 | AH51: ='Budget FCFA'!AH51/VLOOKUP(AH$2,$BO$127:$BP$138,2,FALSE) -> 0 | AI51: ='Budget FCFA'!AI51/VLOOKUP(AI$2,$BO$127:$BP$138,2,FALSE) -> 0 | AJ51: ='Budget FCFA'!AJ51/VLOOKUP(AJ$2,$BO$127:$BP$138,2,FALSE) -> 0 | AK51: ='Budget FCFA'!AK51/VLOOKUP(AK$2,$BO$127:$BP$138,2,FALSE) -> 57.01593245 | AL51: ='Budget FCFA'!AL51/VLOOKUP(AL$2,$BO$127:$BP$138,2,FALSE) -> 0 | AM51: ='Budget FCFA'!AM51/VLOOKUP(AM$2,$BO$127:$BP$138,2,FALSE) -> 0 | AN51: ='Budget FCFA'!AN51/VLOOKUP(AN$2,$BO$127:$BP$138,2,FALSE) -> 0 | AO51: ='Budget FCFA'!AO51/VLOOKUP(AO$2,$BO$127:$BP$138,2,FALSE) -> 0 | AP51: ='Budget FCFA'!AP51/VLOOKUP(AP$2,$BO$127:$BP$138,2,FALSE) -> 57.01593245 | AQ51: ='Budget FCFA'!#REF!/VLOOKUP(AQ$2,$BO$127:$BP$138,2,FALSE) ->  | AR51: ='Budget FCFA'!#REF!/VLOOKUP(AR$2,$BO$127:$BP$138,2,FALSE) ->  | AS51: ='Budget FCFA'!#REF!/VLOOKUP(AS$2,$BO$127:$BP$138,2,FALSE) ->  | AT51: ='Budget FCFA'!#REF!/VLOOKUP(AT$2,$BO$127:$BP$138,2,FALSE) ->  | AU51: ='Budget FCFA'!#REF!/VLOOKUP(AU$2,$BO$127:$BP$138,2,FALSE) ->  | AV51: ='Budget FCFA'!#REF!/VLOOKUP(AV$2,$BO$127:$BP$138,2,FALSE) ->  | AW51: ='Budget FCFA'!#REF!/VLOOKUP(AW$2,$BO$127:$BP$138,2,FALSE) ->  | AX51: ='Budget FCFA'!#REF!/VLOOKUP(AX$2,$BO$127:$BP$138,2,FALSE) ->  | AY51: ='Budget FCFA'!#REF!/VLOOKUP(AY$2,$BO$127:$BP$138,2,FALSE) ->  | AZ51: ='Budget FCFA'!#REF!/VLOOKUP(AZ$2,$BO$127:$BP$138,2,FALSE) ->  | BA51: ='Budget FCFA'!#REF!/VLOOKUP(BA$2,$BO$127:$BP$138,2,FALSE) ->  | BB51: ='Budget FCFA'!#REF!/VLOOKUP(BB$2,$BO$127:$BP$138,2,FALSE) ->  | BC51: ='Budget FCFA'!#REF!/VLOOKUP(BC$2,$BO$127:$BP$138,2,FALSE) ->  | BD51: ='Budget FCFA'!#REF!/VLOOKUP(BD$2,$BO$127:$BP$138,2,FALSE) ->  | BE51: ='Budget FCFA'!#REF!/VLOOKUP(BE$2,$BO$127:$BP$138,2,FALSE) ->  | BF51: ='Budget FCFA'!#REF!/VLOOKUP(BF$2,$BO$127:$BP$138,2,FALSE) ->  | BG51: ='Budget FCFA'!#REF!/VLOOKUP(BG$2,$BO$127:$BP$138,2,FALSE) ->  | BH51: ='Budget FCFA'!#REF!/VLOOKUP(BH$2,$BO$127:$BP$138,2,FALSE) ->  | BI51: ='Budget FCFA'!#REF!/VLOOKUP(BI$2,$BO$127:$BP$138,2,FALSE) ->  | BJ51: ='Budget FCFA'!#REF!/VLOOKUP(BJ$2,$BO$127:$BP$138,2,FALSE) ->  | BL51: =BK51-'Budget FCFA'!#REF! -> 
A52: PUBAFFIC | B52: TOTAL | C52: Total reseau affichage | D52: ='Budget FCFA'!D52/VLOOKUP(D$2,$BO$127:$BP$138,2,FALSE) -> 186.7500461 | E52: ='Budget FCFA'!E52/VLOOKUP(E$2,$BO$127:$BP$138,2,FALSE) -> 447.6512942 | F52: ='Budget FCFA'!F52/VLOOKUP(F$2,$BO$127:$BP$138,2,FALSE) -> 732.5175278 | G52: ='Budget FCFA'!G52/VLOOKUP(G$2,$BO$127:$BP$138,2,FALSE) -> 0 | H52: ='Budget FCFA'!H52/VLOOKUP(H$2,$BO$127:$BP$138,2,FALSE) -> 1061.959854 | I52: ='Budget FCFA'!I52/VLOOKUP(I$2,$BO$127:$BP$138,2,FALSE) -> 2026.920972 | J52: ='Budget FCFA'!J52/VLOOKUP(J$2,$BO$127:$BP$138,2,FALSE) -> 0 | K52: ='Budget FCFA'!K52/VLOOKUP(K$2,$BO$127:$BP$138,2,FALSE) -> 0 | L52: ='Budget FCFA'!L52/VLOOKUP(L$2,$BO$127:$BP$138,2,FALSE) -> 0 | M52: ='Budget FCFA'!M52/VLOOKUP(M$2,$BO$127:$BP$138,2,FALSE) -> 1579.371819 | N52: ='Budget FCFA'!N52/VLOOKUP(N$2,$BO$127:$BP$138,2,FALSE) -> 0 | O52: ='Budget FCFA'!O52/VLOOKUP(O$2,$BO$127:$BP$138,2,FALSE) -> 468.323381 | P52: ='Budget FCFA'!P52/VLOOKUP(P$2,$BO$127:$BP$138,2,FALSE) -> 3587.049151 | Q52: ='Budget FCFA'!Q52/VLOOKUP(Q$2,$BO$127:$BP$138,2,FALSE) -> 0 | R52: ='Budget FCFA'!R52/VLOOKUP(R$2,$BO$127:$BP$138,2,FALSE) -> 1506.638392 | S52: ='Budget FCFA'!S52/VLOOKUP(S$2,$BO$127:$BP$138,2,FALSE) -> 0 | T52: ='Budget FCFA'!T52/VLOOKUP(T$2,$BO$127:$BP$138,2,FALSE) -> 6058.50231 | U52: ='Budget FCFA'!U52/VLOOKUP(U$2,$BO$127:$BP$138,2,FALSE) -> 0 | V52: ='Budget FCFA'!V52/VLOOKUP(V$2,$BO$127:$BP$138,2,FALSE) -> 0 | W52: ='Budget FCFA'!W52/VLOOKUP(W$2,$BO$127:$BP$138,2,FALSE) -> 811.0287717 | X52: ='Budget FCFA'!X52/VLOOKUP(X$2,$BO$127:$BP$138,2,FALSE) -> 0 | Y52: ='Budget FCFA'!Y52/VLOOKUP(Y$2,$BO$127:$BP$138,2,FALSE) -> 0 | Z52: ='Budget FCFA'!Z52/VLOOKUP(Z$2,$BO$127:$BP$138,2,FALSE) -> 0 | AA52: ='Budget FCFA'!AA52/VLOOKUP(AA$2,$BO$127:$BP$138,2,FALSE) -> 811.0287717 | AB52: ='Budget FCFA'!AB52/VLOOKUP(AB$2,$BO$127:$BP$138,2,FALSE) -> 4153.206374 | AC52: ='Budget FCFA'!AC52/VLOOKUP(AC$2,$BO$127:$BP$138,2,FALSE) -> 0 | AD52: ='Budget FCFA'!AD52/VLOOKUP(AD$2,$BO$127:$BP$138,2,FALSE) -> 0 | AE52: ='Budget FCFA'!AE52/VLOOKUP(AE$2,$BO$127:$BP$138,2,FALSE) -> 0 | AF52: ='Budget FCFA'!AF52/VLOOKUP(AF$2,$BO$127:$BP$138,2,FALSE) -> 809.7942483 | AG52: ='Budget FCFA'!AG52/VLOOKUP(AG$2,$BO$127:$BP$138,2,FALSE) -> 0 | AH52: ='Budget FCFA'!AH52/VLOOKUP(AH$2,$BO$127:$BP$138,2,FALSE) -> 0 | AI52: ='Budget FCFA'!AI52/VLOOKUP(AI$2,$BO$127:$BP$138,2,FALSE) -> 0 | AJ52: ='Budget FCFA'!AJ52/VLOOKUP(AJ$2,$BO$127:$BP$138,2,FALSE) -> 0 | AK52: ='Budget FCFA'!AK52/VLOOKUP(AK$2,$BO$127:$BP$138,2,FALSE) -> 811.0287717 | AL52: ='Budget FCFA'!AL52/VLOOKUP(AL$2,$BO$127:$BP$138,2,FALSE) -> 18034.57086 | AM52: ='Budget FCFA'!AM52/VLOOKUP(AM$2,$BO$127:$BP$138,2,FALSE) -> 365.8776414 | AN52: ='Budget FCFA'!AN52/VLOOKUP(AN$2,$BO$127:$BP$138,2,FALSE) -> 0 | AO52: ='Budget FCFA'!AO52/VLOOKUP(AO$2,$BO$127:$BP$138,2,FALSE) -> 0 | AP52: ='Budget FCFA'!AP52/VLOOKUP(AP$2,$BO$127:$BP$138,2,FALSE) -> 811.0287717 | AQ52: ='Budget FCFA'!#REF!/VLOOKUP(AQ$2,$BO$127:$BP$138,2,FALSE) ->  | AR52: ='Budget FCFA'!#REF!/VLOOKUP(AR$2,$BO$127:$BP$138,2,FALSE) ->  | AS52: ='Budget FCFA'!#REF!/VLOOKUP(AS$2,$BO$127:$BP$138,2,FALSE) ->  | AT52: ='Budget FCFA'!#REF!/VLOOKUP(AT$2,$BO$127:$BP$138,2,FALSE) ->  | AU52: ='Budget FCFA'!#REF!/VLOOKUP(AU$2,$BO$127:$BP$138,2,FALSE) ->  | AV52: ='Budget FCFA'!#REF!/VLOOKUP(AV$2,$BO$127:$BP$138,2,FALSE) ->  | AW52: ='Budget FCFA'!#REF!/VLOOKUP(AW$2,$BO$127:$BP$138,2,FALSE) ->  | AX52: ='Budget FCFA'!#REF!/VLOOKUP(AX$2,$BO$127:$BP$138,2,FALSE) ->  | AY52: ='Budget FCFA'!#REF!/VLOOKUP(AY$2,$BO$127:$BP$138,2,FALSE) ->  | AZ52: ='Budget FCFA'!#REF!/VLOOKUP(AZ$2,$BO$127:$BP$138,2,FALSE) ->  | BA52: ='Budget FCFA'!#REF!/VLOOKUP(BA$2,$BO$127:$BP$138,2,FALSE) ->  | BB52: ='Budget FCFA'!#REF!/VLOOKUP(BB$2,$BO$127:$BP$138,2,FALSE) ->  | BC52: ='Budget FCFA'!#REF!/VLOOKUP(BC$2,$BO$127:$BP$138,2,FALSE) ->  | BD52: ='Budget FCFA'!#REF!/VLOOKUP(BD$2,$BO$127:$BP$138,2,FALSE) ->  | BE52: ='Budget FCFA'!#REF!/VLOOKUP(BE$2,$BO$127:$BP$138,2,FALSE) ->  | BF52: ='Budget FCFA'!#REF!/VLOOKUP(BF$2,$BO$127:$BP$138,2,FALSE) ->  | BG52: ='Budget FCFA'!#REF!/VLOOKUP(BG$2,$BO$127:$BP$138,2,FALSE) ->  | BH52: ='Budget FCFA'!#REF!/VLOOKUP(BH$2,$BO$127:$BP$138,2,FALSE) ->  | BI52: ='Budget FCFA'!#REF!/VLOOKUP(BI$2,$BO$127:$BP$138,2,FALSE) ->  | BJ52: ='Budget FCFA'!#REF!/VLOOKUP(BJ$2,$BO$127:$BP$138,2,FALSE) ->  | BL52: =BK52-'Budget FCFA'!#REF! -> 
A53: PUBPRESS | B53: ABIDJAN | C53: Achat d'espace presse | D53: ='Budget FCFA'!D53/VLOOKUP(D$2,$BO$127:$BP$138,2,FALSE) -> 0 | E53: ='Budget FCFA'!E53/VLOOKUP(E$2,$BO$127:$BP$138,2,FALSE) -> 0 | F53: ='Budget FCFA'!F53/VLOOKUP(F$2,$BO$127:$BP$138,2,FALSE) -> 0 | G53: ='Budget FCFA'!G53/VLOOKUP(G$2,$BO$127:$BP$138,2,FALSE) -> 0 | H53: ='Budget FCFA'!H53/VLOOKUP(H$2,$BO$127:$BP$138,2,FALSE) -> 0 | I53: ='Budget FCFA'!I53/VLOOKUP(I$2,$BO$127:$BP$138,2,FALSE) -> 0 | J53: ='Budget FCFA'!J53/VLOOKUP(J$2,$BO$127:$BP$138,2,FALSE) -> 0 | K53: ='Budget FCFA'!K53/VLOOKUP(K$2,$BO$127:$BP$138,2,FALSE) -> 0 | L53: ='Budget FCFA'!L53/VLOOKUP(L$2,$BO$127:$BP$138,2,FALSE) -> 0 | M53: ='Budget FCFA'!M53/VLOOKUP(M$2,$BO$127:$BP$138,2,FALSE) -> 0 | N53: ='Budget FCFA'!N53/VLOOKUP(N$2,$BO$127:$BP$138,2,FALSE) -> 0 | O53: ='Budget FCFA'!O53/VLOOKUP(O$2,$BO$127:$BP$138,2,FALSE) -> 0 | P53: ='Budget FCFA'!P53/VLOOKUP(P$2,$BO$127:$BP$138,2,FALSE) -> 0 | Q53: ='Budget FCFA'!Q53/VLOOKUP(Q$2,$BO$127:$BP$138,2,FALSE) -> 0 | R53: ='Budget FCFA'!R53/VLOOKUP(R$2,$BO$127:$BP$138,2,FALSE) -> 0 | S53: ='Budget FCFA'!S53/VLOOKUP(S$2,$BO$127:$BP$138,2,FALSE) -> 0 | T53: ='Budget FCFA'!T53/VLOOKUP(T$2,$BO$127:$BP$138,2,FALSE) -> 0 | U53: ='Budget FCFA'!U53/VLOOKUP(U$2,$BO$127:$BP$138,2,FALSE) -> 0 | V53: ='Budget FCFA'!V53/VLOOKUP(V$2,$BO$127:$BP$138,2,FALSE) -> 0 | W53: ='Budget FCFA'!W53/VLOOKUP(W$2,$BO$127:$BP$138,2,FALSE) -> 0 | X53: ='Budget FCFA'!X53/VLOOKUP(X$2,$BO$127:$BP$138,2,FALSE) -> 0 | Y53: ='Budget FCFA'!Y53/VLOOKUP(Y$2,$BO$127:$BP$138,2,FALSE) -> 0 | Z53: ='Budget FCFA'!Z53/VLOOKUP(Z$2,$BO$127:$BP$138,2,FALSE) -> 0 | AA53: ='Budget FCFA'!AA53/VLOOKUP(AA$2,$BO$127:$BP$138,2,FALSE) -> 0 | AB53: ='Budget FCFA'!AB53/VLOOKUP(AB$2,$BO$127:$BP$138,2,FALSE) -> 0 | AC53: ='Budget FCFA'!AC53/VLOOKUP(AC$2,$BO$127:$BP$138,2,FALSE) -> 0 | AD53: ='Budget FCFA'!AD53/VLOOKUP(AD$2,$BO$127:$BP$138,2,FALSE) -> 0 | AE53: ='Budget FCFA'!AE53/VLOOKUP(AE$2,$BO$127:$BP$138,2,FALSE) -> 0 | AF53: ='Budget FCFA'!AF53/VLOOKUP(AF$2,$BO$127:$BP$138,2,FALSE) -> 0 | AG53: ='Budget FCFA'!AG53/VLOOKUP(AG$2,$BO$127:$BP$138,2,FALSE) -> 0 | AH53: ='Budget FCFA'!AH53/VLOOKUP(AH$2,$BO$127:$BP$138,2,FALSE) -> 0 | AI53: ='Budget FCFA'!AI53/VLOOKUP(AI$2,$BO$127:$BP$138,2,FALSE) -> 0 | AJ53: ='Budget FCFA'!AJ53/VLOOKUP(AJ$2,$BO$127:$BP$138,2,FALSE) -> 0 | AK53: ='Budget FCFA'!AK53/VLOOKUP(AK$2,$BO$127:$BP$138,2,FALSE) -> 0 | AL53: ='Budget FCFA'!AL53/VLOOKUP(AL$2,$BO$127:$BP$138,2,FALSE) -> 1006.163514 | AM53: ='Budget FCFA'!AM53/VLOOKUP(AM$2,$BO$127:$BP$138,2,FALSE) -> 0 | AN53: ='Budget FCFA'!AN53/VLOOKUP(AN$2,$BO$127:$BP$138,2,FALSE) -> 0 | AO53: ='Budget FCFA'!AO53/VLOOKUP(AO$2,$BO$127:$BP$138,2,FALSE) -> 0 | AP53: ='Budget FCFA'!AP53/VLOOKUP(AP$2,$BO$127:$BP$138,2,FALSE) -> 0 | AQ53: ='Budget FCFA'!#REF!/VLOOKUP(AQ$2,$BO$127:$BP$138,2,FALSE) ->  | AR53: ='Budget FCFA'!#REF!/VLOOKUP(AR$2,$BO$127:$BP$138,2,FALSE) ->  | AS53: ='Budget FCFA'!#REF!/VLOOKUP(AS$2,$BO$127:$BP$138,2,FALSE) ->  | AT53: ='Budget FCFA'!#REF!/VLOOKUP(AT$2,$BO$127:$BP$138,2,FALSE) ->  | AU53: ='Budget FCFA'!#REF!/VLOOKUP(AU$2,$BO$127:$BP$138,2,FALSE) ->  | AV53: ='Budget FCFA'!#REF!/VLOOKUP(AV$2,$BO$127:$BP$138,2,FALSE) ->  | AW53: ='Budget FCFA'!#REF!/VLOOKUP(AW$2,$BO$127:$BP$138,2,FALSE) ->  | AX53: ='Budget FCFA'!#REF!/VLOOKUP(AX$2,$BO$127:$BP$138,2,FALSE) ->  | AY53: ='Budget FCFA'!#REF!/VLOOKUP(AY$2,$BO$127:$BP$138,2,FALSE) ->  | AZ53: ='Budget FCFA'!#REF!/VLOOKUP(AZ$2,$BO$127:$BP$138,2,FALSE) ->  | BA53: ='Budget FCFA'!#REF!/VLOOKUP(BA$2,$BO$127:$BP$138,2,FALSE) ->  | BB53: ='Budget FCFA'!#REF!/VLOOKUP(BB$2,$BO$127:$BP$138,2,FALSE) ->  | BC53: ='Budget FCFA'!#REF!/VLOOKUP(BC$2,$BO$127:$BP$138,2,FALSE) ->  | BD53: ='Budget FCFA'!#REF!/VLOOKUP(BD$2,$BO$127:$BP$138,2,FALSE) ->  | BE53: ='Budget FCFA'!#REF!/VLOOKUP(BE$2,$BO$127:$BP$138,2,FALSE) ->  | BF53: ='Budget FCFA'!#REF!/VLOOKUP(BF$2,$BO$127:$BP$138,2,FALSE) ->  | BG53: ='Budget FCFA'!#REF!/VLOOKUP(BG$2,$BO$127:$BP$138,2,FALSE) ->  | BH53: ='Budget FCFA'!#REF!/VLOOKUP(BH$2,$BO$127:$BP$138,2,FALSE) ->  | BI53: ='Budget FCFA'!#REF!/VLOOKUP(BI$2,$BO$127:$BP$138,2,FALSE) ->  | BJ53: ='Budget FCFA'!#REF!/VLOOKUP(BJ$2,$BO$127:$BP$138,2,FALSE) ->  | BL53: =BK53-'Budget FCFA'!#REF! -> 
A54: PUBPRESS | B54: BRAZZA | C54: Achat d'espace presse | D54: ='Budget FCFA'!D54/VLOOKUP(D$2,$BO$127:$BP$138,2,FALSE) -> 0 | E54: ='Budget FCFA'!E54/VLOOKUP(E$2,$BO$127:$BP$138,2,FALSE) -> 0 | F54: ='Budget FCFA'!F54/VLOOKUP(F$2,$BO$127:$BP$138,2,FALSE) -> 0 | G54: ='Budget FCFA'!G54/VLOOKUP(G$2,$BO$127:$BP$138,2,FALSE) -> 0 | H54: ='Budget FCFA'!H54/VLOOKUP(H$2,$BO$127:$BP$138,2,FALSE) -> 0 | I54: ='Budget FCFA'!I54/VLOOKUP(I$2,$BO$127:$BP$138,2,FALSE) -> 0 | J54: ='Budget FCFA'!J54/VLOOKUP(J$2,$BO$127:$BP$138,2,FALSE) -> 0 | K54: ='Budget FCFA'!K54/VLOOKUP(K$2,$BO$127:$BP$138,2,FALSE) -> 0 | L54: ='Budget FCFA'!L54/VLOOKUP(L$2,$BO$127:$BP$138,2,FALSE) -> 0 | M54: ='Budget FCFA'!M54/VLOOKUP(M$2,$BO$127:$BP$138,2,FALSE) -> 0 | N54: ='Budget FCFA'!N54/VLOOKUP(N$2,$BO$127:$BP$138,2,FALSE) -> 0 | O54: ='Budget FCFA'!O54/VLOOKUP(O$2,$BO$127:$BP$138,2,FALSE) -> 0 | P54: ='Budget FCFA'!P54/VLOOKUP(P$2,$BO$127:$BP$138,2,FALSE) -> 0 | Q54: ='Budget FCFA'!Q54/VLOOKUP(Q$2,$BO$127:$BP$138,2,FALSE) -> 0 | R54: ='Budget FCFA'!R54/VLOOKUP(R$2,$BO$127:$BP$138,2,FALSE) -> 0 | S54: ='Budget FCFA'!S54/VLOOKUP(S$2,$BO$127:$BP$138,2,FALSE) -> 0 | T54: ='Budget FCFA'!T54/VLOOKUP(T$2,$BO$127:$BP$138,2,FALSE) -> 0 | U54: ='Budget FCFA'!U54/VLOOKUP(U$2,$BO$127:$BP$138,2,FALSE) -> 0 | V54: ='Budget FCFA'!V54/VLOOKUP(V$2,$BO$127:$BP$138,2,FALSE) -> 0 | W54: ='Budget FCFA'!W54/VLOOKUP(W$2,$BO$127:$BP$138,2,FALSE) -> 0 | X54: ='Budget FCFA'!X54/VLOOKUP(X$2,$BO$127:$BP$138,2,FALSE) -> 0 | Y54: ='Budget FCFA'!Y54/VLOOKUP(Y$2,$BO$127:$BP$138,2,FALSE) -> 0 | Z54: ='Budget FCFA'!Z54/VLOOKUP(Z$2,$BO$127:$BP$138,2,FALSE) -> 0 | AA54: ='Budget FCFA'!AA54/VLOOKUP(AA$2,$BO$127:$BP$138,2,FALSE) -> 0 | AB54: ='Budget FCFA'!AB54/VLOOKUP(AB$2,$BO$127:$BP$138,2,FALSE) -> 0 | AC54: ='Budget FCFA'!AC54/VLOOKUP(AC$2,$BO$127:$BP$138,2,FALSE) -> 0 | AD54: ='Budget FCFA'!AD54/VLOOKUP(AD$2,$BO$127:$BP$138,2,FALSE) -> 0 | AE54: ='Budget FCFA'!AE54/VLOOKUP(AE$2,$BO$127:$BP$138,2,FALSE) -> 0 | AF54: ='Budget FCFA'!AF54/VLOOKUP(AF$2,$BO$127:$BP$138,2,FALSE) -> 0 | AG54: ='Budget FCFA'!AG54/VLOOKUP(AG$2,$BO$127:$BP$138,2,FALSE) -> 0 | AH54: ='Budget FCFA'!AH54/VLOOKUP(AH$2,$BO$127:$BP$138,2,FALSE) -> 0 | AI54: ='Budget FCFA'!AI54/VLOOKUP(AI$2,$BO$127:$BP$138,2,FALSE) -> 0 | AJ54: ='Budget FCFA'!AJ54/VLOOKUP(AJ$2,$BO$127:$BP$138,2,FALSE) -> 0 | AK54: ='Budget FCFA'!AK54/VLOOKUP(AK$2,$BO$127:$BP$138,2,FALSE) -> 0 | AL54: ='Budget FCFA'!AL54/VLOOKUP(AL$2,$BO$127:$BP$138,2,FALSE) -> 0 | AM54: ='Budget FCFA'!AM54/VLOOKUP(AM$2,$BO$127:$BP$138,2,FALSE) -> 0 | AN54: ='Budget FCFA'!AN54/VLOOKUP(AN$2,$BO$127:$BP$138,2,FALSE) -> 0 | AO54: ='Budget FCFA'!AO54/VLOOKUP(AO$2,$BO$127:$BP$138,2,FALSE) -> 0 | AP54: ='Budget FCFA'!AP54/VLOOKUP(AP$2,$BO$127:$BP$138,2,FALSE) -> 0 | AQ54: ='Budget FCFA'!#REF!/VLOOKUP(AQ$2,$BO$127:$BP$138,2,FALSE) ->  | AR54: ='Budget FCFA'!#REF!/VLOOKUP(AR$2,$BO$127:$BP$138,2,FALSE) ->  | AS54: ='Budget FCFA'!#REF!/VLOOKUP(AS$2,$BO$127:$BP$138,2,FALSE) ->  | AT54: ='Budget FCFA'!#REF!/VLOOKUP(AT$2,$BO$127:$BP$138,2,FALSE) ->  | AU54: ='Budget FCFA'!#REF!/VLOOKUP(AU$2,$BO$127:$BP$138,2,FALSE) ->  | AV54: ='Budget FCFA'!#REF!/VLOOKUP(AV$2,$BO$127:$BP$138,2,FALSE) ->  | AW54: ='Budget FCFA'!#REF!/VLOOKUP(AW$2,$BO$127:$BP$138,2,FALSE) ->  | AX54: ='Budget FCFA'!#REF!/VLOOKUP(AX$2,$BO$127:$BP$138,2,FALSE) ->  | AY54: ='Budget FCFA'!#REF!/VLOOKUP(AY$2,$BO$127:$BP$138,2,FALSE) ->  | AZ54: ='Budget FCFA'!#REF!/VLOOKUP(AZ$2,$BO$127:$BP$138,2,FALSE) ->  | BA54: ='Budget FCFA'!#REF!/VLOOKUP(BA$2,$BO$127:$BP$138,2,FALSE) ->  | BB54: ='Budget FCFA'!#REF!/VLOOKUP(BB$2,$BO$127:$BP$138,2,FALSE) ->  | BC54: ='Budget FCFA'!#REF!/VLOOKUP(BC$2,$BO$127:$BP$138,2,FALSE) ->  | BD54: ='Budget FCFA'!#REF!/VLOOKUP(BD$2,$BO$127:$BP$138,2,FALSE) ->  | BE54: ='Budget FCFA'!#REF!/VLOOKUP(BE$2,$BO$127:$BP$138,2,FALSE) ->  | BF54: ='Budget FCFA'!#REF!/VLOOKUP(BF$2,$BO$127:$BP$138,2,FALSE) ->  | BG54: ='Budget FCFA'!#REF!/VLOOKUP(BG$2,$BO$127:$BP$138,2,FALSE) ->  | BH54: ='Budget FCFA'!#REF!/VLOOKUP(BH$2,$BO$127:$BP$138,2,FALSE) ->  | BI54: ='Budget FCFA'!#REF!/VLOOKUP(BI$2,$BO$127:$BP$138,2,FALSE) ->  | BJ54: ='Budget FCFA'!#REF!/VLOOKUP(BJ$2,$BO$127:$BP$138,2,FALSE) ->  | BL54: =BK54-'Budget FCFA'!#REF! -> 
A55: PUBPRESS | B55: DAKAR | C55: Achat d'espace presse | D55: ='Budget FCFA'!D55/VLOOKUP(D$2,$BO$127:$BP$138,2,FALSE) -> 0 | E55: ='Budget FCFA'!E55/VLOOKUP(E$2,$BO$127:$BP$138,2,FALSE) -> 0 | F55: ='Budget FCFA'!F55/VLOOKUP(F$2,$BO$127:$BP$138,2,FALSE) -> 0 | G55: ='Budget FCFA'!G55/VLOOKUP(G$2,$BO$127:$BP$138,2,FALSE) -> 0 | H55: ='Budget FCFA'!H55/VLOOKUP(H$2,$BO$127:$BP$138,2,FALSE) -> 0 | I55: ='Budget FCFA'!I55/VLOOKUP(I$2,$BO$127:$BP$138,2,FALSE) -> 0 | J55: ='Budget FCFA'!J55/VLOOKUP(J$2,$BO$127:$BP$138,2,FALSE) -> 0 | K55: ='Budget FCFA'!K55/VLOOKUP(K$2,$BO$127:$BP$138,2,FALSE) -> 0 | L55: ='Budget FCFA'!L55/VLOOKUP(L$2,$BO$127:$BP$138,2,FALSE) -> 0 | M55: ='Budget FCFA'!M55/VLOOKUP(M$2,$BO$127:$BP$138,2,FALSE) -> 0 | N55: ='Budget FCFA'!N55/VLOOKUP(N$2,$BO$127:$BP$138,2,FALSE) -> 0 | O55: ='Budget FCFA'!O55/VLOOKUP(O$2,$BO$127:$BP$138,2,FALSE) -> 0 | P55: ='Budget FCFA'!P55/VLOOKUP(P$2,$BO$127:$BP$138,2,FALSE) -> 838.4680703 | Q55: ='Budget FCFA'!Q55/VLOOKUP(Q$2,$BO$127:$BP$138,2,FALSE) -> 0 | R55: ='Budget FCFA'!R55/VLOOKUP(R$2,$BO$127:$BP$138,2,FALSE) -> 0 | S55: ='Budget FCFA'!S55/VLOOKUP(S$2,$BO$127:$BP$138,2,FALSE) -> 0 | T55: ='Budget FCFA'!T55/VLOOKUP(T$2,$BO$127:$BP$138,2,FALSE) -> 0 | U55: ='Budget FCFA'!U55/VLOOKUP(U$2,$BO$127:$BP$138,2,FALSE) -> 0 | V55: ='Budget FCFA'!V55/VLOOKUP(V$2,$BO$127:$BP$138,2,FALSE) -> 0 | W55: ='Budget FCFA'!W55/VLOOKUP(W$2,$BO$127:$BP$138,2,FALSE) -> 0 | X55: ='Budget FCFA'!X55/VLOOKUP(X$2,$BO$127:$BP$138,2,FALSE) -> 0 | Y55: ='Budget FCFA'!Y55/VLOOKUP(Y$2,$BO$127:$BP$138,2,FALSE) -> 0 | Z55: ='Budget FCFA'!Z55/VLOOKUP(Z$2,$BO$127:$BP$138,2,FALSE) -> 0 | AA55: ='Budget FCFA'!AA55/VLOOKUP(AA$2,$BO$127:$BP$138,2,FALSE) -> 0 | AB55: ='Budget FCFA'!AB55/VLOOKUP(AB$2,$BO$127:$BP$138,2,FALSE) -> 0 | AC55: ='Budget FCFA'!AC55/VLOOKUP(AC$2,$BO$127:$BP$138,2,FALSE) -> 0 | AD55: ='Budget FCFA'!AD55/VLOOKUP(AD$2,$BO$127:$BP$138,2,FALSE) -> 0 | AE55: ='Budget FCFA'!AE55/VLOOKUP(AE$2,$BO$127:$BP$138,2,FALSE) -> 0 | AF55: ='Budget FCFA'!AF55/VLOOKUP(AF$2,$BO$127:$BP$138,2,FALSE) -> 0 | AG55: ='Budget FCFA'!AG55/VLOOKUP(AG$2,$BO$127:$BP$138,2,FALSE) -> 0 | AH55: ='Budget FCFA'!AH55/VLOOKUP(AH$2,$BO$127:$BP$138,2,FALSE) -> 0 | AI55: ='Budget FCFA'!AI55/VLOOKUP(AI$2,$BO$127:$BP$138,2,FALSE) -> 0 | AJ55: ='Budget FCFA'!AJ55/VLOOKUP(AJ$2,$BO$127:$BP$138,2,FALSE) -> 0 | AK55: ='Budget FCFA'!AK55/VLOOKUP(AK$2,$BO$127:$BP$138,2,FALSE) -> 0 | AL55: ='Budget FCFA'!AL55/VLOOKUP(AL$2,$BO$127:$BP$138,2,FALSE) -> 0 | AM55: ='Budget FCFA'!AM55/VLOOKUP(AM$2,$BO$127:$BP$138,2,FALSE) -> 686.0205776 | AN55: ='Budget FCFA'!AN55/VLOOKUP(AN$2,$BO$127:$BP$138,2,FALSE) -> 0 | AO55: ='Budget FCFA'!AO55/VLOOKUP(AO$2,$BO$127:$BP$138,2,FALSE) -> 0 | AP55: ='Budget FCFA'!AP55/VLOOKUP(AP$2,$BO$127:$BP$138,2,FALSE) -> 0 | AQ55: ='Budget FCFA'!#REF!/VLOOKUP(AQ$2,$BO$127:$BP$138,2,FALSE) ->  | AR55: ='Budget FCFA'!#REF!/VLOOKUP(AR$2,$BO$127:$BP$138,2,FALSE) ->  | AS55: ='Budget FCFA'!#REF!/VLOOKUP(AS$2,$BO$127:$BP$138,2,FALSE) ->  | AT55: ='Budget FCFA'!#REF!/VLOOKUP(AT$2,$BO$127:$BP$138,2,FALSE) ->  | AU55: ='Budget FCFA'!#REF!/VLOOKUP(AU$2,$BO$127:$BP$138,2,FALSE) ->  | AV55: ='Budget FCFA'!#REF!/VLOOKUP(AV$2,$BO$127:$BP$138,2,FALSE) ->  | AW55: ='Budget FCFA'!#REF!/VLOOKUP(AW$2,$BO$127:$BP$138,2,FALSE) ->  | AX55: ='Budget FCFA'!#REF!/VLOOKUP(AX$2,$BO$127:$BP$138,2,FALSE) ->  | AY55: ='Budget FCFA'!#REF!/VLOOKUP(AY$2,$BO$127:$BP$138,2,FALSE) ->  | AZ55: ='Budget FCFA'!#REF!/VLOOKUP(AZ$2,$BO$127:$BP$138,2,FALSE) ->  | BA55: ='Budget FCFA'!#REF!/VLOOKUP(BA$2,$BO$127:$BP$138,2,FALSE) ->  | BB55: ='Budget FCFA'!#REF!/VLOOKUP(BB$2,$BO$127:$BP$138,2,FALSE) ->  | BC55: ='Budget FCFA'!#REF!/VLOOKUP(BC$2,$BO$127:$BP$138,2,FALSE) ->  | BD55: ='Budget FCFA'!#REF!/VLOOKUP(BD$2,$BO$127:$BP$138,2,FALSE) ->  | BE55: ='Budget FCFA'!#REF!/VLOOKUP(BE$2,$BO$127:$BP$138,2,FALSE) ->  | BF55: ='Budget FCFA'!#REF!/VLOOKUP(BF$2,$BO$127:$BP$138,2,FALSE) ->  | BG55: ='Budget FCFA'!#REF!/VLOOKUP(BG$2,$BO$127:$BP$138,2,FALSE) ->  | BH55: ='Budget FCFA'!#REF!/VLOOKUP(BH$2,$BO$127:$BP$138,2,FALSE) ->  | BI55: ='Budget FCFA'!#REF!/VLOOKUP(BI$2,$BO$127:$BP$138,2,FALSE) ->  | BJ55: ='Budget FCFA'!#REF!/VLOOKUP(BJ$2,$BO$127:$BP$138,2,FALSE) ->  | BL55: =BK55-'Budget FCFA'!#REF! -> 
A56: PUBPRESS | B56: LIBREVILLE | C56: Achat d'espace presse | D56: ='Budget FCFA'!D56/VLOOKUP(D$2,$BO$127:$BP$138,2,FALSE) -> 0 | E56: ='Budget FCFA'!E56/VLOOKUP(E$2,$BO$127:$BP$138,2,FALSE) -> 0 | F56: ='Budget FCFA'!F56/VLOOKUP(F$2,$BO$127:$BP$138,2,FALSE) -> 0 | G56: ='Budget FCFA'!G56/VLOOKUP(G$2,$BO$127:$BP$138,2,FALSE) -> 0 | H56: ='Budget FCFA'!H56/VLOOKUP(H$2,$BO$127:$BP$138,2,FALSE) -> 0 | I56: ='Budget FCFA'!I56/VLOOKUP(I$2,$BO$127:$BP$138,2,FALSE) -> 0 | J56: ='Budget FCFA'!J56/VLOOKUP(J$2,$BO$127:$BP$138,2,FALSE) -> 0 | K56: ='Budget FCFA'!K56/VLOOKUP(K$2,$BO$127:$BP$138,2,FALSE) -> 0 | L56: ='Budget FCFA'!L56/VLOOKUP(L$2,$BO$127:$BP$138,2,FALSE) -> 0 | M56: ='Budget FCFA'!M56/VLOOKUP(M$2,$BO$127:$BP$138,2,FALSE) -> 0 | N56: ='Budget FCFA'!N56/VLOOKUP(N$2,$BO$127:$BP$138,2,FALSE) -> 0 | O56: ='Budget FCFA'!O56/VLOOKUP(O$2,$BO$127:$BP$138,2,FALSE) -> 0 | P56: ='Budget FCFA'!P56/VLOOKUP(P$2,$BO$127:$BP$138,2,FALSE) -> 0 | Q56: ='Budget FCFA'!Q56/VLOOKUP(Q$2,$BO$127:$BP$138,2,FALSE) -> 0 | R56: ='Budget FCFA'!R56/VLOOKUP(R$2,$BO$127:$BP$138,2,FALSE) -> 0 | S56: ='Budget FCFA'!S56/VLOOKUP(S$2,$BO$127:$BP$138,2,FALSE) -> 0 | T56: ='Budget FCFA'!T56/VLOOKUP(T$2,$BO$127:$BP$138,2,FALSE) -> 0 | U56: ='Budget FCFA'!U56/VLOOKUP(U$2,$BO$127:$BP$138,2,FALSE) -> 0 | V56: ='Budget FCFA'!V56/VLOOKUP(V$2,$BO$127:$BP$138,2,FALSE) -> 0 | W56: ='Budget FCFA'!W56/VLOOKUP(W$2,$BO$127:$BP$138,2,FALSE) -> 0 | X56: ='Budget FCFA'!X56/VLOOKUP(X$2,$BO$127:$BP$138,2,FALSE) -> 0 | Y56: ='Budget FCFA'!Y56/VLOOKUP(Y$2,$BO$127:$BP$138,2,FALSE) -> 0 | Z56: ='Budget FCFA'!Z56/VLOOKUP(Z$2,$BO$127:$BP$138,2,FALSE) -> 0 | AA56: ='Budget FCFA'!AA56/VLOOKUP(AA$2,$BO$127:$BP$138,2,FALSE) -> 0 | AB56: ='Budget FCFA'!AB56/VLOOKUP(AB$2,$BO$127:$BP$138,2,FALSE) -> 0 | AC56: ='Budget FCFA'!AC56/VLOOKUP(AC$2,$BO$127:$BP$138,2,FALSE) -> 0 | AD56: ='Budget FCFA'!AD56/VLOOKUP(AD$2,$BO$127:$BP$138,2,FALSE) -> 0 | AE56: ='Budget FCFA'!AE56/VLOOKUP(AE$2,$BO$127:$BP$138,2,FALSE) -> 0 | AF56: ='Budget FCFA'!AF56/VLOOKUP(AF$2,$BO$127:$BP$138,2,FALSE) -> 0 | AG56: ='Budget FCFA'!AG56/VLOOKUP(AG$2,$BO$127:$BP$138,2,FALSE) -> 0 | AH56: ='Budget FCFA'!AH56/VLOOKUP(AH$2,$BO$127:$BP$138,2,FALSE) -> 0 | AI56: ='Budget FCFA'!AI56/VLOOKUP(AI$2,$BO$127:$BP$138,2,FALSE) -> 0 | AJ56: ='Budget FCFA'!AJ56/VLOOKUP(AJ$2,$BO$127:$BP$138,2,FALSE) -> 0 | AK56: ='Budget FCFA'!AK56/VLOOKUP(AK$2,$BO$127:$BP$138,2,FALSE) -> 0 | AL56: ='Budget FCFA'!AL56/VLOOKUP(AL$2,$BO$127:$BP$138,2,FALSE) -> 2871.45194 | AM56: ='Budget FCFA'!AM56/VLOOKUP(AM$2,$BO$127:$BP$138,2,FALSE) -> 0 | AN56: ='Budget FCFA'!AN56/VLOOKUP(AN$2,$BO$127:$BP$138,2,FALSE) -> 0 | AO56: ='Budget FCFA'!AO56/VLOOKUP(AO$2,$BO$127:$BP$138,2,FALSE) -> 0 | AP56: ='Budget FCFA'!AP56/VLOOKUP(AP$2,$BO$127:$BP$138,2,FALSE) -> 0 | AQ56: ='Budget FCFA'!#REF!/VLOOKUP(AQ$2,$BO$127:$BP$138,2,FALSE) ->  | AR56: ='Budget FCFA'!#REF!/VLOOKUP(AR$2,$BO$127:$BP$138,2,FALSE) ->  | AS56: ='Budget FCFA'!#REF!/VLOOKUP(AS$2,$BO$127:$BP$138,2,FALSE) ->  | AT56: ='Budget FCFA'!#REF!/VLOOKUP(AT$2,$BO$127:$BP$138,2,FALSE) ->  | AU56: ='Budget FCFA'!#REF!/VLOOKUP(AU$2,$BO$127:$BP$138,2,FALSE) ->  | AV56: ='Budget FCFA'!#REF!/VLOOKUP(AV$2,$BO$127:$BP$138,2,FALSE) ->  | AW56: ='Budget FCFA'!#REF!/VLOOKUP(AW$2,$BO$127:$BP$138,2,FALSE) ->  | AX56: ='Budget FCFA'!#REF!/VLOOKUP(AX$2,$BO$127:$BP$138,2,FALSE) ->  | AY56: ='Budget FCFA'!#REF!/VLOOKUP(AY$2,$BO$127:$BP$138,2,FALSE) ->  | AZ56: ='Budget FCFA'!#REF!/VLOOKUP(AZ$2,$BO$127:$BP$138,2,FALSE) ->  | BA56: ='Budget FCFA'!#REF!/VLOOKUP(BA$2,$BO$127:$BP$138,2,FALSE) ->  | BB56: ='Budget FCFA'!#REF!/VLOOKUP(BB$2,$BO$127:$BP$138,2,FALSE) ->  | BC56: ='Budget FCFA'!#REF!/VLOOKUP(BC$2,$BO$127:$BP$138,2,FALSE) ->  | BD56: ='Budget FCFA'!#REF!/VLOOKUP(BD$2,$BO$127:$BP$138,2,FALSE) ->  | BE56: ='Budget FCFA'!#REF!/VLOOKUP(BE$2,$BO$127:$BP$138,2,FALSE) ->  | BF56: ='Budget FCFA'!#REF!/VLOOKUP(BF$2,$BO$127:$BP$138,2,FALSE) ->  | BG56: ='Budget FCFA'!#REF!/VLOOKUP(BG$2,$BO$127:$BP$138,2,FALSE) ->  | BH56: ='Budget FCFA'!#REF!/VLOOKUP(BH$2,$BO$127:$BP$138,2,FALSE) ->  | BI56: ='Budget FCFA'!#REF!/VLOOKUP(BI$2,$BO$127:$BP$138,2,FALSE) ->  | BJ56: ='Budget FCFA'!#REF!/VLOOKUP(BJ$2,$BO$127:$BP$138,2,FALSE) ->  | BL56: =BK56-'Budget FCFA'!#REF! -> 
A57: PUBPRESS | B57: DOUALA | C57: Achat d'espace presse | D57: ='Budget FCFA'!D57/VLOOKUP(D$2,$BO$127:$BP$138,2,FALSE) -> 0 | E57: ='Budget FCFA'!E57/VLOOKUP(E$2,$BO$127:$BP$138,2,FALSE) -> 0 | F57: ='Budget FCFA'!F57/VLOOKUP(F$2,$BO$127:$BP$138,2,FALSE) -> 0 | G57: ='Budget FCFA'!G57/VLOOKUP(G$2,$BO$127:$BP$138,2,FALSE) -> 0 | H57: ='Budget FCFA'!H57/VLOOKUP(H$2,$BO$127:$BP$138,2,FALSE) -> 0 | I57: ='Budget FCFA'!I57/VLOOKUP(I$2,$BO$127:$BP$138,2,FALSE) -> 0 | J57: ='Budget FCFA'!J57/VLOOKUP(J$2,$BO$127:$BP$138,2,FALSE) -> 0 | K57: ='Budget FCFA'!K57/VLOOKUP(K$2,$BO$127:$BP$138,2,FALSE) -> 0 | L57: ='Budget FCFA'!L57/VLOOKUP(L$2,$BO$127:$BP$138,2,FALSE) -> 0 | M57: ='Budget FCFA'!M57/VLOOKUP(M$2,$BO$127:$BP$138,2,FALSE) -> 0 | N57: ='Budget FCFA'!N57/VLOOKUP(N$2,$BO$127:$BP$138,2,FALSE) -> 0 | O57: ='Budget FCFA'!O57/VLOOKUP(O$2,$BO$127:$BP$138,2,FALSE) -> 0 | P57: ='Budget FCFA'!P57/VLOOKUP(P$2,$BO$127:$BP$138,2,FALSE) -> 0 | Q57: ='Budget FCFA'!Q57/VLOOKUP(Q$2,$BO$127:$BP$138,2,FALSE) -> 0 | R57: ='Budget FCFA'!R57/VLOOKUP(R$2,$BO$127:$BP$138,2,FALSE) -> 0 | S57: ='Budget FCFA'!S57/VLOOKUP(S$2,$BO$127:$BP$138,2,FALSE) -> 0 | T57: ='Budget FCFA'!T57/VLOOKUP(T$2,$BO$127:$BP$138,2,FALSE) -> 0 | U57: ='Budget FCFA'!U57/VLOOKUP(U$2,$BO$127:$BP$138,2,FALSE) -> 0 | V57: ='Budget FCFA'!V57/VLOOKUP(V$2,$BO$127:$BP$138,2,FALSE) -> 0 | W57: ='Budget FCFA'!W57/VLOOKUP(W$2,$BO$127:$BP$138,2,FALSE) -> 0 | X57: ='Budget FCFA'!X57/VLOOKUP(X$2,$BO$127:$BP$138,2,FALSE) -> 0 | Y57: ='Budget FCFA'!Y57/VLOOKUP(Y$2,$BO$127:$BP$138,2,FALSE) -> 0 | Z57: ='Budget FCFA'!Z57/VLOOKUP(Z$2,$BO$127:$BP$138,2,FALSE) -> 0 | AA57: ='Budget FCFA'!AA57/VLOOKUP(AA$2,$BO$127:$BP$138,2,FALSE) -> 0 | AB57: ='Budget FCFA'!AB57/VLOOKUP(AB$2,$BO$127:$BP$138,2,FALSE) -> 0 | AC57: ='Budget FCFA'!AC57/VLOOKUP(AC$2,$BO$127:$BP$138,2,FALSE) -> 0 | AD57: ='Budget FCFA'!AD57/VLOOKUP(AD$2,$BO$127:$BP$138,2,FALSE) -> 0 | AE57: ='Budget FCFA'!AE57/VLOOKUP(AE$2,$BO$127:$BP$138,2,FALSE) -> 0 | AF57: ='Budget FCFA'!AF57/VLOOKUP(AF$2,$BO$127:$BP$138,2,FALSE) -> 0 | AG57: ='Budget FCFA'!AG57/VLOOKUP(AG$2,$BO$127:$BP$138,2,FALSE) -> 0 | AH57: ='Budget FCFA'!AH57/VLOOKUP(AH$2,$BO$127:$BP$138,2,FALSE) -> 0 | AI57: ='Budget FCFA'!AI57/VLOOKUP(AI$2,$BO$127:$BP$138,2,FALSE) -> 0 | AJ57: ='Budget FCFA'!AJ57/VLOOKUP(AJ$2,$BO$127:$BP$138,2,FALSE) -> 0 | AK57: ='Budget FCFA'!AK57/VLOOKUP(AK$2,$BO$127:$BP$138,2,FALSE) -> 0 | AL57: ='Budget FCFA'!AL57/VLOOKUP(AL$2,$BO$127:$BP$138,2,FALSE) -> 0 | AM57: ='Budget FCFA'!AM57/VLOOKUP(AM$2,$BO$127:$BP$138,2,FALSE) -> 0 | AN57: ='Budget FCFA'!AN57/VLOOKUP(AN$2,$BO$127:$BP$138,2,FALSE) -> 0 | AO57: ='Budget FCFA'!AO57/VLOOKUP(AO$2,$BO$127:$BP$138,2,FALSE) -> 0 | AP57: ='Budget FCFA'!AP57/VLOOKUP(AP$2,$BO$127:$BP$138,2,FALSE) -> 0 | AQ57: ='Budget FCFA'!#REF!/VLOOKUP(AQ$2,$BO$127:$BP$138,2,FALSE) ->  | AR57: ='Budget FCFA'!#REF!/VLOOKUP(AR$2,$BO$127:$BP$138,2,FALSE) ->  | AS57: ='Budget FCFA'!#REF!/VLOOKUP(AS$2,$BO$127:$BP$138,2,FALSE) ->  | AT57: ='Budget FCFA'!#REF!/VLOOKUP(AT$2,$BO$127:$BP$138,2,FALSE) ->  | AU57: ='Budget FCFA'!#REF!/VLOOKUP(AU$2,$BO$127:$BP$138,2,FALSE) ->  | AV57: ='Budget FCFA'!#REF!/VLOOKUP(AV$2,$BO$127:$BP$138,2,FALSE) ->  | AW57: ='Budget FCFA'!#REF!/VLOOKUP(AW$2,$BO$127:$BP$138,2,FALSE) ->  | AX57: ='Budget FCFA'!#REF!/VLOOKUP(AX$2,$BO$127:$BP$138,2,FALSE) ->  | AY57: ='Budget FCFA'!#REF!/VLOOKUP(AY$2,$BO$127:$BP$138,2,FALSE) ->  | AZ57: ='Budget FCFA'!#REF!/VLOOKUP(AZ$2,$BO$127:$BP$138,2,FALSE) ->  | BA57: ='Budget FCFA'!#REF!/VLOOKUP(BA$2,$BO$127:$BP$138,2,FALSE) ->  | BB57: ='Budget FCFA'!#REF!/VLOOKUP(BB$2,$BO$127:$BP$138,2,FALSE) ->  | BC57: ='Budget FCFA'!#REF!/VLOOKUP(BC$2,$BO$127:$BP$138,2,FALSE) ->  | BD57: ='Budget FCFA'!#REF!/VLOOKUP(BD$2,$BO$127:$BP$138,2,FALSE) ->  | BE57: ='Budget FCFA'!#REF!/VLOOKUP(BE$2,$BO$127:$BP$138,2,FALSE) ->  | BF57: ='Budget FCFA'!#REF!/VLOOKUP(BF$2,$BO$127:$BP$138,2,FALSE) ->  | BG57: ='Budget FCFA'!#REF!/VLOOKUP(BG$2,$BO$127:$BP$138,2,FALSE) ->  | BH57: ='Budget FCFA'!#REF!/VLOOKUP(BH$2,$BO$127:$BP$138,2,FALSE) ->  | BI57: ='Budget FCFA'!#REF!/VLOOKUP(BI$2,$BO$127:$BP$138,2,FALSE) ->  | BJ57: ='Budget FCFA'!#REF!/VLOOKUP(BJ$2,$BO$127:$BP$138,2,FALSE) ->  | BL57: =BK57-'Budget FCFA'!#REF! -> 
A58: PUBPRESS | B58: ABIDJAN | C58: Créa presse | D58: ='Budget FCFA'!D58/VLOOKUP(D$2,$BO$127:$BP$138,2,FALSE) -> 0 | E58: ='Budget FCFA'!E58/VLOOKUP(E$2,$BO$127:$BP$138,2,FALSE) -> 0 | F58: ='Budget FCFA'!F58/VLOOKUP(F$2,$BO$127:$BP$138,2,FALSE) -> 0 | G58: ='Budget FCFA'!G58/VLOOKUP(G$2,$BO$127:$BP$138,2,FALSE) -> 0 | H58: ='Budget FCFA'!H58/VLOOKUP(H$2,$BO$127:$BP$138,2,FALSE) -> 0 | I58: ='Budget FCFA'!I58/VLOOKUP(I$2,$BO$127:$BP$138,2,FALSE) -> 0 | J58: ='Budget FCFA'!J58/VLOOKUP(J$2,$BO$127:$BP$138,2,FALSE) -> 0 | K58: ='Budget FCFA'!K58/VLOOKUP(K$2,$BO$127:$BP$138,2,FALSE) -> 0 | L58: ='Budget FCFA'!L58/VLOOKUP(L$2,$BO$127:$BP$138,2,FALSE) -> 0 | M58: ='Budget FCFA'!M58/VLOOKUP(M$2,$BO$127:$BP$138,2,FALSE) -> 0 | N58: ='Budget FCFA'!N58/VLOOKUP(N$2,$BO$127:$BP$138,2,FALSE) -> 0 | O58: ='Budget FCFA'!O58/VLOOKUP(O$2,$BO$127:$BP$138,2,FALSE) -> 0 | P58: ='Budget FCFA'!P58/VLOOKUP(P$2,$BO$127:$BP$138,2,FALSE) -> 0 | Q58: ='Budget FCFA'!Q58/VLOOKUP(Q$2,$BO$127:$BP$138,2,FALSE) -> 0 | R58: ='Budget FCFA'!R58/VLOOKUP(R$2,$BO$127:$BP$138,2,FALSE) -> 0 | S58: ='Budget FCFA'!S58/VLOOKUP(S$2,$BO$127:$BP$138,2,FALSE) -> 0 | T58: ='Budget FCFA'!T58/VLOOKUP(T$2,$BO$127:$BP$138,2,FALSE) -> 0 | U58: ='Budget FCFA'!U58/VLOOKUP(U$2,$BO$127:$BP$138,2,FALSE) -> 0 | V58: ='Budget FCFA'!V58/VLOOKUP(V$2,$BO$127:$BP$138,2,FALSE) -> 0 | W58: ='Budget FCFA'!W58/VLOOKUP(W$2,$BO$127:$BP$138,2,FALSE) -> 0 | X58: ='Budget FCFA'!X58/VLOOKUP(X$2,$BO$127:$BP$138,2,FALSE) -> 0 | Y58: ='Budget FCFA'!Y58/VLOOKUP(Y$2,$BO$127:$BP$138,2,FALSE) -> 0 | Z58: ='Budget FCFA'!Z58/VLOOKUP(Z$2,$BO$127:$BP$138,2,FALSE) -> 0 | AA58: ='Budget FCFA'!AA58/VLOOKUP(AA$2,$BO$127:$BP$138,2,FALSE) -> 0 | AB58: ='Budget FCFA'!AB58/VLOOKUP(AB$2,$BO$127:$BP$138,2,FALSE) -> 0 | AC58: ='Budget FCFA'!AC58/VLOOKUP(AC$2,$BO$127:$BP$138,2,FALSE) -> 0 | AD58: ='Budget FCFA'!AD58/VLOOKUP(AD$2,$BO$127:$BP$138,2,FALSE) -> 0 | AE58: ='Budget FCFA'!AE58/VLOOKUP(AE$2,$BO$127:$BP$138,2,FALSE) -> 0 | AF58: ='Budget FCFA'!AF58/VLOOKUP(AF$2,$BO$127:$BP$138,2,FALSE) -> 0 | AG58: ='Budget FCFA'!AG58/VLOOKUP(AG$2,$BO$127:$BP$138,2,FALSE) -> 0 | AH58: ='Budget FCFA'!AH58/VLOOKUP(AH$2,$BO$127:$BP$138,2,FALSE) -> 0 | AI58: ='Budget FCFA'!AI58/VLOOKUP(AI$2,$BO$127:$BP$138,2,FALSE) -> 0 | AJ58: ='Budget FCFA'!AJ58/VLOOKUP(AJ$2,$BO$127:$BP$138,2,FALSE) -> 0 | AK58: ='Budget FCFA'!AK58/VLOOKUP(AK$2,$BO$127:$BP$138,2,FALSE) -> 0 | AL58: ='Budget FCFA'!AL58/VLOOKUP(AL$2,$BO$127:$BP$138,2,FALSE) -> 1459.578905 | AM58: ='Budget FCFA'!AM58/VLOOKUP(AM$2,$BO$127:$BP$138,2,FALSE) -> 0 | AN58: ='Budget FCFA'!AN58/VLOOKUP(AN$2,$BO$127:$BP$138,2,FALSE) -> 0 | AO58: ='Budget FCFA'!AO58/VLOOKUP(AO$2,$BO$127:$BP$138,2,FALSE) -> 0 | AP58: ='Budget FCFA'!AP58/VLOOKUP(AP$2,$BO$127:$BP$138,2,FALSE) -> 0 | AQ58: ='Budget FCFA'!#REF!/VLOOKUP(AQ$2,$BO$127:$BP$138,2,FALSE) ->  | AR58: ='Budget FCFA'!#REF!/VLOOKUP(AR$2,$BO$127:$BP$138,2,FALSE) ->  | AS58: ='Budget FCFA'!#REF!/VLOOKUP(AS$2,$BO$127:$BP$138,2,FALSE) ->  | AT58: ='Budget FCFA'!#REF!/VLOOKUP(AT$2,$BO$127:$BP$138,2,FALSE) ->  | AU58: ='Budget FCFA'!#REF!/VLOOKUP(AU$2,$BO$127:$BP$138,2,FALSE) ->  | AV58: ='Budget FCFA'!#REF!/VLOOKUP(AV$2,$BO$127:$BP$138,2,FALSE) ->  | AW58: ='Budget FCFA'!#REF!/VLOOKUP(AW$2,$BO$127:$BP$138,2,FALSE) ->  | AX58: ='Budget FCFA'!#REF!/VLOOKUP(AX$2,$BO$127:$BP$138,2,FALSE) ->  | AY58: ='Budget FCFA'!#REF!/VLOOKUP(AY$2,$BO$127:$BP$138,2,FALSE) ->  | AZ58: ='Budget FCFA'!#REF!/VLOOKUP(AZ$2,$BO$127:$BP$138,2,FALSE) ->  | BA58: ='Budget FCFA'!#REF!/VLOOKUP(BA$2,$BO$127:$BP$138,2,FALSE) ->  | BB58: ='Budget FCFA'!#REF!/VLOOKUP(BB$2,$BO$127:$BP$138,2,FALSE) ->  | BC58: ='Budget FCFA'!#REF!/VLOOKUP(BC$2,$BO$127:$BP$138,2,FALSE) ->  | BD58: ='Budget FCFA'!#REF!/VLOOKUP(BD$2,$BO$127:$BP$138,2,FALSE) ->  | BE58: ='Budget FCFA'!#REF!/VLOOKUP(BE$2,$BO$127:$BP$138,2,FALSE) ->  | BF58: ='Budget FCFA'!#REF!/VLOOKUP(BF$2,$BO$127:$BP$138,2,FALSE) ->  | BG58: ='Budget FCFA'!#REF!/VLOOKUP(BG$2,$BO$127:$BP$138,2,FALSE) ->  | BH58: ='Budget FCFA'!#REF!/VLOOKUP(BH$2,$BO$127:$BP$138,2,FALSE) ->  | BI58: ='Budget FCFA'!#REF!/VLOOKUP(BI$2,$BO$127:$BP$138,2,FALSE) ->  | BJ58: ='Budget FCFA'!#REF!/VLOOKUP(BJ$2,$BO$127:$BP$138,2,FALSE) ->  | BL58: =BK58-'Budget FCFA'!#REF! -> 
A59: PUBPRESS | B59: BRAZZA | C59: Créa presse | D59: ='Budget FCFA'!D59/VLOOKUP(D$2,$BO$127:$BP$138,2,FALSE) -> 0 | E59: ='Budget FCFA'!E59/VLOOKUP(E$2,$BO$127:$BP$138,2,FALSE) -> 0 | F59: ='Budget FCFA'!F59/VLOOKUP(F$2,$BO$127:$BP$138,2,FALSE) -> 0 | G59: ='Budget FCFA'!G59/VLOOKUP(G$2,$BO$127:$BP$138,2,FALSE) -> 0 | H59: ='Budget FCFA'!H59/VLOOKUP(H$2,$BO$127:$BP$138,2,FALSE) -> 0 | I59: ='Budget FCFA'!I59/VLOOKUP(I$2,$BO$127:$BP$138,2,FALSE) -> 0 | J59: ='Budget FCFA'!J59/VLOOKUP(J$2,$BO$127:$BP$138,2,FALSE) -> 0 | K59: ='Budget FCFA'!K59/VLOOKUP(K$2,$BO$127:$BP$138,2,FALSE) -> 0 | L59: ='Budget FCFA'!L59/VLOOKUP(L$2,$BO$127:$BP$138,2,FALSE) -> 0 | M59: ='Budget FCFA'!M59/VLOOKUP(M$2,$BO$127:$BP$138,2,FALSE) -> 0 | N59: ='Budget FCFA'!N59/VLOOKUP(N$2,$BO$127:$BP$138,2,FALSE) -> 0 | O59: ='Budget FCFA'!O59/VLOOKUP(O$2,$BO$127:$BP$138,2,FALSE) -> 0 | P59: ='Budget FCFA'!P59/VLOOKUP(P$2,$BO$127:$BP$138,2,FALSE) -> 0 | Q59: ='Budget FCFA'!Q59/VLOOKUP(Q$2,$BO$127:$BP$138,2,FALSE) -> 0 | R59: ='Budget FCFA'!R59/VLOOKUP(R$2,$BO$127:$BP$138,2,FALSE) -> 0 | S59: ='Budget FCFA'!S59/VLOOKUP(S$2,$BO$127:$BP$138,2,FALSE) -> 0 | T59: ='Budget FCFA'!T59/VLOOKUP(T$2,$BO$127:$BP$138,2,FALSE) -> 0 | U59: ='Budget FCFA'!U59/VLOOKUP(U$2,$BO$127:$BP$138,2,FALSE) -> 0 | V59: ='Budget FCFA'!V59/VLOOKUP(V$2,$BO$127:$BP$138,2,FALSE) -> 0 | W59: ='Budget FCFA'!W59/VLOOKUP(W$2,$BO$127:$BP$138,2,FALSE) -> 0 | X59: ='Budget FCFA'!X59/VLOOKUP(X$2,$BO$127:$BP$138,2,FALSE) -> 0 | Y59: ='Budget FCFA'!Y59/VLOOKUP(Y$2,$BO$127:$BP$138,2,FALSE) -> 0 | Z59: ='Budget FCFA'!Z59/VLOOKUP(Z$2,$BO$127:$BP$138,2,FALSE) -> 0 | AA59: ='Budget FCFA'!AA59/VLOOKUP(AA$2,$BO$127:$BP$138,2,FALSE) -> 0 | AB59: ='Budget FCFA'!AB59/VLOOKUP(AB$2,$BO$127:$BP$138,2,FALSE) -> 0 | AC59: ='Budget FCFA'!AC59/VLOOKUP(AC$2,$BO$127:$BP$138,2,FALSE) -> 0 | AD59: ='Budget FCFA'!AD59/VLOOKUP(AD$2,$BO$127:$BP$138,2,FALSE) -> 0 | AE59: ='Budget FCFA'!AE59/VLOOKUP(AE$2,$BO$127:$BP$138,2,FALSE) -> 0 | AF59: ='Budget FCFA'!AF59/VLOOKUP(AF$2,$BO$127:$BP$138,2,FALSE) -> 0 | AG59: ='Budget FCFA'!AG59/VLOOKUP(AG$2,$BO$127:$BP$138,2,FALSE) -> 0 | AH59: ='Budget FCFA'!AH59/VLOOKUP(AH$2,$BO$127:$BP$138,2,FALSE) -> 0 | AI59: ='Budget FCFA'!AI59/VLOOKUP(AI$2,$BO$127:$BP$138,2,FALSE) -> 0 | AJ59: ='Budget FCFA'!AJ59/VLOOKUP(AJ$2,$BO$127:$BP$138,2,FALSE) -> 0 | AK59: ='Budget FCFA'!AK59/VLOOKUP(AK$2,$BO$127:$BP$138,2,FALSE) -> 0 | AL59: ='Budget FCFA'!AL59/VLOOKUP(AL$2,$BO$127:$BP$138,2,FALSE) -> 279.993963 | AM59: ='Budget FCFA'!AM59/VLOOKUP(AM$2,$BO$127:$BP$138,2,FALSE) -> 0 | AN59: ='Budget FCFA'!AN59/VLOOKUP(AN$2,$BO$127:$BP$138,2,FALSE) -> 0 | AO59: ='Budget FCFA'!AO59/VLOOKUP(AO$2,$BO$127:$BP$138,2,FALSE) -> 0 | AP59: ='Budget FCFA'!AP59/VLOOKUP(AP$2,$BO$127:$BP$138,2,FALSE) -> 0 | AQ59: ='Budget FCFA'!#REF!/VLOOKUP(AQ$2,$BO$127:$BP$138,2,FALSE) ->  | AR59: ='Budget FCFA'!#REF!/VLOOKUP(AR$2,$BO$127:$BP$138,2,FALSE) ->  | AS59: ='Budget FCFA'!#REF!/VLOOKUP(AS$2,$BO$127:$BP$138,2,FALSE) ->  | AT59: ='Budget FCFA'!#REF!/VLOOKUP(AT$2,$BO$127:$BP$138,2,FALSE) ->  | AU59: ='Budget FCFA'!#REF!/VLOOKUP(AU$2,$BO$127:$BP$138,2,FALSE) ->  | AV59: ='Budget FCFA'!#REF!/VLOOKUP(AV$2,$BO$127:$BP$138,2,FALSE) ->  | AW59: ='Budget FCFA'!#REF!/VLOOKUP(AW$2,$BO$127:$BP$138,2,FALSE) ->  | AX59: ='Budget FCFA'!#REF!/VLOOKUP(AX$2,$BO$127:$BP$138,2,FALSE) ->  | AY59: ='Budget FCFA'!#REF!/VLOOKUP(AY$2,$BO$127:$BP$138,2,FALSE) ->  | AZ59: ='Budget FCFA'!#REF!/VLOOKUP(AZ$2,$BO$127:$BP$138,2,FALSE) ->  | BA59: ='Budget FCFA'!#REF!/VLOOKUP(BA$2,$BO$127:$BP$138,2,FALSE) ->  | BB59: ='Budget FCFA'!#REF!/VLOOKUP(BB$2,$BO$127:$BP$138,2,FALSE) ->  | BC59: ='Budget FCFA'!#REF!/VLOOKUP(BC$2,$BO$127:$BP$138,2,FALSE) ->  | BD59: ='Budget FCFA'!#REF!/VLOOKUP(BD$2,$BO$127:$BP$138,2,FALSE) ->  | BE59: ='Budget FCFA'!#REF!/VLOOKUP(BE$2,$BO$127:$BP$138,2,FALSE) ->  | BF59: ='Budget FCFA'!#REF!/VLOOKUP(BF$2,$BO$127:$BP$138,2,FALSE) ->  | BG59: ='Budget FCFA'!#REF!/VLOOKUP(BG$2,$BO$127:$BP$138,2,FALSE) ->  | BH59: ='Budget FCFA'!#REF!/VLOOKUP(BH$2,$BO$127:$BP$138,2,FALSE) ->  | BI59: ='Budget FCFA'!#REF!/VLOOKUP(BI$2,$BO$127:$BP$138,2,FALSE) ->  | BJ59: ='Budget FCFA'!#REF!/VLOOKUP(BJ$2,$BO$127:$BP$138,2,FALSE) ->  | BL59: =BK59-'Budget FCFA'!#REF! -> 
A60: PUBPRESS | B60: DAKAR | C60: Créa presse | D60: ='Budget FCFA'!D60/VLOOKUP(D$2,$BO$127:$BP$138,2,FALSE) -> 0 | E60: ='Budget FCFA'!E60/VLOOKUP(E$2,$BO$127:$BP$138,2,FALSE) -> 0 | F60: ='Budget FCFA'!F60/VLOOKUP(F$2,$BO$127:$BP$138,2,FALSE) -> 0 | G60: ='Budget FCFA'!G60/VLOOKUP(G$2,$BO$127:$BP$138,2,FALSE) -> 0 | H60: ='Budget FCFA'!H60/VLOOKUP(H$2,$BO$127:$BP$138,2,FALSE) -> 0 | I60: ='Budget FCFA'!I60/VLOOKUP(I$2,$BO$127:$BP$138,2,FALSE) -> 0 | J60: ='Budget FCFA'!J60/VLOOKUP(J$2,$BO$127:$BP$138,2,FALSE) -> 0 | K60: ='Budget FCFA'!K60/VLOOKUP(K$2,$BO$127:$BP$138,2,FALSE) -> 0 | L60: ='Budget FCFA'!L60/VLOOKUP(L$2,$BO$127:$BP$138,2,FALSE) -> 0 | M60: ='Budget FCFA'!M60/VLOOKUP(M$2,$BO$127:$BP$138,2,FALSE) -> 0 | N60: ='Budget FCFA'!N60/VLOOKUP(N$2,$BO$127:$BP$138,2,FALSE) -> 0 | O60: ='Budget FCFA'!O60/VLOOKUP(O$2,$BO$127:$BP$138,2,FALSE) -> 0 | P60: ='Budget FCFA'!P60/VLOOKUP(P$2,$BO$127:$BP$138,2,FALSE) -> 0 | Q60: ='Budget FCFA'!Q60/VLOOKUP(Q$2,$BO$127:$BP$138,2,FALSE) -> 0 | R60: ='Budget FCFA'!R60/VLOOKUP(R$2,$BO$127:$BP$138,2,FALSE) -> 0 | S60: ='Budget FCFA'!S60/VLOOKUP(S$2,$BO$127:$BP$138,2,FALSE) -> 0 | T60: ='Budget FCFA'!T60/VLOOKUP(T$2,$BO$127:$BP$138,2,FALSE) -> 0 | U60: ='Budget FCFA'!U60/VLOOKUP(U$2,$BO$127:$BP$138,2,FALSE) -> 0 | V60: ='Budget FCFA'!V60/VLOOKUP(V$2,$BO$127:$BP$138,2,FALSE) -> 0 | W60: ='Budget FCFA'!W60/VLOOKUP(W$2,$BO$127:$BP$138,2,FALSE) -> 0 | X60: ='Budget FCFA'!X60/VLOOKUP(X$2,$BO$127:$BP$138,2,FALSE) -> 0 | Y60: ='Budget FCFA'!Y60/VLOOKUP(Y$2,$BO$127:$BP$138,2,FALSE) -> 0 | Z60: ='Budget FCFA'!Z60/VLOOKUP(Z$2,$BO$127:$BP$138,2,FALSE) -> 0 | AA60: ='Budget FCFA'!AA60/VLOOKUP(AA$2,$BO$127:$BP$138,2,FALSE) -> 0 | AB60: ='Budget FCFA'!AB60/VLOOKUP(AB$2,$BO$127:$BP$138,2,FALSE) -> 0 | AC60: ='Budget FCFA'!AC60/VLOOKUP(AC$2,$BO$127:$BP$138,2,FALSE) -> 0 | AD60: ='Budget FCFA'!AD60/VLOOKUP(AD$2,$BO$127:$BP$138,2,FALSE) -> 0 | AE60: ='Budget FCFA'!AE60/VLOOKUP(AE$2,$BO$127:$BP$138,2,FALSE) -> 0 | AF60: ='Budget FCFA'!AF60/VLOOKUP(AF$2,$BO$127:$BP$138,2,FALSE) -> 0 | AG60: ='Budget FCFA'!AG60/VLOOKUP(AG$2,$BO$127:$BP$138,2,FALSE) -> 0 | AH60: ='Budget FCFA'!AH60/VLOOKUP(AH$2,$BO$127:$BP$138,2,FALSE) -> 0 | AI60: ='Budget FCFA'!AI60/VLOOKUP(AI$2,$BO$127:$BP$138,2,FALSE) -> 0 | AJ60: ='Budget FCFA'!AJ60/VLOOKUP(AJ$2,$BO$127:$BP$138,2,FALSE) -> 0 | AK60: ='Budget FCFA'!AK60/VLOOKUP(AK$2,$BO$127:$BP$138,2,FALSE) -> 0 | AL60: ='Budget FCFA'!AL60/VLOOKUP(AL$2,$BO$127:$BP$138,2,FALSE) -> 375.2258151 | AM60: ='Budget FCFA'!AM60/VLOOKUP(AM$2,$BO$127:$BP$138,2,FALSE) -> 0 | AN60: ='Budget FCFA'!AN60/VLOOKUP(AN$2,$BO$127:$BP$138,2,FALSE) -> 0 | AO60: ='Budget FCFA'!AO60/VLOOKUP(AO$2,$BO$127:$BP$138,2,FALSE) -> 0 | AP60: ='Budget FCFA'!AP60/VLOOKUP(AP$2,$BO$127:$BP$138,2,FALSE) -> 0 | AQ60: ='Budget FCFA'!#REF!/VLOOKUP(AQ$2,$BO$127:$BP$138,2,FALSE) ->  | AR60: ='Budget FCFA'!#REF!/VLOOKUP(AR$2,$BO$127:$BP$138,2,FALSE) ->  | AS60: ='Budget FCFA'!#REF!/VLOOKUP(AS$2,$BO$127:$BP$138,2,FALSE) ->  | AT60: ='Budget FCFA'!#REF!/VLOOKUP(AT$2,$BO$127:$BP$138,2,FALSE) ->  | AU60: ='Budget FCFA'!#REF!/VLOOKUP(AU$2,$BO$127:$BP$138,2,FALSE) ->  | AV60: ='Budget FCFA'!#REF!/VLOOKUP(AV$2,$BO$127:$BP$138,2,FALSE) ->  | AW60: ='Budget FCFA'!#REF!/VLOOKUP(AW$2,$BO$127:$BP$138,2,FALSE) ->  | AX60: ='Budget FCFA'!#REF!/VLOOKUP(AX$2,$BO$127:$BP$138,2,FALSE) ->  | AY60: ='Budget FCFA'!#REF!/VLOOKUP(AY$2,$BO$127:$BP$138,2,FALSE) ->  | AZ60: ='Budget FCFA'!#REF!/VLOOKUP(AZ$2,$BO$127:$BP$138,2,FALSE) ->  | BA60: ='Budget FCFA'!#REF!/VLOOKUP(BA$2,$BO$127:$BP$138,2,FALSE) ->  | BB60: ='Budget FCFA'!#REF!/VLOOKUP(BB$2,$BO$127:$BP$138,2,FALSE) ->  | BC60: ='Budget FCFA'!#REF!/VLOOKUP(BC$2,$BO$127:$BP$138,2,FALSE) ->  | BD60: ='Budget FCFA'!#REF!/VLOOKUP(BD$2,$BO$127:$BP$138,2,FALSE) ->  | BE60: ='Budget FCFA'!#REF!/VLOOKUP(BE$2,$BO$127:$BP$138,2,FALSE) ->  | BF60: ='Budget FCFA'!#REF!/VLOOKUP(BF$2,$BO$127:$BP$138,2,FALSE) ->  | BG60: ='Budget FCFA'!#REF!/VLOOKUP(BG$2,$BO$127:$BP$138,2,FALSE) ->  | BH60: ='Budget FCFA'!#REF!/VLOOKUP(BH$2,$BO$127:$BP$138,2,FALSE) ->  | BI60: ='Budget FCFA'!#REF!/VLOOKUP(BI$2,$BO$127:$BP$138,2,FALSE) ->  | BJ60: ='Budget FCFA'!#REF!/VLOOKUP(BJ$2,$BO$127:$BP$138,2,FALSE) ->  | BL60: =BK60-'Budget FCFA'!#REF! -> 
A61: PUBPRESS | B61: LIBREVILLE | C61: Créa presse | D61: ='Budget FCFA'!D61/VLOOKUP(D$2,$BO$127:$BP$138,2,FALSE) -> 0 | E61: ='Budget FCFA'!E61/VLOOKUP(E$2,$BO$127:$BP$138,2,FALSE) -> 0 | F61: ='Budget FCFA'!F61/VLOOKUP(F$2,$BO$127:$BP$138,2,FALSE) -> 0 | G61: ='Budget FCFA'!G61/VLOOKUP(G$2,$BO$127:$BP$138,2,FALSE) -> 0 | H61: ='Budget FCFA'!H61/VLOOKUP(H$2,$BO$127:$BP$138,2,FALSE) -> 0 | I61: ='Budget FCFA'!I61/VLOOKUP(I$2,$BO$127:$BP$138,2,FALSE) -> 0 | J61: ='Budget FCFA'!J61/VLOOKUP(J$2,$BO$127:$BP$138,2,FALSE) -> 0 | K61: ='Budget FCFA'!K61/VLOOKUP(K$2,$BO$127:$BP$138,2,FALSE) -> 0 | L61: ='Budget FCFA'!L61/VLOOKUP(L$2,$BO$127:$BP$138,2,FALSE) -> 0 | M61: ='Budget FCFA'!M61/VLOOKUP(M$2,$BO$127:$BP$138,2,FALSE) -> 0 | N61: ='Budget FCFA'!N61/VLOOKUP(N$2,$BO$127:$BP$138,2,FALSE) -> 0 | O61: ='Budget FCFA'!O61/VLOOKUP(O$2,$BO$127:$BP$138,2,FALSE) -> 0 | P61: ='Budget FCFA'!P61/VLOOKUP(P$2,$BO$127:$BP$138,2,FALSE) -> 0 | Q61: ='Budget FCFA'!Q61/VLOOKUP(Q$2,$BO$127:$BP$138,2,FALSE) -> 0 | R61: ='Budget FCFA'!R61/VLOOKUP(R$2,$BO$127:$BP$138,2,FALSE) -> 0 | S61: ='Budget FCFA'!S61/VLOOKUP(S$2,$BO$127:$BP$138,2,FALSE) -> 0 | T61: ='Budget FCFA'!T61/VLOOKUP(T$2,$BO$127:$BP$138,2,FALSE) -> 0 | U61: ='Budget FCFA'!U61/VLOOKUP(U$2,$BO$127:$BP$138,2,FALSE) -> 0 | V61: ='Budget FCFA'!V61/VLOOKUP(V$2,$BO$127:$BP$138,2,FALSE) -> 0 | W61: ='Budget FCFA'!W61/VLOOKUP(W$2,$BO$127:$BP$138,2,FALSE) -> 0 | X61: ='Budget FCFA'!X61/VLOOKUP(X$2,$BO$127:$BP$138,2,FALSE) -> 0 | Y61: ='Budget FCFA'!Y61/VLOOKUP(Y$2,$BO$127:$BP$138,2,FALSE) -> 0 | Z61: ='Budget FCFA'!Z61/VLOOKUP(Z$2,$BO$127:$BP$138,2,FALSE) -> 0 | AA61: ='Budget FCFA'!AA61/VLOOKUP(AA$2,$BO$127:$BP$138,2,FALSE) -> 0 | AB61: ='Budget FCFA'!AB61/VLOOKUP(AB$2,$BO$127:$BP$138,2,FALSE) -> 0 | AC61: ='Budget FCFA'!AC61/VLOOKUP(AC$2,$BO$127:$BP$138,2,FALSE) -> 0 | AD61: ='Budget FCFA'!AD61/VLOOKUP(AD$2,$BO$127:$BP$138,2,FALSE) -> 0 | AE61: ='Budget FCFA'!AE61/VLOOKUP(AE$2,$BO$127:$BP$138,2,FALSE) -> 0 | AF61: ='Budget FCFA'!AF61/VLOOKUP(AF$2,$BO$127:$BP$138,2,FALSE) -> 0 | AG61: ='Budget FCFA'!AG61/VLOOKUP(AG$2,$BO$127:$BP$138,2,FALSE) -> 0 | AH61: ='Budget FCFA'!AH61/VLOOKUP(AH$2,$BO$127:$BP$138,2,FALSE) -> 0 | AI61: ='Budget FCFA'!AI61/VLOOKUP(AI$2,$BO$127:$BP$138,2,FALSE) -> 0 | AJ61: ='Budget FCFA'!AJ61/VLOOKUP(AJ$2,$BO$127:$BP$138,2,FALSE) -> 0 | AK61: ='Budget FCFA'!AK61/VLOOKUP(AK$2,$BO$127:$BP$138,2,FALSE) -> 0 | AL61: ='Budget FCFA'!AL61/VLOOKUP(AL$2,$BO$127:$BP$138,2,FALSE) -> 543.1194423 | AM61: ='Budget FCFA'!AM61/VLOOKUP(AM$2,$BO$127:$BP$138,2,FALSE) -> 0 | AN61: ='Budget FCFA'!AN61/VLOOKUP(AN$2,$BO$127:$BP$138,2,FALSE) -> 0 | AO61: ='Budget FCFA'!AO61/VLOOKUP(AO$2,$BO$127:$BP$138,2,FALSE) -> 0 | AP61: ='Budget FCFA'!AP61/VLOOKUP(AP$2,$BO$127:$BP$138,2,FALSE) -> 0 | AQ61: ='Budget FCFA'!#REF!/VLOOKUP(AQ$2,$BO$127:$BP$138,2,FALSE) ->  | AR61: ='Budget FCFA'!#REF!/VLOOKUP(AR$2,$BO$127:$BP$138,2,FALSE) ->  | AS61: ='Budget FCFA'!#REF!/VLOOKUP(AS$2,$BO$127:$BP$138,2,FALSE) ->  | AT61: ='Budget FCFA'!#REF!/VLOOKUP(AT$2,$BO$127:$BP$138,2,FALSE) ->  | AU61: ='Budget FCFA'!#REF!/VLOOKUP(AU$2,$BO$127:$BP$138,2,FALSE) ->  | AV61: ='Budget FCFA'!#REF!/VLOOKUP(AV$2,$BO$127:$BP$138,2,FALSE) ->  | AW61: ='Budget FCFA'!#REF!/VLOOKUP(AW$2,$BO$127:$BP$138,2,FALSE) ->  | AX61: ='Budget FCFA'!#REF!/VLOOKUP(AX$2,$BO$127:$BP$138,2,FALSE) ->  | AY61: ='Budget FCFA'!#REF!/VLOOKUP(AY$2,$BO$127:$BP$138,2,FALSE) ->  | AZ61: ='Budget FCFA'!#REF!/VLOOKUP(AZ$2,$BO$127:$BP$138,2,FALSE) ->  | BA61: ='Budget FCFA'!#REF!/VLOOKUP(BA$2,$BO$127:$BP$138,2,FALSE) ->  | BB61: ='Budget FCFA'!#REF!/VLOOKUP(BB$2,$BO$127:$BP$138,2,FALSE) ->  | BC61: ='Budget FCFA'!#REF!/VLOOKUP(BC$2,$BO$127:$BP$138,2,FALSE) ->  | BD61: ='Budget FCFA'!#REF!/VLOOKUP(BD$2,$BO$127:$BP$138,2,FALSE) ->  | BE61: ='Budget FCFA'!#REF!/VLOOKUP(BE$2,$BO$127:$BP$138,2,FALSE) ->  | BF61: ='Budget FCFA'!#REF!/VLOOKUP(BF$2,$BO$127:$BP$138,2,FALSE) ->  | BG61: ='Budget FCFA'!#REF!/VLOOKUP(BG$2,$BO$127:$BP$138,2,FALSE) ->  | BH61: ='Budget FCFA'!#REF!/VLOOKUP(BH$2,$BO$127:$BP$138,2,FALSE) ->  | BI61: ='Budget FCFA'!#REF!/VLOOKUP(BI$2,$BO$127:$BP$138,2,FALSE) ->  | BJ61: ='Budget FCFA'!#REF!/VLOOKUP(BJ$2,$BO$127:$BP$138,2,FALSE) ->  | BL61: =BK61-'Budget FCFA'!#REF! -> 
A62: PUBPRESS | B62: DOUALA | C62: Créa presse | D62: ='Budget FCFA'!D62/VLOOKUP(D$2,$BO$127:$BP$138,2,FALSE) -> 0 | E62: ='Budget FCFA'!E62/VLOOKUP(E$2,$BO$127:$BP$138,2,FALSE) -> 0 | F62: ='Budget FCFA'!F62/VLOOKUP(F$2,$BO$127:$BP$138,2,FALSE) -> 0 | G62: ='Budget FCFA'!G62/VLOOKUP(G$2,$BO$127:$BP$138,2,FALSE) -> 0 | H62: ='Budget FCFA'!H62/VLOOKUP(H$2,$BO$127:$BP$138,2,FALSE) -> 0 | I62: ='Budget FCFA'!I62/VLOOKUP(I$2,$BO$127:$BP$138,2,FALSE) -> 0 | J62: ='Budget FCFA'!J62/VLOOKUP(J$2,$BO$127:$BP$138,2,FALSE) -> 0 | K62: ='Budget FCFA'!K62/VLOOKUP(K$2,$BO$127:$BP$138,2,FALSE) -> 0 | L62: ='Budget FCFA'!L62/VLOOKUP(L$2,$BO$127:$BP$138,2,FALSE) -> 0 | M62: ='Budget FCFA'!M62/VLOOKUP(M$2,$BO$127:$BP$138,2,FALSE) -> 0 | N62: ='Budget FCFA'!N62/VLOOKUP(N$2,$BO$127:$BP$138,2,FALSE) -> 0 | O62: ='Budget FCFA'!O62/VLOOKUP(O$2,$BO$127:$BP$138,2,FALSE) -> 0 | P62: ='Budget FCFA'!P62/VLOOKUP(P$2,$BO$127:$BP$138,2,FALSE) -> 0 | Q62: ='Budget FCFA'!Q62/VLOOKUP(Q$2,$BO$127:$BP$138,2,FALSE) -> 0 | R62: ='Budget FCFA'!R62/VLOOKUP(R$2,$BO$127:$BP$138,2,FALSE) -> 0 | S62: ='Budget FCFA'!S62/VLOOKUP(S$2,$BO$127:$BP$138,2,FALSE) -> 0 | T62: ='Budget FCFA'!T62/VLOOKUP(T$2,$BO$127:$BP$138,2,FALSE) -> 0 | U62: ='Budget FCFA'!U62/VLOOKUP(U$2,$BO$127:$BP$138,2,FALSE) -> 0 | V62: ='Budget FCFA'!V62/VLOOKUP(V$2,$BO$127:$BP$138,2,FALSE) -> 0 | W62: ='Budget FCFA'!W62/VLOOKUP(W$2,$BO$127:$BP$138,2,FALSE) -> 0 | X62: ='Budget FCFA'!X62/VLOOKUP(X$2,$BO$127:$BP$138,2,FALSE) -> 0 | Y62: ='Budget FCFA'!Y62/VLOOKUP(Y$2,$BO$127:$BP$138,2,FALSE) -> 0 | Z62: ='Budget FCFA'!Z62/VLOOKUP(Z$2,$BO$127:$BP$138,2,FALSE) -> 0 | AA62: ='Budget FCFA'!AA62/VLOOKUP(AA$2,$BO$127:$BP$138,2,FALSE) -> 0 | AB62: ='Budget FCFA'!AB62/VLOOKUP(AB$2,$BO$127:$BP$138,2,FALSE) -> 0 | AC62: ='Budget FCFA'!AC62/VLOOKUP(AC$2,$BO$127:$BP$138,2,FALSE) -> 0 | AD62: ='Budget FCFA'!AD62/VLOOKUP(AD$2,$BO$127:$BP$138,2,FALSE) -> 0 | AE62: ='Budget FCFA'!AE62/VLOOKUP(AE$2,$BO$127:$BP$138,2,FALSE) -> 0 | AF62: ='Budget FCFA'!AF62/VLOOKUP(AF$2,$BO$127:$BP$138,2,FALSE) -> 0 | AG62: ='Budget FCFA'!AG62/VLOOKUP(AG$2,$BO$127:$BP$138,2,FALSE) -> 0 | AH62: ='Budget FCFA'!AH62/VLOOKUP(AH$2,$BO$127:$BP$138,2,FALSE) -> 0 | AI62: ='Budget FCFA'!AI62/VLOOKUP(AI$2,$BO$127:$BP$138,2,FALSE) -> 0 | AJ62: ='Budget FCFA'!AJ62/VLOOKUP(AJ$2,$BO$127:$BP$138,2,FALSE) -> 0 | AK62: ='Budget FCFA'!AK62/VLOOKUP(AK$2,$BO$127:$BP$138,2,FALSE) -> 0 | AL62: ='Budget FCFA'!AL62/VLOOKUP(AL$2,$BO$127:$BP$138,2,FALSE) -> 391.0637435 | AM62: ='Budget FCFA'!AM62/VLOOKUP(AM$2,$BO$127:$BP$138,2,FALSE) -> 0 | AN62: ='Budget FCFA'!AN62/VLOOKUP(AN$2,$BO$127:$BP$138,2,FALSE) -> 0 | AO62: ='Budget FCFA'!AO62/VLOOKUP(AO$2,$BO$127:$BP$138,2,FALSE) -> 0 | AP62: ='Budget FCFA'!AP62/VLOOKUP(AP$2,$BO$127:$BP$138,2,FALSE) -> 0 | AQ62: ='Budget FCFA'!#REF!/VLOOKUP(AQ$2,$BO$127:$BP$138,2,FALSE) ->  | AR62: ='Budget FCFA'!#REF!/VLOOKUP(AR$2,$BO$127:$BP$138,2,FALSE) ->  | AS62: ='Budget FCFA'!#REF!/VLOOKUP(AS$2,$BO$127:$BP$138,2,FALSE) ->  | AT62: ='Budget FCFA'!#REF!/VLOOKUP(AT$2,$BO$127:$BP$138,2,FALSE) ->  | AU62: ='Budget FCFA'!#REF!/VLOOKUP(AU$2,$BO$127:$BP$138,2,FALSE) ->  | AV62: ='Budget FCFA'!#REF!/VLOOKUP(AV$2,$BO$127:$BP$138,2,FALSE) ->  | AW62: ='Budget FCFA'!#REF!/VLOOKUP(AW$2,$BO$127:$BP$138,2,FALSE) ->  | AX62: ='Budget FCFA'!#REF!/VLOOKUP(AX$2,$BO$127:$BP$138,2,FALSE) ->  | AY62: ='Budget FCFA'!#REF!/VLOOKUP(AY$2,$BO$127:$BP$138,2,FALSE) ->  | AZ62: ='Budget FCFA'!#REF!/VLOOKUP(AZ$2,$BO$127:$BP$138,2,FALSE) ->  | BA62: ='Budget FCFA'!#REF!/VLOOKUP(BA$2,$BO$127:$BP$138,2,FALSE) ->  | BB62: ='Budget FCFA'!#REF!/VLOOKUP(BB$2,$BO$127:$BP$138,2,FALSE) ->  | BC62: ='Budget FCFA'!#REF!/VLOOKUP(BC$2,$BO$127:$BP$138,2,FALSE) ->  | BD62: ='Budget FCFA'!#REF!/VLOOKUP(BD$2,$BO$127:$BP$138,2,FALSE) ->  | BE62: ='Budget FCFA'!#REF!/VLOOKUP(BE$2,$BO$127:$BP$138,2,FALSE) ->  | BF62: ='Budget FCFA'!#REF!/VLOOKUP(BF$2,$BO$127:$BP$138,2,FALSE) ->  | BG62: ='Budget FCFA'!#REF!/VLOOKUP(BG$2,$BO$127:$BP$138,2,FALSE) ->  | BH62: ='Budget FCFA'!#REF!/VLOOKUP(BH$2,$BO$127:$BP$138,2,FALSE) ->  | BI62: ='Budget FCFA'!#REF!/VLOOKUP(BI$2,$BO$127:$BP$138,2,FALSE) ->  | BJ62: ='Budget FCFA'!#REF!/VLOOKUP(BJ$2,$BO$127:$BP$138,2,FALSE) ->  | BL62: =BK62-'Budget FCFA'!#REF! -> 
A63: PUBPRESS | B63: TOTAL | C63: Total presse | D63: ='Budget FCFA'!D63/VLOOKUP(D$2,$BO$127:$BP$138,2,FALSE) -> 0 | E63: ='Budget FCFA'!E63/VLOOKUP(E$2,$BO$127:$BP$138,2,FALSE) -> 0 | F63: ='Budget FCFA'!F63/VLOOKUP(F$2,$BO$127:$BP$138,2,FALSE) -> 0 | G63: ='Budget FCFA'!G63/VLOOKUP(G$2,$BO$127:$BP$138,2,FALSE) -> 0 | H63: ='Budget FCFA'!H63/VLOOKUP(H$2,$BO$127:$BP$138,2,FALSE) -> 0 | I63: ='Budget FCFA'!I63/VLOOKUP(I$2,$BO$127:$BP$138,2,FALSE) -> 0 | J63: ='Budget FCFA'!J63/VLOOKUP(J$2,$BO$127:$BP$138,2,FALSE) -> 0 | K63: ='Budget FCFA'!K63/VLOOKUP(K$2,$BO$127:$BP$138,2,FALSE) -> 0 | L63: ='Budget FCFA'!L63/VLOOKUP(L$2,$BO$127:$BP$138,2,FALSE) -> 0 | M63: ='Budget FCFA'!M63/VLOOKUP(M$2,$BO$127:$BP$138,2,FALSE) -> 0 | N63: ='Budget FCFA'!N63/VLOOKUP(N$2,$BO$127:$BP$138,2,FALSE) -> 0 | O63: ='Budget FCFA'!O63/VLOOKUP(O$2,$BO$127:$BP$138,2,FALSE) -> 0 | P63: ='Budget FCFA'!P63/VLOOKUP(P$2,$BO$127:$BP$138,2,FALSE) -> 838.4680703 | Q63: ='Budget FCFA'!Q63/VLOOKUP(Q$2,$BO$127:$BP$138,2,FALSE) -> 0 | R63: ='Budget FCFA'!R63/VLOOKUP(R$2,$BO$127:$BP$138,2,FALSE) -> 0 | S63: ='Budget FCFA'!S63/VLOOKUP(S$2,$BO$127:$BP$138,2,FALSE) -> 0 | T63: ='Budget FCFA'!T63/VLOOKUP(T$2,$BO$127:$BP$138,2,FALSE) -> 0 | U63: ='Budget FCFA'!U63/VLOOKUP(U$2,$BO$127:$BP$138,2,FALSE) -> 0 | V63: ='Budget FCFA'!V63/VLOOKUP(V$2,$BO$127:$BP$138,2,FALSE) -> 0 | W63: ='Budget FCFA'!W63/VLOOKUP(W$2,$BO$127:$BP$138,2,FALSE) -> 0 | X63: ='Budget FCFA'!X63/VLOOKUP(X$2,$BO$127:$BP$138,2,FALSE) -> 0 | Y63: ='Budget FCFA'!Y63/VLOOKUP(Y$2,$BO$127:$BP$138,2,FALSE) -> 0 | Z63: ='Budget FCFA'!Z63/VLOOKUP(Z$2,$BO$127:$BP$138,2,FALSE) -> 0 | AA63: ='Budget FCFA'!AA63/VLOOKUP(AA$2,$BO$127:$BP$138,2,FALSE) -> 0 | AB63: ='Budget FCFA'!AB63/VLOOKUP(AB$2,$BO$127:$BP$138,2,FALSE) -> 0 | AC63: ='Budget FCFA'!AC63/VLOOKUP(AC$2,$BO$127:$BP$138,2,FALSE) -> 0 | AD63: ='Budget FCFA'!AD63/VLOOKUP(AD$2,$BO$127:$BP$138,2,FALSE) -> 0 | AE63: ='Budget FCFA'!AE63/VLOOKUP(AE$2,$BO$127:$BP$138,2,FALSE) -> 0 | AF63: ='Budget FCFA'!AF63/VLOOKUP(AF$2,$BO$127:$BP$138,2,FALSE) -> 0 | AG63: ='Budget FCFA'!AG63/VLOOKUP(AG$2,$BO$127:$BP$138,2,FALSE) -> 0 | AH63: ='Budget FCFA'!AH63/VLOOKUP(AH$2,$BO$127:$BP$138,2,FALSE) -> 0 | AI63: ='Budget FCFA'!AI63/VLOOKUP(AI$2,$BO$127:$BP$138,2,FALSE) -> 0 | AJ63: ='Budget FCFA'!AJ63/VLOOKUP(AJ$2,$BO$127:$BP$138,2,FALSE) -> 0 | AK63: ='Budget FCFA'!AK63/VLOOKUP(AK$2,$BO$127:$BP$138,2,FALSE) -> 0 | AL63: ='Budget FCFA'!AL63/VLOOKUP(AL$2,$BO$127:$BP$138,2,FALSE) -> 6926.597323 | AM63: ='Budget FCFA'!AM63/VLOOKUP(AM$2,$BO$127:$BP$138,2,FALSE) -> 686.0205776 | AN63: ='Budget FCFA'!AN63/VLOOKUP(AN$2,$BO$127:$BP$138,2,FALSE) -> 0 | AO63: ='Budget FCFA'!AO63/VLOOKUP(AO$2,$BO$127:$BP$138,2,FALSE) -> 0 | AP63: ='Budget FCFA'!AP63/VLOOKUP(AP$2,$BO$127:$BP$138,2,FALSE) -> 0 | AQ63: ='Budget FCFA'!#REF!/VLOOKUP(AQ$2,$BO$127:$BP$138,2,FALSE) ->  | AR63: ='Budget FCFA'!#REF!/VLOOKUP(AR$2,$BO$127:$BP$138,2,FALSE) ->  | AS63: ='Budget FCFA'!#REF!/VLOOKUP(AS$2,$BO$127:$BP$138,2,FALSE) ->  | AT63: ='Budget FCFA'!#REF!/VLOOKUP(AT$2,$BO$127:$BP$138,2,FALSE) ->  | AU63: ='Budget FCFA'!#REF!/VLOOKUP(AU$2,$BO$127:$BP$138,2,FALSE) ->  | AV63: ='Budget FCFA'!#REF!/VLOOKUP(AV$2,$BO$127:$BP$138,2,FALSE) ->  | AW63: ='Budget FCFA'!#REF!/VLOOKUP(AW$2,$BO$127:$BP$138,2,FALSE) ->  | AX63: ='Budget FCFA'!#REF!/VLOOKUP(AX$2,$BO$127:$BP$138,2,FALSE) ->  | AY63: ='Budget FCFA'!#REF!/VLOOKUP(AY$2,$BO$127:$BP$138,2,FALSE) ->  | AZ63: ='Budget FCFA'!#REF!/VLOOKUP(AZ$2,$BO$127:$BP$138,2,FALSE) ->  | BA63: ='Budget FCFA'!#REF!/VLOOKUP(BA$2,$BO$127:$BP$138,2,FALSE) ->  | BB63: ='Budget FCFA'!#REF!/VLOOKUP(BB$2,$BO$127:$BP$138,2,FALSE) ->  | BC63: ='Budget FCFA'!#REF!/VLOOKUP(BC$2,$BO$127:$BP$138,2,FALSE) ->  | BD63: ='Budget FCFA'!#REF!/VLOOKUP(BD$2,$BO$127:$BP$138,2,FALSE) ->  | BE63: ='Budget FCFA'!#REF!/VLOOKUP(BE$2,$BO$127:$BP$138,2,FALSE) ->  | BF63: ='Budget FCFA'!#REF!/VLOOKUP(BF$2,$BO$127:$BP$138,2,FALSE) ->  | BG63: ='Budget FCFA'!#REF!/VLOOKUP(BG$2,$BO$127:$BP$138,2,FALSE) ->  | BH63: ='Budget FCFA'!#REF!/VLOOKUP(BH$2,$BO$127:$BP$138,2,FALSE) ->  | BI63: ='Budget FCFA'!#REF!/VLOOKUP(BI$2,$BO$127:$BP$138,2,FALSE) ->  | BJ63: ='Budget FCFA'!#REF!/VLOOKUP(BJ$2,$BO$127:$BP$138,2,FALSE) ->  | BL63: =BK63-'Budget FCFA'!#REF! -> 
A64: PUBRADIO | B64: ABIDJAN | C64: Achat d'espace radio | D64: ='Budget FCFA'!D64/VLOOKUP(D$2,$BO$127:$BP$138,2,FALSE) -> 0 | E64: ='Budget FCFA'!E64/VLOOKUP(E$2,$BO$127:$BP$138,2,FALSE) -> 0 | F64: ='Budget FCFA'!F64/VLOOKUP(F$2,$BO$127:$BP$138,2,FALSE) -> 0 | G64: ='Budget FCFA'!G64/VLOOKUP(G$2,$BO$127:$BP$138,2,FALSE) -> 0 | H64: ='Budget FCFA'!H64/VLOOKUP(H$2,$BO$127:$BP$138,2,FALSE) -> 0 | I64: ='Budget FCFA'!I64/VLOOKUP(I$2,$BO$127:$BP$138,2,FALSE) -> 0 | J64: ='Budget FCFA'!J64/VLOOKUP(J$2,$BO$127:$BP$138,2,FALSE) -> 0 | K64: ='Budget FCFA'!K64/VLOOKUP(K$2,$BO$127:$BP$138,2,FALSE) -> 0 | L64: ='Budget FCFA'!L64/VLOOKUP(L$2,$BO$127:$BP$138,2,FALSE) -> 0 | M64: ='Budget FCFA'!M64/VLOOKUP(M$2,$BO$127:$BP$138,2,FALSE) -> 0 | N64: ='Budget FCFA'!N64/VLOOKUP(N$2,$BO$127:$BP$138,2,FALSE) -> 0 | O64: ='Budget FCFA'!O64/VLOOKUP(O$2,$BO$127:$BP$138,2,FALSE) -> 0 | P64: ='Budget FCFA'!P64/VLOOKUP(P$2,$BO$127:$BP$138,2,FALSE) -> 376.3341195 | Q64: ='Budget FCFA'!Q64/VLOOKUP(Q$2,$BO$127:$BP$138,2,FALSE) -> 0 | R64: ='Budget FCFA'!R64/VLOOKUP(R$2,$BO$127:$BP$138,2,FALSE) -> 0 | S64: ='Budget FCFA'!S64/VLOOKUP(S$2,$BO$127:$BP$138,2,FALSE) -> 0 | T64: ='Budget FCFA'!T64/VLOOKUP(T$2,$BO$127:$BP$138,2,FALSE) -> 0 | U64: ='Budget FCFA'!U64/VLOOKUP(U$2,$BO$127:$BP$138,2,FALSE) -> 0 | V64: ='Budget FCFA'!V64/VLOOKUP(V$2,$BO$127:$BP$138,2,FALSE) -> 0 | W64: ='Budget FCFA'!W64/VLOOKUP(W$2,$BO$127:$BP$138,2,FALSE) -> 0 | X64: ='Budget FCFA'!X64/VLOOKUP(X$2,$BO$127:$BP$138,2,FALSE) -> 0 | Y64: ='Budget FCFA'!Y64/VLOOKUP(Y$2,$BO$127:$BP$138,2,FALSE) -> 0 | Z64: ='Budget FCFA'!Z64/VLOOKUP(Z$2,$BO$127:$BP$138,2,FALSE) -> 0 | AA64: ='Budget FCFA'!AA64/VLOOKUP(AA$2,$BO$127:$BP$138,2,FALSE) -> 0 | AB64: ='Budget FCFA'!AB64/VLOOKUP(AB$2,$BO$127:$BP$138,2,FALSE) -> 0 | AC64: ='Budget FCFA'!AC64/VLOOKUP(AC$2,$BO$127:$BP$138,2,FALSE) -> 0 | AD64: ='Budget FCFA'!AD64/VLOOKUP(AD$2,$BO$127:$BP$138,2,FALSE) -> 0 | AE64: ='Budget FCFA'!AE64/VLOOKUP(AE$2,$BO$127:$BP$138,2,FALSE) -> 0 | AF64: ='Budget FCFA'!AF64/VLOOKUP(AF$2,$BO$127:$BP$138,2,FALSE) -> 0 | AG64: ='Budget FCFA'!AG64/VLOOKUP(AG$2,$BO$127:$BP$138,2,FALSE) -> 0 | AH64: ='Budget FCFA'!AH64/VLOOKUP(AH$2,$BO$127:$BP$138,2,FALSE) -> 0 | AI64: ='Budget FCFA'!AI64/VLOOKUP(AI$2,$BO$127:$BP$138,2,FALSE) -> 0 | AJ64: ='Budget FCFA'!AJ64/VLOOKUP(AJ$2,$BO$127:$BP$138,2,FALSE) -> 0 | AK64: ='Budget FCFA'!AK64/VLOOKUP(AK$2,$BO$127:$BP$138,2,FALSE) -> 0 | AL64: ='Budget FCFA'!AL64/VLOOKUP(AL$2,$BO$127:$BP$138,2,FALSE) -> 0 | AM64: ='Budget FCFA'!AM64/VLOOKUP(AM$2,$BO$127:$BP$138,2,FALSE) -> 0 | AN64: ='Budget FCFA'!AN64/VLOOKUP(AN$2,$BO$127:$BP$138,2,FALSE) -> 0 | AO64: ='Budget FCFA'!AO64/VLOOKUP(AO$2,$BO$127:$BP$138,2,FALSE) -> 0 | AP64: ='Budget FCFA'!AP64/VLOOKUP(AP$2,$BO$127:$BP$138,2,FALSE) -> 0 | AQ64: ='Budget FCFA'!#REF!/VLOOKUP(AQ$2,$BO$127:$BP$138,2,FALSE) ->  | AR64: ='Budget FCFA'!#REF!/VLOOKUP(AR$2,$BO$127:$BP$138,2,FALSE) ->  | AS64: ='Budget FCFA'!#REF!/VLOOKUP(AS$2,$BO$127:$BP$138,2,FALSE) ->  | AT64: ='Budget FCFA'!#REF!/VLOOKUP(AT$2,$BO$127:$BP$138,2,FALSE) ->  | AU64: ='Budget FCFA'!#REF!/VLOOKUP(AU$2,$BO$127:$BP$138,2,FALSE) ->  | AV64: ='Budget FCFA'!#REF!/VLOOKUP(AV$2,$BO$127:$BP$138,2,FALSE) ->  | AW64: ='Budget FCFA'!#REF!/VLOOKUP(AW$2,$BO$127:$BP$138,2,FALSE) ->  | AX64: ='Budget FCFA'!#REF!/VLOOKUP(AX$2,$BO$127:$BP$138,2,FALSE) ->  | AY64: ='Budget FCFA'!#REF!/VLOOKUP(AY$2,$BO$127:$BP$138,2,FALSE) ->  | AZ64: ='Budget FCFA'!#REF!/VLOOKUP(AZ$2,$BO$127:$BP$138,2,FALSE) ->  | BA64: ='Budget FCFA'!#REF!/VLOOKUP(BA$2,$BO$127:$BP$138,2,FALSE) ->  | BB64: ='Budget FCFA'!#REF!/VLOOKUP(BB$2,$BO$127:$BP$138,2,FALSE) ->  | BC64: ='Budget FCFA'!#REF!/VLOOKUP(BC$2,$BO$127:$BP$138,2,FALSE) ->  | BD64: ='Budget FCFA'!#REF!/VLOOKUP(BD$2,$BO$127:$BP$138,2,FALSE) ->  | BE64: ='Budget FCFA'!#REF!/VLOOKUP(BE$2,$BO$127:$BP$138,2,FALSE) ->  | BF64: ='Budget FCFA'!#REF!/VLOOKUP(BF$2,$BO$127:$BP$138,2,FALSE) ->  | BG64: ='Budget FCFA'!#REF!/VLOOKUP(BG$2,$BO$127:$BP$138,2,FALSE) ->  | BH64: ='Budget FCFA'!#REF!/VLOOKUP(BH$2,$BO$127:$BP$138,2,FALSE) ->  | BI64: ='Budget FCFA'!#REF!/VLOOKUP(BI$2,$BO$127:$BP$138,2,FALSE) ->  | BJ64: ='Budget FCFA'!#REF!/VLOOKUP(BJ$2,$BO$127:$BP$138,2,FALSE) ->  | BL64: =BK64-'Budget FCFA'!#REF! -> 
